{"text_format":"1","workbook":"xlsx","n_sheets":11,"sheets":["CCM-CENTRO-ITINERANTE","TempListas","INSTRUCTIVO ","Listas","TR","1. PRESUPUESTO INICIAL","2. INFORMACION GENERAL","3. CONTRAPARTIDA","4. DETALLADA-RECURSOS ICBF","5. TABLA TOTALES EJECUTADOS","Hoja3"],"not_rendered":{"charts":0,"images":3,"macros":1,"external_links":0,"defined_names":203,"comments":0,"pivot_tables":1},"unopened":[],"bounds":{"document_bytes":16777216,"sheet_cells":100000,"rows_first":2000,"rows_last":500,"rows_between":2000,"halvings":0,"cell_chars":16384,"cell_head_chars":4096},"cells_cut":0,"cells_raw":0,"read":"whole","date_system":"1900"}

{"sheet":"CCM-CENTRO-ITINERANTE","index":0,"n_rows":5,"n_cols":6,"rows_kept":5,"cut":false,"hidden":true,"merged":[]}
[]
[]
[null,null,"ALISTAMIENTO","ATENCIÓN","CIERRE","CCM (Promedio)"]
[2025,"CCM (Promedio) ITINERANTE",338563,390223,315168,381172]
[2024,"CCM (Promedio) CENTROS",1272486,1566583,1543582,1543933]

{"sheet":"TempListas","index":1,"n_rows":33,"n_cols":1,"rows_kept":33,"cut":false,"hidden":true,"merged":[]}
["ANTIOQUIA"]
["ATLÁNTICO"]
["BOGOTÁ DC"]
["BOLÍVAR"]
["BOYACÁ"]
["CALDAS"]
["CAQUETÁ"]
["CAUCA"]
["CESAR"]
["CÓRDOBA"]
["CUNDINAMARCA"]
["CHOCÓ"]
["HUILA"]
["LA GUAJIRA"]
["MAGDALENA"]
["META"]
["NARIÑO"]
["NORTE DE SANTANDER"]
["QUINDÍO"]
["RISARALDA"]
["SANTANDER"]
["SUCRE"]
["TOLIMA"]
["VALLE DEL CAUCA"]
["ARAUCA"]
["CASANARE"]
["PUTUMAYO"]
["SAN ANDRÉS"]
["AMAZONAS"]
["GUAINÍA"]
["GUAVIARE"]
["VAUPÉS"]
["VICHADA"]

{"sheet":"INSTRUCTIVO ","index":2,"n_rows":111,"n_cols":5,"rows_kept":111,"cut":false,"hidden":false,"merged":[[3,3,3,4],[1,1,3,1],[1,2,3,2],[4,1,4,4],[5,1,5,4],[8,1,8,4],[9,1,9,4],[10,1,10,4],[11,1,11,4],[12,1,12,4],[13,1,13,4],[24,1,24,4],[25,1,25,4],[26,1,26,4],[27,1,27,4],[21,1,21,4],[22,1,22,4],[23,1,23,4],[14,1,14,4],[15,1,15,4],[16,1,16,4],[17,1,17,4],[18,1,18,4],[19,1,19,4],[20,1,20,4],[28,1,28,4],[84,1,84,4],[69,1,69,4],[87,1,87,4],[36,1,36,4],[29,1,29,4],[30,1,30,4],[31,1,31,4],[32,1,32,4],[33,1,33,4],[34,1,34,4],[35,1,35,4],[40,1,40,4],[43,1,43,4],[38,1,38,4],[63,1,63,4],[97,1,97,2],[94,1,94,4],[110,1,111,4],[101,1,101,4],[104,1,104,4],[106,1,106,4],[98,1,98,4],[64,1,64,4],[91,1,91,4],[92,1,92,4],[93,1,93,4],[96,1,96,4],[89,1,89,4],[66,1,66,4]]}
[]
[null,null,"\nPROCESO\nPROMOCIÓN Y PREVENCIÓN\n\nFORMATO SEGUIMIENTO FINANCIERO CENTROS DE APOYO A LA INCLUSION\nITINERANTE",{"$f":"+'1. PRESUPUESTO INICIAL'!F1","v":"F24.GO1.MT7.PP "},{"$f":"+'1. PRESUPUESTO INICIAL'!G1","v":"2025-08-22"}]
[null,null,null,{"$f":"+'1. PRESUPUESTO INICIAL'!F2","v":"Versión 1"},"Página 1 de 1"]
[null,null,null,"Clasificación de la Información\nPública"]
[null,"INSTRUCTIVO"]
[null,"HOJA 1"]
[null,"1. PRESUPUESTO"]
[null,"OBJETIVO"]
[null,"Dar a conocer en detalle el valor del presupuesto de ingresos y gastos presentado de acuerdo con la estructura del estudio de costos.\t"]
[null,"FUENTE DE INFORMACION El estudio de costos de Centros de Apoyo a la Inclusión con sus anexos, propuesta, modificaciones en el marco del comité técnico."]
[null,"INFORMACIÓN GENERAL DEL CONTRATO/CONVENIO/INICIATIVA"]
[null,"Forma de atención: seleccione en la lista desplegable la forma de atención.\t"]
[null,"Regional: seleccione en la lista desplegable el nombre de la regional donde se desarrolla el contrato /convenio/ experiencia."]
[null,"Centro Zonal: seleccione en la lista desplegable el nombre del centro zonal donde se desarrolla el contrato /convenio/ experiencia."]
[null,"Zona: seleccione en la lista desplegable la zona donde se desarrolla el contrato /convenio/ experiencia."]
[null,"Municipio: digite el o los municipios donde se desarrolla el contrato /convenio/ experiencia."]
[null,"Entidad Contratista: Digite el nombre de la entidad.\t"]
[null,"Nit: Digite el Nit de la entidad."]
[null,"N° del contrato: Ingrese número "]
[null,"Fecha Inicio: Ingrese la fecha en la cual inicio el contrato /convenio/ experiencia."]
[null,"Fecha Final: Ingrese la fecha en la cual finaliza el contrato /convenio/ experiencia."]
[null,"Cupos contratados: Digite de acuerdo con la forma de atención registre el número de cupos contratados. \t"]
[null,"Tiempo de atención: Digite de acuerdo con la forma de atención el tiempo de atención total (alistamiento, atención y cierre) "]
[null,"Etapa contractual: valor que trae automáticamente el formato"]
[null,"Costo cupo mes: valor que trae automáticamente el formato\t"]
[null,"Valor mensual: valor que trae automáticamente el formato"]
[null,"Tiempo por etapa: valor que trae automáticamente el formato\t"]
[null,"Valor total contrato: valor que trae automáticamente el formato"]
[null,"Valor total aporte: valor que trae automáticamente el formato"]
[null,"1.  PRESUPUESTO DE INGRESOS: valor que trae automáticamente el formato.\t"]
[null,"2. PRESUPUESTO DE EGRESOS"]
[null,"2.1. PRESUPUESTO DE TALENTO HUMANO Y GASTOS DE VIAJE: Código, Componente del costo o gasto y Etapa de costo o gasto son valores que se traen automáticamente de la tabla de referencia del estudio de costos.\t"]
[null,"2.2. NIÑAS, NIÑOS Y ADOLESCENTES: Código, Componente del costo o gasto y Etapa de costo o gasto son valores que se traen automáticamente de la tabla de referencia del estudio de costos."]
[null,"2.3. OTROS GASTOS ADMINISTRATIVOS, OPERATIVOS Y FINANCIEROS: Código, Componente del costo o gasto y Etapa de costo o gasto son valores que se traen automáticamente de la tabla de referencia del estudio de costos.\t"]
[null,"TOTAL PRESUPUESTO DE GASTOS: es el total global de cada etapa (alistamiento, atención y cierre)\t\t"]
[null,"DIFERENCIA: diferencia entre el valor de la etapa inicial según CCM y el total de la etapa por rubro.\t"]
[null,"CONTROL DE VALORES: VERDADERO sin diferencia FALSO alerta, revisar la información ingresada.\t\t"]
[]
[null,"NOTA 1: Todos los campos son editable, las Celdas con fondo verde claro son campos campos con valores de referencia los cuales pueden ser editados."]
[]
[null,"HOJA 2 "]
[null,"2. INFORMACION GENERAL "]
[null,"OBJETIVO "]
[null,"Realizar seguimiento a la ejecución de los contratos asignados por cada una de las regiones y zonas para la atención de niñas niños y adolescentes de la modalidad ATRAPASUEÑOS"]
[null,"FUENTE DE LA INFORMACION:  hoja 1 PRESUPUESTO  inicial "]
[null,"Tener presente que la información debe coincidir con los datos de la hoja 1. PRESUPUESTO"]
[null,"Etapa de Alistamiento "]
[null,"Digite el valor ejecutado por cada uno de los rubros asignados "]
[null,"TOTAL INEJECUCIONES MES (Inasistencias + No ejecutado + Diferencia Soportes): Diligencie el valor de las inasistencias y lo no ejecutado en el tiempo asignado."]
[null,"Etapa de Atencion "]
[null,"Digite el valor ejecutado por cada uno de los rubros asignados tenga presente que es mes vencido "]
[null,"TOTAL INEJECUCIONES MES (Inasistencias + No ejecutado + Diferencia Soportes): Diligencie el valor de las inasistencias y lo no ejecutado en el mes "]
[null,"Etapa de cierre "]
[null,"Digite el valor ejecutado por cada uno de los rubros asignados "]
[null,"TOTAL INEJECUCIONES MES (Inasistencias + No ejecutado + Diferencia Soportes): Diligencie el valor de las inasistencias y lo no ejecutado en el mes "]
[null,"Rendimientos Financieros "]
[null,"Fecha de inicio : coloque la fecha de ingreso de los recursos asignados por el ICBF \t"]
[null,"Fecha de corte: ultimo dia del mes "]
[null,"Valor rendimientos: Sumar los valores reportados en el extracto teniendo en cuenta la etapa desarrollada ."]
[null,"Fecha de consignación: se reintegrar a las cuentas del ICBF según corresponda la atención "]
[null,"Reintegro "]
[null,"Fecha del reintegro: coloque la fecha en la cual realiza la consignación a la entidad y anexa el soporte "]
[]
[null,"NOTA 1: Todos los campos son editables."]
[]
[]
[null,"HOJA 3"]
[null,"3. CONTRAPARTIDA"]
[null,"OBJETIVO"]
[null,"Dar a conocer en detalle el valor de la contrapartida, que aportara el contratista indicando las líneas de atención, su valor inicial presupuestado, el valor ejecutado y el saldo final."]
[null,"FUENTE DE INFORMACIÓN"]
[null,"Información contenida en la propuesta presentada por el operador u organizacion al ICBF, la información reportada por operador u organizacion."]
[null,"Detalles de la ejecución de la contrapartida "]
[null,"Codigo: Corresponde al código asignado a cada la línea de inversión.\t"]
[null,"Líneas de Inversión: nombre que está contenida en el estudio previo.\t"]
[null,"Descripción: Corresponde al detalle de la línea de inversión por el cual se efectuará el gasto."]
[null,"Valor Presupuestado: Corresponde al valor asignado para ser ejecutado de acuerdo con la propuesta inicial presentada y las modificaciones autorizadas por el supervisor."]
[null,"Periodo mensual: Columna para cada uno de los periodos de la vigencia del contrato/convenio/experiencia donde se debe registrar el valor ejecutado en cada uno de ellos."]
[null,"Valor ejecutado a la fecha: Corresponde al valor que se ha ejecutado en el marco del contrato/convenio/experiencia. Contiene columnas por cada periodo que informe.\t"]
[null,"Saldo por ejecutar: Corresponde al valor presupuestado menos el valor ejecutado a la fecha. Celda formulada"]
[]
[null,"NOTA 3: Este formato va acumulando la información por periodos en las celdas de valores Totales.\t"]
[]
[]
[null,"HOJA 4 "]
[null,"4. DETALLADA _RECURSOS ICBF"]
[null,"OBJETIVO "]
[null,"Realizar seguimiento a la ejecución de los contratos asignados por cada una de las regiones y zonas para la atención de niñas niños y adolescentes de la modalidad ATRAPASUEÑOS"]
[null,"FUENTE DE LA INFORMACION: Los operadores realizan el diligenciamiento en la etapa correspondiente "]
[null,"Selecciona la etapa, digita fecha del soporte que se va a asignar de acuerdo con seleccionar en la fila que ingresa la información solicitada en cada una de las filas según descripción\t\t"]
[]
[null,"NOTA 4: Todos los ingresos y egresos ocasionados en los rubros anteriormente descritos y utilizados en la modalidad, deben ser registrados en su totalidad en el informe de ingresos y egresos, así como en la contabilidad de la entidad para su respectivo seguimiento y control."]
[null,"NOTA 5: El presupuesto debe ser firmado por el contador y/o revisor fiscal (cuando esté obligado a tenerlo) y el representante legal. \t"]
[null,"NOTA 6: Todas las donaciones que se realicen a los programas del ICBF deben ser registradas en el informe de ingresos y egresos, si la entidad presta otros servicios y dicha donación se realizó a esos programas específicos, no se debe reportar la donación en los informes del ICBF."]
[null,"NOTA 7: Para que la formulación de la hoja funcione de manera correcta, es necesario diligenciar la información completa y no dejar campos en blanco."]
[]
[null,"IMPORTANTE!!!\nEste archivo emplea Macros (herramienta útil y eficiente que permite automatizar tareas, reducir el tiempo y permite concentrarte en el analisis y toma de decisisón).\n"]
[null,"A continuación se encuentra un tutorial para activar las Macros :"]
[null,"https://www.youtube.com/watch?v=iniQjS3MQa0&t=3s"]
[]
[]
[null,"HOJA 5"]
[null,"5. TABLA TOTALES EJECUTADOS"]
[null,"OBJETIVO "]
[null,"Tabla Dinámica que permite validar la información de seguimiento a la ejecución de los contratos asignados por cada una de las regiones y zonas para la atención de niñas niños y adolescentes de la Modalidad ATRAPASUEÑOS"]
[null,"FUENTE DE LA INFORMACION: Los operadores Actualizan la información de la Tabla Dinamica, la cual toma datos de la Hoja 4. DETALLADA - RECURSOS ICBF"]
[]
[]
[]
[]
[null,"¡Antes de imprimir este documento… piense en el medio ambiente!\nCualquier copia impresa de este documento se considera como COPIA NO CONTROLADA\nLOS DATOS PROPORCIONADOS SERÁN TRATADOS DE ACUERDO A LA POLÍTICA DE TRATAMIENTO DE DATOS PERSONALES DEL ICBF Y A LA LEY 1581 DE 2012\n"]

{"sheet":"Listas","index":3,"n_rows":1355,"n_cols":56,"rows_kept":1355,"cut":false,"hidden":true,"merged":[[0,29,0,34],[0,24,0,27],[2,32,77,32],[78,32,91,32],[88,33,91,33]]}
[null,"Cód.\nRegional","Regional","Forma","Cód.\nRegional","Regional","Cód. Sucursal o Centro Zonal","NOMBRE\nCENTRO ZONAL","FORMA","Cód.\nRegional","Regional","Cód. Sucursal o Centro Zonal","NOMBRE\nCENTRO ZONAL","Cód.\nMunicipio","NOMBRE\nMUNICIPIO ","Codigo DANE \ndepartamento","Nombre DANE\nDepartamento","Cód. DANE","Nombre municipio/Centro poblado","TIPO",null,"Formas","Contrapartida",null,"Tiempo Etapa",null,null,null,"Meses","DETALLADA RECURSOS- LISTA DESPLEGABLE"]
[null,"91","AMAZONAS","ITINERANTE","05","ANTIOQUIA","0501","CZ INTEGRAL NORORIENTAL","CENTROS","05","ANTIOQUIA","0501","CZ INTEGRAL NORORIENTAL","05001","MEDELLÍN","05","ANTIOQUIA","05001","MEDELLÍN","Municipio",null,"CENTROS",{"$f":"+'1. PRESUPUESTO INICIAL'!D20","v":0},"ETAPA CONTRACTUAL","CENTROS","ITINERANTE",null,null,"Mes 1","FORMA ATENCIÓN","CONCEPTO","FORMA ATENCIÓN - CONCEPTO","FORMA ATENCIÓN","CONCEPTO","DETALLE",null,null,null,null,null,null,"TALENTO_HUMANO","COMPLEMENTACION_ALIMENTARIA_Y_NUTRICIONAL","TRANSPORTE_NNA","DOTACION","MATERIAL_IDENTIFICACION","POLIZA","GASTOS_OPERATIVOS","UTILIZACION_DE_INSTALACIONES_EN_AMBIENTES_SANOS","GRAVAMEN_MOVIMIENTOS_FINANCIEROS_GMF","MATERIALES_E_INSUMOS",null,null,null,"TALENTO_HUMANO_IN","COMPLEMENTACION_ALIMENTARIA_Y_NUTRICIONAL_IN"]
[null,"05","ANTIOQUIA","ITINERANTE","05","ANTIOQUIA","0502","CZ INTEGRAL NOROCCIDENTAL","CENTROS","05","ANTIOQUIA","0502","CZ INTEGRAL NOROCCIDENTAL","05001","MEDELLÍN","05","ANTIOQUIA","05001","MEDELLÍN","Municipio",null,"ITINERANTE",0,"Alistamiento",0.5,0.5,null,null,"Mes 2","CENTROS","TALENTO HUMANO","CENTROS_TALENTO_HUMANO","CENTROS","TALENTO HUMANO","Coordinador",null,null,null,null,null,null,"Coordinador","Encuentros Grupales","Transporte NNA","Reposición dotación lúdico - pedagógica - deportiva","Chaleco","Póliza","Aseo","Utilización de Instalaciones en Ambientes Sanos","Gravamen Movimientos Financieros GMF","Bolígrafos mina negra",null,null,null,"Uno","Encuentros Grupales"]
[null,"81","ARAUCA","ITINERANTE","05","ANTIOQUIA","0504","CZ SUR ORIENTE","CENTROS","05","ANTIOQUIA","0504","CZ SUR ORIENTE","05001","MEDELLÍN","05","ANTIOQUIA","05001","MEDELLÍN","Municipio",null,null,null,"Atención",6,3,null,null,"Mes 3","CENTROS","TRANSPORTE Y VIAJES DEL TH","CENTROS_TALENTO_HUMANO",null,null,"Orientador Pedagógico para la Inclusión  ",null,null,null,null,null,null,"Orientador Pedagógico para la Inclusión  ","Encuentros Familiares",null,"Reposición Menaje de alimentación","Gorra",null,"Reparación y mantenimiento de dotación instituciona",null,null,"Palo de Paleta",null,null,null,"Dos","Encuentros Familiares"]
[null,"08","ATLÁNTICO","ITINERANTE","05","ANTIOQUIA","0535","CZ LA FLORESTA","CENTROS","05","ANTIOQUIA","0535","CZ LA FLORESTA","05001","MEDELLÍN","05","ANTIOQUIA","05001","MEDELLÍN","Municipio",null,"SI",null,"Cierre",0.5,0.5,null,null,"Mes 4","CENTROS","APOYOS NUTRICIONALES","CENTROS_TALENTO_HUMANO",null,null,"Auxiliares Pedagógicos para la inclusión ",null,null,null,null,null,null,"Auxiliares Pedagógicos para la inclusión ","Encuentros Comunitarios",null,"Dotación de aseo e higiene personal","Camisetas",null,"Servicios públicos",null,null,"Marcadores no borrables",null,null,null,"Tres","Encuentros Comunitarios"]
[null,"11","BOGOTÁ DC","ITINERANTE","05","ANTIOQUIA","0536","CZ ROSALES","CENTROS","05","ANTIOQUIA","0536","CZ ROSALES","05001","MEDELLÍN","05","ANTIOQUIA","05001","MEDELLÍN","Municipio",null,"NO",null,"TOTAL TIEMPO",{"$f":"SUM(Y3:Y5)","v":7},{"$f":"SUM(Z3:Z5)","v":4},null,null,"Mes 5","CENTROS","DOTACIÓN","CENTROS_TALENTO_HUMANO",null,null,"Orientador para la eliminación de barreras para la comunicación. ",null,null,null,null,null,null,"Orientador para la eliminación de barreras para la comunicación. ",null,null,"Botiquín","Carné",null,"Papelería",null,null,"Papel kraft",null,null,null,null,"Encuentros Comunitarios"]
[null,"13","BOLÍVAR","ITINERANTE","05","ANTIOQUIA","0512","CZ ORIENTE","CENTROS","05","ANTIOQUIA","0512","CZ ORIENTE","05002","ABEJORRAL","05","ANTIOQUIA","05002","ABEJORRAL","Municipio",null,null,null,null,null,null,null,null,"Mes 6","CENTROS","SERVICIO DE COMUNICACIÓN MÓBIL E NTERNET","CENTROS_TALENTO_HUMANO",null,null,"Orientador para la eliminación de barreras para la movilidad y la vida independiente ",null,null,null,null,null,null,"Orientador para la eliminación de barreras para la movilidad y la vida independiente ",null,null,null,"Pendón",null,"Mantenimiento de instalaciones locativas",null,null,"Cinta de enmascarar"]
[null,"15","BOYACÁ","ITINERANTE","05","ANTIOQUIA","0511","CZ OCCIDENTE MEDIO","CENTROS","05","ANTIOQUIA","0511","CZ OCCIDENTE MEDIO","05004","ABRIAQUÍ","05","ANTIOQUIA","05004","ABRIAQUÍ","Municipio",null,null,null,"Alistamiento",null,null,null,null,"Mes 7","CENTROS","MATERIAL IDENTIFICACIÓN","CENTROS_TALENTO_HUMANO",null,null,"Orientador para la gestión de servicios y apoyos para la gestión emocional, proyectos de vida y sistemas de apoyo para la toma de decisiones. ",null,null,null,null,null,null,"Orientador para la gestión de servicios y apoyos para la gestión emocional, proyectos de vida y sistemas de apoyo para la toma de decisiones. ",null,null,null,null,null,"Acciones de movilización social",null,null,"Papel bond"]
[null,"17","CALDAS","ITINERANTE","05","ANTIOQUIA","0506","CZ ABURRA SUR","CENTROS","05","ANTIOQUIA","0512","CZ ORIENTE","05021","ALEJANDRÍA","05","ANTIOQUIA","05021","ALEJANDRÍA","Municipio",null,null,null,"Atención Mes 1",null,null,null,null,"Mes 8","CENTROS","SEGURO","CENTROS_TALENTO_HUMANO",null,null,"Asistentes de vida independiente ",null,null,null,null,null,null,"Asistentes de vida independiente ",null,null,null,null,null,"Gastos bancarios (comisiones, transferencias y chequeras)",null,null,"Tijeras punta roma"]
[null,"18","CAQUETÁ","ITINERANTE","05","ANTIOQUIA","0513","CZ PORCE NUS","CENTROS","05","ANTIOQUIA","0506","CZ ABURRA SUR","05030","AMAGÁ","05","ANTIOQUIA","05030","AMAGÁ","Municipio",null,null,null,"Atención Mes 2",null,null,null,null,"Mes 9","CENTROS","APOYO A INICIATIVAS","CENTROS_TALENTO_HUMANO",null,null,"Orientador de seguimiento a la salud y la nutrición ",null,null,null,null,null,null,"Orientador de seguimiento a la salud y la nutrición ",null,null,null,null,null,"Materiales o dispositivos de apoyo de baja complejidad para los participantes",null,null,"Lápices"]
[null,null,null,null,null,null,null,null,null,null,null,null,null,null,null,null,null,null,null,null,null,null,null,"Atención Mes 3",null,null,null,null,null,"CENTROS",null,"CENTROS_TALENTO_HUMANO",null,null,"Orientador para el desarrollo integral desde componentes de atención  ",null,null,null,null,null,null,"Orientador para el desarrollo integral desde componentes de atención  ",null,null,null,null,null,"Otros (lo que se requiera para el adecuado desarrollo de la Modalidad)",null,null,"Arcilla"]
[null,"85","CASANARE","ITINERANTE","05","ANTIOQUIA","0514","CZ SUROESTE","CENTROS","05","ANTIOQUIA","0513","CZ PORCE NUS","05031","AMALFI","05","ANTIOQUIA","05031","AMALFI","Municipio",null,null,null,"Atención Mes 4",null,null,null,null,"Mes 10","CENTROS","GASTOS OPERATIVOS","CENTROS_TALENTO_HUMANO",null,null,"Orientador para el desarrollo a acceso a herramientas de tecnología e informática ",null,null,null,null,null,null,"Orientador para el desarrollo a acceso a herramientas de tecnología e informática ",null,null,null,null,null,null,null,null,"Cartón paja"]
[null,"19","CAUCA","ITINERANTE","05","ANTIOQUIA","0508","CZ LA MESETA","CENTROS","05","ANTIOQUIA","0514","CZ SUROESTE","05034","ANDES","05","ANTIOQUIA","05034","ANDES","Municipio",null,null,null,"Atención Mes 5",null,null,null,null,"Mes 11","CENTROS","GRAVAMEN MOVIMIENTOS FINANCIEROS GMF","CENTROS_TALENTO_HUMANO",null,null,"Auxiliar Administrativo",null,null,null,null,null,null,"Auxiliar Administrativo",null,null,null,null,null,null,null,null,"Cartulina"]
[null,"20","CESAR","ITINERANTE","05","ANTIOQUIA","0510","CZ OCCIDENTE","CENTROS","05","ANTIOQUIA","0506","CZ ABURRA SUR","05036","ANGELÓPOLIS","05","ANTIOQUIA","05036","ANGELÓPOLIS","Municipio",null,null,null,"Atención Mes 6",null,null,null,null,"Mes 12","CENTROS","MATERIAL DE CONSUMO","CENTROS_TALENTO_HUMANO",null,null,"Manipulador de alimentos para la atención en punto fijo",null,null,null,null,null,null,"Manipulador de alimentos para la atención en punto fijo",null,null,null,null,null,null,null,null,"Pegante líquido"]
[null,"27","CHOCÓ","ITINERANTE","05","ANTIOQUIA","0516","CZ URABA","CENTROS","05","ANTIOQUIA","0535","CZ LA FLORESTA","05036","ANGELÓPOLIS","05","ANTIOQUIA","05036","ANGELÓPOLIS","Municipio",null,null,null,"Atención Mes 7",null,null,null,null,null,"CENTROS","TALENTO HUMANO","CENTROS_TALENTO_HUMANO",null,null,"Servicios Generales para la atención en punto fijo",null,null,null,null,null,null,"Servicios Generales para la atención en punto fijo",null,null,null,null,null,null,null,null,"Vinilo"]
[null,"23","CÓRDOBA","ITINERANTE","05","ANTIOQUIA","0505","CZ ABURRA NORTE","CENTROS","05","ANTIOQUIA","0508","CZ LA MESETA","05038","ANGOSTURA","05","ANTIOQUIA","05038","ANGOSTURA","Municipio",null,null,null,"Atención Mes 8",null,null,null,null,null,"CENTROS","COMPLEMENTACIÓN ALIMENTARIA Y NUTRICIONAL","CENTROS_COMPLEMENTACIÓN_ALIMENTARIA_Y_NUTRICIONAL",null,"COMPLEMENTACIÓN ALIMENTARIA Y NUTRICIONAL","Encuentros Grupales",null,null,null,null,null,null,null,null,null,null,null,null,null,null,null,"Papel iris"]
[null,"25","CUNDINAMARCA","ITINERANTE","05","ANTIOQUIA","0515","CZ PENDERISCO","CENTROS","05","ANTIOQUIA","0513","CZ PORCE NUS","05040","ANORÍ","05","ANTIOQUIA","05040","ANORÍ","Municipio",null,null,null,"Atención Mes 9",null,null,null,null,null,"CENTROS","TRANSPORTE NNA","CENTROS_COMPLEMENTACIÓN_ALIMENTARIA_Y_NUTRICIONAL",null,null,"Encuentros Familiares",null,null,null,null,null,null,null,null,null,null,null,null,null,null,null,"Lana"]
[null,"94","GUAINÍA","ITINERANTE","05","ANTIOQUIA","0507","CZ BAJO CAUCA","CENTROS","05","ANTIOQUIA","0510","CZ OCCIDENTE","05042","SANTA FÉ DE ANTIOQUIA","05","ANTIOQUIA","05042","SANTA FÉ DE ANTIOQUIA","Municipio",null,null,null,"Atención Mes 10",null,null,null,null,null,"CENTROS","DOTACIÓN","CENTROS_COMPLEMENTACIÓN_ALIMENTARIA_Y_NUTRICIONAL",null,null,"Encuentros Comunitarios",null,null,null,null,null,null,null,null,null,null,null,null,null,null,null,"Plastilina"]
[null,"95","GUAVIARE","ITINERANTE","05","ANTIOQUIA","0509","CZ MAGDALENA MEDIO","CENTROS","05","ANTIOQUIA","0510","CZ OCCIDENTE","05044","ANZA","05","ANTIOQUIA","05044","ANZÁ","Municipio",null,null,null,"Atención Mes 11",null,null,null,null,null,"CENTROS","MATERIAL IDENTIFICACIÓN","CENTROS_TRANSPORTE_NNA",null,"TRANSPORTE NNA","Transporte NNA",null,null,null,null,null,null,null,null,null,null,null,null,null,null,null,"Colores"]
[null,"41","HUILA","ITINERANTE","05","ANTIOQUIA","0517","CZ ORIENTE MEDIO","CENTROS","05","ANTIOQUIA","0516","CZ URABA","05045","APARTADÓ","05","ANTIOQUIA","05045","APARTADÓ","Municipio",null,null,null,"Atención Mes 12",null,null,null,null,null,"CENTROS","PÓLIZA","CENTROS_DOTACIÓN",null,"DOTACIÓN","Reposición dotación lúdico - pedagógica - deportiva",null,null,null,null,null,null,null,null,null,null,null,null,null,null,null,"Papel Periódico"]
[null,"44","LA GUAJIRA","ITINERANTE","08","ATLÁNTICO","0801","CZ NORTE CENTRO HISTORICO","CENTROS","05","ANTIOQUIA","0516","CZ URABA","05051","ARBOLETES","05","ANTIOQUIA","05051","ARBOLETES","Municipio",null,null,null,"Cierre",null,null,null,null,null,"CENTROS","APOYO A INICIATIVAS","CENTROS_DOTACIÓN",null,null,"Reposición Menaje de alimentación",null,null,null,null,null,null,null,null,null,null,null,null,null,null,null,"Pimpones"]
[null,"47","MAGDALENA","ITINERANTE","08","ATLÁNTICO","0802","CZ SUROCCIDENTE","CENTROS","05","ANTIOQUIA","0512","CZ ORIENTE","05055","ARGELIA","05","ANTIOQUIA","05055","ARGELIA","Municipio",null,null,null,null,null,null,null,null,null,"CENTROS","GASTOS OPERATIVOS","CENTROS_DOTACIÓN",null,null,"Dotación de aseo e higiene personal",null,null,null,null,null,null,null,null,null,null,null,null,null,null,null,"Pinceles"]
[null,"50","META","ITINERANTE","08","ATLÁNTICO","0807","CZ SURORIENTE","CENTROS","05","ANTIOQUIA","0506","CZ ABURRA SUR","05059","ARMENIA","05","ANTIOQUIA","05059","ARMENIA","Municipio",null,null,null,null,null,null,null,null,null,"CENTROS","UTILIZACIÓN DE INSTALACIONES EN AMBIENTES SANOS","CENTROS_DOTACIÓN",null,null,"Botiquín",null,null,null,null,null,null,null,null,null,null,null,null,null,null,null,"Témperas"]
[null,"52","NARIÑO","ITINERANTE","08","ATLÁNTICO","0803","CZ BARANOA","CENTROS","05","ANTIOQUIA","0535","CZ LA FLORESTA","05059","ARMENIA","05","ANTIOQUIA","05059","ARMENIA","Municipio",null,null,null,null,null,null,null,null,null,"CENTROS","GRAVAMEN MOVIMIENTOS FINANCIEROS GMF","CENTROS_MATERIAL_IDENTIFICACIÓN",null,"MATERIAL IDENTIFICACIÓN","Chaleco",null,null,null,null,null,null,null,null,null,null,null,null,null,null,null,"Crayolas"]
[null,"54","NORTE DE SANTANDER","ITINERANTE","08","ATLÁNTICO","0805","CZ SABANAGRANDE","CENTROS","05","ANTIOQUIA","0505","CZ ABURRA NORTE","05079","BARBOSA","05","ANTIOQUIA","05079","BARBOSA","Municipio",null,null,null,null,null,null,null,null,null,"CENTROS","MATERIALES E INSUMOS","CENTROS_MATERIAL_IDENTIFICACIÓN",null,null,"Gorra",null,null,null,null,null,null,null,null,null,null,null,null,null,null,null,"Pasteles secos"]
[null,"86","PUTUMAYO","ITINERANTE","08","ATLÁNTICO","0804","CZ SABANALARGA","CENTROS","05","ANTIOQUIA","0535","CZ LA FLORESTA","05079","BARBOSA","05","ANTIOQUIA","05079","BARBOSA","Municipio",null,null,null,null,null,null,null,null,null,"CENTROS","TALENTO HUMANO","CENTROS_MATERIAL_IDENTIFICACIÓN",null,null,"Camisetas",null,null,null,null,null,null,null,null,null,null,null,null,null,null,null,"Pintu caritas de colores"]
[null,"63","QUINDÍO","ITINERANTE","08","ATLÁNTICO","0806","CZ HIPODROMO","CENTROS","05","ANTIOQUIA","0505","CZ ABURRA NORTE","05086","BELMIRA","05","ANTIOQUIA","05086","BELMIRA","Municipio",null,null,null,null,null,null,null,null,null,"CENTROS","TRANSPORTE Y VIAJES DEL TH","CENTROS_MATERIAL_IDENTIFICACIÓN",null,null,"Carné",null,null,null,null,null,null,null,null,null,null,null,null,null,null,null,"Tela colores"]
[null,"66","RISARALDA","ITINERANTE","11","BOGOTÁ DC","1130","CZ CREER","CENTROS","05","ANTIOQUIA","0505","CZ ABURRA NORTE","05088","BELLO","05","ANTIOQUIA","05088","BELLO","Municipio",null,null,null,null,null,null,null,null,null,"CENTROS","APOYOS NUTRICIONALES","CENTROS_MATERIAL_IDENTIFICACIÓN",null,null,"Pendón",null,null,null,null,null,null,null,null,null,null,null,null,null,null,null,"Taja Lápiz"]
[null,"88","SAN ANDRÉS","ITINERANTE","11","BOGOTÁ DC","1101","CZ CIUDAD BOLIVAR","CENTROS","05","ANTIOQUIA","0535","CZ LA FLORESTA","05088","BELLO","05","ANTIOQUIA","05088","BELLO","Municipio",null,null,null,null,null,null,null,null,null,"CENTROS","DOTACIÓN","CENTROS_PÓLIZA",null,"PÓLIZA","Póliza",null,null,null,null,null,null,null,null,null,null,null,null,null,null,null,"Borradores"]
[null,"68","SANTANDER","ITINERANTE","11","BOGOTÁ DC","1102","CZ TUNJUELITO","CENTROS","05","ANTIOQUIA","0514","CZ SUROESTE","05091","BETANIA","05","ANTIOQUIA","05091","BETANIA","Municipio",null,null,null,null,null,null,null,null,null,"CENTROS","INTERNET","CENTROS_GASTOS_OPERATIVOS",null,"GASTOS OPERATIVOS","Aseo",null,null,null,null,null,null,null,null,null,null,null,null,null,null,null,"Papel Crepé"]
[null,"70","SUCRE","ITINERANTE","11","BOGOTÁ DC","1103","CZ USME","CENTROS","05","ANTIOQUIA","0515","CZ PENDERISCO","05093","BETULIA","05","ANTIOQUIA","05093","BETULIA","Municipio",null,null,null,null,null,null,null,null,null,"CENTROS","MATERIAL IDENTIFICACIÓN","CENTROS_GASTOS_OPERATIVOS",null,null,"Reparación y mantenimiento de dotación instituciona",null,null,null,null,null,null,null,null,null,null,null,null,null,null,null,"Bandas Elásticas"]
[null,"73","TOLIMA","ITINERANTE","11","BOGOTÁ DC","1104","CZ SAN CRISTOBAL SUR","CENTROS","05","ANTIOQUIA","0514","CZ SUROESTE","05101","CIUDAD BOLÍVAR","05","ANTIOQUIA","05101","CIUDAD BOLÍVAR","Municipio",null,null,null,null,null,null,null,null,null,"CENTROS","SEGURO","CENTROS_GASTOS_OPERATIVOS",null,null,"Servicios públicos",null,null,null,null,null,null,null,null,null,null,null,null,null,null,null,"Silicona Líquida"]
[null,"76","VALLE DEL CAUCA","ITINERANTE","11","BOGOTÁ DC","1105","CZ KENNEDY","CENTROS","05","ANTIOQUIA","0508","CZ LA MESETA","05107","BRICEÑO","05","ANTIOQUIA","05107","BRICEÑO","Municipio",null,null,null,null,null,null,null,null,null,"CENTROS","ENCUENTROS EXPERIENCIAS OPORTUNIDADES","CENTROS_GASTOS_OPERATIVOS",null,null,"Papelería",null,null,null,null,null,null,null,null,null,null,null,null,null,null,null,"Narices"]
[null,"97","VAUPÉS","ITINERANTE","11","BOGOTÁ DC","1106","CZ REVIVIR","CENTROS","05","ANTIOQUIA","0510","CZ OCCIDENTE","05113","BURITICÁ","05","ANTIOQUIA","05113","BURITICÁ","Municipio",null,null,null,null,null,null,null,null,null,"CENTROS","GASTOS OPERATIVOS ADMINISTRACIÓN","CENTROS_GASTOS_OPERATIVOS",null,null,"Mantenimiento de instalaciones locativas",null,null,null,null,null,null,null,null,null,null,null,null,null,null,null,"Corbata"]
[null,"99","VICHADA","ITINERANTE","11","BOGOTÁ DC","1107","CZ PUENTE ARANDA","CENTROS","05","ANTIOQUIA","0507","CZ BAJO CAUCA","05120","CÁCERES","05","ANTIOQUIA","05120","CÁCERES","Municipio",null,null,null,null,null,null,null,null,null,"CENTROS","GRAVAMEN MOVIMIENTOS FINANCIEROS GMF","CENTROS_GASTOS_OPERATIVOS",null,null,"Acciones de movilización social",null,null,null,null,null,null,null,null,null,null,null,null,null,null,null,"Gafas"]
[null,null,null,"ITINERANTE","11","BOGOTÁ DC","1108","CZ BOSA","CENTROS","05","ANTIOQUIA","0515","CZ PENDERISCO","05125","CAICEDO","05","ANTIOQUIA","05125","CAICEDO","Municipio",null,null,null,null,null,null,null,null,null,"CENTROS","MATERIALES E INSUMOS","CENTROS_GASTOS_OPERATIVOS",null,null,"Gastos bancarios (comisiones, transferencias y chequeras)",null,null,null,null,null,null,null,null,null,null,null,null,null,null,null,"Corbatines"]
[null,null,null,"ITINERANTE","11","BOGOTÁ DC","1109","CZ RAFAEL URIBE","CENTROS","05","ANTIOQUIA","0506","CZ ABURRA SUR","05129","CALDAS","05","ANTIOQUIA","05129","CALDAS","Municipio",null,null,null,null,null,null,null,null,null,"CENTROS","TALENTO HUMANO","CENTROS_GASTOS_OPERATIVOS",null,null,"Materiales o dispositivos de apoyo de baja complejidad para los participantes",null,null,null,null,null,null,null,null,null,null,null,null,null,null,null,"Pelucas Surtidas"]
[null,null,null,"ITINERANTE","11","BOGOTÁ DC","1110","CZ SANTA FE","CENTROS","05","ANTIOQUIA","0535","CZ LA FLORESTA","05129","CALDAS","05","ANTIOQUIA","05129","CALDAS","Municipio",null,null,null,null,null,null,null,null,null,"CENTROS","COMPLEMENTACIÓN ALIMENTARIA Y NUTRICIONAL","CENTROS_GASTOS_OPERATIVOS",null,null,"Otros (lo que se requiera para el adecuado desarrollo de la Modalidad)",null,null,null,null,null,null,null,null,null,null,null,null,null,null,null,"Máscaras - antifaz"]
[null,null,null,"ITINERANTE","11","BOGOTÁ DC","1111","CZ FONTIBON","CENTROS","05","ANTIOQUIA","0508","CZ LA MESETA","05134","CAMPAMENTO","05","ANTIOQUIA","05134","CAMPAMENTO","Municipio",null,null,null,null,null,null,null,null,null,"CENTROS","BOTIQUÍN","CENTROS_UTILIZACIÓN_DE_INSTALACIONES_EN_AMBIENTES_SANOS",null,"UTILIZACIÓN DE INSTALACIONES EN AMBIENTES SANOS","Utilización de Instalaciones en Ambientes Sanos",null,null,null,null,null,null,null,null,null,null,null,null,null,null,null,"Sombreros surtidos"]
[null,null,null,"ITINERANTE","11","BOGOTÁ DC","1112","CZ BARRIOS UNIDOS","CENTROS","05","ANTIOQUIA","0511","CZ OCCIDENTE MEDIO","05138","CAÑASGORDAS","05","ANTIOQUIA","05138","CAÑASGORDAS","Municipio",null,null,null,null,null,null,null,null,null,"CENTROS","MATERIAL IDENTIFICACIÓN","CENTROS_GRAVAMEN_MOVIMIENTOS_FINANCIEROS_GMF",null,"GRAVAMEN MOVIMIENTOS FINANCIEROS GMF","Gravamen Movimientos Financieros GMF",null,null,null,null,null,null,null,null,null,null,null,null,null,null,null,"Diadema Disfraz Surtida"]
[null,null,null,"ITINERANTE","11","BOGOTÁ DC","1113","CZ ENGATIVA","CENTROS","05","ANTIOQUIA","0509","CZ MAGDALENA MEDIO","05142","CARACOLÍ","05","ANTIOQUIA","05142","CARACOLÍ","Municipio",null,null,null,null,null,null,null,null,null,"CENTROS","SEGURO","CENTROS_MATERIALES_E_INSUMOS",null,"MATERIALES E INSUMOS","Bolígrafos mina negra"]
[null,null,null,"ITINERANTE","11","BOGOTÁ DC","1114","CZ SUBA","CENTROS","05","ANTIOQUIA","0514","CZ SUROESTE","05145","CARAMANTA","05","ANTIOQUIA","05145","CARAMANTA","Municipio",null,null,null,null,null,null,null,null,null,"CENTROS","ENCUENTROS EXPERIENCIAS OPORTUNIDADES","CENTROS_MATERIALES_E_INSUMOS",null,null,"Palo de Paleta"]
[null,null,null,"ITINERANTE","11","BOGOTÁ DC","1115","CZ USAQUEN","CENTROS","05","ANTIOQUIA","0516","CZ URABA","05147","CAREPA","05","ANTIOQUIA","05147","CAREPA","Municipio",null,null,null,null,null,null,null,null,null,"CENTROS","GASTOS OPERATIVOS","CENTROS_MATERIALES_E_INSUMOS",null,null,"Marcadores no borrables"]
[null,null,null,"ITINERANTE","11","BOGOTÁ DC","1116","CZ MARTIRES","CENTROS","05","ANTIOQUIA","0512","CZ ORIENTE","05148","EL CARMEN DE VIBORAL","05","ANTIOQUIA","05148","EL CARMEN DE VIBORAL","Municipio",null,null,null,null,null,null,null,null,null,"CENTROS","GRAVAMEN MOVIMIENTOS FINANCIEROS GMF","CENTROS_MATERIALES_E_INSUMOS",null,null,"Papel kraft"]
[null,null,null,"ITINERANTE","11","BOGOTÁ DC","1131","CZ KENNEDY CENTRAL","CENTROS","05","ANTIOQUIA","0508","CZ LA MESETA","05150","CAROLINA","05","ANTIOQUIA","05150","CAROLINA","Municipio",null,null,null,null,null,null,null,null,null,"CENTROS","MATERIALES E INSUMOS","CENTROS_MATERIALES_E_INSUMOS",null,null,"Cinta de enmascarar"]
[null,null,null,"ITINERANTE","13","BOLÍVAR","1301","CZ HISTORICO Y DEL CARIBE NORTE","CENTROS","05","ANTIOQUIA","0507","CZ BAJO CAUCA","05154","CAUCASIA","05","ANTIOQUIA","05154","CAUCASIA","Municipio",null,null,null,null,null,null,null,null,null,"CENTROS",null,"CENTROS_MATERIALES_E_INSUMOS",null,null,"Papel bond"]
[null,null,null,"ITINERANTE","13","BOLÍVAR","1302","CZ DE LA VIRGEN Y TURISTICO","CENTROS","05","ANTIOQUIA","0516","CZ URABA","05172","CHIGORODÓ","05","ANTIOQUIA","05172","CHIGORODÓ","Municipio",null,null,null,null,null,null,null,null,null,"CENTROS",null,"CENTROS_MATERIALES_E_INSUMOS",null,null,"Tijeras punta roma"]
[null,null,null,"ITINERANTE","13","BOLÍVAR","1303","CZ INDUSTRIAL DE LA BAHIA","CENTROS","05","ANTIOQUIA","0513","CZ PORCE NUS","05190","CISNEROS","05","ANTIOQUIA","05190","CISNEROS","Municipio",null,null,null,null,null,null,null,null,null,"CENTROS",null,"CENTROS_MATERIALES_E_INSUMOS",null,null,"Lápices"]
[null,null,null,"ITINERANTE","13","BOLÍVAR","1306","CZ MAGANGUE","CENTROS","05","ANTIOQUIA","0517","CZ ORIENTE MEDIO","05197","COCORNÁ","05","ANTIOQUIA","05197","COCORNÁ","Municipio",null,null,null,null,null,null,null,null,null,"CENTROS",null,"CENTROS_MATERIALES_E_INSUMOS",null,null,"Arcilla"]
[null,null,null,"ITINERANTE","13","BOLÍVAR","1307","CZ MOMPOX","CENTROS","05","ANTIOQUIA","0512","CZ ORIENTE","05206","CONCEPCIÓN","05","ANTIOQUIA","05206","CONCEPCIÓN","Municipio",null,null,null,null,null,null,null,null,null,"CENTROS",null,"CENTROS_MATERIALES_E_INSUMOS",null,null,"Cartón paja"]
[null,null,null,"ITINERANTE","13","BOLÍVAR","1308","CZ SIMITI","CENTROS","05","ANTIOQUIA","0515","CZ PENDERISCO","05209","CONCORDIA","05","ANTIOQUIA","05209","CONCORDIA","Municipio",null,null,null,null,null,null,null,null,null,"CENTROS",null,"CENTROS_MATERIALES_E_INSUMOS",null,null,"Cartulina"]
[null,null,null,"ITINERANTE","13","BOLÍVAR","1304","CZ TURBACO","CENTROS","05","ANTIOQUIA","0505","CZ ABURRA NORTE","05212","COPACABANA","05","ANTIOQUIA","05212","COPACABANA","Municipio",null,null,null,null,null,null,null,null,null,"CENTROS",null,"CENTROS_MATERIALES_E_INSUMOS",null,null,"Pegante líquido"]
[null,null,null,"ITINERANTE","13","BOLÍVAR","1305","CZ EL CARMEN DE BOLIVAR","CENTROS","05","ANTIOQUIA","0535","CZ LA FLORESTA","05212","COPACABANA","05","ANTIOQUIA","05212","COPACABANA","Municipio",null,null,null,null,null,null,null,null,null,"CENTROS",null,"CENTROS_MATERIALES_E_INSUMOS",null,null,"Vinilo"]
[null,null,null,"ITINERANTE","15","BOYACÁ","1501","CZ TUNJA 1","CENTROS","05","ANTIOQUIA","0511","CZ OCCIDENTE MEDIO","05234","DABEIBA","05","ANTIOQUIA","05234","DABEIBA","Municipio",null,null,null,null,null,null,null,null,null,"CENTROS",null,"CENTROS_MATERIALES_E_INSUMOS",null,null,"Papel iris"]
[null,null,null,"ITINERANTE","15","BOYACÁ","1502","CZ TUNJA 2","CENTROS","05","ANTIOQUIA","0505","CZ ABURRA NORTE","05237","DON MATÍAS","05","ANTIOQUIA","05237","DONMATÍAS","Municipio",null,null,null,null,null,null,null,null,null,"CENTROS",null,"CENTROS_MATERIALES_E_INSUMOS",null,null,"Lana"]
[null,null,null,"ITINERANTE","15","BOYACÁ","1506","CZ GARAGOA","CENTROS","05","ANTIOQUIA","0510","CZ OCCIDENTE","05240","EBÉJICO","05","ANTIOQUIA","05240","EBÉJICO","Municipio",null,null,null,null,null,null,null,null,null,"CENTROS",null,"CENTROS_MATERIALES_E_INSUMOS",null,null,"Plastilina"]
[null,null,null,"ITINERANTE","15","BOYACÁ","1503","CZ SOGAMOSO","CENTROS","05","ANTIOQUIA","0507","CZ BAJO CAUCA","05250","EL BAGRE","05","ANTIOQUIA","05250","EL BAGRE","Municipio",null,null,null,null,null,null,null,null,null,"CENTROS",null,"CENTROS_MATERIALES_E_INSUMOS",null,null,"Colores"]
[null,null,null,"ITINERANTE","15","BOYACÁ","1511","CZ MONIQUIRA","CENTROS","05","ANTIOQUIA","0505","CZ ABURRA NORTE","05264","ENTRERRIOS","05","ANTIOQUIA","05264","ENTRERRÍOS","Municipio",null,null,null,null,null,null,null,null,null,"CENTROS",null,"CENTROS_MATERIALES_E_INSUMOS",null,null,"Papel Periódico"]
[null,null,null,"ITINERANTE","15","BOYACÁ","1504","CZ DUITAMA","CENTROS","05","ANTIOQUIA","0506","CZ ABURRA SUR","05266","ENVIGADO","05","ANTIOQUIA","05266","ENVIGADO","Municipio",null,null,null,null,null,null,null,null,null,"CENTROS",null,"CENTROS_MATERIALES_E_INSUMOS",null,null,"Pimpones"]
[null,null,null,"ITINERANTE","15","BOYACÁ","1510","CZ MIRAFLORES","CENTROS","05","ANTIOQUIA","0535","CZ LA FLORESTA","05266","ENVIGADO","05","ANTIOQUIA","05266","ENVIGADO","Municipio",null,null,null,null,null,null,null,null,null,"CENTROS",null,"CENTROS_MATERIALES_E_INSUMOS",null,null,"Pinceles"]
[null,null,null,"ITINERANTE","15","BOYACÁ","1508","CZ SOATA","CENTROS","05","ANTIOQUIA","0506","CZ ABURRA SUR","05282","FREDONIA","05","ANTIOQUIA","05282","FREDONIA","Municipio",null,null,null,null,null,null,null,null,null,"CENTROS",null,"CENTROS_MATERIALES_E_INSUMOS",null,null,"Témperas"]
[null,null,null,"ITINERANTE","15","BOYACÁ","1512","CZ OTANCHE","CENTROS","05","ANTIOQUIA","0511","CZ OCCIDENTE MEDIO","05284","FRONTINO","05","ANTIOQUIA","05284","FRONTINO","Municipio",null,null,null,null,null,null,null,null,null,"CENTROS",null,"CENTROS_MATERIALES_E_INSUMOS",null,null,"Crayolas"]
[null,null,null,"ITINERANTE","15","BOYACÁ","1505","CZ CHIQUINQUIRA","CENTROS","05","ANTIOQUIA","0510","CZ OCCIDENTE","05306","GIRALDO","05","ANTIOQUIA","05306","GIRALDO","Municipio",null,null,null,null,null,null,null,null,null,"CENTROS",null,"CENTROS_MATERIALES_E_INSUMOS",null,null,"Pasteles secos"]
[null,null,null,"ITINERANTE","15","BOYACÁ","1509","CZ EL COCUY","CENTROS","05","ANTIOQUIA","0505","CZ ABURRA NORTE","05308","GIRARDOTA","05","ANTIOQUIA","05308","GIRARDOTA","Municipio",null,null,null,null,null,null,null,null,null,"CENTROS",null,"CENTROS_MATERIALES_E_INSUMOS",null,null,"Pintu caritas de colores"]
[null,null,null,"ITINERANTE","15","BOYACÁ","1507","CZ PUERTO BOYACA","CENTROS","05","ANTIOQUIA","0535","CZ LA FLORESTA","05308","GIRARDOTA","05","ANTIOQUIA","05308","GIRARDOTA","Municipio",null,null,null,null,null,null,null,null,null,"CENTROS",null,"CENTROS_MATERIALES_E_INSUMOS",null,null,"Tela colores"]
[null,null,null,"ITINERANTE","17","CALDAS","1701","CZ MANIZALES 1","CENTROS","05","ANTIOQUIA","0508","CZ LA MESETA","05310","GÓMEZ PLATA","05","ANTIOQUIA","05310","GÓMEZ PLATA","Municipio",null,null,null,null,null,null,null,null,null,"CENTROS",null,"CENTROS_MATERIALES_E_INSUMOS",null,null,"Taja Lápiz"]
[null,null,null,"ITINERANTE","17","CALDAS","1702","CZ MANIZALES 2","CENTROS","05","ANTIOQUIA","0517","CZ ORIENTE MEDIO","05313","GRANADA","05","ANTIOQUIA","05313","GRANADA","Municipio",null,null,null,null,null,null,null,null,null,"CENTROS",null,"CENTROS_MATERIALES_E_INSUMOS",null,null,"Borradores"]
[null,null,null,"ITINERANTE","17","CALDAS","1705","CZ NORTE","CENTROS","05","ANTIOQUIA","0508","CZ LA MESETA","05315","GUADALUPE","05","ANTIOQUIA","05315","GUADALUPE","Municipio",null,null,null,null,null,null,null,null,null,"CENTROS",null,"CENTROS_MATERIALES_E_INSUMOS",null,null,"Papel Crepé"]
[null,null,null,"ITINERANTE","17","CALDAS","1703","CZ OCCIDENTE","CENTROS","05","ANTIOQUIA","0512","CZ ORIENTE","05318","GUARNE","05","ANTIOQUIA","05318","GUARNE","Municipio",null,null,null,null,null,null,null,null,null,"CENTROS",null,"CENTROS_MATERIALES_E_INSUMOS",null,null,"Bandas Elásticas"]
[null,null,null,"ITINERANTE","17","CALDAS","1709","CZ DEL CAFE","CENTROS","05","ANTIOQUIA","0512","CZ ORIENTE","05321","GUATAPE","05","ANTIOQUIA","05321","GUATAPÉ","Municipio",null,null,null,null,null,null,null,null,null,"CENTROS",null,"CENTROS_MATERIALES_E_INSUMOS",null,null,"Silicona Líquida"]
[null,null,null,"ITINERANTE","17","CALDAS","1704","CZ ORIENTE","CENTROS","05","ANTIOQUIA","0506","CZ ABURRA SUR","05347","HELICONIA","05","ANTIOQUIA","05347","HELICONIA","Municipio",null,null,null,null,null,null,null,null,null,"CENTROS",null,"CENTROS_MATERIALES_E_INSUMOS",null,null,"Narices"]
[null,null,null,"ITINERANTE","17","CALDAS","1706","CZ SUR ORIENTE","CENTROS","05","ANTIOQUIA","0535","CZ LA FLORESTA","05347","HELICONIA","05","ANTIOQUIA","05347","HELICONIA","Municipio",null,null,null,null,null,null,null,null,null,"CENTROS",null,"CENTROS_MATERIALES_E_INSUMOS",null,null,"Corbata"]
[null,null,null,"ITINERANTE","18","CAQUETÁ","1801","CZ FLORENCIA 1","CENTROS","05","ANTIOQUIA","0514","CZ SUROESTE","05353","HISPANIA","05","ANTIOQUIA","05353","HISPANIA","Municipio",null,null,null,null,null,null,null,null,null,"CENTROS",null,"CENTROS_MATERIALES_E_INSUMOS",null,null,"Gafas"]
[null,null,null,"ITINERANTE","18","CAQUETÁ","1802","CZ FLORENCIA 2","CENTROS","05","ANTIOQUIA","0506","CZ ABURRA SUR","05360","ITAGUI","05","ANTIOQUIA","05360","ITAGÜÍ","Municipio",null,null,null,null,null,null,null,null,null,"CENTROS",null,"CENTROS_MATERIALES_E_INSUMOS",null,null,"Corbatines"]
[null,null,null,"ITINERANTE","18","CAQUETÁ","1804","CZ BELEN DE LOS ANDAQUIES","CENTROS","05","ANTIOQUIA","0535","CZ LA FLORESTA","05360","ITAGUI","05","ANTIOQUIA","05360","ITAGÜÍ","Municipio",null,null,null,null,null,null,null,null,null,"CENTROS",null,"CENTROS_MATERIALES_E_INSUMOS",null,null,"Pelucas Surtidas"]
[null,null,null,"ITINERANTE","18","CAQUETÁ","1803","CZ PUERTO RICO","CENTROS","05","ANTIOQUIA","0508","CZ LA MESETA","05361","ITUANGO","05","ANTIOQUIA","05361","ITUANGO","Municipio",null,null,null,null,null,null,null,null,null,"CENTROS",null,"CENTROS_MATERIALES_E_INSUMOS",null,null,"Máscaras - antifaz"]
[null,null,null,"ITINERANTE","19","CAUCA","1901","CZ POPAYAN","CENTROS","05","ANTIOQUIA","0514","CZ SUROESTE","05364","JARDÍN","05","ANTIOQUIA","05364","JARDÍN","Municipio",null,null,null,null,null,null,null,null,null,"CENTROS",null,"CENTROS_MATERIALES_E_INSUMOS",null,null,"Sombreros surtidos"]
[null,null,null,"ITINERANTE","19","CAUCA","1906","CZ MACIZO COLOMBIANO","CENTROS","05","ANTIOQUIA","0514","CZ SUROESTE","05368","JERICÓ","05","ANTIOQUIA","05368","JERICÓ","Municipio",null,null,null,null,null,null,null,null,null,"CENTROS",null,"CENTROS_MATERIALES_E_INSUMOS",null,null,"Diadema Disfraz Surtida"]
[null,null,null,"ITINERANTE","19","CAUCA","1904","CZ SUR","CENTROS","05","ANTIOQUIA","0512","CZ ORIENTE","05376","LA CEJA","05","ANTIOQUIA","05376","LA CEJA","Municipio",null,null,null,null,null,null,null,null,null,"CENTROS",null,"ITINERANTE_TALENTO_HUMANO","ITINERANTE","TALENTO HUMANO","Orientador de atención itinerante para la adaptación de entornos familiares. "]
[null,null,null,"ITINERANTE","19","CAUCA","1905","CZ NORTE","CENTROS","05","ANTIOQUIA","0506","CZ ABURRA SUR","05380","LA ESTRELLA","05","ANTIOQUIA","05380","LA ESTRELLA","Municipio",null,null,null,null,null,null,null,null,null,"ITINERANTE",null,"ITINERANTE_TALENTO_HUMANO",null,"TALENTO HUMANO","Orientador de atención itinerante para la adaptación de entornos institucionales. "]
[null,null,null,"ITINERANTE","19","CAUCA","1902","CZ CENTRO","CENTROS","05","ANTIOQUIA","0535","CZ LA FLORESTA","05380","LA ESTRELLA","05","ANTIOQUIA","05380","LA ESTRELLA","Municipio",null,null,null,null,null,null,null,null,null,"ITINERANTE",null,"ITINERANTE_TALENTO_HUMANO",null,"TALENTO HUMANO","Orientador de atención itinerante para la movilización de redes familiares y comunitarias "]
[null,null,null,"ITINERANTE","19","CAUCA","1903","CZ INDIGENA","CENTROS","05","ANTIOQUIA","0506","CZ ABURRA SUR","05390","LA PINTADA","05","ANTIOQUIA","05390","LA PINTADA","Municipio",null,null,null,null,null,null,null,null,null,"ITINERANTE",null,"ITINERANTE_TALENTO_HUMANO",null,"TALENTO HUMANO","Líder comunitario, sabedor, modelo lingüista, tiflólogo, docente bilingüe, educador especial con competencia en Lengua de Señas Colombiana -LSC o intérprete para el trabajo con comunidades específicas."]
[null,null,null,"ITINERANTE","19","CAUCA","1907","CZ COSTA PACIFICA","CENTROS","05","ANTIOQUIA","0512","CZ ORIENTE","05400","LA UNIÓN","05","ANTIOQUIA","05400","LA UNIÓN","Municipio",null,null,null,null,null,null,null,null,null,"ITINERANTE",null,"ITINERANTE_TALENTO_HUMANO",null,"TALENTO HUMANO"]
[null,null,null,"ITINERANTE","20","CESAR","2001","CZ VALLEDUPAR 1","CENTROS","05","ANTIOQUIA","0510","CZ OCCIDENTE","05411","LIBORINA","05","ANTIOQUIA","05411","LIBORINA","Municipio",null,null,null,null,null,null,null,null,null,"ITINERANTE",null,"ITINERANTE_TALENTO_HUMANO",null,"TALENTO HUMANO"]
[null,null,null,"ITINERANTE","20","CESAR","2002","CZ VALLEDUPAR 2","CENTROS","05","ANTIOQUIA","0509","CZ MAGDALENA MEDIO","05425","MACEO","05","ANTIOQUIA","05425","MACEO","Municipio",null,null,null,null,null,null,null,null,null,"ITINERANTE",null,"ITINERANTE_TALENTO_HUMANO",null,"TALENTO HUMANO"]
[null,null,null,"ITINERANTE","20","CESAR","2004","CZ AGUACHICA","CENTROS","05","ANTIOQUIA","0512","CZ ORIENTE","05440","MARINILLA","05","ANTIOQUIA","05440","MARINILLA","Municipio",null,null,null,null,null,null,null,null,null,"ITINERANTE",null,"ITINERANTE_TALENTO_HUMANO",null,"TALENTO HUMANO"]
[null,null,null,"ITINERANTE","20","CESAR","2005","CZ AGUSTIN CODAZZI","CENTROS","05","ANTIOQUIA","0506","CZ ABURRA SUR","05467","MONTEBELLO","05","ANTIOQUIA","05467","MONTEBELLO","Municipio",null,null,null,null,null,null,null,null,null,"ITINERANTE",null,"ITINERANTE_TALENTO_HUMANO",null,"TALENTO HUMANO"]
[null,null,null,"ITINERANTE","20","CESAR","2003","CZ CHIRIGUANA","CENTROS","05","ANTIOQUIA","0516","CZ URABA","05475","MURINDÓ","05","ANTIOQUIA","05475","MURINDÓ","Municipio",null,null,null,null,null,null,null,null,null,"ITINERANTE",null,"ITINERANTE_TALENTO_HUMANO",null,"TALENTO HUMANO"]
[null,null,null,"ITINERANTE","23","CÓRDOBA","2301","CZ 1 MONTERIA","CENTROS","05","ANTIOQUIA","0516","CZ URABA","05480","MUTATÁ","05","ANTIOQUIA","05480","MUTATÁ","Municipio",null,null,null,null,null,null,null,null,null,"ITINERANTE",null,"ITINERANTE_COMPLEMENTACIÓN_ALIMENTARIA_Y_NUTRICIONAL",null,"COMPLEMENTACIÓN ALIMENTARIA Y NUTRICIONAL","Encuentros Grupales"]
[null,null,null,"ITINERANTE","23","CÓRDOBA","2305","CZ MONTELIBANO","CENTROS","05","ANTIOQUIA","0512","CZ ORIENTE","05483","NARIÑO","05","ANTIOQUIA","05483","NARIÑO","Municipio",null,null,null,null,null,null,null,null,null,"ITINERANTE",null,"ITINERANTE_COMPLEMENTACIÓN_ALIMENTARIA_Y_NUTRICIONAL",null,null,"Encuentros Familiares"]
[null,null,null,"ITINERANTE","23","CÓRDOBA","2303","CZ PLANETARICA","CENTROS","05","ANTIOQUIA","0516","CZ URABA","05490","NECOCLÍ","05","ANTIOQUIA","05490","NECOCLÍ","Municipio",null,null,null,null,null,null,null,null,null,"ITINERANTE",null,"ITINERANTE_COMPLEMENTACIÓN_ALIMENTARIA_Y_NUTRICIONAL",null,null,"Encuentros Comunitarios"]
[null,null,null,"ITINERANTE","23","CÓRDOBA","2302","CZ CERETE","CENTROS","05","ANTIOQUIA","0507","CZ BAJO CAUCA","05495","NECHÍ","05","ANTIOQUIA","05495","NECHÍ","Municipio",null,null,null,null,null,null,null,null,null,"ITINERANTE",null,"ITINERANTE_COMPLEMENTACIÓN_ALIMENTARIA_Y_NUTRICIONAL",null,null,"Encuentros Comunitarios"]
[null,null,null,"ITINERANTE","23","CÓRDOBA","2308","CZ SAN ANDRES DE SOTAVENTO","CENTROS","05","ANTIOQUIA","0510","CZ OCCIDENTE","05501","OLAYA","05","ANTIOQUIA","05501","OLAYA","Municipio"]
[null,null,null,"ITINERANTE","23","CÓRDOBA","2307","CZ SAHAGUN","CENTROS","05","ANTIOQUIA","0512","CZ ORIENTE","05541","PEÑOL","05","ANTIOQUIA","05541","PEÑOL","Municipio"]
[null,null,null,"ITINERANTE","23","CÓRDOBA","2306","CZ LORICA","CENTROS","05","ANTIOQUIA","0511","CZ OCCIDENTE MEDIO","05543","PEQUE","05","ANTIOQUIA","05543","PEQUE","Municipio"]
[null,null,null,"ITINERANTE","23","CÓRDOBA","2304","CZ TIERRALTA","CENTROS","05","ANTIOQUIA","0514","CZ SUROESTE","05576","PUEBLORRICO","05","ANTIOQUIA","05576","PUEBLORRICO","Municipio"]
[null,null,null,"ITINERANTE","25","CUNDINAMARCA","2510","CZ GIRARDOT","CENTROS","05","ANTIOQUIA","0509","CZ MAGDALENA MEDIO","05579","PUERTO BERRÍO","05","ANTIOQUIA","05579","PUERTO BERRÍO","Municipio"]
[null,null,null,"ITINERANTE","25","CUNDINAMARCA","2506","CZ FACATATIVA","CENTROS","05","ANTIOQUIA","0509","CZ MAGDALENA MEDIO","05585","PUERTO NARE","05","ANTIOQUIA","05585","PUERTO NARE","Municipio"]
[null,null,null,"ITINERANTE","25","CUNDINAMARCA","2511","CZ LA MESA","CENTROS","05","ANTIOQUIA","0509","CZ MAGDALENA MEDIO","05591","PUERTO TRIUNFO","05","ANTIOQUIA","05591","PUERTO TRIUNFO","Municipio"]
[null,null,null,"ITINERANTE","25","CUNDINAMARCA","2507","CZ FUSAGASUGA","CENTROS","05","ANTIOQUIA","0513","CZ PORCE NUS","05604","REMEDIOS","05","ANTIOQUIA","05604","REMEDIOS","Municipio"]
[null,null,null,"ITINERANTE","25","CUNDINAMARCA","2513","CZ SAN JUAN DE RIOSECO","CENTROS","05","ANTIOQUIA","0512","CZ ORIENTE","05607","RETIRO","05","ANTIOQUIA","05607","RETIRO","Municipio"]
[null,null,null,"ITINERANTE","25","CUNDINAMARCA","2502","CZ ZIPAQUIRA","CENTROS","05","ANTIOQUIA","0512","CZ ORIENTE","05615","RIONEGRO","05","ANTIOQUIA","05615","RIONEGRO","Municipio"]
[null,null,null,"ITINERANTE","25","CUNDINAMARCA","2504","CZ PACHO","CENTROS","05","ANTIOQUIA","0510","CZ OCCIDENTE","05628","SABANALARGA","05","ANTIOQUIA","05628","SABANALARGA","Municipio"]
[null,null,null,"ITINERANTE","25","CUNDINAMARCA","2508","CZ CAQUEZA","CENTROS","05","ANTIOQUIA","0506","CZ ABURRA SUR","05631","SABANETA","05","ANTIOQUIA","05631","SABANETA","Municipio"]
[null,null,null,"ITINERANTE","25","CUNDINAMARCA","2512","CZ UBATE","CENTROS","05","ANTIOQUIA","0535","CZ LA FLORESTA","05631","SABANETA","05","ANTIOQUIA","05631","SABANETA","Municipio"]
[null,null,null,"ITINERANTE","25","CUNDINAMARCA","2503","CZ CHOCONTA","CENTROS","05","ANTIOQUIA","0514","CZ SUROESTE","05642","SALGAR","05","ANTIOQUIA","05642","SALGAR","Municipio"]
[null,null,null,"ITINERANTE","25","CUNDINAMARCA","2509","CZ GACHETA","CENTROS","05","ANTIOQUIA","0508","CZ LA MESETA","05647","SAN ANDRÉS DE CUERQUÍA","05","ANTIOQUIA","05647","SAN ANDRÉS DE CUERQUÍA","Municipio"]
[null,null,null,"ITINERANTE","25","CUNDINAMARCA","2505","CZ VILLETA","CENTROS","05","ANTIOQUIA","0517","CZ ORIENTE MEDIO","05649","SAN CARLOS","05","ANTIOQUIA","05649","SAN CARLOS","Municipio"]
[null,null,null,"ITINERANTE","25","CUNDINAMARCA","2518","CZ SOACHA CENTRO","CENTROS","05","ANTIOQUIA","0517","CZ ORIENTE MEDIO","05652","SAN FRANCISCO","05","ANTIOQUIA","05652","SAN FRANCISCO","Municipio"]
[null,null,null,"ITINERANTE","25","CUNDINAMARCA","2501","CZ SOACHA","CENTROS","05","ANTIOQUIA","0510","CZ OCCIDENTE","05656","SAN JERÓNIMO","05","ANTIOQUIA","05656","SAN JERÓNIMO","Municipio"]
[null,null,null,"ITINERANTE","27","CHOCÓ","2701","CZ QUIBDO","CENTROS","05","ANTIOQUIA","0508","CZ LA MESETA","05658","SAN JOSÉ DE LA MONTAÑA","05","ANTIOQUIA","05658","SAN JOSÉ DE LA MONTAÑA","Municipio"]
[null,null,null,"ITINERANTE","27","CHOCÓ","2704","CZ RIOSUCIO","CENTROS","05","ANTIOQUIA","0516","CZ URABA","05659","SAN JUAN DE URABÁ","05","ANTIOQUIA","05659","SAN JUAN DE URABÁ","Municipio"]
[null,null,null,"ITINERANTE","27","CHOCÓ","2702","CZ ISTMINA","CENTROS","05","ANTIOQUIA","0517","CZ ORIENTE MEDIO","05660","SAN LUIS","05","ANTIOQUIA","05660","SAN LUIS","Municipio"]
[null,null,null,"ITINERANTE","27","CHOCÓ","2705","CZ TADO","CENTROS","05","ANTIOQUIA","0505","CZ ABURRA NORTE","05664","SAN PEDRO DE LOS MILAGROS","05","ANTIOQUIA","05664","SAN PEDRO DE LOS MILAGROS","Municipio"]
[null,null,null,"ITINERANTE","27","CHOCÓ","2703","CZ BAHIA SOLANO","CENTROS","05","ANTIOQUIA","0516","CZ URABA","05665","SAN PEDRO DE URABA","05","ANTIOQUIA","05665","SAN PEDRO DE URABÁ","Municipio"]
[null,null,null,"ITINERANTE","41","HUILA","4101","CZ NEIVA","CENTROS","05","ANTIOQUIA","0517","CZ ORIENTE MEDIO","05667","SAN RAFAEL","05","ANTIOQUIA","05667","SAN RAFAEL","Municipio"]
[null,null,null,"ITINERANTE","41","HUILA","4105","CZ LA GAITANA","CENTROS","05","ANTIOQUIA","0513","CZ PORCE NUS","05670","SAN ROQUE","05","ANTIOQUIA","05670","SAN ROQUE","Municipio"]
[null,null,null,"ITINERANTE","41","HUILA","4104","CZ PITALITO","CENTROS","05","ANTIOQUIA","0512","CZ ORIENTE","05674","SAN VICENTE FERRER","05","ANTIOQUIA","05674","SAN VICENTE FERRER","Municipio"]
[null,null,null,"ITINERANTE","41","HUILA","4102","CZ GARZON","CENTROS","05","ANTIOQUIA","0506","CZ ABURRA SUR","05679","SANTA BÁRBARA","05","ANTIOQUIA","05679","SANTA BÁRBARA","Municipio"]
[null,null,null,"ITINERANTE","41","HUILA","4103","CZ LA PLATA","CENTROS","05","ANTIOQUIA","0508","CZ LA MESETA","05686","SANTA ROSA DE OSOS","05","ANTIOQUIA","05686","SANTA ROSA DE OSOS","Municipio"]
[null,null,null,"ITINERANTE","44","LA GUAJIRA","4401","CZ RIOHACHA 1","CENTROS","05","ANTIOQUIA","0513","CZ PORCE NUS","05690","SANTO DOMINGO","05","ANTIOQUIA","05690","SANTO DOMINGO","Municipio"]
[null,null,null,"ITINERANTE","44","LA GUAJIRA","4402","CZ RIOHACHA 2","CENTROS","05","ANTIOQUIA","0517","CZ ORIENTE MEDIO","05697","EL SANTUARIO","05","ANTIOQUIA","05697","EL SANTUARIO","Municipio"]
[null,null,null,"ITINERANTE","44","LA GUAJIRA","4405","CZ MAICAO","CENTROS","05","ANTIOQUIA","0513","CZ PORCE NUS","05736","SEGOVIA","05","ANTIOQUIA","05736","SEGOVIA","Municipio"]
[null,null,null,"ITINERANTE","44","LA GUAJIRA","4403","CZ FONSECA","CENTROS","05","ANTIOQUIA","0512","CZ ORIENTE","05756","SONSON","05","ANTIOQUIA","05756","SONSÓN","Municipio"]
[null,null,null,"ITINERANTE","44","LA GUAJIRA","4404","CZ MANAURE","CENTROS","05","ANTIOQUIA","0510","CZ OCCIDENTE","05761","SOPETRÁN","05","ANTIOQUIA","05761","SOPETRÁN","Municipio"]
[null,null,null,"ITINERANTE","44","LA GUAJIRA","4408","CZ NAZARETH","CENTROS","05","ANTIOQUIA","0514","CZ SUROESTE","05789","TÁMESIS","05","ANTIOQUIA","05789","TÁMESIS","Municipio"]
[null,null,null,"ITINERANTE","47","MAGDALENA","4701","CZ SANTA MARTA 1","CENTROS","05","ANTIOQUIA","0507","CZ BAJO CAUCA","05790","TARAZÁ","05","ANTIOQUIA","05790","TARAZÁ","Municipio"]
[null,null,null,"ITINERANTE","47","MAGDALENA","4702","CZ SANTA MARTA 2","CENTROS","05","ANTIOQUIA","0514","CZ SUROESTE","05792","TARSO","05","ANTIOQUIA","05792","TARSO","Municipio"]
[null,null,null,"ITINERANTE","47","MAGDALENA","4705","CZ FUNDACIÓN","CENTROS","05","ANTIOQUIA","0506","CZ ABURRA SUR","05809","TITIRIBÍ","05","ANTIOQUIA","05809","TITIRIBÍ","Municipio"]
[null,null,null,"ITINERANTE","47","MAGDALENA","4706","CZ PLATO","CENTROS","05","ANTIOQUIA","0508","CZ LA MESETA","05819","TOLEDO","05","ANTIOQUIA","05819","TOLEDO","Municipio"]
[null,null,null,"ITINERANTE","47","MAGDALENA","4703","CZ DEL RIO","CENTROS","05","ANTIOQUIA","0516","CZ URABA","05837","TURBO","05","ANTIOQUIA","05837","TURBO","Municipio"]
[null,null,null,"ITINERANTE","47","MAGDALENA","4704","CZ CIENAGA","CENTROS","05","ANTIOQUIA","0511","CZ OCCIDENTE MEDIO","05842","URAMITA","05","ANTIOQUIA","05842","URAMITA","Municipio"]
[null,null,null,"ITINERANTE","47","MAGDALENA","4707","CZ EL BANCO","CENTROS","05","ANTIOQUIA","0515","CZ PENDERISCO","05847","URRAO","05","ANTIOQUIA","05847","URRAO","Municipio"]
[null,null,null,"ITINERANTE","47","MAGDALENA","4708","CZ SANTA ANA","CENTROS","05","ANTIOQUIA","0508","CZ LA MESETA","05854","VALDIVIA","05","ANTIOQUIA","05854","VALDIVIA","Municipio"]
[null,null,null,"ITINERANTE","50","META","5001","CZ VILLAVICENCIO 1","CENTROS","05","ANTIOQUIA","0514","CZ SUROESTE","05856","VALPARAÍSO","05","ANTIOQUIA","05856","VALPARAÍSO","Municipio"]
[null,null,null,"ITINERANTE","50","META","5002","CZ VILLAVICENCIO 2","CENTROS","05","ANTIOQUIA","0513","CZ PORCE NUS","05858","VEGACHÍ","05","ANTIOQUIA","05858","VEGACHÍ","Municipio"]
[null,null,null,"ITINERANTE","50","META","5004","CZ ACACIAS","CENTROS","05","ANTIOQUIA","0506","CZ ABURRA SUR","05861","VENECIA","05","ANTIOQUIA","05861","VENECIA","Municipio"]
[null,null,null,"ITINERANTE","50","META","5005","CZ PUERTO LOPEZ","CENTROS","05","ANTIOQUIA","0516","CZ URABA","05873","VIGÍA DEL FUERTE","05","ANTIOQUIA","05873","VIGÍA DEL FUERTE","Municipio"]
[null,null,null,"ITINERANTE","50","META","5003","CZ GRANADA","CENTROS","05","ANTIOQUIA","0513","CZ PORCE NUS","05885","YALÍ","05","ANTIOQUIA","05885","YALÍ","Municipio"]
[null,null,null,"ITINERANTE","52","NARIÑO","5201","CZ PASTO 1","CENTROS","05","ANTIOQUIA","0508","CZ LA MESETA","05887","YARUMAL","05","ANTIOQUIA","05887","YARUMAL","Municipio"]
[null,null,null,"ITINERANTE","52","NARIÑO","5202","CZ PASTO 2","CENTROS","05","ANTIOQUIA","0513","CZ PORCE NUS","05890","YOLOMBÓ","05","ANTIOQUIA","05890","YOLOMBÓ","Municipio"]
[null,null,null,"ITINERANTE","52","NARIÑO","5204","CZ IPIALES","CENTROS","05","ANTIOQUIA","0509","CZ MAGDALENA MEDIO","05893","YONDÓ","05","ANTIOQUIA","05893","YONDÓ","Municipio"]
[null,null,null,"ITINERANTE","52","NARIÑO","5206","CZ LA UNION","CENTROS","05","ANTIOQUIA","0507","CZ BAJO CAUCA","05895","ZARAGOZA","05","ANTIOQUIA","05895","ZARAGOZA","Municipio"]
[null,null,null,"ITINERANTE","52","NARIÑO","5207","CZ BARBACOAS","CENTROS","08","ATLÁNTICO","0801","CZ NORTE CENTRO HISTORICO","08001","BARRANQUILLA","08","ATLÁNTICO","08001","BARRANQUILLA","Municipio"]
[null,null,null,"ITINERANTE","52","NARIÑO","5208","CZ REMOLINO","CENTROS","08","ATLÁNTICO","0802","CZ SUROCCIDENTE","08001","BARRANQUILLA","08","ATLÁNTICO","08001","BARRANQUILLA","Municipio"]
[null,null,null,"ITINERANTE","52","NARIÑO","5203","CZ TUMACO","CENTROS","08","ATLÁNTICO","0807","CZ SURORIENTE","08001","BARRANQUILLA","08","ATLÁNTICO","08001","BARRANQUILLA","Municipio"]
[null,null,null,"ITINERANTE","52","NARIÑO","5205","CZ TUQUERRES","CENTROS","08","ATLÁNTICO","0803","CZ BARANOA","08078","BARANOA","08","ATLÁNTICO","08078","BARANOA","Municipio"]
[null,null,null,"ITINERANTE","54","NORTE DE SANTANDER","5401","CZ CUCUTA 1","CENTROS","08","ATLÁNTICO","0805","CZ SABANAGRANDE","08137","CAMPO DE LA CRUZ","08","ATLÁNTICO","08137","CAMPO DE LA CRUZ","Municipio"]
[null,null,null,"ITINERANTE","54","NORTE DE SANTANDER","5402","CZ CUCUTA 2","CENTROS","08","ATLÁNTICO","0804","CZ SABANALARGA","08141","CANDELARIA","08","ATLÁNTICO","08141","CANDELARIA","Municipio"]
[null,null,null,"ITINERANTE","54","NORTE DE SANTANDER","5403","CZ CUCUTA 3","CENTROS","08","ATLÁNTICO","0803","CZ BARANOA","08296","GALAPA","08","ATLÁNTICO","08296","GALAPA","Municipio"]
[null,null,null,"ITINERANTE","54","NORTE DE SANTANDER","5404","CZ OCAÑA","CENTROS","08","ATLÁNTICO","0803","CZ BARANOA","08372","JUAN DE ACOSTA","08","ATLÁNTICO","08372","JUAN DE ACOSTA","Municipio"]
[null,null,null,"ITINERANTE","54","NORTE DE SANTANDER","5405","CZ PAMPLONA","CENTROS","08","ATLÁNTICO","0804","CZ SABANALARGA","08421","LURUACO","08","ATLÁNTICO","08421","LURUACO","Municipio"]
[null,null,null,"ITINERANTE","54","NORTE DE SANTANDER","5406","CZ TIBU","CENTROS","08","ATLÁNTICO","0806","CZ HIPODROMO","08433","MALAMBO","08","ATLÁNTICO","08433","MALAMBO","Municipio"]
[null,null,null,"ITINERANTE","63","QUINDÍO","6301","CZ ARMENIA SUR","CENTROS","08","ATLÁNTICO","0804","CZ SABANALARGA","08436","MANATÍ","08","ATLÁNTICO","08436","MANATÍ","Municipio"]
[null,null,null,"ITINERANTE","63","QUINDÍO","6302","CZ ARMENIA NORTE","CENTROS","08","ATLÁNTICO","0805","CZ SABANAGRANDE","08520","PALMAR DE VARELA","08","ATLÁNTICO","08520","PALMAR DE VARELA","Municipio"]
[null,null,null,"ITINERANTE","63","QUINDÍO","6303","CZ CALARCA","CENTROS","08","ATLÁNTICO","0803","CZ BARANOA","08549","PIOJÓ","08","ATLÁNTICO","08549","PIOJÓ","Municipio"]
[null,null,null,"ITINERANTE","66","RISARALDA","6601","CZ PEREIRA","CENTROS","08","ATLÁNTICO","0803","CZ BARANOA","08558","POLONUEVO","08","ATLÁNTICO","08558","POLONUEVO","Municipio"]
[null,null,null,"ITINERANTE","66","RISARALDA","6602","CZ LA VIRGINIA","CENTROS","08","ATLÁNTICO","0805","CZ SABANAGRANDE","08560","PONEDERA","08","ATLÁNTICO","08560","PONEDERA","Municipio"]
[null,null,null,"ITINERANTE","66","RISARALDA","6604","CZ BELEN DE UMBRIA","CENTROS","08","ATLÁNTICO","0801","CZ NORTE CENTRO HISTORICO","08573","PUERTO COLOMBIA","08","ATLÁNTICO","08573","PUERTO COLOMBIA","Municipio"]
[null,null,null,"ITINERANTE","66","RISARALDA","6603","CZ DOS QUEBRADAS","CENTROS","08","ATLÁNTICO","0804","CZ SABANALARGA","08606","REPELÓN","08","ATLÁNTICO","08606","REPELÓN","Municipio"]
[null,null,null,"ITINERANTE","66","RISARALDA","6605","CZ SANTA ROSA DE CABAL","CENTROS","08","ATLÁNTICO","0805","CZ SABANAGRANDE","08634","SABANAGRANDE","08","ATLÁNTICO","08634","SABANAGRANDE","Municipio"]
[null,null,null,"ITINERANTE","68","SANTANDER","6803","CZ CARLOS LLERAS RESTREPO","CENTROS","08","ATLÁNTICO","0804","CZ SABANALARGA","08638","SABANALARGA","08","ATLÁNTICO","08638","SABANALARGA","Municipio"]
[null,null,null,"ITINERANTE","68","SANTANDER","6804","CZ LUIS CARLOS GALÁN SARMIENTO","CENTROS","08","ATLÁNTICO","0805","CZ SABANAGRANDE","08675","SANTA LUCÍA","08","ATLÁNTICO","08675","SANTA LUCÍA","Municipio"]
[null,null,null,"ITINERANTE","68","SANTANDER","6815","CZ RESURGIR","CENTROS","08","ATLÁNTICO","0805","CZ SABANAGRANDE","08685","SANTO TOMÁS","08","ATLÁNTICO","08685","SANTO TOMÁS","Municipio"]
[null,null,null,"ITINERANTE","68","SANTANDER","6809","CZ VELEZ","CENTROS","08","ATLÁNTICO","0806","CZ HIPODROMO","08758","SOLEDAD","08","ATLÁNTICO","08758","SOLEDAD","Municipio"]
[null,null,null,"ITINERANTE","68","SANTANDER","6807","CZ SAN GIL","CENTROS","08","ATLÁNTICO","0805","CZ SABANAGRANDE","08770","SUAN","08","ATLÁNTICO","08770","SUAN","Municipio"]
[null,null,null,"ITINERANTE","68","SANTANDER","6805","CZ YARIQUIES","CENTROS","08","ATLÁNTICO","0803","CZ BARANOA","08832","TUBARÁ","08","ATLÁNTICO","08832","TUBARÁ","Municipio"]
[null,null,null,"ITINERANTE","68","SANTANDER","6806","CZ LA FLORESTA","CENTROS","08","ATLÁNTICO","0803","CZ BARANOA","08849","USIACURÍ","08","ATLÁNTICO","08849","USIACURÍ","Municipio"]
[null,null,null,"ITINERANTE","68","SANTANDER","6802","CZ BUCARAMANGA SUR","CENTROS","11","BOGOTÁ DC","1130","CZ CREER","11001","BOGOTÁ DC","11","BOGOTÁ DC","11001","BOGOTÁ, D.C.","Municipio"]
[null,null,null,"ITINERANTE","68","SANTANDER","6801","CZ ANTONIA SANTOS","CENTROS","11","BOGOTÁ DC","1101","CZ CIUDAD BOLIVAR","11019","CIUDAD BOLIVAR","11","BOGOTÁ DC","n/a","n/a","Localidad"]
[null,null,null,"ITINERANTE","68","SANTANDER","6810","CZ MALAGA","CENTROS","11","BOGOTÁ DC","1102","CZ TUNJUELITO","11006","TUNJUELITO","11","BOGOTÁ DC","n/a","n/a","Localidad"]
[null,null,null,"ITINERANTE","68","SANTANDER","6808","CZ SOCORRO","CENTROS","11","BOGOTÁ DC","1103","CZ USME","11005","USME","11","BOGOTÁ DC","n/a","n/a","Localidad"]
[null,null,null,"ITINERANTE","70","SUCRE","7003","CZ SINCELEJO","CENTROS","11","BOGOTÁ DC","1103","CZ USME","11020","SUMAPAZ","11","BOGOTÁ DC","n/a","n/a","Localidad"]
[null,null,null,"ITINERANTE","70","SUCRE","7001","CZ BOSTON","CENTROS","11","BOGOTÁ DC","1104","CZ SAN CRISTOBAL SUR","11004","SAN CRISTOBAL SUR","11","BOGOTÁ DC","n/a","n/a","Localidad"]
[null,null,null,"ITINERANTE","70","SUCRE","7002","CZ NORTE","CENTROS","11","BOGOTÁ DC","1105","CZ KENNEDY","11008","KENNEDY","11","BOGOTÁ DC","n/a","n/a","Localidad"]
[null,null,null,"ITINERANTE","70","SUCRE","7004","CZ LA MOJANA","CENTROS","11","BOGOTÁ DC","1106","CZ REVIVIR","11013","TEUSAQUILLO","11","BOGOTÁ DC","n/a","n/a","Localidad"]
[null,null,null,"ITINERANTE","73","TOLIMA","7301","CZ JORDAN","CENTROS","11","BOGOTÁ DC","1107","CZ PUENTE ARANDA","11016","PUENTE ARANDA","11","BOGOTÁ DC","n/a","n/a","Localidad"]
[null,null,null,"ITINERANTE","73","TOLIMA","7302","CZ GALAN","CENTROS","11","BOGOTÁ DC","1108","CZ BOSA","11007","BOSA","11","BOGOTÁ DC","n/a","n/a","Localidad"]
[null,null,null,"ITINERANTE","73","TOLIMA","7303","CZ IBAGUE","CENTROS","11","BOGOTÁ DC","1109","CZ RAFAEL URIBE","11015","ANTONIO NARIÑO","11","BOGOTÁ DC","n/a","n/a","Localidad"]
[null,null,null,"ITINERANTE","73","TOLIMA","7309","CZ PURIFICACION","CENTROS","11","BOGOTÁ DC","1109","CZ RAFAEL URIBE","11018","RAFAEL URIBE","11","BOGOTÁ DC","n/a","n/a","Localidad"]
[null,null,null,"ITINERANTE","73","TOLIMA","7305","CZ LERIDA","CENTROS","11","BOGOTÁ DC","1110","CZ SANTA FE","11003","SANTA FE","11","BOGOTÁ DC","n/a","n/a","Localidad"]
[null,null,null,"ITINERANTE","73","TOLIMA","7308","CZ CHAPARRAL","CENTROS","11","BOGOTÁ DC","1110","CZ SANTA FE","11017","LA CANDELARIA","11","BOGOTÁ DC","n/a","n/a","Localidad"]
[null,null,null,"ITINERANTE","73","TOLIMA","7312","CZ MELGAR","CENTROS","11","BOGOTÁ DC","1111","CZ FONTIBON","11009","FONTIBON","11","BOGOTÁ DC","n/a","n/a","Localidad"]
[null,null,null,"ITINERANTE","73","TOLIMA","7304","CZ LIBANO","CENTROS","11","BOGOTÁ DC","1112","CZ BARRIOS UNIDOS","11002","CHAPINERO","11","BOGOTÁ DC","n/a","n/a","Localidad"]
[null,null,null,"ITINERANTE","73","TOLIMA","7307","CZ ESPINAL","CENTROS","11","BOGOTÁ DC","1112","CZ BARRIOS UNIDOS","11012","BARRIOS UNIDOS","11","BOGOTÁ DC","n/a","n/a","Localidad"]
[null,null,null,"ITINERANTE","73","TOLIMA","7306","CZ HONDA","CENTROS","11","BOGOTÁ DC","1112","CZ BARRIOS UNIDOS","11013","TEUSAQUILLO","11","BOGOTÁ DC","n/a","n/a","Localidad"]
[null,null,null,"ITINERANTE","76","VALLE DEL CAUCA","7601","CZ SURORIENTAL","CENTROS","11","BOGOTÁ DC","1113","CZ ENGATIVA","11010","ENGATIVA","11","BOGOTÁ DC","n/a","n/a","Localidad"]
[null,null,null,"ITINERANTE","76","VALLE DEL CAUCA","7602","CZ NORORIENTAL","CENTROS","11","BOGOTÁ DC","1114","CZ SUBA","11011","SUBA","11","BOGOTÁ DC","n/a","n/a","Localidad"]
[null,null,null,"ITINERANTE","76","VALLE DEL CAUCA","7603","CZ LADERA","CENTROS","11","BOGOTÁ DC","1115","CZ USAQUEN","11021","USAQUEN","11","BOGOTÁ DC","n/a","n/a","Localidad"]
[null,null,null,"ITINERANTE","76","VALLE DEL CAUCA","7604","CZ CENTRO","CENTROS","11","BOGOTÁ DC","1116","CZ MARTIRES","11014","MARTIRES","11","BOGOTÁ DC","n/a","n/a","Localidad"]
[null,null,null,"ITINERANTE","76","VALLE DEL CAUCA","7605","CZ SUR","CENTROS","11","BOGOTÁ DC","1116","CZ MARTIRES","11016","PUENTE ARANDA","11","BOGOTÁ DC","n/a","n/a","Localidad"]
[null,null,null,"ITINERANTE","76","VALLE DEL CAUCA","7620","CZ RESTAURAR","CENTROS","11","BOGOTÁ DC","1131","CZ KENNEDY CENTRAL","11008","KENNEDY","11","BOGOTÁ DC","n/a","n/a","Localidad"]
[null,null,null,"ITINERANTE","76","VALLE DEL CAUCA","7613","CZ CARTAGO","CENTROS","13","BOLÍVAR","1301","CZ HISTORICO Y DEL CARIBE NORTE","13001","CARTAGENA DE INDIAS","13","BOLÍVAR","13001","CARTAGENA DE INDIAS","Municipio"]
[null,null,null,"ITINERANTE","76","VALLE DEL CAUCA","7610","CZ TULUA","CENTROS","13","BOLÍVAR","1302","CZ DE LA VIRGEN Y TURISTICO","13001","CARTAGENA DE INDIAS","13","BOLÍVAR","13001","CARTAGENA DE INDIAS","Municipio"]
[null,null,null,"ITINERANTE","76","VALLE DEL CAUCA","7612","CZ ROLDANILLO","CENTROS","13","BOLÍVAR","1303","CZ INDUSTRIAL DE LA BAHIA","13001","CARTAGENA DE INDIAS","13","BOLÍVAR","13001","CARTAGENA DE INDIAS","Municipio"]
[null,null,null,"ITINERANTE","76","VALLE DEL CAUCA","7614","CZ BUENAVENTURA","CENTROS","13","BOLÍVAR","1306","CZ MAGANGUE","13006","ACHÍ","13","BOLÍVAR","13006","ACHÍ","Municipio"]
[null,null,null,"ITINERANTE","76","VALLE DEL CAUCA","7609","CZ BUGA","CENTROS","13","BOLÍVAR","1307","CZ MOMPOX","13030","ALTOS DEL ROSARIO","13","BOLÍVAR","13030","ALTOS DEL ROSARIO","Municipio"]
[null,null,null,"ITINERANTE","76","VALLE DEL CAUCA","7611","CZ SEVILLA","CENTROS","13","BOLÍVAR","1308","CZ SIMITI","13042","ARENAL","13","BOLÍVAR","13042","ARENAL","Municipio"]
[null,null,null,"ITINERANTE","76","VALLE DEL CAUCA","7608","CZ PALMIRA","CENTROS","13","BOLÍVAR","1304","CZ TURBACO","13052","ARJONA","13","BOLÍVAR","13052","ARJONA","Municipio"]
[null,null,null,"ITINERANTE","76","VALLE DEL CAUCA","7606","CZ JAMUNDI","CENTROS","13","BOLÍVAR","1304","CZ TURBACO","13062","ARROYOHONDO","13","BOLÍVAR","13062","ARROYOHONDO","Municipio"]
[null,null,null,"ITINERANTE","76","VALLE DEL CAUCA","7607","CZ YUMBO","CENTROS","13","BOLÍVAR","1307","CZ MOMPOX","13074","BARRANCO DE LOBA","13","BOLÍVAR","13074","BARRANCO DE LOBA","Municipio"]
[null,null,null,"ITINERANTE","81","ARAUCA","8102","CZ SARAVENA","CENTROS","13","BOLÍVAR","1304","CZ TURBACO","13140","CALAMAR","13","BOLÍVAR","13140","CALAMAR","Municipio"]
[null,null,null,"ITINERANTE","81","ARAUCA","8101","CZ ARAUCA","CENTROS","13","BOLÍVAR","1308","CZ SIMITI","13160","CANTAGALLO","13","BOLÍVAR","13160","CANTAGALLO","Municipio"]
[null,null,null,"ITINERANTE","81","ARAUCA","8103","CZ TAME","CENTROS","13","BOLÍVAR","1307","CZ MOMPOX","13188","CICUCO","13","BOLÍVAR","13188","CICUCO","Municipio"]
[null,null,null,"ITINERANTE","85","CASANARE","8501","CZ YOPAL","CENTROS","13","BOLÍVAR","1305","CZ EL CARMEN DE BOLIVAR","13212","CÓRDOBA","13","BOLÍVAR","13212","CÓRDOBA","Municipio"]
[null,null,null,"ITINERANTE","85","CASANARE","8502","CZ PAZ DE ARIPORO","CENTROS","13","BOLÍVAR","1302","CZ DE LA VIRGEN Y TURISTICO","13222","CLEMENCIA","13","BOLÍVAR","13222","CLEMENCIA","Municipio"]
[null,null,null,"ITINERANTE","85","CASANARE","8503","CZ VILLANUEVA","CENTROS","13","BOLÍVAR","1305","CZ EL CARMEN DE BOLIVAR","13244","EL CARMEN DE BOLÍVAR","13","BOLÍVAR","13244","EL CARMEN DE BOLÍVAR","Municipio"]
[null,null,null,"ITINERANTE","86","PUTUMAYO","8601","CZ MOCOA","CENTROS","13","BOLÍVAR","1305","CZ EL CARMEN DE BOLIVAR","13248","EL GUAMO","13","BOLÍVAR","13248","EL GUAMO","Municipio"]
[null,null,null,"ITINERANTE","86","PUTUMAYO","8602","CZ SIBUNDOY","CENTROS","13","BOLÍVAR","1307","CZ MOMPOX","13268","EL PEÑÓN","13","BOLÍVAR","13268","EL PEÑÓN","Municipio"]
[null,null,null,"ITINERANTE","86","PUTUMAYO","8604","CZ LA HORMIGA","CENTROS","13","BOLÍVAR","1307","CZ MOMPOX","13300","HATILLO DE LOBA","13","BOLÍVAR","13300","HATILLO DE LOBA","Municipio"]
[null,null,null,"ITINERANTE","86","PUTUMAYO","8603","CZ PUERTO ASIS","CENTROS","13","BOLÍVAR","1306","CZ MAGANGUE","13430","MAGANGUÉ","13","BOLÍVAR","13430","MAGANGUÉ","Municipio"]
[null,null,null,"ITINERANTE","88","SAN ANDRÉS","8801","CZ LOS ALMENDROS","CENTROS","13","BOLÍVAR","1304","CZ TURBACO","13433","MAHATES","13","BOLÍVAR","13433","MAHATES","Municipio"]
[null,null,null,"ITINERANTE","91","AMAZONAS","9102","CZ LETICIA","CENTROS","13","BOLÍVAR","1307","CZ MOMPOX","13440","MARGARITA","13","BOLÍVAR","13440","MARGARITA","Municipio"]
[null,null,null,"ITINERANTE","94","GUAINÍA","9403","CZ INIRIDA","CENTROS","13","BOLÍVAR","1304","CZ TURBACO","13442","MARÍA LA BAJA","13","BOLÍVAR","13442","MARÍA LA BAJA","Municipio"]
[null,null,null,"ITINERANTE","95","GUAVIARE","9505","CZ SAN JOSE DE GUAVIARE","CENTROS","13","BOLÍVAR","1306","CZ MAGANGUE","13458","MONTECRISTO","13","BOLÍVAR","13458","MONTECRISTO","Municipio"]
[null,null,null,"ITINERANTE","97","VAUPÉS","9704","CZ MITU","CENTROS","13","BOLÍVAR","1307","CZ MOMPOX","13468","SANTA CRUZ DE MOMPOX","13","BOLÍVAR","13468","SANTA CRUZ DE MOMPOX","Municipio"]
[null,null,null,"ITINERANTE","99","VICHADA","9902","CZ PUERTO CARREÑO","CENTROS","13","BOLÍVAR","1308","CZ SIMITI","13473","MORALES","13","BOLÍVAR","13473","MORALES","Municipio"]
[null,null,null,null,null,null,null,null,"CENTROS","13","BOLÍVAR","1308","CZ SIMITI","13490","NOROSI","13","BOLÍVAR","13490","NOROSÍ","Municipio"]
[null,null,null,null,null,null,null,null,"CENTROS","13","BOLÍVAR","1306","CZ MAGANGUE","13549","PINILLOS","13","BOLÍVAR","13549","PINILLOS","Municipio"]
[null,null,null,null,null,null,null,null,"CENTROS","13","BOLÍVAR","1308","CZ SIMITI","13580","REGIDOR","13","BOLÍVAR","13580","REGIDOR","Municipio"]
[null,null,null,null,null,null,null,null,"CENTROS","13","BOLÍVAR","1308","CZ SIMITI","13600","RÍO VIEJO","13","BOLÍVAR","13600","RÍO VIEJO","Municipio"]
[null,null,null,null,null,null,null,null,"CENTROS","13","BOLÍVAR","1303","CZ INDUSTRIAL DE LA BAHIA","13620","SAN CRISTÓBAL","13","BOLÍVAR","13620","SAN CRISTÓBAL","Municipio"]
[null,null,null,null,null,null,null,null,"CENTROS","13","BOLÍVAR","1303","CZ INDUSTRIAL DE LA BAHIA","13647","SAN ESTANISLAO","13","BOLÍVAR","13647","SAN ESTANISLAO","Municipio"]
[null,null,null,null,null,null,null,null,"CENTROS","13","BOLÍVAR","1307","CZ MOMPOX","13650","SAN FERNANDO","13","BOLÍVAR","13650","SAN FERNANDO","Municipio"]
[null,null,null,null,null,null,null,null,"CENTROS","13","BOLÍVAR","1305","CZ EL CARMEN DE BOLIVAR","13654","SAN JACINTO","13","BOLÍVAR","13654","SAN JACINTO","Municipio"]
[null,null,null,null,null,null,null,null,"CENTROS","13","BOLÍVAR","1306","CZ MAGANGUE","13655","SAN JACINTO DEL CAUCA","13","BOLÍVAR","13655","SAN JACINTO DEL CAUCA","Municipio"]
[null,null,null,null,null,null,null,null,"CENTROS","13","BOLÍVAR","1305","CZ EL CARMEN DE BOLIVAR","13657","SAN JUAN NEPOMUCENO","13","BOLÍVAR","13657","SAN JUAN NEPOMUCENO","Municipio"]
[null,null,null,null,null,null,null,null,"CENTROS","13","BOLÍVAR","1307","CZ MOMPOX","13667","SAN MARTÍN DE LOBA","13","BOLÍVAR","13667","SAN MARTÍN DE LOBA","Municipio"]
[null,null,null,null,null,null,null,null,"CENTROS","13","BOLÍVAR","1308","CZ SIMITI","13670","SAN PABLO","13","BOLÍVAR","13670","SAN PABLO","Municipio"]
[null,null,null,null,null,null,null,null,"CENTROS","13","BOLÍVAR","1302","CZ DE LA VIRGEN Y TURISTICO","13673","SANTA CATALINA","13","BOLÍVAR","13673","SANTA CATALINA","Municipio"]
[null,null,null,null,null,null,null,null,"CENTROS","13","BOLÍVAR","1303","CZ INDUSTRIAL DE LA BAHIA","13683","SANTA ROSA","13","BOLÍVAR","13683","SANTA ROSA","Municipio"]
[null,null,null,null,null,null,null,null,"CENTROS","13","BOLÍVAR","1308","CZ SIMITI","13688","SANTA ROSA DEL SUR","13","BOLÍVAR","13688","SANTA ROSA DEL SUR","Municipio"]
[null,null,null,null,null,null,null,null,"CENTROS","13","BOLÍVAR","1308","CZ SIMITI","13744","SIMITÍ","13","BOLÍVAR","13744","SIMITÍ","Municipio"]
[null,null,null,null,null,null,null,null,"CENTROS","13","BOLÍVAR","1303","CZ INDUSTRIAL DE LA BAHIA","13760","SOPLAVIENTO","13","BOLÍVAR","13760","SOPLAVIENTO","Municipio"]
[null,null,null,null,null,null,null,null,"CENTROS","13","BOLÍVAR","1307","CZ MOMPOX","13780","TALAIGUA NUEVO","13","BOLÍVAR","13780","TALAIGUA NUEVO","Municipio"]
[null,null,null,null,null,null,null,null,"CENTROS","13","BOLÍVAR","1306","CZ MAGANGUE","13810","TIQUISIO","13","BOLÍVAR","13810","TIQUISIO","Municipio"]
[null,null,null,null,null,null,null,null,"CENTROS","13","BOLÍVAR","1304","CZ TURBACO","13836","TURBACO","13","BOLÍVAR","13836","TURBACO","Municipio"]
[null,null,null,null,null,null,null,null,"CENTROS","13","BOLÍVAR","1304","CZ TURBACO","13838","TURBANÁ","13","BOLÍVAR","13838","TURBANA","Municipio"]
[null,null,null,null,null,null,null,null,"CENTROS","13","BOLÍVAR","1303","CZ INDUSTRIAL DE LA BAHIA","13873","VILLANUEVA","13","BOLÍVAR","13873","VILLANUEVA","Municipio"]
[null,null,null,null,null,null,null,null,"CENTROS","13","BOLÍVAR","1305","CZ EL CARMEN DE BOLIVAR","13894","ZAMBRANO","13","BOLÍVAR","13894","ZAMBRANO","Municipio"]
[null,null,null,null,null,null,null,null,"CENTROS","15","BOYACÁ","1501","CZ TUNJA 1","15001","TUNJA","15","BOYACÁ","15001","TUNJA","Municipio"]
[null,null,null,null,null,null,null,null,"CENTROS","15","BOYACÁ","1502","CZ TUNJA 2","15001","TUNJA","15","BOYACÁ","15001","TUNJA","Municipio"]
[null,null,null,null,null,null,null,null,"CENTROS","15","BOYACÁ","1506","CZ GARAGOA","15022","ALMEIDA","15","BOYACÁ","15022","ALMEIDA","Municipio"]
[null,null,null,null,null,null,null,null,"CENTROS","15","BOYACÁ","1503","CZ SOGAMOSO","15047","AQUITANIA","15","BOYACÁ","15047","AQUITANIA","Municipio"]
[null,null,null,null,null,null,null,null,"CENTROS","15","BOYACÁ","1511","CZ MONIQUIRA","15051","ARCABUCO","15","BOYACÁ","15051","ARCABUCO","Municipio"]
[null,null,null,null,null,null,null,null,"CENTROS","15","BOYACÁ","1504","CZ DUITAMA","15087","BELÉN","15","BOYACÁ","15087","BELÉN","Municipio"]
[null,null,null,null,null,null,null,null,"CENTROS","15","BOYACÁ","1510","CZ MIRAFLORES","15090","BERBEO","15","BOYACÁ","15090","BERBEO","Municipio"]
[null,null,null,null,null,null,null,null,"CENTROS","15","BOYACÁ","1504","CZ DUITAMA","15092","BETÉITIVA","15","BOYACÁ","15092","BETÉITIVA","Municipio"]
[null,null,null,null,null,null,null,null,"CENTROS","15","BOYACÁ","1508","CZ SOATA","15097","BOAVITA","15","BOYACÁ","15097","BOAVITA","Municipio"]
[null,null,null,null,null,null,null,null,"CENTROS","15","BOYACÁ","1501","CZ TUNJA 1","15104","BOYACÁ","15","BOYACÁ","15104","BOYACÁ","Municipio"]
[null,null,null,null,null,null,null,null,"CENTROS","15","BOYACÁ","1502","CZ TUNJA 2","15104","BOYACÁ","15","BOYACÁ","15104","BOYACÁ","Municipio"]
[null,null,null,null,null,null,null,null,"CENTROS","15","BOYACÁ","1512","CZ OTANCHE","15106","BRICEÑO","15","BOYACÁ","15106","BRICEÑO","Municipio"]
[null,null,null,null,null,null,null,null,"CENTROS","15","BOYACÁ","1505","CZ CHIQUINQUIRA","15109","BUENAVISTA","15","BOYACÁ","15109","BUENAVISTA","Municipio"]
[null,null,null,null,null,null,null,null,"CENTROS","15","BOYACÁ","1504","CZ DUITAMA","15114","BUSBANZÁ","15","BOYACÁ","15114","BUSBANZÁ","Municipio"]
[null,null,null,null,null,null,null,null,"CENTROS","15","BOYACÁ","1505","CZ CHIQUINQUIRA","15131","CALDAS","15","BOYACÁ","15131","CALDAS","Municipio"]
[null,null,null,null,null,null,null,null,"CENTROS","15","BOYACÁ","1510","CZ MIRAFLORES","15135","CAMPOHERMOSO","15","BOYACÁ","15135","CAMPOHERMOSO","Municipio"]
[null,null,null,null,null,null,null,null,"CENTROS","15","BOYACÁ","1504","CZ DUITAMA","15162","CERINZA","15","BOYACÁ","15162","CERINZA","Municipio"]
[null,null,null,null,null,null,null,null,"CENTROS","15","BOYACÁ","1506","CZ GARAGOA","15172","CHINAVITA","15","BOYACÁ","15172","CHINAVITA","Municipio"]
[null,null,null,null,null,null,null,null,"CENTROS","15","BOYACÁ","1505","CZ CHIQUINQUIRA","15176","CHIQUINQUIRÁ","15","BOYACÁ","15176","CHIQUINQUIRÁ","Municipio"]
[null,null,null,null,null,null,null,null,"CENTROS","15","BOYACÁ","1509","CZ EL COCUY","15180","CHISCAS","15","BOYACÁ","15180","CHISCAS","Municipio"]
[null,null,null,null,null,null,null,null,"CENTROS","15","BOYACÁ","1508","CZ SOATA","15183","CHITA","15","BOYACÁ","15183","CHITA","Municipio"]
[null,null,null,null,null,null,null,null,"CENTROS","15","BOYACÁ","1511","CZ MONIQUIRA","15185","CHITARAQUE","15","BOYACÁ","15185","CHITARAQUE","Municipio"]
[null,null,null,null,null,null,null,null,"CENTROS","15","BOYACÁ","1501","CZ TUNJA 1","15187","CHIVATÁ","15","BOYACÁ","15187","CHIVATÁ","Municipio"]
[null,null,null,null,null,null,null,null,"CENTROS","15","BOYACÁ","1502","CZ TUNJA 2","15187","CHIVATÁ","15","BOYACÁ","15187","CHIVATÁ","Municipio"]
[null,null,null,null,null,null,null,null,"CENTROS","15","BOYACÁ","1501","CZ TUNJA 1","15189","CIÉNEGA","15","BOYACÁ","15189","CIÉNEGA","Municipio"]
[null,null,null,null,null,null,null,null,"CENTROS","15","BOYACÁ","1502","CZ TUNJA 2","15189","CIÉNEGA","15","BOYACÁ","15189","CIÉNEGA","Municipio"]
[null,null,null,null,null,null,null,null,"CENTROS","15","BOYACÁ","1501","CZ TUNJA 1","15204","CÓMBITA","15","BOYACÁ","15204","CÓMBITA","Municipio"]
[null,null,null,null,null,null,null,null,"CENTROS","15","BOYACÁ","1502","CZ TUNJA 2","15204","CÓMBITA","15","BOYACÁ","15204","CÓMBITA","Municipio"]
[null,null,null,null,null,null,null,null,"CENTROS","15","BOYACÁ","1505","CZ CHIQUINQUIRA","15212","COPER","15","BOYACÁ","15212","COPER","Municipio"]
[null,null,null,null,null,null,null,null,"CENTROS","15","BOYACÁ","1504","CZ DUITAMA","15215","CORRALES","15","BOYACÁ","15215","CORRALES","Municipio"]
[null,null,null,null,null,null,null,null,"CENTROS","15","BOYACÁ","1508","CZ SOATA","15218","COVARACHÍA","15","BOYACÁ","15218","COVARACHÍA","Municipio"]
[null,null,null,null,null,null,null,null,"CENTROS","15","BOYACÁ","1501","CZ TUNJA 1","15224","CUCAITA","15","BOYACÁ","15224","CUCAITA","Municipio"]
[null,null,null,null,null,null,null,null,"CENTROS","15","BOYACÁ","1502","CZ TUNJA 2","15224","CUCAITA","15","BOYACÁ","15224","CUCAITA","Municipio"]
[null,null,null,null,null,null,null,null,"CENTROS","15","BOYACÁ","1503","CZ SOGAMOSO","15226","CUÍTIVA","15","BOYACÁ","15226","CUÍTIVA","Municipio"]
[null,null,null,null,null,null,null,null,"CENTROS","15","BOYACÁ","1501","CZ TUNJA 1","15232","CHÍQUIZA","15","BOYACÁ","15232","CHÍQUIZA","Municipio"]
[null,null,null,null,null,null,null,null,"CENTROS","15","BOYACÁ","1502","CZ TUNJA 2","15232","CHÍQUIZA","15","BOYACÁ","15232","CHÍQUIZA","Municipio"]
[null,null,null,null,null,null,null,null,"CENTROS","15","BOYACÁ","1506","CZ GARAGOA","15236","CHIVOR","15","BOYACÁ","15236","CHIVOR","Municipio"]
[null,null,null,null,null,null,null,null,"CENTROS","15","BOYACÁ","1504","CZ DUITAMA","15238","DUITAMA","15","BOYACÁ","15238","DUITAMA","Municipio"]
[null,null,null,null,null,null,null,null,"CENTROS","15","BOYACÁ","1509","CZ EL COCUY","15244","EL COCUY","15","BOYACÁ","15244","EL COCUY","Municipio"]
[null,null,null,null,null,null,null,null,"CENTROS","15","BOYACÁ","1509","CZ EL COCUY","15248","EL ESPINO","15","BOYACÁ","15248","EL ESPINO","Municipio"]
[null,null,null,null,null,null,null,null,"CENTROS","15","BOYACÁ","1503","CZ SOGAMOSO","15272","FIRAVITOBA","15","BOYACÁ","15272","FIRAVITOBA","Municipio"]
[null,null,null,null,null,null,null,null,"CENTROS","15","BOYACÁ","1504","CZ DUITAMA","15276","FLORESTA","15","BOYACÁ","15276","FLORESTA","Municipio"]
[null,null,null,null,null,null,null,null,"CENTROS","15","BOYACÁ","1511","CZ MONIQUIRA","15293","GACHANTIVÁ","15","BOYACÁ","15293","GACHANTIVÁ","Municipio"]
[null,null,null,null,null,null,null,null,"CENTROS","15","BOYACÁ","1503","CZ SOGAMOSO","15296","GAMEZA","15","BOYACÁ","15296","GÁMEZA","Municipio"]
[null,null,null,null,null,null,null,null,"CENTROS","15","BOYACÁ","1506","CZ GARAGOA","15299","GARAGOA","15","BOYACÁ","15299","GARAGOA","Municipio"]
[null,null,null,null,null,null,null,null,"CENTROS","15","BOYACÁ","1509","CZ EL COCUY","15317","GUACAMAYAS","15","BOYACÁ","15317","GUACAMAYAS","Municipio"]
[null,null,null,null,null,null,null,null,"CENTROS","15","BOYACÁ","1506","CZ GARAGOA","15322","GUATEQUE","15","BOYACÁ","15322","GUATEQUE","Municipio"]
[null,null,null,null,null,null,null,null,"CENTROS","15","BOYACÁ","1506","CZ GARAGOA","15325","GUAYATÁ","15","BOYACÁ","15325","GUAYATÁ","Municipio"]
[null,null,null,null,null,null,null,null,"CENTROS","15","BOYACÁ","1509","CZ EL COCUY","15332","GÜICÁN DE LA SIERRA","15","BOYACÁ","15332","GÜICÁN DE LA SIERRA","Municipio"]
[null,null,null,null,null,null,null,null,"CENTROS","15","BOYACÁ","1503","CZ SOGAMOSO","15362","IZA","15","BOYACÁ","15362","IZA","Municipio"]
[null,null,null,null,null,null,null,null,"CENTROS","15","BOYACÁ","1501","CZ TUNJA 1","15367","JENESANO","15","BOYACÁ","15367","JENESANO","Municipio"]
[null,null,null,null,null,null,null,null,"CENTROS","15","BOYACÁ","1502","CZ TUNJA 2","15367","JENESANO","15","BOYACÁ","15367","JENESANO","Municipio"]
[null,null,null,null,null,null,null,null,"CENTROS","15","BOYACÁ","1504","CZ DUITAMA","15368","JERICÓ","15","BOYACÁ","15368","JERICÓ","Municipio"]
[null,null,null,null,null,null,null,null,"CENTROS","15","BOYACÁ","1503","CZ SOGAMOSO","15377","LABRANZAGRANDE","15","BOYACÁ","15377","LABRANZAGRANDE","Municipio"]
[null,null,null,null,null,null,null,null,"CENTROS","15","BOYACÁ","1506","CZ GARAGOA","15380","LA CAPILLA","15","BOYACÁ","15380","LA CAPILLA","Municipio"]
[null,null,null,null,null,null,null,null,"CENTROS","15","BOYACÁ","1505","CZ CHIQUINQUIRA","15401","LA VICTORIA","15","BOYACÁ","15401","LA VICTORIA","Municipio"]
[null,null,null,null,null,null,null,null,"CENTROS","15","BOYACÁ","1508","CZ SOATA","15403","LA UVITA","15","BOYACÁ","15403","LA UVITA","Municipio"]
[null,null,null,null,null,null,null,null,"CENTROS","15","BOYACÁ","1501","CZ TUNJA 1","15407","VILLA DE LEYVA","15","BOYACÁ","15407","VILLA DE LEYVA","Municipio"]
[null,null,null,null,null,null,null,null,"CENTROS","15","BOYACÁ","1502","CZ TUNJA 2","15407","VILLA DE LEYVA","15","BOYACÁ","15407","VILLA DE LEYVA","Municipio"]
[null,null,null,null,null,null,null,null,"CENTROS","15","BOYACÁ","1506","CZ GARAGOA","15425","MACANAL","15","BOYACÁ","15425","MACANAL","Municipio"]
[null,null,null,null,null,null,null,null,"CENTROS","15","BOYACÁ","1505","CZ CHIQUINQUIRA","15442","MARIPÍ","15","BOYACÁ","15442","MARIPÍ","Municipio"]
[null,null,null,null,null,null,null,null,"CENTROS","15","BOYACÁ","1510","CZ MIRAFLORES","15455","MIRAFLORES","15","BOYACÁ","15455","MIRAFLORES","Municipio"]
[null,null,null,null,null,null,null,null,"CENTROS","15","BOYACÁ","1503","CZ SOGAMOSO","15464","MONGUA","15","BOYACÁ","15464","MONGUA","Municipio"]
[null,null,null,null,null,null,null,null,"CENTROS","15","BOYACÁ","1503","CZ SOGAMOSO","15466","MONGUÍ","15","BOYACÁ","15466","MONGUÍ","Municipio"]
[null,null,null,null,null,null,null,null,"CENTROS","15","BOYACÁ","1511","CZ MONIQUIRA","15469","MONIQUIRÁ","15","BOYACÁ","15469","MONIQUIRÁ","Municipio"]
[null,null,null,null,null,null,null,null,"CENTROS","15","BOYACÁ","1501","CZ TUNJA 1","15476","MOTAVITA","15","BOYACÁ","15476","MOTAVITA","Municipio"]
[null,null,null,null,null,null,null,null,"CENTROS","15","BOYACÁ","1502","CZ TUNJA 2","15476","MOTAVITA","15","BOYACÁ","15476","MOTAVITA","Municipio"]
[null,null,null,null,null,null,null,null,"CENTROS","15","BOYACÁ","1505","CZ CHIQUINQUIRA","15480","MUZO","15","BOYACÁ","15480","MUZO","Municipio"]
[null,null,null,null,null,null,null,null,"CENTROS","15","BOYACÁ","1504","CZ DUITAMA","15491","NOBSA","15","BOYACÁ","15491","NOBSA","Municipio"]
[null,null,null,null,null,null,null,null,"CENTROS","15","BOYACÁ","1501","CZ TUNJA 1","15494","NUEVO COLÓN","15","BOYACÁ","15494","NUEVO COLÓN","Municipio"]
[null,null,null,null,null,null,null,null,"CENTROS","15","BOYACÁ","1502","CZ TUNJA 2","15494","NUEVO COLÓN","15","BOYACÁ","15494","NUEVO COLÓN","Municipio"]
[null,null,null,null,null,null,null,null,"CENTROS","15","BOYACÁ","1501","CZ TUNJA 1","15500","OICATÁ","15","BOYACÁ","15500","OICATÁ","Municipio"]
[null,null,null,null,null,null,null,null,"CENTROS","15","BOYACÁ","1502","CZ TUNJA 2","15500","OICATÁ","15","BOYACÁ","15500","OICATÁ","Municipio"]
[null,null,null,null,null,null,null,null,"CENTROS","15","BOYACÁ","1512","CZ OTANCHE","15507","OTANCHE","15","BOYACÁ","15507","OTANCHE","Municipio"]
[null,null,null,null,null,null,null,null,"CENTROS","15","BOYACÁ","1506","CZ GARAGOA","15511","PACHAVITA","15","BOYACÁ","15511","PACHAVITA","Municipio"]
[null,null,null,null,null,null,null,null,"CENTROS","15","BOYACÁ","1510","CZ MIRAFLORES","15514","PÁEZ","15","BOYACÁ","15514","PÁEZ","Municipio"]
[null,null,null,null,null,null,null,null,"CENTROS","15","BOYACÁ","1504","CZ DUITAMA","15516","PAIPA","15","BOYACÁ","15516","PAIPA","Municipio"]
[null,null,null,null,null,null,null,null,"CENTROS","15","BOYACÁ","1503","CZ SOGAMOSO","15518","PAJARITO","15","BOYACÁ","15518","PAJARITO","Municipio"]
[null,null,null,null,null,null,null,null,"CENTROS","15","BOYACÁ","1509","CZ EL COCUY","15522","PANQUEBA","15","BOYACÁ","15522","PANQUEBA","Municipio"]
[null,null,null,null,null,null,null,null,"CENTROS","15","BOYACÁ","1512","CZ OTANCHE","15531","PAUNA","15","BOYACÁ","15531","PAUNA","Municipio"]
[null,null,null,null,null,null,null,null,"CENTROS","15","BOYACÁ","1503","CZ SOGAMOSO","15533","PAYA","15","BOYACÁ","15533","PAYA","Municipio"]
[null,null,null,null,null,null,null,null,"CENTROS","15","BOYACÁ","1504","CZ DUITAMA","15537","PAZ DE RÍO","15","BOYACÁ","15537","PAZ DE RÍO","Municipio"]
[null,null,null,null,null,null,null,null,"CENTROS","15","BOYACÁ","1503","CZ SOGAMOSO","15542","PESCA","15","BOYACÁ","15542","PESCA","Municipio"]
[null,null,null,null,null,null,null,null,"CENTROS","15","BOYACÁ","1503","CZ SOGAMOSO","15550","PISBA","15","BOYACÁ","15550","PISBA","Municipio"]
[null,null,null,null,null,null,null,null,"CENTROS","15","BOYACÁ","1507","CZ PUERTO BOYACA","15572","PUERTO BOYACÁ","15","BOYACÁ","15572","PUERTO BOYACÁ","Municipio"]
[null,null,null,null,null,null,null,null,"CENTROS","15","BOYACÁ","1505","CZ CHIQUINQUIRA","15580","QUÍPAMA","15","BOYACÁ","15580","QUÍPAMA","Municipio"]
[null,null,null,null,null,null,null,null,"CENTROS","15","BOYACÁ","1501","CZ TUNJA 1","15599","RAMIRIQUÍ","15","BOYACÁ","15599","RAMIRIQUÍ","Municipio"]
[null,null,null,null,null,null,null,null,"CENTROS","15","BOYACÁ","1502","CZ TUNJA 2","15599","RAMIRIQUÍ","15","BOYACÁ","15599","RAMIRIQUÍ","Municipio"]
[null,null,null,null,null,null,null,null,"CENTROS","15","BOYACÁ","1505","CZ CHIQUINQUIRA","15600","RÁQUIRA","15","BOYACÁ","15600","RÁQUIRA","Municipio"]
[null,null,null,null,null,null,null,null,"CENTROS","15","BOYACÁ","1501","CZ TUNJA 1","15621","RONDÓN","15","BOYACÁ","15621","RONDÓN","Municipio"]
[null,null,null,null,null,null,null,null,"CENTROS","15","BOYACÁ","1502","CZ TUNJA 2","15621","RONDÓN","15","BOYACÁ","15621","RONDÓN","Municipio"]
[null,null,null,null,null,null,null,null,"CENTROS","15","BOYACÁ","1505","CZ CHIQUINQUIRA","15632","SABOYÁ","15","BOYACÁ","15632","SABOYÁ","Municipio"]
[null,null,null,null,null,null,null,null,"CENTROS","15","BOYACÁ","1501","CZ TUNJA 1","15638","SÁCHICA","15","BOYACÁ","15638","SÁCHICA","Municipio"]
[null,null,null,null,null,null,null,null,"CENTROS","15","BOYACÁ","1502","CZ TUNJA 2","15638","SÁCHICA","15","BOYACÁ","15638","SÁCHICA","Municipio"]
[null,null,null,null,null,null,null,null,"CENTROS","15","BOYACÁ","1501","CZ TUNJA 1","15646","SAMACÁ","15","BOYACÁ","15646","SAMACÁ","Municipio"]
[null,null,null,null,null,null,null,null,"CENTROS","15","BOYACÁ","1502","CZ TUNJA 2","15646","SAMACÁ","15","BOYACÁ","15646","SAMACÁ","Municipio"]
[null,null,null,null,null,null,null,null,"CENTROS","15","BOYACÁ","1510","CZ MIRAFLORES","15660","SAN EDUARDO","15","BOYACÁ","15660","SAN EDUARDO","Municipio"]
[null,null,null,null,null,null,null,null,"CENTROS","15","BOYACÁ","1511","CZ MONIQUIRA","15664","SAN JOSÉ DE PARE","15","BOYACÁ","15664","SAN JOSÉ DE PARE","Municipio"]
[null,null,null,null,null,null,null,null,"CENTROS","15","BOYACÁ","1506","CZ GARAGOA","15667","SAN LUIS DE GACENO","15","BOYACÁ","15667","SAN LUIS DE GACENO","Municipio"]
[null,null,null,null,null,null,null,null,"CENTROS","15","BOYACÁ","1509","CZ EL COCUY","15673","SAN MATEO","15","BOYACÁ","15673","SAN MATEO","Municipio"]
[null,null,null,null,null,null,null,null,"CENTROS","15","BOYACÁ","1505","CZ CHIQUINQUIRA","15676","SAN MIGUEL DE SEMA","15","BOYACÁ","15676","SAN MIGUEL DE SEMA","Municipio"]
[null,null,null,null,null,null,null,null,"CENTROS","15","BOYACÁ","1512","CZ OTANCHE","15681","SAN PABLO DE BORBUR","15","BOYACÁ","15681","SAN PABLO DE BORBUR","Municipio"]
[null,null,null,null,null,null,null,null,"CENTROS","15","BOYACÁ","1511","CZ MONIQUIRA","15686","SANTANA","15","BOYACÁ","15686","SANTANA","Municipio"]
[null,null,null,null,null,null,null,null,"CENTROS","15","BOYACÁ","1506","CZ GARAGOA","15690","SANTA MARÍA","15","BOYACÁ","15690","SANTA MARÍA","Municipio"]
[null,null,null,null,null,null,null,null,"CENTROS","15","BOYACÁ","1504","CZ DUITAMA","15693","SANTA ROSA DE VITERBO","15","BOYACÁ","15693","SANTA ROSA DE VITERBO","Municipio"]
[null,null,null,null,null,null,null,null,"CENTROS","15","BOYACÁ","1511","CZ MONIQUIRA","15696","SANTA SOFÍA","15","BOYACÁ","15696","SANTA SOFÍA","Municipio"]
[null,null,null,null,null,null,null,null,"CENTROS","15","BOYACÁ","1508","CZ SOATA","15720","SATIVANORTE","15","BOYACÁ","15720","SATIVANORTE","Municipio"]
[null,null,null,null,null,null,null,null,"CENTROS","15","BOYACÁ","1508","CZ SOATA","15723","SATIVASUR","15","BOYACÁ","15723","SATIVASUR","Municipio"]
[null,null,null,null,null,null,null,null,"CENTROS","15","BOYACÁ","1501","CZ TUNJA 1","15740","SIACHOQUE","15","BOYACÁ","15740","SIACHOQUE","Municipio"]
[null,null,null,null,null,null,null,null,"CENTROS","15","BOYACÁ","1502","CZ TUNJA 2","15740","SIACHOQUE","15","BOYACÁ","15740","SIACHOQUE","Municipio"]
[null,null,null,null,null,null,null,null,"CENTROS","15","BOYACÁ","1508","CZ SOATA","15753","SOATÁ","15","BOYACÁ","15753","SOATÁ","Municipio"]
[null,null,null,null,null,null,null,null,"CENTROS","15","BOYACÁ","1504","CZ DUITAMA","15755","SOCOTÁ","15","BOYACÁ","15755","SOCOTÁ","Municipio"]
[null,null,null,null,null,null,null,null,"CENTROS","15","BOYACÁ","1504","CZ DUITAMA","15757","SOCHA","15","BOYACÁ","15757","SOCHA","Municipio"]
[null,null,null,null,null,null,null,null,"CENTROS","15","BOYACÁ","1503","CZ SOGAMOSO","15759","SOGAMOSO","15","BOYACÁ","15759","SOGAMOSO","Municipio"]
[null,null,null,null,null,null,null,null,"CENTROS","15","BOYACÁ","1506","CZ GARAGOA","15761","SOMONDOCO","15","BOYACÁ","15761","SOMONDOCO","Municipio"]
[null,null,null,null,null,null,null,null,"CENTROS","15","BOYACÁ","1501","CZ TUNJA 1","15762","SORA","15","BOYACÁ","15762","SORA","Municipio"]
[null,null,null,null,null,null,null,null,"CENTROS","15","BOYACÁ","1502","CZ TUNJA 2","15762","SORA","15","BOYACÁ","15762","SORA","Municipio"]
[null,null,null,null,null,null,null,null,"CENTROS","15","BOYACÁ","1501","CZ TUNJA 1","15763","SOTAQUIRÁ","15","BOYACÁ","15763","SOTAQUIRÁ","Municipio"]
[null,null,null,null,null,null,null,null,"CENTROS","15","BOYACÁ","1502","CZ TUNJA 2","15763","SOTAQUIRÁ","15","BOYACÁ","15763","SOTAQUIRÁ","Municipio"]
[null,null,null,null,null,null,null,null,"CENTROS","15","BOYACÁ","1501","CZ TUNJA 1","15764","SORACÁ","15","BOYACÁ","15764","SORACÁ","Municipio"]
[null,null,null,null,null,null,null,null,"CENTROS","15","BOYACÁ","1502","CZ TUNJA 2","15764","SORACÁ","15","BOYACÁ","15764","SORACÁ","Municipio"]
[null,null,null,null,null,null,null,null,"CENTROS","15","BOYACÁ","1508","CZ SOATA","15774","SUSACÓN","15","BOYACÁ","15774","SUSACÓN","Municipio"]
[null,null,null,null,null,null,null,null,"CENTROS","15","BOYACÁ","1505","CZ CHIQUINQUIRA","15776","SUTAMARCHÁN","15","BOYACÁ","15776","SUTAMARCHÁN","Municipio"]
[null,null,null,null,null,null,null,null,"CENTROS","15","BOYACÁ","1506","CZ GARAGOA","15778","SUTATENZA","15","BOYACÁ","15778","SUTATENZA","Municipio"]
[null,null,null,null,null,null,null,null,"CENTROS","15","BOYACÁ","1504","CZ DUITAMA","15790","TASCO","15","BOYACÁ","15790","TASCO","Municipio"]
[null,null,null,null,null,null,null,null,"CENTROS","15","BOYACÁ","1506","CZ GARAGOA","15798","TENZA","15","BOYACÁ","15798","TENZA","Municipio"]
[null,null,null,null,null,null,null,null,"CENTROS","15","BOYACÁ","1501","CZ TUNJA 1","15804","TIBANÁ","15","BOYACÁ","15804","TIBANÁ","Municipio"]
[null,null,null,null,null,null,null,null,"CENTROS","15","BOYACÁ","1502","CZ TUNJA 2","15804","TIBANÁ","15","BOYACÁ","15804","TIBANÁ","Municipio"]
[null,null,null,null,null,null,null,null,"CENTROS","15","BOYACÁ","1504","CZ DUITAMA","15806","TIBASOSA","15","BOYACÁ","15806","TIBASOSA","Municipio"]
[null,null,null,null,null,null,null,null,"CENTROS","15","BOYACÁ","1505","CZ CHIQUINQUIRA","15808","TINJACÁ","15","BOYACÁ","15808","TINJACÁ","Municipio"]
[null,null,null,null,null,null,null,null,"CENTROS","15","BOYACÁ","1508","CZ SOATA","15810","TIPACOQUE","15","BOYACÁ","15810","TIPACOQUE","Municipio"]
[null,null,null,null,null,null,null,null,"CENTROS","15","BOYACÁ","1501","CZ TUNJA 1","15814","TOCA","15","BOYACÁ","15814","TOCA","Municipio"]
[null,null,null,null,null,null,null,null,"CENTROS","15","BOYACÁ","1502","CZ TUNJA 2","15814","TOCA","15","BOYACÁ","15814","TOCA","Municipio"]
[null,null,null,null,null,null,null,null,"CENTROS","15","BOYACÁ","1511","CZ MONIQUIRA","15816","TOGÜÍ","15","BOYACÁ","15816","TOGÜÍ","Municipio"]
[null,null,null,null,null,null,null,null,"CENTROS","15","BOYACÁ","1503","CZ SOGAMOSO","15820","TÓPAGA","15","BOYACÁ","15820","TÓPAGA","Municipio"]
[null,null,null,null,null,null,null,null,"CENTROS","15","BOYACÁ","1503","CZ SOGAMOSO","15822","TOTA","15","BOYACÁ","15822","TOTA","Municipio"]
[null,null,null,null,null,null,null,null,"CENTROS","15","BOYACÁ","1512","CZ OTANCHE","15832","TUNUNGUÁ","15","BOYACÁ","15832","TUNUNGUÁ","Municipio"]
[null,null,null,null,null,null,null,null,"CENTROS","15","BOYACÁ","1501","CZ TUNJA 1","15835","TURMEQUÉ","15","BOYACÁ","15835","TURMEQUÉ","Municipio"]
[null,null,null,null,null,null,null,null,"CENTROS","15","BOYACÁ","1502","CZ TUNJA 2","15835","TURMEQUÉ","15","BOYACÁ","15835","TURMEQUÉ","Municipio"]
[null,null,null,null,null,null,null,null,"CENTROS","15","BOYACÁ","1501","CZ TUNJA 1","15837","TUTA","15","BOYACÁ","15837","TUTA","Municipio"]
[null,null,null,null,null,null,null,null,"CENTROS","15","BOYACÁ","1502","CZ TUNJA 2","15837","TUTA","15","BOYACÁ","15837","TUTA","Municipio"]
[null,null,null,null,null,null,null,null,"CENTROS","15","BOYACÁ","1504","CZ DUITAMA","15839","TUTAZÁ","15","BOYACÁ","15839","TUTAZÁ","Municipio"]
[null,null,null,null,null,null,null,null,"CENTROS","15","BOYACÁ","1501","CZ TUNJA 1","15842","UMBITA","15","BOYACÁ","15842","ÚMBITA","Municipio"]
[null,null,null,null,null,null,null,null,"CENTROS","15","BOYACÁ","1502","CZ TUNJA 2","15842","UMBITA","15","BOYACÁ","15842","ÚMBITA","Municipio"]
[null,null,null,null,null,null,null,null,"CENTROS","15","BOYACÁ","1501","CZ TUNJA 1","15861","VENTAQUEMADA","15","BOYACÁ","15861","VENTAQUEMADA","Municipio"]
[null,null,null,null,null,null,null,null,"CENTROS","15","BOYACÁ","1502","CZ TUNJA 2","15861","VENTAQUEMADA","15","BOYACÁ","15861","VENTAQUEMADA","Municipio"]
[null,null,null,null,null,null,null,null,"CENTROS","15","BOYACÁ","1501","CZ TUNJA 1","15879","VIRACACHÁ","15","BOYACÁ","15879","VIRACACHÁ","Municipio"]
[null,null,null,null,null,null,null,null,"CENTROS","15","BOYACÁ","1502","CZ TUNJA 2","15879","VIRACACHÁ","15","BOYACÁ","15879","VIRACACHÁ","Municipio"]
[null,null,null,null,null,null,null,null,"CENTROS","15","BOYACÁ","1510","CZ MIRAFLORES","15897","ZETAQUIRA","15","BOYACÁ","15897","ZETAQUIRA","Municipio"]
[null,null,null,null,null,null,null,null,"CENTROS","17","CALDAS","1701","CZ MANIZALES 1","17001","MANIZALES","17","CALDAS","17001","MANIZALES","Municipio"]
[null,null,null,null,null,null,null,null,"CENTROS","17","CALDAS","1702","CZ MANIZALES 2","17001","MANIZALES","17","CALDAS","17001","MANIZALES","Municipio"]
[null,null,null,null,null,null,null,null,"CENTROS","17","CALDAS","1705","CZ NORTE","17013","AGUADAS","17","CALDAS","17013","AGUADAS","Municipio"]
[null,null,null,null,null,null,null,null,"CENTROS","17","CALDAS","1703","CZ OCCIDENTE","17042","ANSERMA","17","CALDAS","17042","ANSERMA","Municipio"]
[null,null,null,null,null,null,null,null,"CENTROS","17","CALDAS","1705","CZ NORTE","17050","ARANZAZU","17","CALDAS","17050","ARANZAZU","Municipio"]
[null,null,null,null,null,null,null,null,"CENTROS","17","CALDAS","1709","CZ DEL CAFE","17088","BELALCÁZAR","17","CALDAS","17088","BELALCÁZAR","Municipio"]
[null,null,null,null,null,null,null,null,"CENTROS","17","CALDAS","1709","CZ DEL CAFE","17174","CHINCHINÁ","17","CALDAS","17174","CHINCHINÁ","Municipio"]
[null,null,null,null,null,null,null,null,"CENTROS","17","CALDAS","1701","CZ MANIZALES 1","17272","FILADELFIA","17","CALDAS","17272","FILADELFIA","Municipio"]
[null,null,null,null,null,null,null,null,"CENTROS","17","CALDAS","1702","CZ MANIZALES 2","17272","FILADELFIA","17","CALDAS","17272","FILADELFIA","Municipio"]
[null,null,null,null,null,null,null,null,"CENTROS","17","CALDAS","1704","CZ ORIENTE","17380","LA DORADA","17","CALDAS","17380","LA DORADA","Municipio"]
[null,null,null,null,null,null,null,null,"CENTROS","17","CALDAS","1705","CZ NORTE","17388","LA MERCED","17","CALDAS","17388","LA MERCED","Municipio"]
[null,null,null,null,null,null,null,null,"CENTROS","17","CALDAS","1706","CZ SUR ORIENTE","17433","MANZANARES","17","CALDAS","17433","MANZANARES","Municipio"]
[null,null,null,null,null,null,null,null,"CENTROS","17","CALDAS","1703","CZ OCCIDENTE","17442","MARMATO","17","CALDAS","17442","MARMATO","Municipio"]
[null,null,null,null,null,null,null,null,"CENTROS","17","CALDAS","1706","CZ SUR ORIENTE","17444","MARQUETALIA","17","CALDAS","17444","MARQUETALIA","Municipio"]
[null,null,null,null,null,null,null,null,"CENTROS","17","CALDAS","1706","CZ SUR ORIENTE","17446","MARULANDA","17","CALDAS","17446","MARULANDA","Municipio"]
[null,null,null,null,null,null,null,null,"CENTROS","17","CALDAS","1701","CZ MANIZALES 1","17486","NEIRA","17","CALDAS","17486","NEIRA","Municipio"]
[null,null,null,null,null,null,null,null,"CENTROS","17","CALDAS","1702","CZ MANIZALES 2","17486","NEIRA","17","CALDAS","17486","NEIRA","Municipio"]
[null,null,null,null,null,null,null,null,"CENTROS","17","CALDAS","1704","CZ ORIENTE","17495","NORCASIA","17","CALDAS","17495","NORCASIA","Municipio"]
[null,null,null,null,null,null,null,null,"CENTROS","17","CALDAS","1705","CZ NORTE","17513","PÁCORA","17","CALDAS","17513","PÁCORA","Municipio"]
[null,null,null,null,null,null,null,null,"CENTROS","17","CALDAS","1709","CZ DEL CAFE","17524","PALESTINA","17","CALDAS","17524","PALESTINA","Municipio"]
[null,null,null,null,null,null,null,null,"CENTROS","17","CALDAS","1706","CZ SUR ORIENTE","17541","PENSILVANIA","17","CALDAS","17541","PENSILVANIA","Municipio"]
[null,null,null,null,null,null,null,null,"CENTROS","17","CALDAS","1703","CZ OCCIDENTE","17614","RIOSUCIO","17","CALDAS","17614","RIOSUCIO","Municipio"]
[null,null,null,null,null,null,null,null,"CENTROS","17","CALDAS","1703","CZ OCCIDENTE","17616","RISARALDA","17","CALDAS","17616","RISARALDA","Municipio"]
[null,null,null,null,null,null,null,null,"CENTROS","17","CALDAS","1705","CZ NORTE","17653","SALAMINA","17","CALDAS","17653","SALAMINA","Municipio"]
[null,null,null,null,null,null,null,null,"CENTROS","17","CALDAS","1704","CZ ORIENTE","17662","SAMANÁ","17","CALDAS","17662","SAMANÁ","Municipio"]
[null,null,null,null,null,null,null,null,"CENTROS","17","CALDAS","1709","CZ DEL CAFE","17665","SAN JOSÉ","17","CALDAS","17665","SAN JOSÉ","Municipio"]
[null,null,null,null,null,null,null,null,"CENTROS","17","CALDAS","1703","CZ OCCIDENTE","17777","SUPÍA","17","CALDAS","17777","SUPÍA","Municipio"]
[null,null,null,null,null,null,null,null,"CENTROS","17","CALDAS","1704","CZ ORIENTE","17867","VICTORIA","17","CALDAS","17867","VICTORIA","Municipio"]
[null,null,null,null,null,null,null,null,"CENTROS","17","CALDAS","1701","CZ MANIZALES 1","17873","VILLAMARÍA","17","CALDAS","17873","VILLAMARÍA","Municipio"]
[null,null,null,null,null,null,null,null,"CENTROS","17","CALDAS","1702","CZ MANIZALES 2","17873","VILLAMARÍA","17","CALDAS","17873","VILLAMARÍA","Municipio"]
[null,null,null,null,null,null,null,null,"CENTROS","17","CALDAS","1703","CZ OCCIDENTE","17877","VITERBO","17","CALDAS","17877","VITERBO","Municipio"]
[null,null,null,null,null,null,null,null,"CENTROS","18","CAQUETÁ","1801","CZ FLORENCIA 1","18001","FLORENCIA","18","CAQUETÁ","18001","FLORENCIA","Municipio"]
[null,null,null,null,null,null,null,null,"CENTROS","18","CAQUETÁ","1802","CZ FLORENCIA 2","18001","FLORENCIA","18","CAQUETÁ","18001","FLORENCIA","Municipio"]
[null,null,null,null,null,null,null,null,"CENTROS","18","CAQUETÁ","1804","CZ BELEN DE LOS ANDAQUIES","18029","ALBANIA","18","CAQUETÁ","18029","ALBANIA","Municipio"]
[null,null,null,null,null,null,null,null,"CENTROS","18","CAQUETÁ","1804","CZ BELEN DE LOS ANDAQUIES","18094","BELÉN DE LOS ANDAQUIES","18","CAQUETÁ","18094","BELÉN DE LOS ANDAQUÍES","Municipio"]
[null,null,null,null,null,null,null,null,"CENTROS","18","CAQUETÁ","1803","CZ PUERTO RICO","18150","CARTAGENA DEL CHAIRÁ","18","CAQUETÁ","18150","CARTAGENA DEL CHAIRÁ","Municipio"]
[null,null,null,null,null,null,null,null,"CENTROS","18","CAQUETÁ","1804","CZ BELEN DE LOS ANDAQUIES","18205","CURILLO","18","CAQUETÁ","18205","CURILLO","Municipio"]
[null,null,null,null,null,null,null,null,"CENTROS","18","CAQUETÁ","1803","CZ PUERTO RICO","18247","EL DONCELLO","18","CAQUETÁ","18247","EL DONCELLO","Municipio"]
[null,null,null,null,null,null,null,null,"CENTROS","18","CAQUETÁ","1803","CZ PUERTO RICO","18256","EL PAUJIL","18","CAQUETÁ","18256","EL PAUJÍL","Municipio"]
[null,null,null,null,null,null,null,null,"CENTROS","18","CAQUETÁ","1801","CZ FLORENCIA 1","18410","LA MONTAÑITA","18","CAQUETÁ","18410","LA MONTAÑITA","Municipio"]
[null,null,null,null,null,null,null,null,"CENTROS","18","CAQUETÁ","1802","CZ FLORENCIA 2","18460","MILÁN","18","CAQUETÁ","18460","MILÁN","Municipio"]
[null,null,null,null,null,null,null,null,"CENTROS","18","CAQUETÁ","1801","CZ FLORENCIA 1","18479","MORELIA","18","CAQUETÁ","18479","MORELIA","Municipio"]
[null,null,null,null,null,null,null,null,"CENTROS","18","CAQUETÁ","1803","CZ PUERTO RICO","18592","PUERTO RICO","18","CAQUETÁ","18592","PUERTO RICO","Municipio"]
[null,null,null,null,null,null,null,null,"CENTROS","18","CAQUETÁ","1804","CZ BELEN DE LOS ANDAQUIES","18610","SAN JOSÉ DEL FRAGUA","18","CAQUETÁ","18610","SAN JOSÉ DEL FRAGUA","Municipio"]
[null,null,null,null,null,null,null,null,"CENTROS","18","CAQUETÁ","1803","CZ PUERTO RICO","18753","SAN VICENTE DEL CAGUÁN","18","CAQUETÁ","18753","SAN VICENTE DEL CAGUÁN","Municipio"]
[null,null,null,null,null,null,null,null,"CENTROS","18","CAQUETÁ","1802","CZ FLORENCIA 2","18756","SOLANO","18","CAQUETÁ","18756","SOLANO","Municipio"]
[null,null,null,null,null,null,null,null,"CENTROS","18","CAQUETÁ","1804","CZ BELEN DE LOS ANDAQUIES","18785","SOLITA","18","CAQUETÁ","18785","SOLITA","Municipio"]
[null,null,null,null,null,null,null,null,"CENTROS","18","CAQUETÁ","1804","CZ BELEN DE LOS ANDAQUIES","18860","VALPARAÍSO","18","CAQUETÁ","18860","VALPARAÍSO","Municipio"]
[null,null,null,null,null,null,null,null,"CENTROS","19","CAUCA","1901","CZ POPAYAN","19001","POPAYÁN","19","CAUCA","19001","POPAYÁN","Municipio"]
[null,null,null,null,null,null,null,null,"CENTROS","19","CAUCA","1906","CZ MACIZO COLOMBIANO","19022","ALMAGUER","19","CAUCA","19022","ALMAGUER","Municipio"]
[null,null,null,null,null,null,null,null,"CENTROS","19","CAUCA","1904","CZ SUR","19050","ARGELIA","19","CAUCA","19050","ARGELIA","Municipio"]
[null,null,null,null,null,null,null,null,"CENTROS","19","CAUCA","1904","CZ SUR","19075","BALBOA","19","CAUCA","19075","BALBOA","Municipio"]
[null,null,null,null,null,null,null,null,"CENTROS","19","CAUCA","1906","CZ MACIZO COLOMBIANO","19100","BOLÍVAR","19","CAUCA","19100","BOLÍVAR","Municipio"]
[null,null,null,null,null,null,null,null,"CENTROS","19","CAUCA","1905","CZ NORTE","19110","BUENOS AIRES","19","CAUCA","19110","BUENOS AIRES","Municipio"]
[null,null,null,null,null,null,null,null,"CENTROS","19","CAUCA","1902","CZ CENTRO","19130","CAJIBÍO","19","CAUCA","19130","CAJIBÍO","Municipio"]
[null,null,null,null,null,null,null,null,"CENTROS","19","CAUCA","1903","CZ INDIGENA","19137","CALDONO","19","CAUCA","19137","CALDONO","Municipio"]
[null,null,null,null,null,null,null,null,"CENTROS","19","CAUCA","1905","CZ NORTE","19142","CALOTO","19","CAUCA","19142","CALOTO","Municipio"]
[null,null,null,null,null,null,null,null,"CENTROS","19","CAUCA","1905","CZ NORTE","19212","CORINTO","19","CAUCA","19212","CORINTO","Municipio"]
[null,null,null,null,null,null,null,null,"CENTROS","19","CAUCA","1902","CZ CENTRO","19256","EL TAMBO","19","CAUCA","19256","EL TAMBO","Municipio"]
[null,null,null,null,null,null,null,null,"CENTROS","19","CAUCA","1904","CZ SUR","19290","FLORENCIA","19","CAUCA","19290","FLORENCIA","Municipio"]
[null,null,null,null,null,null,null,null,"CENTROS","19","CAUCA","1905","CZ NORTE","19300","GUACHENE","19","CAUCA","19300","GUACHENÉ","Municipio"]
[null,null,null,null,null,null,null,null,"CENTROS","19","CAUCA","1907","CZ COSTA PACIFICA","19318","GUAPI","19","CAUCA","19318","GUAPI","Municipio"]
[null,null,null,null,null,null,null,null,"CENTROS","19","CAUCA","1903","CZ INDIGENA","19355","INZÁ","19","CAUCA","19355","INZÁ","Municipio"]
[null,null,null,null,null,null,null,null,"CENTROS","19","CAUCA","1903","CZ INDIGENA","19364","JAMBALÓ","19","CAUCA","19364","JAMBALÓ","Municipio"]
[null,null,null,null,null,null,null,null,"CENTROS","19","CAUCA","1902","CZ CENTRO","19392","LA SIERRA","19","CAUCA","19392","LA SIERRA","Municipio"]
[null,null,null,null,null,null,null,null,"CENTROS","19","CAUCA","1902","CZ CENTRO","19397","LA VEGA","19","CAUCA","19397","LA VEGA","Municipio"]
[null,null,null,null,null,null,null,null,"CENTROS","19","CAUCA","1906","CZ MACIZO COLOMBIANO","19397","LA VEGA","19","CAUCA","19397","LA VEGA","Municipio"]
[null,null,null,null,null,null,null,null,"CENTROS","19","CAUCA","1907","CZ COSTA PACIFICA","19418","LÓPEZ DE MICAY","19","CAUCA","19418","LÓPEZ DE MICAY","Municipio"]
[null,null,null,null,null,null,null,null,"CENTROS","19","CAUCA","1904","CZ SUR","19450","MERCADERES","19","CAUCA","19450","MERCADERES","Municipio"]
[null,null,null,null,null,null,null,null,"CENTROS","19","CAUCA","1905","CZ NORTE","19455","MIRANDA","19","CAUCA","19455","MIRANDA","Municipio"]
[null,null,null,null,null,null,null,null,"CENTROS","19","CAUCA","1902","CZ CENTRO","19473","MORALES","19","CAUCA","19473","MORALES","Municipio"]
[null,null,null,null,null,null,null,null,"CENTROS","19","CAUCA","1905","CZ NORTE","19513","PADILLA","19","CAUCA","19513","PADILLA","Municipio"]
[null,null,null,null,null,null,null,null,"CENTROS","19","CAUCA","1903","CZ INDIGENA","19517","PAEZ","19","CAUCA","19517","PÁEZ","Municipio"]
[null,null,null,null,null,null,null,null,"CENTROS","19","CAUCA","1904","CZ SUR","19532","PATÍA","19","CAUCA","19532","PATÍA","Municipio"]
[null,null,null,null,null,null,null,null,"CENTROS","19","CAUCA","1903","CZ INDIGENA","19533","PIAMONTE","19","CAUCA","19533","PIAMONTE","Municipio"]
[null,null,null,null,null,null,null,null,"CENTROS","19","CAUCA","1902","CZ CENTRO","19548","PIENDAMÓ - TUNÍA","19","CAUCA","19548","PIENDAMÓ - TUNÍA","Municipio"]
[null,null,null,null,null,null,null,null,"CENTROS","19","CAUCA","1905","CZ NORTE","19573","PUERTO TEJADA","19","CAUCA","19573","PUERTO TEJADA","Municipio"]
[null,null,null,null,null,null,null,null,"CENTROS","19","CAUCA","1903","CZ INDIGENA","19585","PURACÉ","19","CAUCA","19585","PURACÉ","Municipio"]
[null,null,null,null,null,null,null,null,"CENTROS","19","CAUCA","1902","CZ CENTRO","19622","ROSAS","19","CAUCA","19622","ROSAS","Municipio"]
[null,null,null,null,null,null,null,null,"CENTROS","19","CAUCA","1906","CZ MACIZO COLOMBIANO","19693","SAN SEBASTIÁN","19","CAUCA","19693","SAN SEBASTIÁN","Municipio"]
[null,null,null,null,null,null,null,null,"CENTROS","19","CAUCA","1905","CZ NORTE","19698","SANTANDER DE QUILICHAO","19","CAUCA","19698","SANTANDER DE QUILICHAO","Municipio"]
[null,null,null,null,null,null,null,null,"CENTROS","19","CAUCA","1903","CZ INDIGENA","19701","SANTA ROSA","19","CAUCA","19701","SANTA ROSA","Municipio"]
[null,null,null,null,null,null,null,null,"CENTROS","19","CAUCA","1906","CZ MACIZO COLOMBIANO","19701","SANTA ROSA","19","CAUCA","19701","SANTA ROSA","Municipio"]
[null,null,null,null,null,null,null,null,"CENTROS","19","CAUCA","1903","CZ INDIGENA","19743","SILVIA","19","CAUCA","19743","SILVIA","Municipio"]
[null,null,null,null,null,null,null,null,"CENTROS","19","CAUCA","1902","CZ CENTRO","19760","SOTARÁ PAISPAMBA","19","CAUCA","19760","SOTARÁ PAISPAMBA","Municipio"]
[null,null,null,null,null,null,null,null,"CENTROS","19","CAUCA","1903","CZ INDIGENA","19760","SOTARÁ PAISPAMBA","19","CAUCA","19760","SOTARÁ PAISPAMBA","Municipio"]
[null,null,null,null,null,null,null,null,"CENTROS","19","CAUCA","1905","CZ NORTE","19780","SUÁREZ","19","CAUCA","19780","SUÁREZ","Municipio"]
[null,null,null,null,null,null,null,null,"CENTROS","19","CAUCA","1904","CZ SUR","19785","SUCRE","19","CAUCA","19785","SUCRE","Municipio"]
[null,null,null,null,null,null,null,null,"CENTROS","19","CAUCA","1902","CZ CENTRO","19807","TIMBÍO","19","CAUCA","19807","TIMBÍO","Municipio"]
[null,null,null,null,null,null,null,null,"CENTROS","19","CAUCA","1907","CZ COSTA PACIFICA","19809","TIMBIQUÍ","19","CAUCA","19809","TIMBIQUÍ","Municipio"]
[null,null,null,null,null,null,null,null,"CENTROS","19","CAUCA","1905","CZ NORTE","19821","TORIBIO","19","CAUCA","19821","TORIBÍO","Municipio"]
[null,null,null,null,null,null,null,null,"CENTROS","19","CAUCA","1903","CZ INDIGENA","19824","TOTORÒ","19","CAUCA","19824","TOTORÓ","Municipio"]
[null,null,null,null,null,null,null,null,"CENTROS","19","CAUCA","1905","CZ NORTE","19845","VILLA RICA","19","CAUCA","19845","VILLA RICA","Municipio"]
[null,null,null,null,null,null,null,null,"CENTROS","19","CAUCA","1907","CZ COSTA PACIFICA","52696","SANTA BÁRBARA","52","NARIÑO","52696","SANTA BÁRBARA","Municipio"]
[null,null,null,null,null,null,null,null,"CENTROS","20","CESAR","2001","CZ VALLEDUPAR 1","20001","VALLEDUPAR","20","CESAR","20001","VALLEDUPAR","Municipio"]
[null,null,null,null,null,null,null,null,"CENTROS","20","CESAR","2002","CZ VALLEDUPAR 2","20001","VALLEDUPAR","20","CESAR","20001","VALLEDUPAR","Municipio"]
[null,null,null,null,null,null,null,null,"CENTROS","20","CESAR","2004","CZ AGUACHICA","20011","AGUACHICA","20","CESAR","20011","AGUACHICA","Municipio"]
[null,null,null,null,null,null,null,null,"CENTROS","20","CESAR","2005","CZ AGUSTIN CODAZZI","20013","AGUSTÍN CODAZZI","20","CESAR","20013","AGUSTÍN CODAZZI","Municipio"]
[null,null,null,null,null,null,null,null,"CENTROS","20","CESAR","2003","CZ CHIRIGUANA","20032","ASTREA","20","CESAR","20032","ASTREA","Municipio"]
[null,null,null,null,null,null,null,null,"CENTROS","20","CESAR","2005","CZ AGUSTIN CODAZZI","20045","BECERRIL","20","CESAR","20045","BECERRIL","Municipio"]
[null,null,null,null,null,null,null,null,"CENTROS","20","CESAR","2001","CZ VALLEDUPAR 1","20060","BOSCONIA","20","CESAR","20060","BOSCONIA","Municipio"]
[null,null,null,null,null,null,null,null,"CENTROS","20","CESAR","2002","CZ VALLEDUPAR 2","20060","BOSCONIA","20","CESAR","20060","BOSCONIA","Municipio"]
[null,null,null,null,null,null,null,null,"CENTROS","20","CESAR","2003","CZ CHIRIGUANA","20175","CHIMICHAGUA","20","CESAR","20175","CHIMICHAGUA","Municipio"]
[null,null,null,null,null,null,null,null,"CENTROS","20","CESAR","2003","CZ CHIRIGUANA","20178","CHIRIGUANÁ","20","CESAR","20178","CHIRIGUANÁ","Municipio"]
[null,null,null,null,null,null,null,null,"CENTROS","20","CESAR","2003","CZ CHIRIGUANA","20228","CURUMANÍ","20","CESAR","20228","CURUMANÍ","Municipio"]
[null,null,null,null,null,null,null,null,"CENTROS","20","CESAR","2001","CZ VALLEDUPAR 1","20238","EL COPEY","20","CESAR","20238","EL COPEY","Municipio"]
[null,null,null,null,null,null,null,null,"CENTROS","20","CESAR","2002","CZ VALLEDUPAR 2","20238","EL COPEY","20","CESAR","20238","EL COPEY","Municipio"]
[null,null,null,null,null,null,null,null,"CENTROS","20","CESAR","2003","CZ CHIRIGUANA","20250","EL PASO","20","CESAR","20250","EL PASO","Municipio"]
[null,null,null,null,null,null,null,null,"CENTROS","20","CESAR","2004","CZ AGUACHICA","20295","GAMARRA","20","CESAR","20295","GAMARRA","Municipio"]
[null,null,null,null,null,null,null,null,"CENTROS","20","CESAR","2004","CZ AGUACHICA","20310","GONZÁLEZ","20","CESAR","20310","GONZÁLEZ","Municipio"]
[null,null,null,null,null,null,null,null,"CENTROS","20","CESAR","2004","CZ AGUACHICA","20383","LA GLORIA","20","CESAR","20383","LA GLORIA","Municipio"]
[null,null,null,null,null,null,null,null,"CENTROS","20","CESAR","2005","CZ AGUSTIN CODAZZI","20400","LA JAGUA DE IBIRICO","20","CESAR","20400","LA JAGUA DE IBIRICO","Municipio"]
[null,null,null,null,null,null,null,null,"CENTROS","20","CESAR","2001","CZ VALLEDUPAR 1","20443","MANAURE BALCÓN DEL CESAR","20","CESAR","20443","MANAURE BALCÓN DEL CESAR","Municipio"]
[null,null,null,null,null,null,null,null,"CENTROS","20","CESAR","2002","CZ VALLEDUPAR 2","20443","MANAURE BALCÓN DEL CESAR","20","CESAR","20443","MANAURE BALCÓN DEL CESAR","Municipio"]
[null,null,null,null,null,null,null,null,"CENTROS","20","CESAR","2004","CZ AGUACHICA","20517","PAILITAS","20","CESAR","20517","PAILITAS","Municipio"]
[null,null,null,null,null,null,null,null,"CENTROS","20","CESAR","2004","CZ AGUACHICA","20550","PELAYA","20","CESAR","20550","PELAYA","Municipio"]
[null,null,null,null,null,null,null,null,"CENTROS","20","CESAR","2001","CZ VALLEDUPAR 1","20570","PUEBLO BELLO","20","CESAR","20570","PUEBLO BELLO","Municipio"]
[null,null,null,null,null,null,null,null,"CENTROS","20","CESAR","2002","CZ VALLEDUPAR 2","20570","PUEBLO BELLO","20","CESAR","20570","PUEBLO BELLO","Municipio"]
[null,null,null,null,null,null,null,null,"CENTROS","20","CESAR","2004","CZ AGUACHICA","20614","RÍO DE ORO","20","CESAR","20614","RÍO DE ORO","Municipio"]
[null,null,null,null,null,null,null,null,"CENTROS","20","CESAR","2001","CZ VALLEDUPAR 1","20621","LA PAZ","20","CESAR","20621","LA PAZ","Municipio"]
[null,null,null,null,null,null,null,null,"CENTROS","20","CESAR","2002","CZ VALLEDUPAR 2","20621","LA PAZ","20","CESAR","20621","LA PAZ","Municipio"]
[null,null,null,null,null,null,null,null,"CENTROS","20","CESAR","2004","CZ AGUACHICA","20710","SAN ALBERTO","20","CESAR","20710","SAN ALBERTO","Municipio"]
[null,null,null,null,null,null,null,null,"CENTROS","20","CESAR","2005","CZ AGUSTIN CODAZZI","20750","SAN DIEGO","20","CESAR","20750","SAN DIEGO","Municipio"]
[null,null,null,null,null,null,null,null,"CENTROS","20","CESAR","2004","CZ AGUACHICA","20770","SAN MARTÍN","20","CESAR","20770","SAN MARTÍN","Municipio"]
[null,null,null,null,null,null,null,null,"CENTROS","20","CESAR","2004","CZ AGUACHICA","20787","TAMALAMEQUE","20","CESAR","20787","TAMALAMEQUE","Municipio"]
[null,null,null,null,null,null,null,null,"CENTROS","23","CÓRDOBA","2301","CZ 1 MONTERIA","23001","MONTERÍA","23","CÓRDOBA","23001","MONTERÍA","Municipio"]
[null,null,null,null,null,null,null,null,"CENTROS","23","CÓRDOBA","2305","CZ MONTELIBANO","23068","AYAPEL","23","CÓRDOBA","23068","AYAPEL","Municipio"]
[null,null,null,null,null,null,null,null,"CENTROS","23","CÓRDOBA","2303","CZ PLANETARICA","23079","BUENAVISTA","23","CÓRDOBA","23079","BUENAVISTA","Municipio"]
[null,null,null,null,null,null,null,null,"CENTROS","23","CÓRDOBA","2301","CZ 1 MONTERIA","23090","CANALETE","23","CÓRDOBA","23090","CANALETE","Municipio"]
[null,null,null,null,null,null,null,null,"CENTROS","23","CÓRDOBA","2302","CZ CERETE","23162","CERETÉ","23","CÓRDOBA","23162","CERETÉ","Municipio"]
[null,null,null,null,null,null,null,null,"CENTROS","23","CÓRDOBA","2308","CZ SAN ANDRES DE SOTAVENTO","23168","CHIMÁ","23","CÓRDOBA","23168","CHIMÁ","Municipio"]
[null,null,null,null,null,null,null,null,"CENTROS","23","CÓRDOBA","2307","CZ SAHAGUN","23182","CHINÚ","23","CÓRDOBA","23182","CHINÚ","Municipio"]
[null,null,null,null,null,null,null,null,"CENTROS","23","CÓRDOBA","2302","CZ CERETE","23189","CIÉNAGA DE ORO","23","CÓRDOBA","23189","CIÉNAGA DE ORO","Municipio"]
[null,null,null,null,null,null,null,null,"CENTROS","23","CÓRDOBA","2302","CZ CERETE","23300","COTORRA","23","CÓRDOBA","23300","COTORRA","Municipio"]
[null,null,null,null,null,null,null,null,"CENTROS","23","CÓRDOBA","2305","CZ MONTELIBANO","23350","LA APARTADA","23","CÓRDOBA","23350","LA APARTADA","Municipio"]
[null,null,null,null,null,null,null,null,"CENTROS","23","CÓRDOBA","2306","CZ LORICA","23417","LORICA","23","CÓRDOBA","23417","LORICA","Municipio"]
[null,null,null,null,null,null,null,null,"CENTROS","23","CÓRDOBA","2301","CZ 1 MONTERIA","23419","LOS CÓRDOBAS","23","CÓRDOBA","23419","LOS CÓRDOBAS","Municipio"]
[null,null,null,null,null,null,null,null,"CENTROS","23","CÓRDOBA","2306","CZ LORICA","23464","MOMIL","23","CÓRDOBA","23464","MOMIL","Municipio"]
[null,null,null,null,null,null,null,null,"CENTROS","23","CÓRDOBA","2305","CZ MONTELIBANO","23466","MONTELÍBANO","23","CÓRDOBA","23466","MONTELÍBANO","Municipio"]
[null,null,null,null,null,null,null,null,"CENTROS","23","CÓRDOBA","2306","CZ LORICA","23500","MOÑITOS","23","CÓRDOBA","23500","MOÑITOS","Municipio"]
[null,null,null,null,null,null,null,null,"CENTROS","23","CÓRDOBA","2303","CZ PLANETARICA","23555","PLANETA RICA","23","CÓRDOBA","23555","PLANETA RICA","Municipio"]
[null,null,null,null,null,null,null,null,"CENTROS","23","CÓRDOBA","2303","CZ PLANETARICA","23570","PUEBLO NUEVO","23","CÓRDOBA","23570","PUEBLO NUEVO","Municipio"]
[null,null,null,null,null,null,null,null,"CENTROS","23","CÓRDOBA","2301","CZ 1 MONTERIA","23574","PUERTO ESCONDIDO","23","CÓRDOBA","23574","PUERTO ESCONDIDO","Municipio"]
[null,null,null,null,null,null,null,null,"CENTROS","23","CÓRDOBA","2305","CZ MONTELIBANO","23580","PUERTO LIBERTADOR","23","CÓRDOBA","23580","PUERTO LIBERTADOR","Municipio"]
[null,null,null,null,null,null,null,null,"CENTROS","23","CÓRDOBA","2306","CZ LORICA","23586","PURÍSIMA DE LA CONCEPCIÓN","23","CÓRDOBA","23586","PURÍSIMA DE LA CONCEPCIÓN","Municipio"]
[null,null,null,null,null,null,null,null,"CENTROS","23","CÓRDOBA","2307","CZ SAHAGUN","23660","SAHAGÚN","23","CÓRDOBA","23660","SAHAGÚN","Municipio"]
[null,null,null,null,null,null,null,null,"CENTROS","23","CÓRDOBA","2308","CZ SAN ANDRES DE SOTAVENTO","23670","SAN ANDRÉS DE SOTAVENTO","23","CÓRDOBA","23670","SAN ANDRÉS DE SOTAVENTO","Municipio"]
[null,null,null,null,null,null,null,null,"CENTROS","23","CÓRDOBA","2306","CZ LORICA","23672","SAN ANTERO","23","CÓRDOBA","23672","SAN ANTERO","Municipio"]
[null,null,null,null,null,null,null,null,"CENTROS","23","CÓRDOBA","2306","CZ LORICA","23675","SAN BERNARDO DEL VIENTO","23","CÓRDOBA","23675","SAN BERNARDO DEL VIENTO","Municipio"]
[null,null,null,null,null,null,null,null,"CENTROS","23","CÓRDOBA","2302","CZ CERETE","23678","SAN CARLOS","23","CÓRDOBA","23678","SAN CARLOS","Municipio"]
[null,null,null,null,null,null,null,null,"CENTROS","23","CÓRDOBA","2305","CZ MONTELIBANO","23682","SAN JOSE DE URE","23","CÓRDOBA","23682","SAN JOSÉ DE URÉ","Municipio"]
[null,null,null,null,null,null,null,null,"CENTROS","23","CÓRDOBA","2302","CZ CERETE","23686","SAN PELAYO","23","CÓRDOBA","23686","SAN PELAYO","Municipio"]
[null,null,null,null,null,null,null,null,"CENTROS","23","CÓRDOBA","2304","CZ TIERRALTA","23807","TIERRALTA","23","CÓRDOBA","23807","TIERRALTA","Municipio"]
[null,null,null,null,null,null,null,null,"CENTROS","23","CÓRDOBA","2308","CZ SAN ANDRES DE SOTAVENTO","23815","TUCHIN","23","CÓRDOBA","23815","TUCHÍN","Municipio"]
[null,null,null,null,null,null,null,null,"CENTROS","23","CÓRDOBA","2304","CZ TIERRALTA","23855","VALENCIA","23","CÓRDOBA","23855","VALENCIA","Municipio"]
[null,null,null,null,null,null,null,null,"CENTROS","25","CUNDINAMARCA","2510","CZ GIRARDOT","25001","AGUA DE DIOS","25","CUNDINAMARCA","25001","AGUA DE DIOS","Municipio"]
[null,null,null,null,null,null,null,null,"CENTROS","25","CUNDINAMARCA","2506","CZ FACATATIVA","25019","ALBÁN","25","CUNDINAMARCA","25019","ALBÁN","Municipio"]
[null,null,null,null,null,null,null,null,"CENTROS","25","CUNDINAMARCA","2511","CZ LA MESA","25035","ANAPOIMA","25","CUNDINAMARCA","25035","ANAPOIMA","Municipio"]
[null,null,null,null,null,null,null,null,"CENTROS","25","CUNDINAMARCA","2506","CZ FACATATIVA","25040","ANOLAIMA","25","CUNDINAMARCA","25040","ANOLAIMA","Municipio"]
[null,null,null,null,null,null,null,null,"CENTROS","25","CUNDINAMARCA","2507","CZ FUSAGASUGA","25053","ARBELÁEZ","25","CUNDINAMARCA","25053","ARBELÁEZ","Municipio"]
[null,null,null,null,null,null,null,null,"CENTROS","25","CUNDINAMARCA","2513","CZ SAN JUAN DE RIOSECO","25086","BELTRÁN","25","CUNDINAMARCA","25086","BELTRÁN","Municipio"]
[null,null,null,null,null,null,null,null,"CENTROS","25","CUNDINAMARCA","2513","CZ SAN JUAN DE RIOSECO","25095","BITUIMA","25","CUNDINAMARCA","25095","BITUIMA","Municipio"]
[null,null,null,null,null,null,null,null,"CENTROS","25","CUNDINAMARCA","2506","CZ FACATATIVA","25099","BOJACÁ","25","CUNDINAMARCA","25099","BOJACÁ","Municipio"]
[null,null,null,null,null,null,null,null,"CENTROS","25","CUNDINAMARCA","2507","CZ FUSAGASUGA","25120","CABRERA","25","CUNDINAMARCA","25120","CABRERA","Municipio"]
[null,null,null,null,null,null,null,null,"CENTROS","25","CUNDINAMARCA","2511","CZ LA MESA","25123","CACHIPAY","25","CUNDINAMARCA","25123","CACHIPAY","Municipio"]
[null,null,null,null,null,null,null,null,"CENTROS","25","CUNDINAMARCA","2502","CZ ZIPAQUIRA","25126","CAJICÁ","25","CUNDINAMARCA","25126","CAJICÁ","Municipio"]
[null,null,null,null,null,null,null,null,"CENTROS","25","CUNDINAMARCA","2504","CZ PACHO","25148","CAPARRAPÍ","25","CUNDINAMARCA","25148","CAPARRAPÍ","Municipio"]
[null,null,null,null,null,null,null,null,"CENTROS","25","CUNDINAMARCA","2508","CZ CAQUEZA","25151","CAQUEZA","25","CUNDINAMARCA","25151","CÁQUEZA","Municipio"]
[null,null,null,null,null,null,null,null,"CENTROS","25","CUNDINAMARCA","2512","CZ UBATE","25154","CARMEN DE CARUPA","25","CUNDINAMARCA","25154","CARMEN DE CARUPA","Municipio"]
[null,null,null,null,null,null,null,null,"CENTROS","25","CUNDINAMARCA","2513","CZ SAN JUAN DE RIOSECO","25168","CHAGUANÍ","25","CUNDINAMARCA","25168","CHAGUANÍ","Municipio"]
[null,null,null,null,null,null,null,null,"CENTROS","25","CUNDINAMARCA","2502","CZ ZIPAQUIRA","25175","CHÍA","25","CUNDINAMARCA","25175","CHÍA","Municipio"]
[null,null,null,null,null,null,null,null,"CENTROS","25","CUNDINAMARCA","2508","CZ CAQUEZA","25178","CHIPAQUE","25","CUNDINAMARCA","25178","CHIPAQUE","Municipio"]
[null,null,null,null,null,null,null,null,"CENTROS","25","CUNDINAMARCA","2508","CZ CAQUEZA","25181","CHOACHÍ","25","CUNDINAMARCA","25181","CHOACHÍ","Municipio"]
[null,null,null,null,null,null,null,null,"CENTROS","25","CUNDINAMARCA","2503","CZ CHOCONTA","25183","CHOCONTÁ","25","CUNDINAMARCA","25183","CHOCONTÁ","Municipio"]
[null,null,null,null,null,null,null,null,"CENTROS","25","CUNDINAMARCA","2502","CZ ZIPAQUIRA","25200","COGUA","25","CUNDINAMARCA","25200","COGUA","Municipio"]
[null,null,null,null,null,null,null,null,"CENTROS","25","CUNDINAMARCA","2502","CZ ZIPAQUIRA","25214","COTA","25","CUNDINAMARCA","25214","COTA","Municipio"]
[null,null,null,null,null,null,null,null,"CENTROS","25","CUNDINAMARCA","2512","CZ UBATE","25224","CUCUNUBÁ","25","CUNDINAMARCA","25224","CUCUNUBÁ","Municipio"]
[null,null,null,null,null,null,null,null,"CENTROS","25","CUNDINAMARCA","2511","CZ LA MESA","25245","EL COLEGIO","25","CUNDINAMARCA","25245","EL COLEGIO","Municipio"]
[null,null,null,null,null,null,null,null,"CENTROS","25","CUNDINAMARCA","2504","CZ PACHO","25258","EL PEÑÓN","25","CUNDINAMARCA","25258","EL PEÑÓN","Municipio"]
[null,null,null,null,null,null,null,null,"CENTROS","25","CUNDINAMARCA","2506","CZ FACATATIVA","25260","EL ROSAL","25","CUNDINAMARCA","25260","EL ROSAL","Municipio"]
[null,null,null,null,null,null,null,null,"CENTROS","25","CUNDINAMARCA","2506","CZ FACATATIVA","25269","FACATATIVÁ","25","CUNDINAMARCA","25269","FACATATIVÁ","Municipio"]
[null,null,null,null,null,null,null,null,"CENTROS","25","CUNDINAMARCA","2508","CZ CAQUEZA","25279","FOMEQUE","25","CUNDINAMARCA","25279","FÓMEQUE","Municipio"]
[null,null,null,null,null,null,null,null,"CENTROS","25","CUNDINAMARCA","2508","CZ CAQUEZA","25281","FOSCA","25","CUNDINAMARCA","25281","FOSCA","Municipio"]
[null,null,null,null,null,null,null,null,"CENTROS","25","CUNDINAMARCA","2506","CZ FACATATIVA","25286","FUNZA","25","CUNDINAMARCA","25286","FUNZA","Municipio"]
[null,null,null,null,null,null,null,null,"CENTROS","25","CUNDINAMARCA","2512","CZ UBATE","25288","FÚQUENE","25","CUNDINAMARCA","25288","FÚQUENE","Municipio"]
[null,null,null,null,null,null,null,null,"CENTROS","25","CUNDINAMARCA","2507","CZ FUSAGASUGA","25290","FUSAGASUGÁ","25","CUNDINAMARCA","25290","FUSAGASUGÁ","Municipio"]
[null,null,null,null,null,null,null,null,"CENTROS","25","CUNDINAMARCA","2509","CZ GACHETA","25293","GACHALA","25","CUNDINAMARCA","25293","GACHALÁ","Municipio"]
[null,null,null,null,null,null,null,null,"CENTROS","25","CUNDINAMARCA","2502","CZ ZIPAQUIRA","25295","GACHANCIPÁ","25","CUNDINAMARCA","25295","GACHANCIPÁ","Municipio"]
[null,null,null,null,null,null,null,null,"CENTROS","25","CUNDINAMARCA","2509","CZ GACHETA","25297","GACHETÁ","25","CUNDINAMARCA","25297","GACHETÁ","Municipio"]
[null,null,null,null,null,null,null,null,"CENTROS","25","CUNDINAMARCA","2509","CZ GACHETA","25299","GAMA","25","CUNDINAMARCA","25299","GAMA","Municipio"]
[null,null,null,null,null,null,null,null,"CENTROS","25","CUNDINAMARCA","2510","CZ GIRARDOT","25307","GIRARDOT","25","CUNDINAMARCA","25307","GIRARDOT","Municipio"]
[null,null,null,null,null,null,null,null,"CENTROS","25","CUNDINAMARCA","2507","CZ FUSAGASUGA","25312","GRANADA","25","CUNDINAMARCA","25312","GRANADA","Municipio"]
[null,null,null,null,null,null,null,null,"CENTROS","25","CUNDINAMARCA","2512","CZ UBATE","25317","GUACHETÁ","25","CUNDINAMARCA","25317","GUACHETÁ","Municipio"]
[null,null,null,null,null,null,null,null,"CENTROS","25","CUNDINAMARCA","2505","CZ VILLETA","25320","GUADUAS","25","CUNDINAMARCA","25320","GUADUAS","Municipio"]
[null,null,null,null,null,null,null,null,"CENTROS","25","CUNDINAMARCA","2509","CZ GACHETA","25322","GUASCA","25","CUNDINAMARCA","25322","GUASCA","Municipio"]
[null,null,null,null,null,null,null,null,"CENTROS","25","CUNDINAMARCA","2510","CZ GIRARDOT","25324","GUATAQUÍ","25","CUNDINAMARCA","25324","GUATAQUÍ","Municipio"]
[null,null,null,null,null,null,null,null,"CENTROS","25","CUNDINAMARCA","2503","CZ CHOCONTA","25326","GUATAVITA","25","CUNDINAMARCA","25326","GUATAVITA","Municipio"]
[null,null,null,null,null,null,null,null,"CENTROS","25","CUNDINAMARCA","2506","CZ FACATATIVA","25328","GUAYABAL DE SIQUIMA","25","CUNDINAMARCA","25328","GUAYABAL DE SÍQUIMA","Municipio"]
[null,null,null,null,null,null,null,null,"CENTROS","25","CUNDINAMARCA","2508","CZ CAQUEZA","25335","GUAYABETAL","25","CUNDINAMARCA","25335","GUAYABETAL","Municipio"]
[null,null,null,null,null,null,null,null,"CENTROS","25","CUNDINAMARCA","2508","CZ CAQUEZA","25339","GUTIÉRREZ","25","CUNDINAMARCA","25339","GUTIÉRREZ","Municipio"]
[null,null,null,null,null,null,null,null,"CENTROS","25","CUNDINAMARCA","2510","CZ GIRARDOT","25368","JERUSALÉN","25","CUNDINAMARCA","25368","JERUSALÉN","Municipio"]
[null,null,null,null,null,null,null,null,"CENTROS","25","CUNDINAMARCA","2509","CZ GACHETA","25372","JUNÍN","25","CUNDINAMARCA","25372","JUNÍN","Municipio"]
[null,null,null,null,null,null,null,null,"CENTROS","25","CUNDINAMARCA","2502","CZ ZIPAQUIRA","25377","LA CALERA","25","CUNDINAMARCA","25377","LA CALERA","Municipio"]
[null,null,null,null,null,null,null,null,"CENTROS","25","CUNDINAMARCA","2511","CZ LA MESA","25386","LA MESA","25","CUNDINAMARCA","25386","LA MESA","Municipio"]
[null,null,null,null,null,null,null,null,"CENTROS","25","CUNDINAMARCA","2504","CZ PACHO","25394","LA PALMA","25","CUNDINAMARCA","25394","LA PALMA","Municipio"]
[null,null,null,null,null,null,null,null,"CENTROS","25","CUNDINAMARCA","2505","CZ VILLETA","25398","LA PEÑA","25","CUNDINAMARCA","25398","LA PEÑA","Municipio"]
[null,null,null,null,null,null,null,null,"CENTROS","25","CUNDINAMARCA","2505","CZ VILLETA","25402","LA VEGA","25","CUNDINAMARCA","25402","LA VEGA","Municipio"]
[null,null,null,null,null,null,null,null,"CENTROS","25","CUNDINAMARCA","2512","CZ UBATE","25407","LENGUAZAQUE","25","CUNDINAMARCA","25407","LENGUAZAQUE","Municipio"]
[null,null,null,null,null,null,null,null,"CENTROS","25","CUNDINAMARCA","2503","CZ CHOCONTA","25426","MACHETA","25","CUNDINAMARCA","25426","MACHETÁ","Municipio"]
[null,null,null,null,null,null,null,null,"CENTROS","25","CUNDINAMARCA","2506","CZ FACATATIVA","25430","MADRID","25","CUNDINAMARCA","25430","MADRID","Municipio"]
[null,null,null,null,null,null,null,null,"CENTROS","25","CUNDINAMARCA","2503","CZ CHOCONTA","25436","MANTA","25","CUNDINAMARCA","25436","MANTA","Municipio"]
[null,null,null,null,null,null,null,null,"CENTROS","25","CUNDINAMARCA","2508","CZ CAQUEZA","25438","MEDINA","25","CUNDINAMARCA","25438","MEDINA","Municipio"]
[null,null,null,null,null,null,null,null,"CENTROS","25","CUNDINAMARCA","2506","CZ FACATATIVA","25473","MOSQUERA","25","CUNDINAMARCA","25473","MOSQUERA","Municipio"]
[null,null,null,null,null,null,null,null,"CENTROS","25","CUNDINAMARCA","2510","CZ GIRARDOT","25483","NARIÑO","25","CUNDINAMARCA","25483","NARIÑO","Municipio"]
[null,null,null,null,null,null,null,null,"CENTROS","25","CUNDINAMARCA","2502","CZ ZIPAQUIRA","25486","NEMOCÓN","25","CUNDINAMARCA","25486","NEMOCÓN","Municipio"]
[null,null,null,null,null,null,null,null,"CENTROS","25","CUNDINAMARCA","2510","CZ GIRARDOT","25488","NILO","25","CUNDINAMARCA","25488","NILO","Municipio"]
[null,null,null,null,null,null,null,null,"CENTROS","25","CUNDINAMARCA","2505","CZ VILLETA","25489","NIMAIMA","25","CUNDINAMARCA","25489","NIMAIMA","Municipio"]
[null,null,null,null,null,null,null,null,"CENTROS","25","CUNDINAMARCA","2505","CZ VILLETA","25491","NOCAIMA","25","CUNDINAMARCA","25491","NOCAIMA","Municipio"]
[null,null,null,null,null,null,null,null,"CENTROS","25","CUNDINAMARCA","2507","CZ FUSAGASUGA","25506","VENECIA","25","CUNDINAMARCA","25506","VENECIA","Municipio"]
[null,null,null,null,null,null,null,null,"CENTROS","25","CUNDINAMARCA","2504","CZ PACHO","25513","PACHO","25","CUNDINAMARCA","25513","PACHO","Municipio"]
[null,null,null,null,null,null,null,null,"CENTROS","25","CUNDINAMARCA","2504","CZ PACHO","25518","PAIME","25","CUNDINAMARCA","25518","PAIME","Municipio"]
[null,null,null,null,null,null,null,null,"CENTROS","25","CUNDINAMARCA","2507","CZ FUSAGASUGA","25524","PANDI","25","CUNDINAMARCA","25524","PANDI","Municipio"]
[null,null,null,null,null,null,null,null,"CENTROS","25","CUNDINAMARCA","2508","CZ CAQUEZA","25530","PARATEBUENO","25","CUNDINAMARCA","25530","PARATEBUENO","Municipio"]
[null,null,null,null,null,null,null,null,"CENTROS","25","CUNDINAMARCA","2507","CZ FUSAGASUGA","25535","PASCA","25","CUNDINAMARCA","25535","PASCA","Municipio"]
[null,null,null,null,null,null,null,null,"CENTROS","25","CUNDINAMARCA","2505","CZ VILLETA","25572","PUERTO SALGAR","25","CUNDINAMARCA","25572","PUERTO SALGAR","Municipio"]
[null,null,null,null,null,null,null,null,"CENTROS","25","CUNDINAMARCA","2513","CZ SAN JUAN DE RIOSECO","25580","PULÍ","25","CUNDINAMARCA","25580","PULÍ","Municipio"]
[null,null,null,null,null,null,null,null,"CENTROS","25","CUNDINAMARCA","2505","CZ VILLETA","25592","QUEBRADANEGRA","25","CUNDINAMARCA","25592","QUEBRADANEGRA","Municipio"]
[null,null,null,null,null,null,null,null,"CENTROS","25","CUNDINAMARCA","2508","CZ CAQUEZA","25594","QUETAME","25","CUNDINAMARCA","25594","QUETAME","Municipio"]
[null,null,null,null,null,null,null,null,"CENTROS","25","CUNDINAMARCA","2511","CZ LA MESA","25596","QUIPILE","25","CUNDINAMARCA","25596","QUIPILE","Municipio"]
[null,null,null,null,null,null,null,null,"CENTROS","25","CUNDINAMARCA","2511","CZ LA MESA","25599","APULO","25","CUNDINAMARCA","25599","APULO","Municipio"]
[null,null,null,null,null,null,null,null,"CENTROS","25","CUNDINAMARCA","2510","CZ GIRARDOT","25612","RICAURTE","25","CUNDINAMARCA","25612","RICAURTE","Municipio"]
[null,null,null,null,null,null,null,null,"CENTROS","25","CUNDINAMARCA","2511","CZ LA MESA","25645","SAN ANTONIO DEL TEQUENDAMA","25","CUNDINAMARCA","25645","SAN ANTONIO DEL TEQUENDAMA","Municipio"]
[null,null,null,null,null,null,null,null,"CENTROS","25","CUNDINAMARCA","2507","CZ FUSAGASUGA","25649","SAN BERNARDO","25","CUNDINAMARCA","25649","SAN BERNARDO","Municipio"]
[null,null,null,null,null,null,null,null,"CENTROS","25","CUNDINAMARCA","2502","CZ ZIPAQUIRA","25653","SAN CAYETANO","25","CUNDINAMARCA","25653","SAN CAYETANO","Municipio"]
[null,null,null,null,null,null,null,null,"CENTROS","25","CUNDINAMARCA","2505","CZ VILLETA","25658","SAN FRANCISCO","25","CUNDINAMARCA","25658","SAN FRANCISCO","Municipio"]
[null,null,null,null,null,null,null,null,"CENTROS","25","CUNDINAMARCA","2513","CZ SAN JUAN DE RIOSECO","25662","SAN JUAN DE RIOSECO","25","CUNDINAMARCA","25662","SAN JUAN DE RIOSECO","Municipio"]
[null,null,null,null,null,null,null,null,"CENTROS","25","CUNDINAMARCA","2505","CZ VILLETA","25718","SASAIMA","25","CUNDINAMARCA","25718","SASAIMA","Municipio"]
[null,null,null,null,null,null,null,null,"CENTROS","25","CUNDINAMARCA","2503","CZ CHOCONTA","25736","SESQUILÉ","25","CUNDINAMARCA","25736","SESQUILÉ","Municipio"]
[null,null,null,null,null,null,null,null,"CENTROS","25","CUNDINAMARCA","2518","CZ SOACHA CENTRO","25740","SIBATÉ","25","CUNDINAMARCA","25740","SIBATÉ","Municipio"]
[null,null,null,null,null,null,null,null,"CENTROS","25","CUNDINAMARCA","2507","CZ FUSAGASUGA","25743","SILVANIA","25","CUNDINAMARCA","25743","SILVANIA","Municipio"]
[null,null,null,null,null,null,null,null,"CENTROS","25","CUNDINAMARCA","2512","CZ UBATE","25745","SIMIJACA","25","CUNDINAMARCA","25745","SIMIJACA","Municipio"]
[null,null,null,null,null,null,null,null,"CENTROS","25","CUNDINAMARCA","2501","CZ SOACHA","25754","SOACHA","25","CUNDINAMARCA","25754","SOACHA","Municipio"]
[null,null,null,null,null,null,null,null,"CENTROS","25","CUNDINAMARCA","2518","CZ SOACHA CENTRO","25754","SOACHA","25","CUNDINAMARCA","25754","SOACHA","Municipio"]
[null,null,null,null,null,null,null,null,"CENTROS","25","CUNDINAMARCA","2502","CZ ZIPAQUIRA","25758","SOPÓ","25","CUNDINAMARCA","25758","SOPÓ","Municipio"]
[null,null,null,null,null,null,null,null,"CENTROS","25","CUNDINAMARCA","2506","CZ FACATATIVA","25769","SUBACHOQUE","25","CUNDINAMARCA","25769","SUBACHOQUE","Municipio"]
[null,null,null,null,null,null,null,null,"CENTROS","25","CUNDINAMARCA","2503","CZ CHOCONTA","25772","SUESCA","25","CUNDINAMARCA","25772","SUESCA","Municipio"]
[null,null,null,null,null,null,null,null,"CENTROS","25","CUNDINAMARCA","2504","CZ PACHO","25777","SUPATÁ","25","CUNDINAMARCA","25777","SUPATÁ","Municipio"]
[null,null,null,null,null,null,null,null,"CENTROS","25","CUNDINAMARCA","2512","CZ UBATE","25779","SUSA","25","CUNDINAMARCA","25779","SUSA","Municipio"]
[null,null,null,null,null,null,null,null,"CENTROS","25","CUNDINAMARCA","2512","CZ UBATE","25781","SUTATAUSA","25","CUNDINAMARCA","25781","SUTATAUSA","Municipio"]
[null,null,null,null,null,null,null,null,"CENTROS","25","CUNDINAMARCA","2502","CZ ZIPAQUIRA","25785","TABIO","25","CUNDINAMARCA","25785","TABIO","Municipio"]
[null,null,null,null,null,null,null,null,"CENTROS","25","CUNDINAMARCA","2512","CZ UBATE","25793","TAUSA","25","CUNDINAMARCA","25793","TAUSA","Municipio"]
[null,null,null,null,null,null,null,null,"CENTROS","25","CUNDINAMARCA","2511","CZ LA MESA","25797","TENA","25","CUNDINAMARCA","25797","TENA","Municipio"]
[null,null,null,null,null,null,null,null,"CENTROS","25","CUNDINAMARCA","2502","CZ ZIPAQUIRA","25799","TENJO","25","CUNDINAMARCA","25799","TENJO","Municipio"]
[null,null,null,null,null,null,null,null,"CENTROS","25","CUNDINAMARCA","2507","CZ FUSAGASUGA","25805","TIBACUY","25","CUNDINAMARCA","25805","TIBACUY","Municipio"]
[null,null,null,null,null,null,null,null,"CENTROS","25","CUNDINAMARCA","2503","CZ CHOCONTA","25807","TIBIRITA","25","CUNDINAMARCA","25807","TIBIRITA","Municipio"]
[null,null,null,null,null,null,null,null,"CENTROS","25","CUNDINAMARCA","2510","CZ GIRARDOT","25815","TOCAIMA","25","CUNDINAMARCA","25815","TOCAIMA","Municipio"]
[null,null,null,null,null,null,null,null,"CENTROS","25","CUNDINAMARCA","2502","CZ ZIPAQUIRA","25817","TOCANCIPÁ","25","CUNDINAMARCA","25817","TOCANCIPÁ","Municipio"]
[null,null,null,null,null,null,null,null,"CENTROS","25","CUNDINAMARCA","2504","CZ PACHO","25823","TOPAIPÍ","25","CUNDINAMARCA","25823","TOPAIPÍ","Municipio"]
[null,null,null,null,null,null,null,null,"CENTROS","25","CUNDINAMARCA","2509","CZ GACHETA","25839","UBALÁ","25","CUNDINAMARCA","25839","UBALÁ","Municipio"]
[null,null,null,null,null,null,null,null,"CENTROS","25","CUNDINAMARCA","2508","CZ CAQUEZA","25841","UBAQUE","25","CUNDINAMARCA","25841","UBAQUE","Municipio"]
[null,null,null,null,null,null,null,null,"CENTROS","25","CUNDINAMARCA","2512","CZ UBATE","25843","VILLA DE SAN DIEGO DE UBATÉ","25","CUNDINAMARCA","25843","VILLA DE SAN DIEGO DE UBATÉ","Municipio"]
[null,null,null,null,null,null,null,null,"CENTROS","25","CUNDINAMARCA","2508","CZ CAQUEZA","25845","UNE","25","CUNDINAMARCA","25845","UNE","Municipio"]
[null,null,null,null,null,null,null,null,"CENTROS","25","CUNDINAMARCA","2505","CZ VILLETA","25851","ÚTICA","25","CUNDINAMARCA","25851","ÚTICA","Municipio"]
[null,null,null,null,null,null,null,null,"CENTROS","25","CUNDINAMARCA","2505","CZ VILLETA","25862","VERGARA","25","CUNDINAMARCA","25862","VERGARA","Municipio"]
[null,null,null,null,null,null,null,null,"CENTROS","25","CUNDINAMARCA","2513","CZ SAN JUAN DE RIOSECO","25867","VIANÍ","25","CUNDINAMARCA","25867","VIANÍ","Municipio"]
[null,null,null,null,null,null,null,null,"CENTROS","25","CUNDINAMARCA","2504","CZ PACHO","25871","VILLAGÓMEZ","25","CUNDINAMARCA","25871","VILLAGÓMEZ","Municipio"]
[null,null,null,null,null,null,null,null,"CENTROS","25","CUNDINAMARCA","2503","CZ CHOCONTA","25873","VILLAPINZÓN","25","CUNDINAMARCA","25873","VILLAPINZÓN","Municipio"]
[null,null,null,null,null,null,null,null,"CENTROS","25","CUNDINAMARCA","2505","CZ VILLETA","25875","VILLETA","25","CUNDINAMARCA","25875","VILLETA","Municipio"]
[null,null,null,null,null,null,null,null,"CENTROS","25","CUNDINAMARCA","2510","CZ GIRARDOT","25878","VIOTÁ","25","CUNDINAMARCA","25878","VIOTÁ","Municipio"]
[null,null,null,null,null,null,null,null,"CENTROS","25","CUNDINAMARCA","2504","CZ PACHO","25885","YACOPÍ","25","CUNDINAMARCA","25885","YACOPÍ","Municipio"]
[null,null,null,null,null,null,null,null,"CENTROS","25","CUNDINAMARCA","2506","CZ FACATATIVA","25898","ZIPACÓN","25","CUNDINAMARCA","25898","ZIPACÓN","Municipio"]
[null,null,null,null,null,null,null,null,"CENTROS","25","CUNDINAMARCA","2502","CZ ZIPAQUIRA","25899","ZIPAQUIRÁ","25","CUNDINAMARCA","25899","ZIPAQUIRÁ","Municipio"]
[null,null,null,null,null,null,null,null,"CENTROS","27","CHOCÓ","2701","CZ QUIBDO","27001","QUIBDÓ","27","CHOCÓ","27001","QUIBDÓ","Municipio"]
[null,null,null,null,null,null,null,null,"CENTROS","27","CHOCÓ","2704","CZ RIOSUCIO","27006","ACANDÍ","27","CHOCÓ","27006","ACANDÍ","Municipio"]
[null,null,null,null,null,null,null,null,"CENTROS","27","CHOCÓ","2702","CZ ISTMINA","27025","ALTO BAUDO","27","CHOCÓ","27025","ALTO BAUDÓ","Municipio"]
[null,null,null,null,null,null,null,null,"CENTROS","27","CHOCÓ","2701","CZ QUIBDO","27050","ATRATO","27","CHOCÓ","27050","ATRATO","Municipio"]
[null,null,null,null,null,null,null,null,"CENTROS","27","CHOCÓ","2705","CZ TADO","27073","BAGADÓ","27","CHOCÓ","27073","BAGADÓ","Municipio"]
[null,null,null,null,null,null,null,null,"CENTROS","27","CHOCÓ","2703","CZ BAHIA SOLANO","27075","BAHÍA SOLANO","27","CHOCÓ","27075","BAHÍA SOLANO","Municipio"]
[null,null,null,null,null,null,null,null,"CENTROS","27","CHOCÓ","2702","CZ ISTMINA","27077","BAJO BAUDÓ","27","CHOCÓ","27077","BAJO BAUDÓ","Municipio"]
[null,null,null,null,null,null,null,null,"CENTROS","27","CHOCÓ","2701","CZ QUIBDO","27099","BOJAYA","27","CHOCÓ","27099","BOJAYÁ","Municipio"]
[null,null,null,null,null,null,null,null,"CENTROS","27","CHOCÓ","2705","CZ TADO","27135","EL CANTÓN DEL SAN PABLO","27","CHOCÓ","27135","EL CANTÓN DEL SAN PABLO","Municipio"]
[null,null,null,null,null,null,null,null,"CENTROS","27","CHOCÓ","2704","CZ RIOSUCIO","27150","CARMEN DEL DARIEN","27","CHOCÓ","27150","CARMEN DEL DARIÉN","Municipio"]
[null,null,null,null,null,null,null,null,"CENTROS","27","CHOCÓ","2705","CZ TADO","27160","CÉRTEGUI","27","CHOCÓ","27160","CÉRTEGUI","Municipio"]
[null,null,null,null,null,null,null,null,"CENTROS","27","CHOCÓ","2702","CZ ISTMINA","27205","CONDOTO","27","CHOCÓ","27205","CONDOTO","Municipio"]
[null,null,null,null,null,null,null,null,"CENTROS","27","CHOCÓ","2701","CZ QUIBDO","27245","EL CARMEN DE ATRATO","27","CHOCÓ","27245","EL CARMEN DE ATRATO","Municipio"]
[null,null,null,null,null,null,null,null,"CENTROS","27","CHOCÓ","2702","CZ ISTMINA","27250","LITORAL DEL SAN JUAN","27","CHOCÓ","27250","EL LITORAL DEL SAN JUAN","Municipio"]
[null,null,null,null,null,null,null,null,"CENTROS","27","CHOCÓ","2702","CZ ISTMINA","27361","ISTMINA","27","CHOCÓ","27361","ISTMINA","Municipio"]
[null,null,null,null,null,null,null,null,"CENTROS","27","CHOCÓ","2703","CZ BAHIA SOLANO","27372","JURADÓ","27","CHOCÓ","27372","JURADÓ","Municipio"]
[null,null,null,null,null,null,null,null,"CENTROS","27","CHOCÓ","2701","CZ QUIBDO","27413","LLORÓ","27","CHOCÓ","27413","LLORÓ","Municipio"]
[null,null,null,null,null,null,null,null,"CENTROS","27","CHOCÓ","2701","CZ QUIBDO","27425","MEDIO ATRATO","27","CHOCÓ","27425","MEDIO ATRATO","Municipio"]
[null,null,null,null,null,null,null,null,"CENTROS","27","CHOCÓ","2702","CZ ISTMINA","27430","MEDIO BAUDÓ","27","CHOCÓ","27430","MEDIO BAUDÓ","Municipio"]
[null,null,null,null,null,null,null,null,"CENTROS","27","CHOCÓ","2702","CZ ISTMINA","27450","MEDIO SAN JUAN","27","CHOCÓ","27450","MEDIO SAN JUAN","Municipio"]
[null,null,null,null,null,null,null,null,"CENTROS","27","CHOCÓ","2702","CZ ISTMINA","27491","NÓVITA","27","CHOCÓ","27491","NÓVITA","Municipio"]
[null,null,null,null,null,null,null,null,"CENTROS","27","CHOCÓ","2703","CZ BAHIA SOLANO","27495","NUQUÍ","27","CHOCÓ","27495","NUQUÍ","Municipio"]
[null,null,null,null,null,null,null,null,"CENTROS","27","CHOCÓ","2702","CZ ISTMINA","27580","RÍO IRO","27","CHOCÓ","27580","RÍO IRÓ","Municipio"]
[null,null,null,null,null,null,null,null,"CENTROS","27","CHOCÓ","2701","CZ QUIBDO","27600","RÍO QUITO","27","CHOCÓ","27600","RÍO QUITO","Municipio"]
[null,null,null,null,null,null,null,null,"CENTROS","27","CHOCÓ","2704","CZ RIOSUCIO","27615","RIOSUCIO","27","CHOCÓ","27615","RIOSUCIO","Municipio"]
[null,null,null,null,null,null,null,null,"CENTROS","27","CHOCÓ","2705","CZ TADO","27660","SAN JOSÉ DEL PALMAR","27","CHOCÓ","27660","SAN JOSÉ DEL PALMAR","Municipio"]
[null,null,null,null,null,null,null,null,"CENTROS","27","CHOCÓ","2702","CZ ISTMINA","27745","SIPÍ","27","CHOCÓ","27745","SIPÍ","Municipio"]
[null,null,null,null,null,null,null,null,"CENTROS","27","CHOCÓ","2705","CZ TADO","27787","TADÓ","27","CHOCÓ","27787","TADÓ","Municipio"]
[null,null,null,null,null,null,null,null,"CENTROS","27","CHOCÓ","2704","CZ RIOSUCIO","27800","UNGUÍA","27","CHOCÓ","27800","UNGUÍA","Municipio"]
[null,null,null,null,null,null,null,null,"CENTROS","27","CHOCÓ","2705","CZ TADO","27810","UNIÓN PANAMERICANA","27","CHOCÓ","27810","UNIÓN PANAMERICANA","Municipio"]
[null,null,null,null,null,null,null,null,"CENTROS","27","CHOCÓ","2704","CZ RIOSUCIO","27086","BELÉN DE BAJIRÁ","27","CHOCÓ","27615023","BELÉN DE BAJIRÁ","Centro poblado"]
[null,null,null,null,null,null,null,null,"CENTROS","41","HUILA","4101","CZ NEIVA","41001","NEIVA","41","HUILA","41001","NEIVA","Municipio"]
[null,null,null,null,null,null,null,null,"CENTROS","41","HUILA","4105","CZ LA GAITANA","41001","NEIVA","41","HUILA","41001","NEIVA","Municipio"]
[null,null,null,null,null,null,null,null,"CENTROS","41","HUILA","4104","CZ PITALITO","41006","ACEVEDO","41","HUILA","41006","ACEVEDO","Municipio"]
[null,null,null,null,null,null,null,null,"CENTROS","41","HUILA","4102","CZ GARZON","41013","AGRADO","41","HUILA","41013","AGRADO","Municipio"]
[null,null,null,null,null,null,null,null,"CENTROS","41","HUILA","4101","CZ NEIVA","41016","AIPE","41","HUILA","41016","AIPE","Municipio"]
[null,null,null,null,null,null,null,null,"CENTROS","41","HUILA","4105","CZ LA GAITANA","41020","ALGECIRAS","41","HUILA","41020","ALGECIRAS","Municipio"]
[null,null,null,null,null,null,null,null,"CENTROS","41","HUILA","4102","CZ GARZON","41026","ALTAMIRA","41","HUILA","41026","ALTAMIRA","Municipio"]
[null,null,null,null,null,null,null,null,"CENTROS","41","HUILA","4105","CZ LA GAITANA","41078","BARAYA","41","HUILA","41078","BARAYA","Municipio"]
[null,null,null,null,null,null,null,null,"CENTROS","41","HUILA","4105","CZ LA GAITANA","41132","CAMPOALEGRE","41","HUILA","41132","CAMPOALEGRE","Municipio"]
[null,null,null,null,null,null,null,null,"CENTROS","41","HUILA","4105","CZ LA GAITANA","41206","COLOMBIA","41","HUILA","41206","COLOMBIA","Municipio"]
[null,null,null,null,null,null,null,null,"CENTROS","41","HUILA","4104","CZ PITALITO","41244","ELÍAS","41","HUILA","41244","ELÍAS","Municipio"]
[null,null,null,null,null,null,null,null,"CENTROS","41","HUILA","4102","CZ GARZON","41298","GARZÓN","41","HUILA","41298","GARZÓN","Municipio"]
[null,null,null,null,null,null,null,null,"CENTROS","41","HUILA","4102","CZ GARZON","41306","GIGANTE","41","HUILA","41306","GIGANTE","Municipio"]
[null,null,null,null,null,null,null,null,"CENTROS","41","HUILA","4102","CZ GARZON","41319","GUADALUPE","41","HUILA","41319","GUADALUPE","Municipio"]
[null,null,null,null,null,null,null,null,"CENTROS","41","HUILA","4105","CZ LA GAITANA","41349","HOBO","41","HUILA","41349","HOBO","Municipio"]
[null,null,null,null,null,null,null,null,"CENTROS","41","HUILA","4101","CZ NEIVA","41357","IQUIRA","41","HUILA","41357","ÍQUIRA","Municipio"]
[null,null,null,null,null,null,null,null,"CENTROS","41","HUILA","4104","CZ PITALITO","41359","ISNOS","41","HUILA","41359","ISNOS","Municipio"]
[null,null,null,null,null,null,null,null,"CENTROS","41","HUILA","4103","CZ LA PLATA","41378","LA ARGENTINA","41","HUILA","41378","LA ARGENTINA","Municipio"]
[null,null,null,null,null,null,null,null,"CENTROS","41","HUILA","4103","CZ LA PLATA","41396","LA PLATA","41","HUILA","41396","LA PLATA","Municipio"]
[null,null,null,null,null,null,null,null,"CENTROS","41","HUILA","4103","CZ LA PLATA","41483","NÁTAGA","41","HUILA","41483","NÁTAGA","Municipio"]
[null,null,null,null,null,null,null,null,"CENTROS","41","HUILA","4104","CZ PITALITO","41503","OPORAPA","41","HUILA","41503","OPORAPA","Municipio"]
[null,null,null,null,null,null,null,null,"CENTROS","41","HUILA","4103","CZ LA PLATA","41518","PAICOL","41","HUILA","41518","PAICOL","Municipio"]
[null,null,null,null,null,null,null,null,"CENTROS","41","HUILA","4101","CZ NEIVA","41524","PALERMO","41","HUILA","41524","PALERMO","Municipio"]
[null,null,null,null,null,null,null,null,"CENTROS","41","HUILA","4104","CZ PITALITO","41530","PALESTINA","41","HUILA","41530","PALESTINA","Municipio"]
[null,null,null,null,null,null,null,null,"CENTROS","41","HUILA","4102","CZ GARZON","41548","PITAL","41","HUILA","41548","PITAL","Municipio"]
[null,null,null,null,null,null,null,null,"CENTROS","41","HUILA","4104","CZ PITALITO","41551","PITALITO","41","HUILA","41551","PITALITO","Municipio"]
[null,null,null,null,null,null,null,null,"CENTROS","41","HUILA","4105","CZ LA GAITANA","41615","RIVERA","41","HUILA","41615","RIVERA","Municipio"]
[null,null,null,null,null,null,null,null,"CENTROS","41","HUILA","4104","CZ PITALITO","41660","SALADOBLANCO","41","HUILA","41660","SALADOBLANCO","Municipio"]
[null,null,null,null,null,null,null,null,"CENTROS","41","HUILA","4104","CZ PITALITO","41668","SAN AGUSTÍN","41","HUILA","41668","SAN AGUSTÍN","Municipio"]
[null,null,null,null,null,null,null,null,"CENTROS","41","HUILA","4101","CZ NEIVA","41676","SANTA MARÍA","41","HUILA","41676","SANTA MARÍA","Municipio"]
[null,null,null,null,null,null,null,null,"CENTROS","41","HUILA","4102","CZ GARZON","41770","SUAZA","41","HUILA","41770","SUAZA","Municipio"]
[null,null,null,null,null,null,null,null,"CENTROS","41","HUILA","4102","CZ GARZON","41791","TARQUI","41","HUILA","41791","TARQUI","Municipio"]
[null,null,null,null,null,null,null,null,"CENTROS","41","HUILA","4103","CZ LA PLATA","41797","TESALIA","41","HUILA","41797","TESALIA","Municipio"]
[null,null,null,null,null,null,null,null,"CENTROS","41","HUILA","4105","CZ LA GAITANA","41799","TELLO","41","HUILA","41799","TELLO","Municipio"]
[null,null,null,null,null,null,null,null,"CENTROS","41","HUILA","4101","CZ NEIVA","41801","TERUEL","41","HUILA","41801","TERUEL","Municipio"]
[null,null,null,null,null,null,null,null,"CENTROS","41","HUILA","4104","CZ PITALITO","41807","TIMANÁ","41","HUILA","41807","TIMANÁ","Municipio"]
[null,null,null,null,null,null,null,null,"CENTROS","41","HUILA","4101","CZ NEIVA","41872","VILLAVIEJA","41","HUILA","41872","VILLAVIEJA","Municipio"]
[null,null,null,null,null,null,null,null,"CENTROS","41","HUILA","4101","CZ NEIVA","41885","YAGUARÁ","41","HUILA","41885","YAGUARÁ","Municipio"]
[null,null,null,null,null,null,null,null,"CENTROS","44","LA GUAJIRA","4401","CZ RIOHACHA 1","44001","RIOHACHA","44","LA GUAJIRA","44001","RIOHACHA","Municipio"]
[null,null,null,null,null,null,null,null,"CENTROS","44","LA GUAJIRA","4402","CZ RIOHACHA 2","44001","RIOHACHA","44","LA GUAJIRA","44001","RIOHACHA","Municipio"]
[null,null,null,null,null,null,null,null,"CENTROS","44","LA GUAJIRA","4405","CZ MAICAO","44035","ALBANIA","44","LA GUAJIRA","44035","ALBANIA","Municipio"]
[null,null,null,null,null,null,null,null,"CENTROS","44","LA GUAJIRA","4403","CZ FONSECA","44078","BARRANCAS","44","LA GUAJIRA","44078","BARRANCAS","Municipio"]
[null,null,null,null,null,null,null,null,"CENTROS","44","LA GUAJIRA","4401","CZ RIOHACHA 1","44090","DIBULLA","44","LA GUAJIRA","44090","DIBULLA","Municipio"]
[null,null,null,null,null,null,null,null,"CENTROS","44","LA GUAJIRA","4402","CZ RIOHACHA 2","44090","DIBULLA","44","LA GUAJIRA","44090","DIBULLA","Municipio"]
[null,null,null,null,null,null,null,null,"CENTROS","44","LA GUAJIRA","4403","CZ FONSECA","44098","DISTRACCIÓN","44","LA GUAJIRA","44098","DISTRACCIÓN","Municipio"]
[null,null,null,null,null,null,null,null,"CENTROS","44","LA GUAJIRA","4403","CZ FONSECA","44110","EL MOLINO","44","LA GUAJIRA","44110","EL MOLINO","Municipio"]
[null,null,null,null,null,null,null,null,"CENTROS","44","LA GUAJIRA","4403","CZ FONSECA","44279","FONSECA","44","LA GUAJIRA","44279","FONSECA","Municipio"]
[null,null,null,null,null,null,null,null,"CENTROS","44","LA GUAJIRA","4403","CZ FONSECA","44378","HATONUEVO","44","LA GUAJIRA","44378","HATONUEVO","Municipio"]
[null,null,null,null,null,null,null,null,"CENTROS","44","LA GUAJIRA","4403","CZ FONSECA","44420","LA JAGUA DEL PILAR","44","LA GUAJIRA","44420","LA JAGUA DEL PILAR","Municipio"]
[null,null,null,null,null,null,null,null,"CENTROS","44","LA GUAJIRA","4405","CZ MAICAO","44430","MAICAO","44","LA GUAJIRA","44430","MAICAO","Municipio"]
[null,null,null,null,null,null,null,null,"CENTROS","44","LA GUAJIRA","4404","CZ MANAURE","44560","MANAURE","44","LA GUAJIRA","44560","MANAURE","Municipio"]
[null,null,null,null,null,null,null,null,"CENTROS","44","LA GUAJIRA","4403","CZ FONSECA","44650","SAN JUAN DEL CESAR","44","LA GUAJIRA","44650","SAN JUAN DEL CESAR","Municipio"]
[null,null,null,null,null,null,null,null,"CENTROS","44","LA GUAJIRA","4404","CZ MANAURE","44847","URIBIA","44","LA GUAJIRA","44847","URIBIA","Municipio"]
[null,null,null,null,null,null,null,null,"CENTROS","44","LA GUAJIRA","4408","CZ NAZARETH","44847","URIBIA","44","LA GUAJIRA","44847","URIBIA","Municipio"]
[null,null,null,null,null,null,null,null,"CENTROS","44","LA GUAJIRA","4403","CZ FONSECA","44855","URUMITA","44","LA GUAJIRA","44855","URUMITA","Municipio"]
[null,null,null,null,null,null,null,null,"CENTROS","44","LA GUAJIRA","4403","CZ FONSECA","44874","VILLANUEVA","44","LA GUAJIRA","44874","VILLANUEVA","Municipio"]
[null,null,null,null,null,null,null,null,"CENTROS","47","MAGDALENA","4701","CZ SANTA MARTA 1","47001","SANTA MARTA","47","MAGDALENA","47001","SANTA MARTA","Municipio"]
[null,null,null,null,null,null,null,null,"CENTROS","47","MAGDALENA","4702","CZ SANTA MARTA 2","47001","SANTA MARTA","47","MAGDALENA","47001","SANTA MARTA","Municipio"]
[null,null,null,null,null,null,null,null,"CENTROS","47","MAGDALENA","4705","CZ FUNDACIÓN","47030","ALGARROBO","47","MAGDALENA","47030","ALGARROBO","Municipio"]
[null,null,null,null,null,null,null,null,"CENTROS","47","MAGDALENA","4705","CZ FUNDACIÓN","47053","ARACATACA","47","MAGDALENA","47053","ARACATACA","Municipio"]
[null,null,null,null,null,null,null,null,"CENTROS","47","MAGDALENA","4706","CZ PLATO","47058","ARIGUANÍ","47","MAGDALENA","47058","ARIGUANÍ","Municipio"]
[null,null,null,null,null,null,null,null,"CENTROS","47","MAGDALENA","4703","CZ DEL RIO","47161","CERRO DE SAN ANTONIO","47","MAGDALENA","47161","CERRO DE SAN ANTONIO","Municipio"]
[null,null,null,null,null,null,null,null,"CENTROS","47","MAGDALENA","4706","CZ PLATO","47170","CHIVOLO","47","MAGDALENA","47170","CHIVOLO","Municipio"]
[null,null,null,null,null,null,null,null,"CENTROS","47","MAGDALENA","4704","CZ CIENAGA","47189","CIÉNAGA","47","MAGDALENA","47189","CIÉNAGA","Municipio"]
[null,null,null,null,null,null,null,null,"CENTROS","47","MAGDALENA","4703","CZ DEL RIO","47205","CONCORDIA","47","MAGDALENA","47205","CONCORDIA","Municipio"]
[null,null,null,null,null,null,null,null,"CENTROS","47","MAGDALENA","4707","CZ EL BANCO","47245","EL BANCO","47","MAGDALENA","47245","EL BANCO","Municipio"]
[null,null,null,null,null,null,null,null,"CENTROS","47","MAGDALENA","4703","CZ DEL RIO","47258","EL PIÑON","47","MAGDALENA","47258","EL PIÑÓN","Municipio"]
[null,null,null,null,null,null,null,null,"CENTROS","47","MAGDALENA","4705","CZ FUNDACIÓN","47268","EL RETÉN","47","MAGDALENA","47268","EL RETÉN","Municipio"]
[null,null,null,null,null,null,null,null,"CENTROS","47","MAGDALENA","4705","CZ FUNDACIÓN","47288","FUNDACIÓN","47","MAGDALENA","47288","FUNDACIÓN","Municipio"]
[null,null,null,null,null,null,null,null,"CENTROS","47","MAGDALENA","4707","CZ EL BANCO","47318","GUAMAL","47","MAGDALENA","47318","GUAMAL","Municipio"]
[null,null,null,null,null,null,null,null,"CENTROS","47","MAGDALENA","4706","CZ PLATO","47460","NUEVA GRANADA","47","MAGDALENA","47460","NUEVA GRANADA","Municipio"]
[null,null,null,null,null,null,null,null,"CENTROS","47","MAGDALENA","4706","CZ PLATO","47541","PEDRAZA","47","MAGDALENA","47541","PEDRAZA","Municipio"]
[null,null,null,null,null,null,null,null,"CENTROS","47","MAGDALENA","4708","CZ SANTA ANA","47545","PIJIÑO DEL CARMEN","47","MAGDALENA","47545","PIJIÑO DEL CARMEN","Municipio"]
[null,null,null,null,null,null,null,null,"CENTROS","47","MAGDALENA","4703","CZ DEL RIO","47551","PIVIJAY","47","MAGDALENA","47551","PIVIJAY","Municipio"]
[null,null,null,null,null,null,null,null,"CENTROS","47","MAGDALENA","4706","CZ PLATO","47555","PLATO","47","MAGDALENA","47555","PLATO","Municipio"]
[null,null,null,null,null,null,null,null,"CENTROS","47","MAGDALENA","4704","CZ CIENAGA","47570","PUEBLOVIEJO","47","MAGDALENA","47570","PUEBLOVIEJO","Municipio"]
[null,null,null,null,null,null,null,null,"CENTROS","47","MAGDALENA","4704","CZ CIENAGA","47605","REMOLINO","47","MAGDALENA","47605","REMOLINO","Municipio"]
[null,null,null,null,null,null,null,null,"CENTROS","47","MAGDALENA","4705","CZ FUNDACIÓN","47660","SABANAS DE SAN ANGEL","47","MAGDALENA","47660","SABANAS DE SAN ÁNGEL","Municipio"]
[null,null,null,null,null,null,null,null,"CENTROS","47","MAGDALENA","4703","CZ DEL RIO","47675","SALAMINA","47","MAGDALENA","47675","SALAMINA","Municipio"]
[null,null,null,null,null,null,null,null,"CENTROS","47","MAGDALENA","4707","CZ EL BANCO","47692","SAN SEBASTIÁN DE BUENAVISTA","47","MAGDALENA","47692","SAN SEBASTIÁN DE BUENAVISTA","Municipio"]
[null,null,null,null,null,null,null,null,"CENTROS","47","MAGDALENA","4708","CZ SANTA ANA","47703","SAN ZENÓN","47","MAGDALENA","47703","SAN ZENÓN","Municipio"]
[null,null,null,null,null,null,null,null,"CENTROS","47","MAGDALENA","4708","CZ SANTA ANA","47707","SANTA ANA","47","MAGDALENA","47707","SANTA ANA","Municipio"]
[null,null,null,null,null,null,null,null,"CENTROS","47","MAGDALENA","4708","CZ SANTA ANA","47720","SANTA BÁRBARA DE PINTO","47","MAGDALENA","47720","SANTA BÁRBARA DE PINTO","Municipio"]
[null,null,null,null,null,null,null,null,"CENTROS","47","MAGDALENA","4704","CZ CIENAGA","47745","SITIONUEVO","47","MAGDALENA","47745","SITIONUEVO","Municipio"]
[null,null,null,null,null,null,null,null,"CENTROS","47","MAGDALENA","4706","CZ PLATO","47798","TENERIFE","47","MAGDALENA","47798","TENERIFE","Municipio"]
[null,null,null,null,null,null,null,null,"CENTROS","47","MAGDALENA","4706","CZ PLATO","47960","ZAPAYÁN","47","MAGDALENA","47960","ZAPAYÁN","Municipio"]
[null,null,null,null,null,null,null,null,"CENTROS","47","MAGDALENA","4704","CZ CIENAGA","47980","ZONA BANANERA","47","MAGDALENA","47980","ZONA BANANERA","Municipio"]
[null,null,null,null,null,null,null,null,"CENTROS","50","META","5001","CZ VILLAVICENCIO 1","50001","VILLAVICENCIO","50","META","50001","VILLAVICENCIO","Municipio"]
[null,null,null,null,null,null,null,null,"CENTROS","50","META","5002","CZ VILLAVICENCIO 2","50001","VILLAVICENCIO","50","META","50001","VILLAVICENCIO","Municipio"]
[null,null,null,null,null,null,null,null,"CENTROS","50","META","5004","CZ ACACIAS","50006","ACACÍAS","50","META","50006","ACACÍAS","Municipio"]
[null,null,null,null,null,null,null,null,"CENTROS","50","META","5001","CZ VILLAVICENCIO 1","50110","BARRANCA DE UPÍA","50","META","50110","BARRANCA DE UPÍA","Municipio"]
[null,null,null,null,null,null,null,null,"CENTROS","50","META","5002","CZ VILLAVICENCIO 2","50110","BARRANCA DE UPÍA","50","META","50110","BARRANCA DE UPÍA","Municipio"]
[null,null,null,null,null,null,null,null,"CENTROS","50","META","5005","CZ PUERTO LOPEZ","50124","CABUYARO","50","META","50124","CABUYARO","Municipio"]
[null,null,null,null,null,null,null,null,"CENTROS","50","META","5004","CZ ACACIAS","50150","CASTILLA LA NUEVA","50","META","50150","CASTILLA LA NUEVA","Municipio"]
[null,null,null,null,null,null,null,null,"CENTROS","50","META","5004","CZ ACACIAS","50223","CUBARRAL","50","META","50223","CUBARRAL","Municipio"]
[null,null,null,null,null,null,null,null,"CENTROS","50","META","5001","CZ VILLAVICENCIO 1","50226","CUMARAL","50","META","50226","CUMARAL","Municipio"]
[null,null,null,null,null,null,null,null,"CENTROS","50","META","5002","CZ VILLAVICENCIO 2","50226","CUMARAL","50","META","50226","CUMARAL","Municipio"]
[null,null,null,null,null,null,null,null,"CENTROS","50","META","5001","CZ VILLAVICENCIO 1","50245","EL CALVARIO","50","META","50245","EL CALVARIO","Municipio"]
[null,null,null,null,null,null,null,null,"CENTROS","50","META","5002","CZ VILLAVICENCIO 2","50245","EL CALVARIO","50","META","50245","EL CALVARIO","Municipio"]
[null,null,null,null,null,null,null,null,"CENTROS","50","META","5004","CZ ACACIAS","50251","EL CASTILLO","50","META","50251","EL CASTILLO","Municipio"]
[null,null,null,null,null,null,null,null,"CENTROS","50","META","5004","CZ ACACIAS","50270","EL DORADO","50","META","50270","EL DORADO","Municipio"]
[null,null,null,null,null,null,null,null,"CENTROS","50","META","5003","CZ GRANADA","50287","FUENTE DE ORO","50","META","50287","FUENTE DE ORO","Municipio"]
[null,null,null,null,null,null,null,null,"CENTROS","50","META","5003","CZ GRANADA","50313","GRANADA","50","META","50313","GRANADA","Municipio"]
[null,null,null,null,null,null,null,null,"CENTROS","50","META","5004","CZ ACACIAS","50318","GUAMAL","50","META","50318","GUAMAL","Municipio"]
[null,null,null,null,null,null,null,null,"CENTROS","50","META","5001","CZ VILLAVICENCIO 1","50325","MAPIRIPÁN","50","META","50325","MAPIRIPÁN","Municipio"]
[null,null,null,null,null,null,null,null,"CENTROS","50","META","5002","CZ VILLAVICENCIO 2","50325","MAPIRIPÁN","50","META","50325","MAPIRIPÁN","Municipio"]
[null,null,null,null,null,null,null,null,"CENTROS","50","META","5003","CZ GRANADA","50330","MESETAS","50","META","50330","MESETAS","Municipio"]
[null,null,null,null,null,null,null,null,"CENTROS","50","META","5001","CZ VILLAVICENCIO 1","50350","LA MACARENA","50","META","50350","LA MACARENA","Municipio"]
[null,null,null,null,null,null,null,null,"CENTROS","50","META","5002","CZ VILLAVICENCIO 2","50350","LA MACARENA","50","META","50350","LA MACARENA","Municipio"]
[null,null,null,null,null,null,null,null,"CENTROS","50","META","5003","CZ GRANADA","50370","URIBE","50","META","50370","URIBE","Municipio"]
[null,null,null,null,null,null,null,null,"CENTROS","50","META","5003","CZ GRANADA","50400","LEJANÍAS","50","META","50400","LEJANÍAS","Municipio"]
[null,null,null,null,null,null,null,null,"CENTROS","50","META","5003","CZ GRANADA","50450","PUERTO CONCORDIA","50","META","50450","PUERTO CONCORDIA","Municipio"]
[null,null,null,null,null,null,null,null,"CENTROS","50","META","5005","CZ PUERTO LOPEZ","50568","PUERTO GAITÁN","50","META","50568","PUERTO GAITÁN","Municipio"]
[null,null,null,null,null,null,null,null,"CENTROS","50","META","5005","CZ PUERTO LOPEZ","50573","PUERTO LÓPEZ","50","META","50573","PUERTO LÓPEZ","Municipio"]
[null,null,null,null,null,null,null,null,"CENTROS","50","META","5003","CZ GRANADA","50577","PUERTO LLERAS","50","META","50577","PUERTO LLERAS","Municipio"]
[null,null,null,null,null,null,null,null,"CENTROS","50","META","5003","CZ GRANADA","50590","PUERTO RICO","50","META","50590","PUERTO RICO","Municipio"]
[null,null,null,null,null,null,null,null,"CENTROS","50","META","5001","CZ VILLAVICENCIO 1","50606","RESTREPO","50","META","50606","RESTREPO","Municipio"]
[null,null,null,null,null,null,null,null,"CENTROS","50","META","5002","CZ VILLAVICENCIO 2","50606","RESTREPO","50","META","50606","RESTREPO","Municipio"]
[null,null,null,null,null,null,null,null,"CENTROS","50","META","5004","CZ ACACIAS","50680","SAN CARLOS DE GUAROA","50","META","50680","SAN CARLOS DE GUAROA","Municipio"]
[null,null,null,null,null,null,null,null,"CENTROS","50","META","5003","CZ GRANADA","50683","SAN JUAN DE ARAMA","50","META","50683","SAN JUAN DE ARAMA","Municipio"]
[null,null,null,null,null,null,null,null,"CENTROS","50","META","5001","CZ VILLAVICENCIO 1","50686","SAN JUANITO","50","META","50686","SAN JUANITO","Municipio"]
[null,null,null,null,null,null,null,null,"CENTROS","50","META","5002","CZ VILLAVICENCIO 2","50686","SAN JUANITO","50","META","50686","SAN JUANITO","Municipio"]
[null,null,null,null,null,null,null,null,"CENTROS","50","META","5004","CZ ACACIAS","50689","SAN MARTÍN","50","META","50689","SAN MARTÍN","Municipio"]
[null,null,null,null,null,null,null,null,"CENTROS","50","META","5003","CZ GRANADA","50711","VISTAHERMOSA","50","META","50711","VISTAHERMOSA","Municipio"]
[null,null,null,null,null,null,null,null,"CENTROS","52","NARIÑO","5201","CZ PASTO 1","52001","PASTO","52","NARIÑO","52001","PASTO","Municipio"]
[null,null,null,null,null,null,null,null,"CENTROS","52","NARIÑO","5202","CZ PASTO 2","52001","PASTO","52","NARIÑO","52001","PASTO","Municipio"]
[null,null,null,null,null,null,null,null,"CENTROS","52","NARIÑO","5201","CZ PASTO 1","52019","ALBÁN","52","NARIÑO","52019","ALBÁN","Municipio"]
[null,null,null,null,null,null,null,null,"CENTROS","52","NARIÑO","5204","CZ IPIALES","52022","ALDANA","52","NARIÑO","52022","ALDANA","Municipio"]
[null,null,null,null,null,null,null,null,"CENTROS","52","NARIÑO","5202","CZ PASTO 2","52036","ANCUYÁ","52","NARIÑO","52036","ANCUYA","Municipio"]
[null,null,null,null,null,null,null,null,"CENTROS","52","NARIÑO","5206","CZ LA UNION","52051","ARBOLEDA","52","NARIÑO","52051","ARBOLEDA","Municipio"]
[null,null,null,null,null,null,null,null,"CENTROS","52","NARIÑO","5207","CZ BARBACOAS","52079","BARBACOAS","52","NARIÑO","52079","BARBACOAS","Municipio"]
[null,null,null,null,null,null,null,null,"CENTROS","52","NARIÑO","5206","CZ LA UNION","52083","BELÉN","52","NARIÑO","52083","BELÉN","Municipio"]
[null,null,null,null,null,null,null,null,"CENTROS","52","NARIÑO","5201","CZ PASTO 1","52110","BUESACO","52","NARIÑO","52110","BUESACO","Municipio"]
[null,null,null,null,null,null,null,null,"CENTROS","52","NARIÑO","5206","CZ LA UNION","52203","COLÓN","52","NARIÑO","52203","COLÓN","Municipio"]
[null,null,null,null,null,null,null,null,"CENTROS","52","NARIÑO","5202","CZ PASTO 2","52207","CONSACA","52","NARIÑO","52207","CONSACÁ","Municipio"]
[null,null,null,null,null,null,null,null,"CENTROS","52","NARIÑO","5204","CZ IPIALES","52210","CONTADERO","52","NARIÑO","52210","CONTADERO","Municipio"]
[null,null,null,null,null,null,null,null,"CENTROS","52","NARIÑO","5204","CZ IPIALES","52215","CÓRDOBA","52","NARIÑO","52215","CÓRDOBA","Municipio"]
[null,null,null,null,null,null,null,null,"CENTROS","52","NARIÑO","5204","CZ IPIALES","52224","CUASPUD CARLOSAMA","52","NARIÑO","52224","CUASPUD CARLOSAMA","Municipio"]
[null,null,null,null,null,null,null,null,"CENTROS","52","NARIÑO","5204","CZ IPIALES","52227","CUMBAL","52","NARIÑO","52227","CUMBAL","Municipio"]
[null,null,null,null,null,null,null,null,"CENTROS","52","NARIÑO","5208","CZ REMOLINO","52233","CUMBITARA","52","NARIÑO","52233","CUMBITARA","Municipio"]
[null,null,null,null,null,null,null,null,"CENTROS","52","NARIÑO","5201","CZ PASTO 1","52240","CHACHAGUÍ","52","NARIÑO","52240","CHACHAGÜÍ","Municipio"]
[null,null,null,null,null,null,null,null,"CENTROS","52","NARIÑO","5203","CZ TUMACO","52250","EL CHARCO","52","NARIÑO","52250","EL CHARCO","Municipio"]
[null,null,null,null,null,null,null,null,"CENTROS","52","NARIÑO","5202","CZ PASTO 2","52254","EL PEÑOL","52","NARIÑO","52254","EL PEÑOL","Municipio"]
[null,null,null,null,null,null,null,null,"CENTROS","52","NARIÑO","5208","CZ REMOLINO","52256","EL ROSARIO","52","NARIÑO","52256","EL ROSARIO","Municipio"]
[null,null,null,null,null,null,null,null,"CENTROS","52","NARIÑO","5201","CZ PASTO 1","52258","EL TABLÓN DE GÓMEZ","52","NARIÑO","52258","EL TABLÓN DE GÓMEZ","Municipio"]
[null,null,null,null,null,null,null,null,"CENTROS","52","NARIÑO","5202","CZ PASTO 2","52260","EL TAMBO","52","NARIÑO","52260","EL TAMBO","Municipio"]
[null,null,null,null,null,null,null,null,"CENTROS","52","NARIÑO","5201","CZ PASTO 1","52287","FUNES","52","NARIÑO","52287","FUNES","Municipio"]
[null,null,null,null,null,null,null,null,"CENTROS","52","NARIÑO","5204","CZ IPIALES","52317","GUACHUCAL","52","NARIÑO","52317","GUACHUCAL","Municipio"]
[null,null,null,null,null,null,null,null,"CENTROS","52","NARIÑO","5205","CZ TUQUERRES","52320","GUAITARILLA","52","NARIÑO","52320","GUAITARILLA","Municipio"]
[null,null,null,null,null,null,null,null,"CENTROS","52","NARIÑO","5204","CZ IPIALES","52323","GUALMATÁN","52","NARIÑO","52323","GUALMATÁN","Municipio"]
[null,null,null,null,null,null,null,null,"CENTROS","52","NARIÑO","5204","CZ IPIALES","52352","ILES","52","NARIÑO","52352","ILES","Municipio"]
[null,null,null,null,null,null,null,null,"CENTROS","52","NARIÑO","5205","CZ TUQUERRES","52354","IMUÉS","52","NARIÑO","52354","IMUÉS","Municipio"]
[null,null,null,null,null,null,null,null,"CENTROS","52","NARIÑO","5204","CZ IPIALES","52356","IPIALES","52","NARIÑO","52356","IPIALES","Municipio"]
[null,null,null,null,null,null,null,null,"CENTROS","52","NARIÑO","5206","CZ LA UNION","52378","LA CRUZ","52","NARIÑO","52378","LA CRUZ","Municipio"]
[null,null,null,null,null,null,null,null,"CENTROS","52","NARIÑO","5202","CZ PASTO 2","52381","LA FLORIDA","52","NARIÑO","52381","LA FLORIDA","Municipio"]
[null,null,null,null,null,null,null,null,"CENTROS","52","NARIÑO","5205","CZ TUQUERRES","52385","LA LLANADA","52","NARIÑO","52385","LA LLANADA","Municipio"]
[null,null,null,null,null,null,null,null,"CENTROS","52","NARIÑO","5203","CZ TUMACO","52390","LA TOLA","52","NARIÑO","52390","LA TOLA","Municipio"]
[null,null,null,null,null,null,null,null,"CENTROS","52","NARIÑO","5206","CZ LA UNION","52399","LA UNIÓN","52","NARIÑO","52399","LA UNIÓN","Municipio"]
[null,null,null,null,null,null,null,null,"CENTROS","52","NARIÑO","5208","CZ REMOLINO","52405","LEIVA","52","NARIÑO","52405","LEIVA","Municipio"]
[null,null,null,null,null,null,null,null,"CENTROS","52","NARIÑO","5202","CZ PASTO 2","52411","LINARES","52","NARIÑO","52411","LINARES","Municipio"]
[null,null,null,null,null,null,null,null,"CENTROS","52","NARIÑO","5202","CZ PASTO 2","52418","LOS ANDES","52","NARIÑO","52418","LOS ANDES","Municipio"]
[null,null,null,null,null,null,null,null,"CENTROS","52","NARIÑO","5207","CZ BARBACOAS","52427","MAGUÍ","52","NARIÑO","52427","MAGÜÍ","Municipio"]
[null,null,null,null,null,null,null,null,"CENTROS","52","NARIÑO","5205","CZ TUQUERRES","52435","MALLAMA","52","NARIÑO","52435","MALLAMA","Municipio"]
[null,null,null,null,null,null,null,null,"CENTROS","52","NARIÑO","5203","CZ TUMACO","52473","MOSQUERA","52","NARIÑO","52473","MOSQUERA","Municipio"]
[null,null,null,null,null,null,null,null,"CENTROS","52","NARIÑO","5202","CZ PASTO 2","52480","NARIÑO","52","NARIÑO","52480","NARIÑO","Municipio"]
[null,null,null,null,null,null,null,null,"CENTROS","52","NARIÑO","5203","CZ TUMACO","52490","OLAYA HERRERA","52","NARIÑO","52490","OLAYA HERRERA","Municipio"]
[null,null,null,null,null,null,null,null,"CENTROS","52","NARIÑO","5205","CZ TUQUERRES","52506","OSPINA","52","NARIÑO","52506","OSPINA","Municipio"]
[null,null,null,null,null,null,null,null,"CENTROS","52","NARIÑO","5203","CZ TUMACO","52520","FRANCISCO PIZARRO","52","NARIÑO","52520","FRANCISCO PIZARRO","Municipio"]
[null,null,null,null,null,null,null,null,"CENTROS","52","NARIÑO","5208","CZ REMOLINO","52540","POLICARPA","52","NARIÑO","52540","POLICARPA","Municipio"]
[null,null,null,null,null,null,null,null,"CENTROS","52","NARIÑO","5204","CZ IPIALES","52560","POTOSÍ","52","NARIÑO","52560","POTOSÍ","Municipio"]
[null,null,null,null,null,null,null,null,"CENTROS","52","NARIÑO","5205","CZ TUQUERRES","52565","PROVIDENCIA","52","NARIÑO","52565","PROVIDENCIA","Municipio"]
[null,null,null,null,null,null,null,null,"CENTROS","52","NARIÑO","5204","CZ IPIALES","52573","PUERRES","52","NARIÑO","52573","PUERRES","Municipio"]
[null,null,null,null,null,null,null,null,"CENTROS","52","NARIÑO","5204","CZ IPIALES","52585","PUPIALES","52","NARIÑO","52585","PUPIALES","Municipio"]
[null,null,null,null,null,null,null,null,"CENTROS","52","NARIÑO","5205","CZ TUQUERRES","52612","RICAURTE","52","NARIÑO","52612","RICAURTE","Municipio"]
[null,null,null,null,null,null,null,null,"CENTROS","52","NARIÑO","5207","CZ BARBACOAS","52621","ROBERTO PAYÁN","52","NARIÑO","52621","ROBERTO PAYÁN","Municipio"]
[null,null,null,null,null,null,null,null,"CENTROS","52","NARIÑO","5205","CZ TUQUERRES","52678","SAMANIEGO","52","NARIÑO","52678","SAMANIEGO","Municipio"]
[null,null,null,null,null,null,null,null,"CENTROS","52","NARIÑO","5202","CZ PASTO 2","52683","SANDONÁ","52","NARIÑO","52683","SANDONÁ","Municipio"]
[null,null,null,null,null,null,null,null,"CENTROS","52","NARIÑO","5201","CZ PASTO 1","52685","SAN BERNARDO","52","NARIÑO","52685","SAN BERNARDO","Municipio"]
[null,null,null,null,null,null,null,null,"CENTROS","52","NARIÑO","5206","CZ LA UNION","52687","SAN LORENZO","52","NARIÑO","52687","SAN LORENZO","Municipio"]
[null,null,null,null,null,null,null,null,"CENTROS","52","NARIÑO","5206","CZ LA UNION","52693","SAN PABLO","52","NARIÑO","52693","SAN PABLO","Municipio"]
[null,null,null,null,null,null,null,null,"CENTROS","52","NARIÑO","5206","CZ LA UNION","52694","SAN PEDRO DE CARTAGO","52","NARIÑO","52694","SAN PEDRO DE CARTAGO","Municipio"]
[null,null,null,null,null,null,null,null,"CENTROS","52","NARIÑO","5203","CZ TUMACO","52696","SANTA BÁRBARA","52","NARIÑO","52696","SANTA BÁRBARA","Municipio"]
[null,null,null,null,null,null,null,null,"CENTROS","52","NARIÑO","5205","CZ TUQUERRES","52699","SANTACRUZ","52","NARIÑO","52699","SANTACRUZ","Municipio"]
[null,null,null,null,null,null,null,null,"CENTROS","52","NARIÑO","5205","CZ TUQUERRES","52720","SAPUYES","52","NARIÑO","52720","SAPUYES","Municipio"]
[null,null,null,null,null,null,null,null,"CENTROS","52","NARIÑO","5208","CZ REMOLINO","52786","TAMINANGO","52","NARIÑO","52786","TAMINANGO","Municipio"]
[null,null,null,null,null,null,null,null,"CENTROS","52","NARIÑO","5201","CZ PASTO 1","52788","TANGUA","52","NARIÑO","52788","TANGUA","Municipio"]
[null,null,null,null,null,null,null,null,"CENTROS","52","NARIÑO","5203","CZ TUMACO","52835","SAN ANDRÉS DE TUMACO","52","NARIÑO","52835","SAN ANDRÉS DE TUMACO","Municipio"]
[null,null,null,null,null,null,null,null,"CENTROS","52","NARIÑO","5205","CZ TUQUERRES","52838","TÚQUERRES","52","NARIÑO","52838","TÚQUERRES","Municipio"]
[null,null,null,null,null,null,null,null,"CENTROS","52","NARIÑO","5201","CZ PASTO 1","52885","YACUANQUER","52","NARIÑO","52885","YACUANQUER","Municipio"]
[null,null,null,null,null,null,null,null,"CENTROS","54","NORTE DE SANTANDER","5401","CZ CUCUTA 1","54001","SAN JOSÉ DE CÚCUTA","54","NORTE DE SANTANDER","54001","SAN JOSÉ DE CÚCUTA","Municipio"]
[null,null,null,null,null,null,null,null,"CENTROS","54","NORTE DE SANTANDER","5402","CZ CUCUTA 2","54001","SAN JOSÉ DE CÚCUTA","54","NORTE DE SANTANDER","54001","SAN JOSÉ DE CÚCUTA","Municipio"]
[null,null,null,null,null,null,null,null,"CENTROS","54","NORTE DE SANTANDER","5403","CZ CUCUTA 3","54001","SAN JOSÉ DE CÚCUTA","54","NORTE DE SANTANDER","54001","SAN JOSÉ DE CÚCUTA","Municipio"]
[null,null,null,null,null,null,null,null,"CENTROS","54","NORTE DE SANTANDER","5404","CZ OCAÑA","54003","ABREGO","54","NORTE DE SANTANDER","54003","ÁBREGO","Municipio"]
[null,null,null,null,null,null,null,null,"CENTROS","54","NORTE DE SANTANDER","5401","CZ CUCUTA 1","54051","ARBOLEDAS","54","NORTE DE SANTANDER","54051","ARBOLEDAS","Municipio"]
[null,null,null,null,null,null,null,null,"CENTROS","54","NORTE DE SANTANDER","5403","CZ CUCUTA 3","54099","BOCHALEMA","54","NORTE DE SANTANDER","54099","BOCHALEMA","Municipio"]
[null,null,null,null,null,null,null,null,"CENTROS","54","NORTE DE SANTANDER","5402","CZ CUCUTA 2","54109","BUCARASICA","54","NORTE DE SANTANDER","54109","BUCARASICA","Municipio"]
[null,null,null,null,null,null,null,null,"CENTROS","54","NORTE DE SANTANDER","5405","CZ PAMPLONA","54125","CÁCOTA","54","NORTE DE SANTANDER","54125","CÁCOTA","Municipio"]
[null,null,null,null,null,null,null,null,"CENTROS","54","NORTE DE SANTANDER","5404","CZ OCAÑA","54128","CACHIRÁ","54","NORTE DE SANTANDER","54128","CÁCHIRA","Municipio"]
[null,null,null,null,null,null,null,null,"CENTROS","54","NORTE DE SANTANDER","5403","CZ CUCUTA 3","54172","CHINÁCOTA","54","NORTE DE SANTANDER","54172","CHINÁCOTA","Municipio"]
[null,null,null,null,null,null,null,null,"CENTROS","54","NORTE DE SANTANDER","5405","CZ PAMPLONA","54174","CHITAGÁ","54","NORTE DE SANTANDER","54174","CHITAGÁ","Municipio"]
[null,null,null,null,null,null,null,null,"CENTROS","54","NORTE DE SANTANDER","5404","CZ OCAÑA","54206","CONVENCIÓN","54","NORTE DE SANTANDER","54206","CONVENCIÓN","Municipio"]
[null,null,null,null,null,null,null,null,"CENTROS","54","NORTE DE SANTANDER","5405","CZ PAMPLONA","54223","CUCUTILLA","54","NORTE DE SANTANDER","54223","CUCUTILLA","Municipio"]
[null,null,null,null,null,null,null,null,"CENTROS","54","NORTE DE SANTANDER","5401","CZ CUCUTA 1","54239","DURANIA","54","NORTE DE SANTANDER","54239","DURANIA","Municipio"]
[null,null,null,null,null,null,null,null,"CENTROS","54","NORTE DE SANTANDER","5404","CZ OCAÑA","54245","EL CARMEN","54","NORTE DE SANTANDER","54245","EL CARMEN","Municipio"]
[null,null,null,null,null,null,null,null,"CENTROS","54","NORTE DE SANTANDER","5406","CZ TIBU","54250","EL TARRA","54","NORTE DE SANTANDER","54250","EL TARRA","Municipio"]
[null,null,null,null,null,null,null,null,"CENTROS","54","NORTE DE SANTANDER","5401","CZ CUCUTA 1","54261","EL ZULIA","54","NORTE DE SANTANDER","54261","EL ZULIA","Municipio"]
[null,null,null,null,null,null,null,null,"CENTROS","54","NORTE DE SANTANDER","5402","CZ CUCUTA 2","54313","GRAMALOTE","54","NORTE DE SANTANDER","54313","GRAMALOTE","Municipio"]
[null,null,null,null,null,null,null,null,"CENTROS","54","NORTE DE SANTANDER","5404","CZ OCAÑA","54344","HACARÍ","54","NORTE DE SANTANDER","54344","HACARÍ","Municipio"]
[null,null,null,null,null,null,null,null,"CENTROS","54","NORTE DE SANTANDER","5403","CZ CUCUTA 3","54347","HERRÁN","54","NORTE DE SANTANDER","54347","HERRÁN","Municipio"]
[null,null,null,null,null,null,null,null,"CENTROS","54","NORTE DE SANTANDER","5405","CZ PAMPLONA","54377","LABATECA","54","NORTE DE SANTANDER","54377","LABATECA","Municipio"]
[null,null,null,null,null,null,null,null,"CENTROS","54","NORTE DE SANTANDER","5404","CZ OCAÑA","54385","LA ESPERANZA","54","NORTE DE SANTANDER","54385","LA ESPERANZA","Municipio"]
[null,null,null,null,null,null,null,null,"CENTROS","54","NORTE DE SANTANDER","5404","CZ OCAÑA","54398","LA PLAYA","54","NORTE DE SANTANDER","54398","LA PLAYA","Municipio"]
[null,null,null,null,null,null,null,null,"CENTROS","54","NORTE DE SANTANDER","5401","CZ CUCUTA 1","54405","LOS PATIOS","54","NORTE DE SANTANDER","54405","LOS PATIOS","Municipio"]
[null,null,null,null,null,null,null,null,"CENTROS","54","NORTE DE SANTANDER","5402","CZ CUCUTA 2","54418","LOURDES","54","NORTE DE SANTANDER","54418","LOURDES","Municipio"]
[null,null,null,null,null,null,null,null,"CENTROS","54","NORTE DE SANTANDER","5405","CZ PAMPLONA","54480","MUTISCUA","54","NORTE DE SANTANDER","54480","MUTISCUA","Municipio"]
[null,null,null,null,null,null,null,null,"CENTROS","54","NORTE DE SANTANDER","5404","CZ OCAÑA","54498","OCAÑA","54","NORTE DE SANTANDER","54498","OCAÑA","Municipio"]
[null,null,null,null,null,null,null,null,"CENTROS","54","NORTE DE SANTANDER","5405","CZ PAMPLONA","54518","PAMPLONA","54","NORTE DE SANTANDER","54518","PAMPLONA","Municipio"]
[null,null,null,null,null,null,null,null,"CENTROS","54","NORTE DE SANTANDER","5405","CZ PAMPLONA","54520","PAMPLONITA","54","NORTE DE SANTANDER","54520","PAMPLONITA","Municipio"]
[null,null,null,null,null,null,null,null,"CENTROS","54","NORTE DE SANTANDER","5403","CZ CUCUTA 3","54553","PUERTO SANTANDER","54","NORTE DE SANTANDER","54553","PUERTO SANTANDER","Municipio"]
[null,null,null,null,null,null,null,null,"CENTROS","54","NORTE DE SANTANDER","5403","CZ CUCUTA 3","54599","RAGONVALIA","54","NORTE DE SANTANDER","54599","RAGONVALIA","Municipio"]
[null,null,null,null,null,null,null,null,"CENTROS","54","NORTE DE SANTANDER","5401","CZ CUCUTA 1","54660","SALAZAR","54","NORTE DE SANTANDER","54660","SALAZAR","Municipio"]
[null,null,null,null,null,null,null,null,"CENTROS","54","NORTE DE SANTANDER","5404","CZ OCAÑA","54670","SAN CALIXTO","54","NORTE DE SANTANDER","54670","SAN CALIXTO","Municipio"]
[null,null,null,null,null,null,null,null,"CENTROS","54","NORTE DE SANTANDER","5401","CZ CUCUTA 1","54673","SAN CAYETANO","54","NORTE DE SANTANDER","54673","SAN CAYETANO","Municipio"]
[null,null,null,null,null,null,null,null,"CENTROS","54","NORTE DE SANTANDER","5402","CZ CUCUTA 2","54680","SANTIAGO","54","NORTE DE SANTANDER","54680","SANTIAGO","Municipio"]
[null,null,null,null,null,null,null,null,"CENTROS","54","NORTE DE SANTANDER","5402","CZ CUCUTA 2","54720","SARDINATA","54","NORTE DE SANTANDER","54720","SARDINATA","Municipio"]
[null,null,null,null,null,null,null,null,"CENTROS","54","NORTE DE SANTANDER","5405","CZ PAMPLONA","54743","SILOS","54","NORTE DE SANTANDER","54743","SILOS","Municipio"]
[null,null,null,null,null,null,null,null,"CENTROS","54","NORTE DE SANTANDER","5404","CZ OCAÑA","54800","TEORAMA","54","NORTE DE SANTANDER","54800","TEORAMA","Municipio"]
[null,null,null,null,null,null,null,null,"CENTROS","54","NORTE DE SANTANDER","5406","CZ TIBU","54810","TIBÚ","54","NORTE DE SANTANDER","54810","TIBÚ","Municipio"]
[null,null,null,null,null,null,null,null,"CENTROS","54","NORTE DE SANTANDER","5405","CZ PAMPLONA","54820","TOLEDO","54","NORTE DE SANTANDER","54820","TOLEDO","Municipio"]
[null,null,null,null,null,null,null,null,"CENTROS","54","NORTE DE SANTANDER","5402","CZ CUCUTA 2","54871","VILLA CARO","54","NORTE DE SANTANDER","54871","VILLA CARO","Municipio"]
[null,null,null,null,null,null,null,null,"CENTROS","54","NORTE DE SANTANDER","5403","CZ CUCUTA 3","54874","VILLA DEL ROSARIO","54","NORTE DE SANTANDER","54874","VILLA DEL ROSARIO","Municipio"]
[null,null,null,null,null,null,null,null,"CENTROS","63","QUINDÍO","6301","CZ ARMENIA SUR","63001","ARMENIA","63","QUINDÍO","63001","ARMENIA","Municipio"]
[null,null,null,null,null,null,null,null,"CENTROS","63","QUINDÍO","6302","CZ ARMENIA NORTE","63001","ARMENIA","63","QUINDÍO","63001","ARMENIA","Municipio"]
[null,null,null,null,null,null,null,null,"CENTROS","63","QUINDÍO","6303","CZ CALARCA","63111","BUENAVISTA","63","QUINDÍO","63111","BUENAVISTA","Municipio"]
[null,null,null,null,null,null,null,null,"CENTROS","63","QUINDÍO","6303","CZ CALARCA","63130","CALARCA","63","QUINDÍO","63130","CALARCÁ","Municipio"]
[null,null,null,null,null,null,null,null,"CENTROS","63","QUINDÍO","6301","CZ ARMENIA SUR","63190","CIRCASIA","63","QUINDÍO","63190","CIRCASIA","Municipio"]
[null,null,null,null,null,null,null,null,"CENTROS","63","QUINDÍO","6303","CZ CALARCA","63212","CÓRDOBA","63","QUINDÍO","63212","CÓRDOBA","Municipio"]
[null,null,null,null,null,null,null,null,"CENTROS","63","QUINDÍO","6301","CZ ARMENIA SUR","63272","FILANDIA","63","QUINDÍO","63272","FILANDIA","Municipio"]
[null,null,null,null,null,null,null,null,"CENTROS","63","QUINDÍO","6303","CZ CALARCA","63302","GÉNOVA","63","QUINDÍO","63302","GÉNOVA","Municipio"]
[null,null,null,null,null,null,null,null,"CENTROS","63","QUINDÍO","6301","CZ ARMENIA SUR","63401","LA TEBAIDA","63","QUINDÍO","63401","LA TEBAIDA","Municipio"]
[null,null,null,null,null,null,null,null,"CENTROS","63","QUINDÍO","6302","CZ ARMENIA NORTE","63470","MONTENEGRO","63","QUINDÍO","63470","MONTENEGRO","Municipio"]
[null,null,null,null,null,null,null,null,"CENTROS","63","QUINDÍO","6303","CZ CALARCA","63548","PIJAO","63","QUINDÍO","63548","PIJAO","Municipio"]
[null,null,null,null,null,null,null,null,"CENTROS","63","QUINDÍO","6302","CZ ARMENIA NORTE","63594","QUIMBAYA","63","QUINDÍO","63594","QUIMBAYA","Municipio"]
[null,null,null,null,null,null,null,null,"CENTROS","63","QUINDÍO","6301","CZ ARMENIA SUR","63690","SALENTO","63","QUINDÍO","63690","SALENTO","Municipio"]
[null,null,null,null,null,null,null,null,"CENTROS","66","RISARALDA","6601","CZ PEREIRA","66001","PEREIRA","66","RISARALDA","66001","PEREIRA","Municipio"]
[null,null,null,null,null,null,null,null,"CENTROS","66","RISARALDA","6602","CZ LA VIRGINIA","66045","APÍA","66","RISARALDA","66045","APÍA","Municipio"]
[null,null,null,null,null,null,null,null,"CENTROS","66","RISARALDA","6602","CZ LA VIRGINIA","66075","BALBOA","66","RISARALDA","66075","BALBOA","Municipio"]
[null,null,null,null,null,null,null,null,"CENTROS","66","RISARALDA","6604","CZ BELEN DE UMBRIA","66088","BELÉN DE UMBRÍA","66","RISARALDA","66088","BELÉN DE UMBRÍA","Municipio"]
[null,null,null,null,null,null,null,null,"CENTROS","66","RISARALDA","6603","CZ DOS QUEBRADAS","66170","DOSQUEBRADAS","66","RISARALDA","66170","DOSQUEBRADAS","Municipio"]
[null,null,null,null,null,null,null,null,"CENTROS","66","RISARALDA","6604","CZ BELEN DE UMBRIA","66318","GUÁTICA","66","RISARALDA","66318","GUÁTICA","Municipio"]
[null,null,null,null,null,null,null,null,"CENTROS","66","RISARALDA","6602","CZ LA VIRGINIA","66383","LA CELIA","66","RISARALDA","66383","LA CELIA","Municipio"]
[null,null,null,null,null,null,null,null,"CENTROS","66","RISARALDA","6602","CZ LA VIRGINIA","66400","LA VIRGINIA","66","RISARALDA","66400","LA VIRGINIA","Municipio"]
[null,null,null,null,null,null,null,null,"CENTROS","66","RISARALDA","6605","CZ SANTA ROSA DE CABAL","66440","MARSELLA","66","RISARALDA","66440","MARSELLA","Municipio"]
[null,null,null,null,null,null,null,null,"CENTROS","66","RISARALDA","6604","CZ BELEN DE UMBRIA","66456","MISTRATÓ","66","RISARALDA","66456","MISTRATÓ","Municipio"]
[null,null,null,null,null,null,null,null,"CENTROS","66","RISARALDA","6602","CZ LA VIRGINIA","66572","PUEBLO RICO","66","RISARALDA","66572","PUEBLO RICO","Municipio"]
[null,null,null,null,null,null,null,null,"CENTROS","66","RISARALDA","6604","CZ BELEN DE UMBRIA","66594","QUINCHÍA","66","RISARALDA","66594","QUINCHÍA","Municipio"]
[null,null,null,null,null,null,null,null,"CENTROS","66","RISARALDA","6605","CZ SANTA ROSA DE CABAL","66682","SANTA ROSA DE CABAL","66","RISARALDA","66682","SANTA ROSA DE CABAL","Municipio"]
[null,null,null,null,null,null,null,null,"CENTROS","66","RISARALDA","6602","CZ LA VIRGINIA","66687","SANTUARIO","66","RISARALDA","66687","SANTUARIO","Municipio"]
[null,null,null,null,null,null,null,null,"CENTROS","68","SANTANDER","6803","CZ CARLOS LLERAS RESTREPO","68001","BUCARAMANGA","68","SANTANDER","68001","BUCARAMANGA","Municipio"]
[null,null,null,null,null,null,null,null,"CENTROS","68","SANTANDER","6804","CZ LUIS CARLOS GALÁN SARMIENTO","68001","BUCARAMANGA","68","SANTANDER","68001","BUCARAMANGA","Municipio"]
[null,null,null,null,null,null,null,null,"CENTROS","68","SANTANDER","6815","CZ RESURGIR","68001","BUCARAMANGA","68","SANTANDER","68001","BUCARAMANGA","Municipio"]
[null,null,null,null,null,null,null,null,"CENTROS","68","SANTANDER","6809","CZ VELEZ","68013","AGUADA","68","SANTANDER","68013","AGUADA","Municipio"]
[null,null,null,null,null,null,null,null,"CENTROS","68","SANTANDER","6815","CZ RESURGIR","68013","AGUADA","68","SANTANDER","68013","AGUADA","Municipio"]
[null,null,null,null,null,null,null,null,"CENTROS","68","SANTANDER","6809","CZ VELEZ","68020","ALBANIA","68","SANTANDER","68020","ALBANIA","Municipio"]
[null,null,null,null,null,null,null,null,"CENTROS","68","SANTANDER","6815","CZ RESURGIR","68020","ALBANIA","68","SANTANDER","68020","ALBANIA","Municipio"]
[null,null,null,null,null,null,null,null,"CENTROS","68","SANTANDER","6807","CZ SAN GIL","68051","ARATOCA","68","SANTANDER","68051","ARATOCA","Municipio"]
[null,null,null,null,null,null,null,null,"CENTROS","68","SANTANDER","6815","CZ RESURGIR","68051","ARATOCA","68","SANTANDER","68051","ARATOCA","Municipio"]
[null,null,null,null,null,null,null,null,"CENTROS","68","SANTANDER","6809","CZ VELEZ","68077","BARBOSA","68","SANTANDER","68077","BARBOSA","Municipio"]
[null,null,null,null,null,null,null,null,"CENTROS","68","SANTANDER","6815","CZ RESURGIR","68077","BARBOSA","68","SANTANDER","68077","BARBOSA","Municipio"]
[null,null,null,null,null,null,null,null,"CENTROS","68","SANTANDER","6807","CZ SAN GIL","68079","BARICHARA","68","SANTANDER","68079","BARICHARA","Municipio"]
[null,null,null,null,null,null,null,null,"CENTROS","68","SANTANDER","6815","CZ RESURGIR","68079","BARICHARA","68","SANTANDER","68079","BARICHARA","Municipio"]
[null,null,null,null,null,null,null,null,"CENTROS","68","SANTANDER","6805","CZ YARIQUIES","68081","BARRANCABERMEJA","68","SANTANDER","68081","BARRANCABERMEJA","Municipio"]
[null,null,null,null,null,null,null,null,"CENTROS","68","SANTANDER","6806","CZ LA FLORESTA","68081","BARRANCABERMEJA","68","SANTANDER","68081","BARRANCABERMEJA","Municipio"]
[null,null,null,null,null,null,null,null,"CENTROS","68","SANTANDER","6815","CZ RESURGIR","68081","BARRANCABERMEJA","68","SANTANDER","68081","BARRANCABERMEJA","Municipio"]
[null,null,null,null,null,null,null,null,"CENTROS","68","SANTANDER","6802","CZ BUCARAMANGA SUR","68092","BETULIA","68","SANTANDER","68092","BETULIA","Municipio"]
[null,null,null,null,null,null,null,null,"CENTROS","68","SANTANDER","6804","CZ LUIS CARLOS GALÁN SARMIENTO","68092","BETULIA","68","SANTANDER","68092","BETULIA","Municipio"]
[null,null,null,null,null,null,null,null,"CENTROS","68","SANTANDER","6815","CZ RESURGIR","68092","BETULIA","68","SANTANDER","68092","BETULIA","Municipio"]
[null,null,null,null,null,null,null,null,"CENTROS","68","SANTANDER","6809","CZ VELEZ","68101","BOLÍVAR","68","SANTANDER","68101","BOLÍVAR","Municipio"]
[null,null,null,null,null,null,null,null,"CENTROS","68","SANTANDER","6815","CZ RESURGIR","68101","BOLÍVAR","68","SANTANDER","68101","BOLÍVAR","Municipio"]
[null,null,null,null,null,null,null,null,"CENTROS","68","SANTANDER","6807","CZ SAN GIL","68121","CABRERA","68","SANTANDER","68121","CABRERA","Municipio"]
[null,null,null,null,null,null,null,null,"CENTROS","68","SANTANDER","6815","CZ RESURGIR","68121","CABRERA","68","SANTANDER","68121","CABRERA","Municipio"]
[null,null,null,null,null,null,null,null,"CENTROS","68","SANTANDER","6801","CZ ANTONIA SANTOS","68132","CALIFORNIA","68","SANTANDER","68132","CALIFORNIA","Municipio"]
[null,null,null,null,null,null,null,null,"CENTROS","68","SANTANDER","6804","CZ LUIS CARLOS GALÁN SARMIENTO","68132","CALIFORNIA","68","SANTANDER","68132","CALIFORNIA","Municipio"]
[null,null,null,null,null,null,null,null,"CENTROS","68","SANTANDER","6815","CZ RESURGIR","68132","CALIFORNIA","68","SANTANDER","68132","CALIFORNIA","Municipio"]
[null,null,null,null,null,null,null,null,"CENTROS","68","SANTANDER","6810","CZ MALAGA","68147","CAPITANEJO","68","SANTANDER","68147","CAPITANEJO","Municipio"]
[null,null,null,null,null,null,null,null,"CENTROS","68","SANTANDER","6815","CZ RESURGIR","68147","CAPITANEJO","68","SANTANDER","68147","CAPITANEJO","Municipio"]
[null,null,null,null,null,null,null,null,"CENTROS","68","SANTANDER","6810","CZ MALAGA","68152","CARCASÍ","68","SANTANDER","68152","CARCASÍ","Municipio"]
[null,null,null,null,null,null,null,null,"CENTROS","68","SANTANDER","6815","CZ RESURGIR","68152","CARCASÍ","68","SANTANDER","68152","CARCASÍ","Municipio"]
[null,null,null,null,null,null,null,null,"CENTROS","68","SANTANDER","6807","CZ SAN GIL","68160","CEPITÁ","68","SANTANDER","68160","CEPITÁ","Municipio"]
[null,null,null,null,null,null,null,null,"CENTROS","68","SANTANDER","6815","CZ RESURGIR","68160","CEPITÁ","68","SANTANDER","68160","CEPITÁ","Municipio"]
[null,null,null,null,null,null,null,null,"CENTROS","68","SANTANDER","6810","CZ MALAGA","68162","CERRITO","68","SANTANDER","68162","CERRITO","Municipio"]
[null,null,null,null,null,null,null,null,"CENTROS","68","SANTANDER","6815","CZ RESURGIR","68162","CERRITO","68","SANTANDER","68162","CERRITO","Municipio"]
[null,null,null,null,null,null,null,null,"CENTROS","68","SANTANDER","6807","CZ SAN GIL","68167","CHARALÁ","68","SANTANDER","68167","CHARALÁ","Municipio"]
[null,null,null,null,null,null,null,null,"CENTROS","68","SANTANDER","6815","CZ RESURGIR","68167","CHARALÁ","68","SANTANDER","68167","CHARALÁ","Municipio"]
[null,null,null,null,null,null,null,null,"CENTROS","68","SANTANDER","6801","CZ ANTONIA SANTOS","68169","CHARTA","68","SANTANDER","68169","CHARTA","Municipio"]
[null,null,null,null,null,null,null,null,"CENTROS","68","SANTANDER","6804","CZ LUIS CARLOS GALÁN SARMIENTO","68169","CHARTA","68","SANTANDER","68169","CHARTA","Municipio"]
[null,null,null,null,null,null,null,null,"CENTROS","68","SANTANDER","6815","CZ RESURGIR","68169","CHARTA","68","SANTANDER","68169","CHARTA","Municipio"]
[null,null,null,null,null,null,null,null,"CENTROS","68","SANTANDER","6808","CZ SOCORRO","68176","CHIMA","68","SANTANDER","68176","CHIMA","Municipio"]
[null,null,null,null,null,null,null,null,"CENTROS","68","SANTANDER","6815","CZ RESURGIR","68176","CHIMA","68","SANTANDER","68176","CHIMA","Municipio"]
[null,null,null,null,null,null,null,null,"CENTROS","68","SANTANDER","6809","CZ VELEZ","68179","CHIPATA","68","SANTANDER","68179","CHIPATÁ","Municipio"]
[null,null,null,null,null,null,null,null,"CENTROS","68","SANTANDER","6815","CZ RESURGIR","68179","CHIPATA","68","SANTANDER","68179","CHIPATÁ","Municipio"]
[null,null,null,null,null,null,null,null,"CENTROS","68","SANTANDER","6805","CZ YARIQUIES","68190","CIMITARRA","68","SANTANDER","68190","CIMITARRA","Municipio"]
[null,null,null,null,null,null,null,null,"CENTROS","68","SANTANDER","6809","CZ VELEZ","68190","CIMITARRA","68","SANTANDER","68190","CIMITARRA","Municipio"]
[null,null,null,null,null,null,null,null,"CENTROS","68","SANTANDER","6810","CZ MALAGA","68207","CONCEPCIÓN","68","SANTANDER","68207","CONCEPCIÓN","Municipio"]
[null,null,null,null,null,null,null,null,"CENTROS","68","SANTANDER","6815","CZ RESURGIR","68207","CONCEPCIÓN","68","SANTANDER","68207","CONCEPCIÓN","Municipio"]
[null,null,null,null,null,null,null,null,"CENTROS","68","SANTANDER","6808","CZ SOCORRO","68209","CONFINES","68","SANTANDER","68209","CONFINES","Municipio"]
[null,null,null,null,null,null,null,null,"CENTROS","68","SANTANDER","6815","CZ RESURGIR","68209","CONFINES","68","SANTANDER","68209","CONFINES","Municipio"]
[null,null,null,null,null,null,null,null,"CENTROS","68","SANTANDER","6808","CZ SOCORRO","68211","CONTRATACION","68","SANTANDER","68211","CONTRATACIÓN","Municipio"]
[null,null,null,null,null,null,null,null,"CENTROS","68","SANTANDER","6815","CZ RESURGIR","68211","CONTRATACION","68","SANTANDER","68211","CONTRATACIÓN","Municipio"]
[null,null,null,null,null,null,null,null,"CENTROS","68","SANTANDER","6807","CZ SAN GIL","68217","COROMORO","68","SANTANDER","68217","COROMORO","Municipio"]
[null,null,null,null,null,null,null,null,"CENTROS","68","SANTANDER","6815","CZ RESURGIR","68217","COROMORO","68","SANTANDER","68217","COROMORO","Municipio"]
[null,null,null,null,null,null,null,null,"CENTROS","68","SANTANDER","6807","CZ SAN GIL","68229","CURITÍ","68","SANTANDER","68229","CURITÍ","Municipio"]
[null,null,null,null,null,null,null,null,"CENTROS","68","SANTANDER","6815","CZ RESURGIR","68229","CURITÍ","68","SANTANDER","68229","CURITÍ","Municipio"]
[null,null,null,null,null,null,null,null,"CENTROS","68","SANTANDER","6805","CZ YARIQUIES","68235","EL CARMEN DE CHUCURÍ","68","SANTANDER","68235","EL CARMEN DE CHUCURÍ","Municipio"]
[null,null,null,null,null,null,null,null,"CENTROS","68","SANTANDER","6806","CZ LA FLORESTA","68235","EL CARMEN DE CHUCURÍ","68","SANTANDER","68235","EL CARMEN DE CHUCURÍ","Municipio"]
[null,null,null,null,null,null,null,null,"CENTROS","68","SANTANDER","6815","CZ RESURGIR","68235","EL CARMEN DE CHUCURÍ","68","SANTANDER","68235","EL CARMEN DE CHUCURÍ","Municipio"]
[null,null,null,null,null,null,null,null,"CENTROS","68","SANTANDER","6808","CZ SOCORRO","68245","EL GUACAMAYO","68","SANTANDER","68245","EL GUACAMAYO","Municipio"]
[null,null,null,null,null,null,null,null,"CENTROS","68","SANTANDER","6815","CZ RESURGIR","68245","EL GUACAMAYO","68","SANTANDER","68245","EL GUACAMAYO","Municipio"]
[null,null,null,null,null,null,null,null,"CENTROS","68","SANTANDER","6809","CZ VELEZ","68250","EL PEÑÓN","68","SANTANDER","68250","EL PEÑÓN","Municipio"]
[null,null,null,null,null,null,null,null,"CENTROS","68","SANTANDER","6815","CZ RESURGIR","68250","EL PEÑÓN","68","SANTANDER","68250","EL PEÑÓN","Municipio"]
[null,null,null,null,null,null,null,null,"CENTROS","68","SANTANDER","6801","CZ ANTONIA SANTOS","68255","EL PLAYÓN","68","SANTANDER","68255","EL PLAYÓN","Municipio"]
[null,null,null,null,null,null,null,null,"CENTROS","68","SANTANDER","6804","CZ LUIS CARLOS GALÁN SARMIENTO","68255","EL PLAYÓN","68","SANTANDER","68255","EL PLAYÓN","Municipio"]
[null,null,null,null,null,null,null,null,"CENTROS","68","SANTANDER","6815","CZ RESURGIR","68255","EL PLAYÓN","68","SANTANDER","68255","EL PLAYÓN","Municipio"]
[null,null,null,null,null,null,null,null,"CENTROS","68","SANTANDER","6807","CZ SAN GIL","68264","ENCINO","68","SANTANDER","68264","ENCINO","Municipio"]
[null,null,null,null,null,null,null,null,"CENTROS","68","SANTANDER","6815","CZ RESURGIR","68264","ENCINO","68","SANTANDER","68264","ENCINO","Municipio"]
[null,null,null,null,null,null,null,null,"CENTROS","68","SANTANDER","6810","CZ MALAGA","68266","ENCISO","68","SANTANDER","68266","ENCISO","Municipio"]
[null,null,null,null,null,null,null,null,"CENTROS","68","SANTANDER","6815","CZ RESURGIR","68266","ENCISO","68","SANTANDER","68266","ENCISO","Municipio"]
[null,null,null,null,null,null,null,null,"CENTROS","68","SANTANDER","6809","CZ VELEZ","68271","FLORIÁN","68","SANTANDER","68271","FLORIÁN","Municipio"]
[null,null,null,null,null,null,null,null,"CENTROS","68","SANTANDER","6815","CZ RESURGIR","68271","FLORIÁN","68","SANTANDER","68271","FLORIÁN","Municipio"]
[null,null,null,null,null,null,null,null,"CENTROS","68","SANTANDER","6802","CZ BUCARAMANGA SUR","68276","FLORIDABLANCA","68","SANTANDER","68276","FLORIDABLANCA","Municipio"]
[null,null,null,null,null,null,null,null,"CENTROS","68","SANTANDER","6804","CZ LUIS CARLOS GALÁN SARMIENTO","68276","FLORIDABLANCA","68","SANTANDER","68276","FLORIDABLANCA","Municipio"]
[null,null,null,null,null,null,null,null,"CENTROS","68","SANTANDER","6815","CZ RESURGIR","68276","FLORIDABLANCA","68","SANTANDER","68276","FLORIDABLANCA","Municipio"]
[null,null,null,null,null,null,null,null,"CENTROS","68","SANTANDER","6808","CZ SOCORRO","68296","GALÁN","68","SANTANDER","68296","GALÁN","Municipio"]
[null,null,null,null,null,null,null,null,"CENTROS","68","SANTANDER","6815","CZ RESURGIR","68296","GALÁN","68","SANTANDER","68296","GALÁN","Municipio"]
[null,null,null,null,null,null,null,null,"CENTROS","68","SANTANDER","6808","CZ SOCORRO","68298","GAMBITA","68","SANTANDER","68298","GÁMBITA","Municipio"]
[null,null,null,null,null,null,null,null,"CENTROS","68","SANTANDER","6815","CZ RESURGIR","68298","GAMBITA","68","SANTANDER","68298","GÁMBITA","Municipio"]
[null,null,null,null,null,null,null,null,"CENTROS","68","SANTANDER","6801","CZ ANTONIA SANTOS","68307","GIRÓN","68","SANTANDER","68307","GIRÓN","Municipio"]
[null,null,null,null,null,null,null,null,"CENTROS","68","SANTANDER","6804","CZ LUIS CARLOS GALÁN SARMIENTO","68307","GIRÓN","68","SANTANDER","68307","GIRÓN","Municipio"]
[null,null,null,null,null,null,null,null,"CENTROS","68","SANTANDER","6815","CZ RESURGIR","68307","GIRÓN","68","SANTANDER","68307","GIRÓN","Municipio"]
[null,null,null,null,null,null,null,null,"CENTROS","68","SANTANDER","6810","CZ MALAGA","68318","GUACA","68","SANTANDER","68318","GUACA","Municipio"]
[null,null,null,null,null,null,null,null,"CENTROS","68","SANTANDER","6815","CZ RESURGIR","68318","GUACA","68","SANTANDER","68318","GUACA","Municipio"]
[null,null,null,null,null,null,null,null,"CENTROS","68","SANTANDER","6808","CZ SOCORRO","68320","GUADALUPE","68","SANTANDER","68320","GUADALUPE","Municipio"]
[null,null,null,null,null,null,null,null,"CENTROS","68","SANTANDER","6815","CZ RESURGIR","68320","GUADALUPE","68","SANTANDER","68320","GUADALUPE","Municipio"]
[null,null,null,null,null,null,null,null,"CENTROS","68","SANTANDER","6808","CZ SOCORRO","68322","GUAPOTÁ","68","SANTANDER","68322","GUAPOTÁ","Municipio"]
[null,null,null,null,null,null,null,null,"CENTROS","68","SANTANDER","6815","CZ RESURGIR","68322","GUAPOTÁ","68","SANTANDER","68322","GUAPOTÁ","Municipio"]
[null,null,null,null,null,null,null,null,"CENTROS","68","SANTANDER","6809","CZ VELEZ","68324","GUAVATÁ","68","SANTANDER","68324","GUAVATÁ","Municipio"]
[null,null,null,null,null,null,null,null,"CENTROS","68","SANTANDER","6815","CZ RESURGIR","68324","GUAVATÁ","68","SANTANDER","68324","GUAVATÁ","Municipio"]
[null,null,null,null,null,null,null,null,"CENTROS","68","SANTANDER","6809","CZ VELEZ","68327","GUEPSA","68","SANTANDER","68327","GÜEPSA","Municipio"]
[null,null,null,null,null,null,null,null,"CENTROS","68","SANTANDER","6815","CZ RESURGIR","68327","GUEPSA","68","SANTANDER","68327","GÜEPSA","Municipio"]
[null,null,null,null,null,null,null,null,"CENTROS","68","SANTANDER","6808","CZ SOCORRO","68344","HATO","68","SANTANDER","68344","HATO","Municipio"]
[null,null,null,null,null,null,null,null,"CENTROS","68","SANTANDER","6815","CZ RESURGIR","68344","HATO","68","SANTANDER","68344","HATO","Municipio"]
[null,null,null,null,null,null,null,null,"CENTROS","68","SANTANDER","6809","CZ VELEZ","68368","JESÚS MARÍA","68","SANTANDER","68368","JESÚS MARÍA","Municipio"]
[null,null,null,null,null,null,null,null,"CENTROS","68","SANTANDER","6815","CZ RESURGIR","68368","JESÚS MARÍA","68","SANTANDER","68368","JESÚS MARÍA","Municipio"]
[null,null,null,null,null,null,null,null,"CENTROS","68","SANTANDER","6807","CZ SAN GIL","68370","JORDÁN","68","SANTANDER","68370","JORDÁN","Municipio"]
[null,null,null,null,null,null,null,null,"CENTROS","68","SANTANDER","6815","CZ RESURGIR","68370","JORDÁN","68","SANTANDER","68370","JORDÁN","Municipio"]
[null,null,null,null,null,null,null,null,"CENTROS","68","SANTANDER","6809","CZ VELEZ","68377","LA BELLEZA","68","SANTANDER","68377","LA BELLEZA","Municipio"]
[null,null,null,null,null,null,null,null,"CENTROS","68","SANTANDER","6815","CZ RESURGIR","68377","LA BELLEZA","68","SANTANDER","68377","LA BELLEZA","Municipio"]
[null,null,null,null,null,null,null,null,"CENTROS","68","SANTANDER","6809","CZ VELEZ","68385","LANDÁZURI","68","SANTANDER","68385","LANDÁZURI","Municipio"]
[null,null,null,null,null,null,null,null,"CENTROS","68","SANTANDER","6815","CZ RESURGIR","68385","LANDÁZURI","68","SANTANDER","68385","LANDÁZURI","Municipio"]
[null,null,null,null,null,null,null,null,"CENTROS","68","SANTANDER","6809","CZ VELEZ","68397","LA PAZ","68","SANTANDER","68397","LA PAZ","Municipio"]
[null,null,null,null,null,null,null,null,"CENTROS","68","SANTANDER","6815","CZ RESURGIR","68397","LA PAZ","68","SANTANDER","68397","LA PAZ","Municipio"]
[null,null,null,null,null,null,null,null,"CENTROS","68","SANTANDER","6801","CZ ANTONIA SANTOS","68406","LEBRÍJA","68","SANTANDER","68406","LEBRIJA","Municipio"]
[null,null,null,null,null,null,null,null,"CENTROS","68","SANTANDER","6804","CZ LUIS CARLOS GALÁN SARMIENTO","68406","LEBRÍJA","68","SANTANDER","68406","LEBRIJA","Municipio"]
[null,null,null,null,null,null,null,null,"CENTROS","68","SANTANDER","6815","CZ RESURGIR","68406","LEBRÍJA","68","SANTANDER","68406","LEBRIJA","Municipio"]
[null,null,null,null,null,null,null,null,"CENTROS","68","SANTANDER","6802","CZ BUCARAMANGA SUR","68418","LOS SANTOS","68","SANTANDER","68418","LOS SANTOS","Municipio"]
[null,null,null,null,null,null,null,null,"CENTROS","68","SANTANDER","6804","CZ LUIS CARLOS GALÁN SARMIENTO","68418","LOS SANTOS","68","SANTANDER","68418","LOS SANTOS","Municipio"]
[null,null,null,null,null,null,null,null,"CENTROS","68","SANTANDER","6815","CZ RESURGIR","68418","LOS SANTOS","68","SANTANDER","68418","LOS SANTOS","Municipio"]
[null,null,null,null,null,null,null,null,"CENTROS","68","SANTANDER","6810","CZ MALAGA","68425","MACARAVITA","68","SANTANDER","68425","MACARAVITA","Municipio"]
[null,null,null,null,null,null,null,null,"CENTROS","68","SANTANDER","6815","CZ RESURGIR","68425","MACARAVITA","68","SANTANDER","68425","MACARAVITA","Municipio"]
[null,null,null,null,null,null,null,null,"CENTROS","68","SANTANDER","6810","CZ MALAGA","68432","MÁLAGA","68","SANTANDER","68432","MÁLAGA","Municipio"]
[null,null,null,null,null,null,null,null,"CENTROS","68","SANTANDER","6815","CZ RESURGIR","68432","MÁLAGA","68","SANTANDER","68432","MÁLAGA","Municipio"]
[null,null,null,null,null,null,null,null,"CENTROS","68","SANTANDER","6801","CZ ANTONIA SANTOS","68444","MATANZA","68","SANTANDER","68444","MATANZA","Municipio"]
[null,null,null,null,null,null,null,null,"CENTROS","68","SANTANDER","6804","CZ LUIS CARLOS GALÁN SARMIENTO","68444","MATANZA","68","SANTANDER","68444","MATANZA","Municipio"]
[null,null,null,null,null,null,null,null,"CENTROS","68","SANTANDER","6815","CZ RESURGIR","68444","MATANZA","68","SANTANDER","68444","MATANZA","Municipio"]
[null,null,null,null,null,null,null,null,"CENTROS","68","SANTANDER","6807","CZ SAN GIL","68464","MOGOTES","68","SANTANDER","68464","MOGOTES","Municipio"]
[null,null,null,null,null,null,null,null,"CENTROS","68","SANTANDER","6815","CZ RESURGIR","68464","MOGOTES","68","SANTANDER","68464","MOGOTES","Municipio"]
[null,null,null,null,null,null,null,null,"CENTROS","68","SANTANDER","6810","CZ MALAGA","68468","MOLAGAVITA","68","SANTANDER","68468","MOLAGAVITA","Municipio"]
[null,null,null,null,null,null,null,null,"CENTROS","68","SANTANDER","6815","CZ RESURGIR","68468","MOLAGAVITA","68","SANTANDER","68468","MOLAGAVITA","Municipio"]
[null,null,null,null,null,null,null,null,"CENTROS","68","SANTANDER","6807","CZ SAN GIL","68498","OCAMONTE","68","SANTANDER","68498","OCAMONTE","Municipio"]
[null,null,null,null,null,null,null,null,"CENTROS","68","SANTANDER","6815","CZ RESURGIR","68498","OCAMONTE","68","SANTANDER","68498","OCAMONTE","Municipio"]
[null,null,null,null,null,null,null,null,"CENTROS","68","SANTANDER","6808","CZ SOCORRO","68500","OIBA","68","SANTANDER","68500","OIBA","Municipio"]
[null,null,null,null,null,null,null,null,"CENTROS","68","SANTANDER","6815","CZ RESURGIR","68500","OIBA","68","SANTANDER","68500","OIBA","Municipio"]
[null,null,null,null,null,null,null,null,"CENTROS","68","SANTANDER","6807","CZ SAN GIL","68502","ONZAGA","68","SANTANDER","68502","ONZAGA","Municipio"]
[null,null,null,null,null,null,null,null,"CENTROS","68","SANTANDER","6815","CZ RESURGIR","68502","ONZAGA","68","SANTANDER","68502","ONZAGA","Municipio"]
[null,null,null,null,null,null,null,null,"CENTROS","68","SANTANDER","6808","CZ SOCORRO","68522","PALMAR","68","SANTANDER","68522","PALMAR","Municipio"]
[null,null,null,null,null,null,null,null,"CENTROS","68","SANTANDER","6815","CZ RESURGIR","68522","PALMAR","68","SANTANDER","68522","PALMAR","Municipio"]
[null,null,null,null,null,null,null,null,"CENTROS","68","SANTANDER","6808","CZ SOCORRO","68524","PALMAS DEL SOCORRO","68","SANTANDER","68524","PALMAS DEL SOCORRO","Municipio"]
[null,null,null,null,null,null,null,null,"CENTROS","68","SANTANDER","6815","CZ RESURGIR","68524","PALMAS DEL SOCORRO","68","SANTANDER","68524","PALMAS DEL SOCORRO","Municipio"]
[null,null,null,null,null,null,null,null,"CENTROS","68","SANTANDER","6807","CZ SAN GIL","68533","PÁRAMO","68","SANTANDER","68533","PÁRAMO","Municipio"]
[null,null,null,null,null,null,null,null,"CENTROS","68","SANTANDER","6815","CZ RESURGIR","68533","PÁRAMO","68","SANTANDER","68533","PÁRAMO","Municipio"]
[null,null,null,null,null,null,null,null,"CENTROS","68","SANTANDER","6802","CZ BUCARAMANGA SUR","68547","PIEDECUESTA","68","SANTANDER","68547","PIEDECUESTA","Municipio"]
[null,null,null,null,null,null,null,null,"CENTROS","68","SANTANDER","6804","CZ LUIS CARLOS GALÁN SARMIENTO","68547","PIEDECUESTA","68","SANTANDER","68547","PIEDECUESTA","Municipio"]
[null,null,null,null,null,null,null,null,"CENTROS","68","SANTANDER","6815","CZ RESURGIR","68547","PIEDECUESTA","68","SANTANDER","68547","PIEDECUESTA","Municipio"]
[null,null,null,null,null,null,null,null,"CENTROS","68","SANTANDER","6807","CZ SAN GIL","68549","PINCHOTE","68","SANTANDER","68549","PINCHOTE","Municipio"]
[null,null,null,null,null,null,null,null,"CENTROS","68","SANTANDER","6815","CZ RESURGIR","68549","PINCHOTE","68","SANTANDER","68549","PINCHOTE","Municipio"]
[null,null,null,null,null,null,null,null,"CENTROS","68","SANTANDER","6809","CZ VELEZ","68572","PUENTE NACIONAL","68","SANTANDER","68572","PUENTE NACIONAL","Municipio"]
[null,null,null,null,null,null,null,null,"CENTROS","68","SANTANDER","6815","CZ RESURGIR","68572","PUENTE NACIONAL","68","SANTANDER","68572","PUENTE NACIONAL","Municipio"]
[null,null,null,null,null,null,null,null,"CENTROS","68","SANTANDER","6805","CZ YARIQUIES","68573","PUERTO PARRA","68","SANTANDER","68573","PUERTO PARRA","Municipio"]
[null,null,null,null,null,null,null,null,"CENTROS","68","SANTANDER","6806","CZ LA FLORESTA","68573","PUERTO PARRA","68","SANTANDER","68573","PUERTO PARRA","Municipio"]
[null,null,null,null,null,null,null,null,"CENTROS","68","SANTANDER","6815","CZ RESURGIR","68573","PUERTO PARRA","68","SANTANDER","68573","PUERTO PARRA","Municipio"]
[null,null,null,null,null,null,null,null,"CENTROS","68","SANTANDER","6805","CZ YARIQUIES","68575","PUERTO WILCHES","68","SANTANDER","68575","PUERTO WILCHES","Municipio"]
[null,null,null,null,null,null,null,null,"CENTROS","68","SANTANDER","6806","CZ LA FLORESTA","68575","PUERTO WILCHES","68","SANTANDER","68575","PUERTO WILCHES","Municipio"]
[null,null,null,null,null,null,null,null,"CENTROS","68","SANTANDER","6815","CZ RESURGIR","68575","PUERTO WILCHES","68","SANTANDER","68575","PUERTO WILCHES","Municipio"]
[null,null,null,null,null,null,null,null,"CENTROS","68","SANTANDER","6801","CZ ANTONIA SANTOS","68615","RIONEGRO","68","SANTANDER","68615","RIONEGRO","Municipio"]
[null,null,null,null,null,null,null,null,"CENTROS","68","SANTANDER","6804","CZ LUIS CARLOS GALÁN SARMIENTO","68615","RIONEGRO","68","SANTANDER","68615","RIONEGRO","Municipio"]
[null,null,null,null,null,null,null,null,"CENTROS","68","SANTANDER","6815","CZ RESURGIR","68615","RIONEGRO","68","SANTANDER","68615","RIONEGRO","Municipio"]
[null,null,null,null,null,null,null,null,"CENTROS","68","SANTANDER","6805","CZ YARIQUIES","68655","SABANA DE TORRES","68","SANTANDER","68655","SABANA DE TORRES","Municipio"]
[null,null,null,null,null,null,null,null,"CENTROS","68","SANTANDER","6806","CZ LA FLORESTA","68655","SABANA DE TORRES","68","SANTANDER","68655","SABANA DE TORRES","Municipio"]
[null,null,null,null,null,null,null,null,"CENTROS","68","SANTANDER","6815","CZ RESURGIR","68655","SABANA DE TORRES","68","SANTANDER","68655","SABANA DE TORRES","Municipio"]
[null,null,null,null,null,null,null,null,"CENTROS","68","SANTANDER","6810","CZ MALAGA","68669","SAN ANDRÉS","68","SANTANDER","68669","SAN ANDRÉS","Municipio"]
[null,null,null,null,null,null,null,null,"CENTROS","68","SANTANDER","6815","CZ RESURGIR","68669","SAN ANDRÉS","68","SANTANDER","68669","SAN ANDRÉS","Municipio"]
[null,null,null,null,null,null,null,null,"CENTROS","68","SANTANDER","6809","CZ VELEZ","68673","SAN BENITO","68","SANTANDER","68673","SAN BENITO","Municipio"]
[null,null,null,null,null,null,null,null,"CENTROS","68","SANTANDER","6815","CZ RESURGIR","68673","SAN BENITO","68","SANTANDER","68673","SAN BENITO","Municipio"]
[null,null,null,null,null,null,null,null,"CENTROS","68","SANTANDER","6807","CZ SAN GIL","68679","SAN GIL","68","SANTANDER","68679","SAN GIL","Municipio"]
[null,null,null,null,null,null,null,null,"CENTROS","68","SANTANDER","6815","CZ RESURGIR","68679","SAN GIL","68","SANTANDER","68679","SAN GIL","Municipio"]
[null,null,null,null,null,null,null,null,"CENTROS","68","SANTANDER","6807","CZ SAN GIL","68682","SAN JOAQUÍN","68","SANTANDER","68682","SAN JOAQUÍN","Municipio"]
[null,null,null,null,null,null,null,null,"CENTROS","68","SANTANDER","6815","CZ RESURGIR","68682","SAN JOAQUÍN","68","SANTANDER","68682","SAN JOAQUÍN","Municipio"]
[null,null,null,null,null,null,null,null,"CENTROS","68","SANTANDER","6810","CZ MALAGA","68684","SAN JOSÉ DE MIRANDA","68","SANTANDER","68684","SAN JOSÉ DE MIRANDA","Municipio"]
[null,null,null,null,null,null,null,null,"CENTROS","68","SANTANDER","6815","CZ RESURGIR","68684","SAN JOSÉ DE MIRANDA","68","SANTANDER","68684","SAN JOSÉ DE MIRANDA","Municipio"]
[null,null,null,null,null,null,null,null,"CENTROS","68","SANTANDER","6810","CZ MALAGA","68686","SAN MIGUEL","68","SANTANDER","68686","SAN MIGUEL","Municipio"]
[null,null,null,null,null,null,null,null,"CENTROS","68","SANTANDER","6815","CZ RESURGIR","68686","SAN MIGUEL","68","SANTANDER","68686","SAN MIGUEL","Municipio"]
[null,null,null,null,null,null,null,null,"CENTROS","68","SANTANDER","6801","CZ ANTONIA SANTOS","68689","SAN VICENTE DE CHUCURÍ","68","SANTANDER","68689","SAN VICENTE DE CHUCURÍ","Municipio"]
[null,null,null,null,null,null,null,null,"CENTROS","68","SANTANDER","6804","CZ LUIS CARLOS GALÁN SARMIENTO","68689","SAN VICENTE DE CHUCURÍ","68","SANTANDER","68689","SAN VICENTE DE CHUCURÍ","Municipio"]
[null,null,null,null,null,null,null,null,"CENTROS","68","SANTANDER","6815","CZ RESURGIR","68689","SAN VICENTE DE CHUCURÍ","68","SANTANDER","68689","SAN VICENTE DE CHUCURÍ","Municipio"]
[null,null,null,null,null,null,null,null,"CENTROS","68","SANTANDER","6802","CZ BUCARAMANGA SUR","68705","SANTA BÁRBARA","68","SANTANDER","68705","SANTA BÁRBARA","Municipio"]
[null,null,null,null,null,null,null,null,"CENTROS","68","SANTANDER","6804","CZ LUIS CARLOS GALÁN SARMIENTO","68705","SANTA BÁRBARA","68","SANTANDER","68705","SANTA BÁRBARA","Municipio"]
[null,null,null,null,null,null,null,null,"CENTROS","68","SANTANDER","6815","CZ RESURGIR","68705","SANTA BÁRBARA","68","SANTANDER","68705","SANTA BÁRBARA","Municipio"]
[null,null,null,null,null,null,null,null,"CENTROS","68","SANTANDER","6809","CZ VELEZ","68720","SANTA HELENA DEL OPÓN","68","SANTANDER","68720","SANTA HELENA DEL OPÓN","Municipio"]
[null,null,null,null,null,null,null,null,"CENTROS","68","SANTANDER","6815","CZ RESURGIR","68720","SANTA HELENA DEL OPÓN","68","SANTANDER","68720","SANTA HELENA DEL OPÓN","Municipio"]
[null,null,null,null,null,null,null,null,"CENTROS","68","SANTANDER","6805","CZ YARIQUIES","68745","SIMACOTA","68","SANTANDER","68745","SIMACOTA","Municipio"]
[null,null,null,null,null,null,null,null,"CENTROS","68","SANTANDER","6808","CZ SOCORRO","68745","SIMACOTA","68","SANTANDER","68745","SIMACOTA","Municipio"]
[null,null,null,null,null,null,null,null,"CENTROS","68","SANTANDER","6808","CZ SOCORRO","68755","SOCORRO","68","SANTANDER","68755","SOCORRO","Municipio"]
[null,null,null,null,null,null,null,null,"CENTROS","68","SANTANDER","6815","CZ RESURGIR","68755","SOCORRO","68","SANTANDER","68755","SOCORRO","Municipio"]
[null,null,null,null,null,null,null,null,"CENTROS","68","SANTANDER","6808","CZ SOCORRO","68770","SUAITA","68","SANTANDER","68770","SUAITA","Municipio"]
[null,null,null,null,null,null,null,null,"CENTROS","68","SANTANDER","6815","CZ RESURGIR","68770","SUAITA","68","SANTANDER","68770","SUAITA","Municipio"]
[null,null,null,null,null,null,null,null,"CENTROS","68","SANTANDER","6809","CZ VELEZ","68773","SUCRE","68","SANTANDER","68773","SUCRE","Municipio"]
[null,null,null,null,null,null,null,null,"CENTROS","68","SANTANDER","6815","CZ RESURGIR","68773","SUCRE","68","SANTANDER","68773","SUCRE","Municipio"]
[null,null,null,null,null,null,null,null,"CENTROS","68","SANTANDER","6801","CZ ANTONIA SANTOS","68780","SURATÁ","68","SANTANDER","68780","SURATÁ","Municipio"]
[null,null,null,null,null,null,null,null,"CENTROS","68","SANTANDER","6804","CZ LUIS CARLOS GALÁN SARMIENTO","68780","SURATÁ","68","SANTANDER","68780","SURATÁ","Municipio"]
[null,null,null,null,null,null,null,null,"CENTROS","68","SANTANDER","6815","CZ RESURGIR","68780","SURATÁ","68","SANTANDER","68780","SURATÁ","Municipio"]
[null,null,null,null,null,null,null,null,"CENTROS","68","SANTANDER","6802","CZ BUCARAMANGA SUR","68820","TONA","68","SANTANDER","68820","TONA","Municipio"]
[null,null,null,null,null,null,null,null,"CENTROS","68","SANTANDER","6804","CZ LUIS CARLOS GALÁN SARMIENTO","68820","TONA","68","SANTANDER","68820","TONA","Municipio"]
[null,null,null,null,null,null,null,null,"CENTROS","68","SANTANDER","6815","CZ RESURGIR","68820","TONA","68","SANTANDER","68820","TONA","Municipio"]
[null,null,null,null,null,null,null,null,"CENTROS","68","SANTANDER","6807","CZ SAN GIL","68855","VALLE DE SAN JOSÉ","68","SANTANDER","68855","VALLE DE SAN JOSÉ","Municipio"]
[null,null,null,null,null,null,null,null,"CENTROS","68","SANTANDER","6815","CZ RESURGIR","68855","VALLE DE SAN JOSÉ","68","SANTANDER","68855","VALLE DE SAN JOSÉ","Municipio"]
[null,null,null,null,null,null,null,null,"CENTROS","68","SANTANDER","6809","CZ VELEZ","68861","VÉLEZ","68","SANTANDER","68861","VÉLEZ","Municipio"]
[null,null,null,null,null,null,null,null,"CENTROS","68","SANTANDER","6815","CZ RESURGIR","68861","VÉLEZ","68","SANTANDER","68861","VÉLEZ","Municipio"]
[null,null,null,null,null,null,null,null,"CENTROS","68","SANTANDER","6802","CZ BUCARAMANGA SUR","68867","VETAS","68","SANTANDER","68867","VETAS","Municipio"]
[null,null,null,null,null,null,null,null,"CENTROS","68","SANTANDER","6804","CZ LUIS CARLOS GALÁN SARMIENTO","68867","VETAS","68","SANTANDER","68867","VETAS","Municipio"]
[null,null,null,null,null,null,null,null,"CENTROS","68","SANTANDER","6815","CZ RESURGIR","68867","VETAS","68","SANTANDER","68867","VETAS","Municipio"]
[null,null,null,null,null,null,null,null,"CENTROS","68","SANTANDER","6807","CZ SAN GIL","68872","VILLANUEVA","68","SANTANDER","68872","VILLANUEVA","Municipio"]
[null,null,null,null,null,null,null,null,"CENTROS","68","SANTANDER","6815","CZ RESURGIR","68872","VILLANUEVA","68","SANTANDER","68872","VILLANUEVA","Municipio"]
[null,null,null,null,null,null,null,null,"CENTROS","68","SANTANDER","6802","CZ BUCARAMANGA SUR","68895","ZAPATOCA","68","SANTANDER","68895","ZAPATOCA","Municipio"]
[null,null,null,null,null,null,null,null,"CENTROS","68","SANTANDER","6804","CZ LUIS CARLOS GALÁN SARMIENTO","68895","ZAPATOCA","68","SANTANDER","68895","ZAPATOCA","Municipio"]
[null,null,null,null,null,null,null,null,"CENTROS","68","SANTANDER","6815","CZ RESURGIR","68895","ZAPATOCA","68","SANTANDER","68895","ZAPATOCA","Municipio"]
[null,null,null,null,null,null,null,null,"CENTROS","70","SUCRE","7003","CZ SINCELEJO","70001","SINCELEJO","70","SUCRE","70001","SINCELEJO","Municipio"]
[null,null,null,null,null,null,null,null,"CENTROS","70","SUCRE","7001","CZ BOSTON","70110","BUENAVISTA","70","SUCRE","70110","BUENAVISTA","Municipio"]
[null,null,null,null,null,null,null,null,"CENTROS","70","SUCRE","7002","CZ NORTE","70124","CAIMITO","70","SUCRE","70124","CAIMITO","Municipio"]
[null,null,null,null,null,null,null,null,"CENTROS","70","SUCRE","7002","CZ NORTE","70204","COLOSO","70","SUCRE","70204","COLOSÓ","Municipio"]
[null,null,null,null,null,null,null,null,"CENTROS","70","SUCRE","7001","CZ BOSTON","70215","COROZAL","70","SUCRE","70215","COROZAL","Municipio"]
[null,null,null,null,null,null,null,null,"CENTROS","70","SUCRE","7002","CZ NORTE","70221","COVEÑAS","70","SUCRE","70221","COVEÑAS","Municipio"]
[null,null,null,null,null,null,null,null,"CENTROS","70","SUCRE","7002","CZ NORTE","70230","CHALÁN","70","SUCRE","70230","CHALÁN","Municipio"]
[null,null,null,null,null,null,null,null,"CENTROS","70","SUCRE","7001","CZ BOSTON","70233","EL ROBLE","70","SUCRE","70233","EL ROBLE","Municipio"]
[null,null,null,null,null,null,null,null,"CENTROS","70","SUCRE","7001","CZ BOSTON","70235","GALERAS","70","SUCRE","70235","GALERAS","Municipio"]
[null,null,null,null,null,null,null,null,"CENTROS","70","SUCRE","7004","CZ LA MOJANA","70265","GUARANDA","70","SUCRE","70265","GUARANDA","Municipio"]
[null,null,null,null,null,null,null,null,"CENTROS","70","SUCRE","7002","CZ NORTE","70400","LA UNIÓN","70","SUCRE","70400","LA UNIÓN","Municipio"]
[null,null,null,null,null,null,null,null,"CENTROS","70","SUCRE","7001","CZ BOSTON","70418","LOS PALMITOS","70","SUCRE","70418","LOS PALMITOS","Municipio"]
[null,null,null,null,null,null,null,null,"CENTROS","70","SUCRE","7004","CZ LA MOJANA","70429","MAJAGUAL","70","SUCRE","70429","MAJAGUAL","Municipio"]
[null,null,null,null,null,null,null,null,"CENTROS","70","SUCRE","7001","CZ BOSTON","70473","MORROA","70","SUCRE","70473","MORROA","Municipio"]
[null,null,null,null,null,null,null,null,"CENTROS","70","SUCRE","7001","CZ BOSTON","70508","OVEJAS","70","SUCRE","70508","OVEJAS","Municipio"]
[null,null,null,null,null,null,null,null,"CENTROS","70","SUCRE","7002","CZ NORTE","70523","PALMITO","70","SUCRE","70523","PALMITO","Municipio"]
[null,null,null,null,null,null,null,null,"CENTROS","70","SUCRE","7001","CZ BOSTON","70670","SAMPUÉS","70","SUCRE","70670","SAMPUÉS","Municipio"]
[null,null,null,null,null,null,null,null,"CENTROS","70","SUCRE","7002","CZ NORTE","70678","SAN BENITO ABAD","70","SUCRE","70678","SAN BENITO ABAD","Municipio"]
[null,null,null,null,null,null,null,null,"CENTROS","70","SUCRE","7001","CZ BOSTON","70702","SAN JUAN DE BETULIA","70","SUCRE","70702","SAN JUAN DE BETULIA","Municipio"]
[null,null,null,null,null,null,null,null,"CENTROS","70","SUCRE","7002","CZ NORTE","70708","SAN MARCOS","70","SUCRE","70708","SAN MARCOS","Municipio"]
[null,null,null,null,null,null,null,null,"CENTROS","70","SUCRE","7002","CZ NORTE","70713","SAN ONOFRE","70","SUCRE","70713","SAN ONOFRE","Municipio"]
[null,null,null,null,null,null,null,null,"CENTROS","70","SUCRE","7001","CZ BOSTON","70717","SAN PEDRO","70","SUCRE","70717","SAN PEDRO","Municipio"]
[null,null,null,null,null,null,null,null,"CENTROS","70","SUCRE","7001","CZ BOSTON","70742","SAN LUIS DE SINCÉ","70","SUCRE","70742","SAN LUIS DE SINCÉ","Municipio"]
[null,null,null,null,null,null,null,null,"CENTROS","70","SUCRE","7004","CZ LA MOJANA","70771","SUCRE","70","SUCRE","70771","SUCRE","Municipio"]
[null,null,null,null,null,null,null,null,"CENTROS","70","SUCRE","7002","CZ NORTE","70820","SANTIAGO DE TOLÚ","70","SUCRE","70820","SANTIAGO DE TOLÚ","Municipio"]
[null,null,null,null,null,null,null,null,"CENTROS","70","SUCRE","7002","CZ NORTE","70823","SAN JOSÉ DE TOLUVIEJO","70","SUCRE","70823","SAN JOSÉ DE TOLUVIEJO","Municipio"]
[null,null,null,null,null,null,null,null,"CENTROS","73","TOLIMA","7301","CZ JORDAN","73001","IBAGUÉ","73","TOLIMA","73001","IBAGUÉ","Municipio"]
[null,null,null,null,null,null,null,null,"CENTROS","73","TOLIMA","7302","CZ GALAN","73001","IBAGUÉ","73","TOLIMA","73001","IBAGUÉ","Municipio"]
[null,null,null,null,null,null,null,null,"CENTROS","73","TOLIMA","7303","CZ IBAGUE","73001","IBAGUÉ","73","TOLIMA","73001","IBAGUÉ","Municipio"]
[null,null,null,null,null,null,null,null,"CENTROS","73","TOLIMA","7309","CZ PURIFICACION","73024","ALPUJARRA","73","TOLIMA","73024","ALPUJARRA","Municipio"]
[null,null,null,null,null,null,null,null,"CENTROS","73","TOLIMA","7301","CZ JORDAN","73026","ALVARADO","73","TOLIMA","73026","ALVARADO","Municipio"]
[null,null,null,null,null,null,null,null,"CENTROS","73","TOLIMA","7303","CZ IBAGUE","73026","ALVARADO","73","TOLIMA","73026","ALVARADO","Municipio"]
[null,null,null,null,null,null,null,null,"CENTROS","73","TOLIMA","7305","CZ LERIDA","73030","AMBALEMA","73","TOLIMA","73030","AMBALEMA","Municipio"]
[null,null,null,null,null,null,null,null,"CENTROS","73","TOLIMA","7305","CZ LERIDA","73043","ANZOÁTEGUI","73","TOLIMA","73043","ANZOÁTEGUI","Municipio"]
[null,null,null,null,null,null,null,null,"CENTROS","73","TOLIMA","7305","CZ LERIDA","73055","ARMERO","73","TOLIMA","73055","ARMERO","Municipio"]
[null,null,null,null,null,null,null,null,"CENTROS","73","TOLIMA","7308","CZ CHAPARRAL","73067","ATACO","73","TOLIMA","73067","ATACO","Municipio"]
[null,null,null,null,null,null,null,null,"CENTROS","73","TOLIMA","7302","CZ GALAN","73124","CAJAMARCA","73","TOLIMA","73124","CAJAMARCA","Municipio"]
[null,null,null,null,null,null,null,null,"CENTROS","73","TOLIMA","7303","CZ IBAGUE","73124","CAJAMARCA","73","TOLIMA","73124","CAJAMARCA","Municipio"]
[null,null,null,null,null,null,null,null,"CENTROS","73","TOLIMA","7312","CZ MELGAR","73148","CARMEN DE APICALÁ","73","TOLIMA","73148","CARMEN DE APICALÁ","Municipio"]
[null,null,null,null,null,null,null,null,"CENTROS","73","TOLIMA","7304","CZ LIBANO","73152","CASABIANCA","73","TOLIMA","73152","CASABIANCA","Municipio"]
[null,null,null,null,null,null,null,null,"CENTROS","73","TOLIMA","7308","CZ CHAPARRAL","73168","CHAPARRAL","73","TOLIMA","73168","CHAPARRAL","Municipio"]
[null,null,null,null,null,null,null,null,"CENTROS","73","TOLIMA","7307","CZ ESPINAL","73200","COELLO","73","TOLIMA","73200","COELLO","Municipio"]
[null,null,null,null,null,null,null,null,"CENTROS","73","TOLIMA","7309","CZ PURIFICACION","73217","COYAIMA","73","TOLIMA","73217","COYAIMA","Municipio"]
[null,null,null,null,null,null,null,null,"CENTROS","73","TOLIMA","7312","CZ MELGAR","73226","CUNDAY","73","TOLIMA","73226","CUNDAY","Municipio"]
[null,null,null,null,null,null,null,null,"CENTROS","73","TOLIMA","7309","CZ PURIFICACION","73236","DOLORES","73","TOLIMA","73236","DOLORES","Municipio"]
[null,null,null,null,null,null,null,null,"CENTROS","73","TOLIMA","7307","CZ ESPINAL","73268","ESPINAL","73","TOLIMA","73268","ESPINAL","Municipio"]
[null,null,null,null,null,null,null,null,"CENTROS","73","TOLIMA","7306","CZ HONDA","73270","FALAN","73","TOLIMA","73270","FALAN","Municipio"]
[null,null,null,null,null,null,null,null,"CENTROS","73","TOLIMA","7307","CZ ESPINAL","73275","FLANDES","73","TOLIMA","73275","FLANDES","Municipio"]
[null,null,null,null,null,null,null,null,"CENTROS","73","TOLIMA","7306","CZ HONDA","73283","FRESNO","73","TOLIMA","73283","FRESNO","Municipio"]
[null,null,null,null,null,null,null,null,"CENTROS","73","TOLIMA","7307","CZ ESPINAL","73319","GUAMO","73","TOLIMA","73319","GUAMO","Municipio"]
[null,null,null,null,null,null,null,null,"CENTROS","73","TOLIMA","7306","CZ HONDA","73347","HERVEO","73","TOLIMA","73347","HERVEO","Municipio"]
[null,null,null,null,null,null,null,null,"CENTROS","73","TOLIMA","7306","CZ HONDA","73349","HONDA","73","TOLIMA","73349","HONDA","Municipio"]
[null,null,null,null,null,null,null,null,"CENTROS","73","TOLIMA","7312","CZ MELGAR","73352","ICONONZO","73","TOLIMA","73352","ICONONZO","Municipio"]
[null,null,null,null,null,null,null,null,"CENTROS","73","TOLIMA","7305","CZ LERIDA","73408","LÉRIDA","73","TOLIMA","73408","LÉRIDA","Municipio"]
[null,null,null,null,null,null,null,null,"CENTROS","73","TOLIMA","7304","CZ LIBANO","73411","LÍBANO","73","TOLIMA","73411","LÍBANO","Municipio"]
[null,null,null,null,null,null,null,null,"CENTROS","73","TOLIMA","7306","CZ HONDA","73443","SAN SEBASTIÁN DE MARIQUITA","73","TOLIMA","73443","SAN SEBASTIÁN DE MARIQUITA","Municipio"]
[null,null,null,null,null,null,null,null,"CENTROS","73","TOLIMA","7312","CZ MELGAR","73449","MELGAR","73","TOLIMA","73449","MELGAR","Municipio"]
[null,null,null,null,null,null,null,null,"CENTROS","73","TOLIMA","7304","CZ LIBANO","73461","MURILLO","73","TOLIMA","73461","MURILLO","Municipio"]
[null,null,null,null,null,null,null,null,"CENTROS","73","TOLIMA","7309","CZ PURIFICACION","73483","NATAGAIMA","73","TOLIMA","73483","NATAGAIMA","Municipio"]
[null,null,null,null,null,null,null,null,"CENTROS","73","TOLIMA","7307","CZ ESPINAL","73504","ORTEGA","73","TOLIMA","73504","ORTEGA","Municipio"]
[null,null,null,null,null,null,null,null,"CENTROS","73","TOLIMA","7306","CZ HONDA","73520","PALOCABILDO","73","TOLIMA","73520","PALOCABILDO","Municipio"]
[null,null,null,null,null,null,null,null,"CENTROS","73","TOLIMA","7301","CZ JORDAN","73547","PIEDRAS","73","TOLIMA","73547","PIEDRAS","Municipio"]
[null,null,null,null,null,null,null,null,"CENTROS","73","TOLIMA","7303","CZ IBAGUE","73547","PIEDRAS","73","TOLIMA","73547","PIEDRAS","Municipio"]
[null,null,null,null,null,null,null,null,"CENTROS","73","TOLIMA","7308","CZ CHAPARRAL","73555","PLANADAS","73","TOLIMA","73555","PLANADAS","Municipio"]
[null,null,null,null,null,null,null,null,"CENTROS","73","TOLIMA","7309","CZ PURIFICACION","73563","PRADO","73","TOLIMA","73563","PRADO","Municipio"]
[null,null,null,null,null,null,null,null,"CENTROS","73","TOLIMA","7309","CZ PURIFICACION","73585","PURIFICACIÓN","73","TOLIMA","73585","PURIFICACIÓN","Municipio"]
[null,null,null,null,null,null,null,null,"CENTROS","73","TOLIMA","7308","CZ CHAPARRAL","73616","RIOBLANCO","73","TOLIMA","73616","RIOBLANCO","Municipio"]
[null,null,null,null,null,null,null,null,"CENTROS","73","TOLIMA","7302","CZ GALAN","73622","RONCESVALLES","73","TOLIMA","73622","RONCESVALLES","Municipio"]
[null,null,null,null,null,null,null,null,"CENTROS","73","TOLIMA","7303","CZ IBAGUE","73622","RONCESVALLES","73","TOLIMA","73622","RONCESVALLES","Municipio"]
[null,null,null,null,null,null,null,null,"CENTROS","73","TOLIMA","7302","CZ GALAN","73624","ROVIRA","73","TOLIMA","73624","ROVIRA","Municipio"]
[null,null,null,null,null,null,null,null,"CENTROS","73","TOLIMA","7303","CZ IBAGUE","73624","ROVIRA","73","TOLIMA","73624","ROVIRA","Municipio"]
[null,null,null,null,null,null,null,null,"CENTROS","73","TOLIMA","7309","CZ PURIFICACION","73671","SALDAÑA","73","TOLIMA","73671","SALDAÑA","Municipio"]
[null,null,null,null,null,null,null,null,"CENTROS","73","TOLIMA","7308","CZ CHAPARRAL","73675","SAN ANTONIO","73","TOLIMA","73675","SAN ANTONIO","Municipio"]
[null,null,null,null,null,null,null,null,"CENTROS","73","TOLIMA","7301","CZ JORDAN","73678","SAN LUIS","73","TOLIMA","73678","SAN LUIS","Municipio"]
[null,null,null,null,null,null,null,null,"CENTROS","73","TOLIMA","7303","CZ IBAGUE","73678","SAN LUIS","73","TOLIMA","73678","SAN LUIS","Municipio"]
[null,null,null,null,null,null,null,null,"CENTROS","73","TOLIMA","7305","CZ LERIDA","73686","SANTA ISABEL","73","TOLIMA","73686","SANTA ISABEL","Municipio"]
[null,null,null,null,null,null,null,null,"CENTROS","73","TOLIMA","7307","CZ ESPINAL","73770","SUÁREZ","73","TOLIMA","73770","SUÁREZ","Municipio"]
[null,null,null,null,null,null,null,null,"CENTROS","73","TOLIMA","7301","CZ JORDAN","73854","VALLE DE SAN JUAN","73","TOLIMA","73854","VALLE DE SAN JUAN","Municipio"]
[null,null,null,null,null,null,null,null,"CENTROS","73","TOLIMA","7303","CZ IBAGUE","73854","VALLE DE SAN JUAN","73","TOLIMA","73854","VALLE DE SAN JUAN","Municipio"]
[null,null,null,null,null,null,null,null,"CENTROS","73","TOLIMA","7305","CZ LERIDA","73861","VENADILLO","73","TOLIMA","73861","VENADILLO","Municipio"]
[null,null,null,null,null,null,null,null,"CENTROS","73","TOLIMA","7304","CZ LIBANO","73870","VILLAHERMOSA","73","TOLIMA","73870","VILLAHERMOSA","Municipio"]
[null,null,null,null,null,null,null,null,"CENTROS","73","TOLIMA","7312","CZ MELGAR","73873","VILLARRICA","73","TOLIMA","73873","VILLARRICA","Municipio"]
[null,null,null,null,null,null,null,null,"CENTROS","76","VALLE DEL CAUCA","7601","CZ SURORIENTAL","76001","CALI","76","VALLE DEL CAUCA","76001","CALI","Municipio"]
[null,null,null,null,null,null,null,null,"CENTROS","76","VALLE DEL CAUCA","7602","CZ NORORIENTAL","76001","CALI","76","VALLE DEL CAUCA","76001","CALI","Municipio"]
[null,null,null,null,null,null,null,null,"CENTROS","76","VALLE DEL CAUCA","7603","CZ LADERA","76001","CALI","76","VALLE DEL CAUCA","76001","CALI","Municipio"]
[null,null,null,null,null,null,null,null,"CENTROS","76","VALLE DEL CAUCA","7604","CZ CENTRO","76001","CALI","76","VALLE DEL CAUCA","76001","CALI","Municipio"]
[null,null,null,null,null,null,null,null,"CENTROS","76","VALLE DEL CAUCA","7605","CZ SUR","76001","CALI","76","VALLE DEL CAUCA","76001","CALI","Municipio"]
[null,null,null,null,null,null,null,null,"CENTROS","76","VALLE DEL CAUCA","7620","CZ RESTAURAR","76001","CALI","76","VALLE DEL CAUCA","76001","CALI","Municipio"]
[null,null,null,null,null,null,null,null,"CENTROS","76","VALLE DEL CAUCA","7613","CZ CARTAGO","76020","ALCALÁ","76","VALLE DEL CAUCA","76020","ALCALÁ","Municipio"]
[null,null,null,null,null,null,null,null,"CENTROS","76","VALLE DEL CAUCA","7610","CZ TULUA","76036","ANDALUCÍA","76","VALLE DEL CAUCA","76036","ANDALUCÍA","Municipio"]
[null,null,null,null,null,null,null,null,"CENTROS","76","VALLE DEL CAUCA","7613","CZ CARTAGO","76041","ANSERMANUEVO","76","VALLE DEL CAUCA","76041","ANSERMANUEVO","Municipio"]
[null,null,null,null,null,null,null,null,"CENTROS","76","VALLE DEL CAUCA","7613","CZ CARTAGO","76054","ARGELIA","76","VALLE DEL CAUCA","76054","ARGELIA","Municipio"]
[null,null,null,null,null,null,null,null,"CENTROS","76","VALLE DEL CAUCA","7612","CZ ROLDANILLO","76100","BOLÍVAR","76","VALLE DEL CAUCA","76100","BOLÍVAR","Municipio"]
[null,null,null,null,null,null,null,null,"CENTROS","76","VALLE DEL CAUCA","7614","CZ BUENAVENTURA","76109","BUENAVENTURA","76","VALLE DEL CAUCA","76109","BUENAVENTURA","Municipio"]
[null,null,null,null,null,null,null,null,"CENTROS","76","VALLE DEL CAUCA","7609","CZ BUGA","76111","GUADALAJARA DE BUGA","76","VALLE DEL CAUCA","76111","GUADALAJARA DE BUGA","Municipio"]
[null,null,null,null,null,null,null,null,"CENTROS","76","VALLE DEL CAUCA","7610","CZ TULUA","76113","BUGALAGRANDE","76","VALLE DEL CAUCA","76113","BUGALAGRANDE","Municipio"]
[null,null,null,null,null,null,null,null,"CENTROS","76","VALLE DEL CAUCA","7611","CZ SEVILLA","76122","CAICEDONIA","76","VALLE DEL CAUCA","76122","CAICEDONIA","Municipio"]
[null,null,null,null,null,null,null,null,"CENTROS","76","VALLE DEL CAUCA","7609","CZ BUGA","76126","CALIMA","76","VALLE DEL CAUCA","76126","CALIMA","Municipio"]
[null,null,null,null,null,null,null,null,"CENTROS","76","VALLE DEL CAUCA","7608","CZ PALMIRA","76130","CANDELARIA","76","VALLE DEL CAUCA","76130","CANDELARIA","Municipio"]
[null,null,null,null,null,null,null,null,"CENTROS","76","VALLE DEL CAUCA","7613","CZ CARTAGO","76147","CARTAGO","76","VALLE DEL CAUCA","76147","CARTAGO","Municipio"]
[null,null,null,null,null,null,null,null,"CENTROS","76","VALLE DEL CAUCA","7603","CZ LADERA","76233","DAGUA","76","VALLE DEL CAUCA","76233","DAGUA","Municipio"]
[null,null,null,null,null,null,null,null,"CENTROS","76","VALLE DEL CAUCA","7604","CZ CENTRO","76233","DAGUA","76","VALLE DEL CAUCA","76233","DAGUA","Municipio"]
[null,null,null,null,null,null,null,null,"CENTROS","76","VALLE DEL CAUCA","7613","CZ CARTAGO","76243","EL ÁGUILA","76","VALLE DEL CAUCA","76243","EL ÁGUILA","Municipio"]
[null,null,null,null,null,null,null,null,"CENTROS","76","VALLE DEL CAUCA","7613","CZ CARTAGO","76246","EL CAIRO","76","VALLE DEL CAUCA","76246","EL CAIRO","Municipio"]
[null,null,null,null,null,null,null,null,"CENTROS","76","VALLE DEL CAUCA","7608","CZ PALMIRA","76248","EL CERRITO","76","VALLE DEL CAUCA","76248","EL CERRITO","Municipio"]
[null,null,null,null,null,null,null,null,"CENTROS","76","VALLE DEL CAUCA","7612","CZ ROLDANILLO","76250","EL DOVIO","76","VALLE DEL CAUCA","76250","EL DOVIO","Municipio"]
[null,null,null,null,null,null,null,null,"CENTROS","76","VALLE DEL CAUCA","7608","CZ PALMIRA","76275","FLORIDA","76","VALLE DEL CAUCA","76275","FLORIDA","Municipio"]
[null,null,null,null,null,null,null,null,"CENTROS","76","VALLE DEL CAUCA","7608","CZ PALMIRA","76306","GINEBRA","76","VALLE DEL CAUCA","76306","GINEBRA","Municipio"]
[null,null,null,null,null,null,null,null,"CENTROS","76","VALLE DEL CAUCA","7609","CZ BUGA","76318","GUACARÍ","76","VALLE DEL CAUCA","76318","GUACARÍ","Municipio"]
[null,null,null,null,null,null,null,null,"CENTROS","76","VALLE DEL CAUCA","7606","CZ JAMUNDI","76364","JAMUNDÍ","76","VALLE DEL CAUCA","76364","JAMUNDÍ","Municipio"]
[null,null,null,null,null,null,null,null,"CENTROS","76","VALLE DEL CAUCA","7607","CZ YUMBO","76377","LA CUMBRE","76","VALLE DEL CAUCA","76377","LA CUMBRE","Municipio"]
[null,null,null,null,null,null,null,null,"CENTROS","76","VALLE DEL CAUCA","7612","CZ ROLDANILLO","76400","LA UNIÓN","76","VALLE DEL CAUCA","76400","LA UNIÓN","Municipio"]
[null,null,null,null,null,null,null,null,"CENTROS","76","VALLE DEL CAUCA","7613","CZ CARTAGO","76403","LA VICTORIA","76","VALLE DEL CAUCA","76403","LA VICTORIA","Municipio"]
[null,null,null,null,null,null,null,null,"CENTROS","76","VALLE DEL CAUCA","7613","CZ CARTAGO","76497","OBANDO","76","VALLE DEL CAUCA","76497","OBANDO","Municipio"]
[null,null,null,null,null,null,null,null,"CENTROS","76","VALLE DEL CAUCA","7608","CZ PALMIRA","76520","PALMIRA","76","VALLE DEL CAUCA","76520","PALMIRA","Municipio"]
[null,null,null,null,null,null,null,null,"CENTROS","76","VALLE DEL CAUCA","7608","CZ PALMIRA","76563","PRADERA","76","VALLE DEL CAUCA","76563","PRADERA","Municipio"]
[null,null,null,null,null,null,null,null,"CENTROS","76","VALLE DEL CAUCA","7609","CZ BUGA","76606","RESTREPO","76","VALLE DEL CAUCA","76606","RESTREPO","Municipio"]
[null,null,null,null,null,null,null,null,"CENTROS","76","VALLE DEL CAUCA","7610","CZ TULUA","76616","RIOFRÍO","76","VALLE DEL CAUCA","76616","RIOFRÍO","Municipio"]
[null,null,null,null,null,null,null,null,"CENTROS","76","VALLE DEL CAUCA","7612","CZ ROLDANILLO","76622","ROLDANILLO","76","VALLE DEL CAUCA","76622","ROLDANILLO","Municipio"]
[null,null,null,null,null,null,null,null,"CENTROS","76","VALLE DEL CAUCA","7609","CZ BUGA","76670","SAN PEDRO","76","VALLE DEL CAUCA","76670","SAN PEDRO","Municipio"]
[null,null,null,null,null,null,null,null,"CENTROS","76","VALLE DEL CAUCA","7611","CZ SEVILLA","76736","SEVILLA","76","VALLE DEL CAUCA","76736","SEVILLA","Municipio"]
[null,null,null,null,null,null,null,null,"CENTROS","76","VALLE DEL CAUCA","7612","CZ ROLDANILLO","76823","TORO","76","VALLE DEL CAUCA","76823","TORO","Municipio"]
[null,null,null,null,null,null,null,null,"CENTROS","76","VALLE DEL CAUCA","7610","CZ TULUA","76828","TRUJILLO","76","VALLE DEL CAUCA","76828","TRUJILLO","Municipio"]
[null,null,null,null,null,null,null,null,"CENTROS","76","VALLE DEL CAUCA","7610","CZ TULUA","76834","TULUÁ","76","VALLE DEL CAUCA","76834",{"$error":"#N/A"},"Municipio"]
[null,null,null,null,null,null,null,null,"CENTROS","76","VALLE DEL CAUCA","7613","CZ CARTAGO","76845","ULLOA","76","VALLE DEL CAUCA","76845","ULLOA","Municipio"]
[null,null,null,null,null,null,null,null,"CENTROS","76","VALLE DEL CAUCA","7612","CZ ROLDANILLO","76863","VERSALLES","76","VALLE DEL CAUCA","76863","VERSALLES","Municipio"]
[null,null,null,null,null,null,null,null,"CENTROS","76","VALLE DEL CAUCA","7607","CZ YUMBO","76869","VIJES","76","VALLE DEL CAUCA","76869","VIJES","Municipio"]
[null,null,null,null,null,null,null,null,"CENTROS","76","VALLE DEL CAUCA","7609","CZ BUGA","76890","YOTOCO","76","VALLE DEL CAUCA","76890","YOTOCO","Municipio"]
[null,null,null,null,null,null,null,null,"CENTROS","76","VALLE DEL CAUCA","7607","CZ YUMBO","76892","YUMBO","76","VALLE DEL CAUCA","76892","YUMBO","Municipio"]
[null,null,null,null,null,null,null,null,"CENTROS","76","VALLE DEL CAUCA","7612","CZ ROLDANILLO","76895","ZARZAL","76","VALLE DEL CAUCA","76895","ZARZAL","Municipio"]
[null,null,null,null,null,null,null,null,"CENTROS","81","ARAUCA","8102","CZ SARAVENA","15223","CUBARÁ","15","BOYACÁ","15223","CUBARÁ","Municipio"]
[null,null,null,null,null,null,null,null,"CENTROS","81","ARAUCA","8101","CZ ARAUCA","81001","ARAUCA","81","ARAUCA","81001","ARAUCA","Municipio"]
[null,null,null,null,null,null,null,null,"CENTROS","81","ARAUCA","8102","CZ SARAVENA","81065","ARAUQUITA","81","ARAUCA","81065","ARAUQUITA","Municipio"]
[null,null,null,null,null,null,null,null,"CENTROS","81","ARAUCA","8101","CZ ARAUCA","81220","CRAVO NORTE","81","ARAUCA","81220","CRAVO NORTE","Municipio"]
[null,null,null,null,null,null,null,null,"CENTROS","81","ARAUCA","8102","CZ SARAVENA","81300","FORTUL","81","ARAUCA","81300","FORTUL","Municipio"]
[null,null,null,null,null,null,null,null,"CENTROS","81","ARAUCA","8103","CZ TAME","81591","PUERTO RONDÓN","81","ARAUCA","81591","PUERTO RONDÓN","Municipio"]
[null,null,null,null,null,null,null,null,"CENTROS","81","ARAUCA","8102","CZ SARAVENA","81736","SARAVENA","81","ARAUCA","81736","SARAVENA","Municipio"]
[null,null,null,null,null,null,null,null,"CENTROS","81","ARAUCA","8103","CZ TAME","81794","TAME","81","ARAUCA","81794","TAME","Municipio"]
[null,null,null,null,null,null,null,null,"CENTROS","85","CASANARE","8501","CZ YOPAL","85001","YOPAL","85","CASANARE","85001","YOPAL","Municipio"]
[null,null,null,null,null,null,null,null,"CENTROS","85","CASANARE","8501","CZ YOPAL","85010","AGUAZUL","85","CASANARE","85010","AGUAZUL","Municipio"]
[null,null,null,null,null,null,null,null,"CENTROS","85","CASANARE","8501","CZ YOPAL","85015","CHAMEZA","85","CASANARE","85015","CHÁMEZA","Municipio"]
[null,null,null,null,null,null,null,null,"CENTROS","85","CASANARE","8502","CZ PAZ DE ARIPORO","85125","HATO COROZAL","85","CASANARE","85125","HATO COROZAL","Municipio"]
[null,null,null,null,null,null,null,null,"CENTROS","85","CASANARE","8502","CZ PAZ DE ARIPORO","85136","LA SALINA","85","CASANARE","85136","LA SALINA","Municipio"]
[null,null,null,null,null,null,null,null,"CENTROS","85","CASANARE","8501","CZ YOPAL","85139","MANÍ","85","CASANARE","85139","MANÍ","Municipio"]
[null,null,null,null,null,null,null,null,"CENTROS","85","CASANARE","8503","CZ VILLANUEVA","85162","MONTERREY","85","CASANARE","85162","MONTERREY","Municipio"]
[null,null,null,null,null,null,null,null,"CENTROS","85","CASANARE","8501","CZ YOPAL","85225","NUNCHÍA","85","CASANARE","85225","NUNCHÍA","Municipio"]
[null,null,null,null,null,null,null,null,"CENTROS","85","CASANARE","8501","CZ YOPAL","85230","OROCUÉ","85","CASANARE","85230","OROCUÉ","Municipio"]
[null,null,null,null,null,null,null,null,"CENTROS","85","CASANARE","8502","CZ PAZ DE ARIPORO","85250","PAZ DE ARIPORO","85","CASANARE","85250","PAZ DE ARIPORO","Municipio"]
[null,null,null,null,null,null,null,null,"CENTROS","85","CASANARE","8502","CZ PAZ DE ARIPORO","85263","PORE","85","CASANARE","85263","PORE","Municipio"]
[null,null,null,null,null,null,null,null,"CENTROS","85","CASANARE","8501","CZ YOPAL","85279","RECETOR","85","CASANARE","85279","RECETOR","Municipio"]
[null,null,null,null,null,null,null,null,"CENTROS","85","CASANARE","8503","CZ VILLANUEVA","85300","SABANALARGA","85","CASANARE","85300","SABANALARGA","Municipio"]
[null,null,null,null,null,null,null,null,"CENTROS","85","CASANARE","8502","CZ PAZ DE ARIPORO","85315","SÁCAMA","85","CASANARE","85315","SÁCAMA","Municipio"]
[null,null,null,null,null,null,null,null,"CENTROS","85","CASANARE","8501","CZ YOPAL","85325","SAN LUIS DE PALENQUE","85","CASANARE","85325","SAN LUIS DE PALENQUE","Municipio"]
[null,null,null,null,null,null,null,null,"CENTROS","85","CASANARE","8502","CZ PAZ DE ARIPORO","85400","TÁMARA","85","CASANARE","85400","TÁMARA","Municipio"]
[null,null,null,null,null,null,null,null,"CENTROS","85","CASANARE","8503","CZ VILLANUEVA","85410","TAURAMENA","85","CASANARE","85410","TAURAMENA","Municipio"]
[null,null,null,null,null,null,null,null,"CENTROS","85","CASANARE","8502","CZ PAZ DE ARIPORO","85430","TRINIDAD","85","CASANARE","85430","TRINIDAD","Municipio"]
[null,null,null,null,null,null,null,null,"CENTROS","85","CASANARE","8503","CZ VILLANUEVA","85440","VILLANUEVA","85","CASANARE","85440","VILLANUEVA","Municipio"]
[null,null,null,null,null,null,null,null,"CENTROS","86","PUTUMAYO","8601","CZ MOCOA","19533","PIAMONTE","19","CAUCA","19533","PIAMONTE","Municipio"]
[null,null,null,null,null,null,null,null,"CENTROS","86","PUTUMAYO","8601","CZ MOCOA","86001","MOCOA","86","PUTUMAYO","86001","MOCOA","Municipio"]
[null,null,null,null,null,null,null,null,"CENTROS","86","PUTUMAYO","8602","CZ SIBUNDOY","86219","COLÓN","86","PUTUMAYO","86219","COLÓN","Municipio"]
[null,null,null,null,null,null,null,null,"CENTROS","86","PUTUMAYO","8604","CZ LA HORMIGA","86320","ORITO","86","PUTUMAYO","86320","ORITO","Municipio"]
[null,null,null,null,null,null,null,null,"CENTROS","86","PUTUMAYO","8603","CZ PUERTO ASIS","86568","PUERTO ASÍS","86","PUTUMAYO","86568","PUERTO ASÍS","Municipio"]
[null,null,null,null,null,null,null,null,"CENTROS","86","PUTUMAYO","8603","CZ PUERTO ASIS","86569","PUERTO CAICEDO","86","PUTUMAYO","86569","PUERTO CAICEDO","Municipio"]
[null,null,null,null,null,null,null,null,"CENTROS","86","PUTUMAYO","8601","CZ MOCOA","86571","PUERTO GUZMÁN","86","PUTUMAYO","86571","PUERTO GUZMÁN","Municipio"]
[null,null,null,null,null,null,null,null,"CENTROS","86","PUTUMAYO","8603","CZ PUERTO ASIS","86573","PUERTO LEGUÍZAMO","86","PUTUMAYO","86573","PUERTO LEGUÍZAMO","Municipio"]
[null,null,null,null,null,null,null,null,"CENTROS","86","PUTUMAYO","8602","CZ SIBUNDOY","86749","SIBUNDOY","86","PUTUMAYO","86749","SIBUNDOY","Municipio"]
[null,null,null,null,null,null,null,null,"CENTROS","86","PUTUMAYO","8602","CZ SIBUNDOY","86755","SAN FRANCISCO","86","PUTUMAYO","86755","SAN FRANCISCO","Municipio"]
[null,null,null,null,null,null,null,null,"CENTROS","86","PUTUMAYO","8604","CZ LA HORMIGA","86757","SAN MIGUEL","86","PUTUMAYO","86757","SAN MIGUEL","Municipio"]
[null,null,null,null,null,null,null,null,"CENTROS","86","PUTUMAYO","8602","CZ SIBUNDOY","86760","SANTIAGO","86","PUTUMAYO","86760","SANTIAGO","Municipio"]
[null,null,null,null,null,null,null,null,"CENTROS","86","PUTUMAYO","8604","CZ LA HORMIGA","86865","VALLE DEL GUAMUEZ","86","PUTUMAYO","86865","VALLE DEL GUAMUEZ","Municipio"]
[null,null,null,null,null,null,null,null,"CENTROS","86","PUTUMAYO","8601","CZ MOCOA","86885","VILLAGARZON","86","PUTUMAYO","86885","VILLAGARZÓN","Municipio"]
[null,null,null,null,null,null,null,null,"CENTROS","88","SAN ANDRÉS","8801","CZ LOS ALMENDROS","88001","SAN ANDRÉS","88","SAN ANDRÉS","88001","SAN ANDRÉS","Isla"]
[null,null,null,null,null,null,null,null,"CENTROS","88","SAN ANDRÉS","8801","CZ LOS ALMENDROS","88564","PROVIDENCIA","88","SAN ANDRÉS","88564","PROVIDENCIA","Municipio"]
[null,null,null,null,null,null,null,null,"CENTROS","91","AMAZONAS","9102","CZ LETICIA","91001","LETICIA","91","AMAZONAS","91001","LETICIA","Municipio"]
[null,null,null,null,null,null,null,null,"CENTROS","91","AMAZONAS","9102","CZ LETICIA","91263","EL ENCANTO","91","AMAZONAS","91263","EL ENCANTO","Área no municipalizada"]
[null,null,null,null,null,null,null,null,"CENTROS","91","AMAZONAS","9102","CZ LETICIA","91405","LA CHORRERA","91","AMAZONAS","91405","LA CHORRERA","Área no municipalizada"]
[null,null,null,null,null,null,null,null,"CENTROS","91","AMAZONAS","9102","CZ LETICIA","91407","LA PEDRERA","91","AMAZONAS","91407","LA PEDRERA","Área no municipalizada"]
[null,null,null,null,null,null,null,null,"CENTROS","91","AMAZONAS","9102","CZ LETICIA","91430","LA VICTORIA","91","AMAZONAS","91430","LA VICTORIA","Área no municipalizada"]
[null,null,null,null,null,null,null,null,"CENTROS","91","AMAZONAS","9102","CZ LETICIA","91460","MIRITI - PARANA","91","AMAZONAS","91460","MIRITÍ - PARANÁ","Área no municipalizada"]
[null,null,null,null,null,null,null,null,"CENTROS","91","AMAZONAS","9102","CZ LETICIA","91530","PUERTO ALEGRIA","91","AMAZONAS","91530","PUERTO ALEGRÍA","Área no municipalizada"]
[null,null,null,null,null,null,null,null,"CENTROS","91","AMAZONAS","9102","CZ LETICIA","91536","PUERTO ARICA","91","AMAZONAS","91536","PUERTO ARICA","Área no municipalizada"]
[null,null,null,null,null,null,null,null,"CENTROS","91","AMAZONAS","9102","CZ LETICIA","91540","PUERTO NARIÑO","91","AMAZONAS","91540","PUERTO NARIÑO","Municipio"]
[null,null,null,null,null,null,null,null,"CENTROS","91","AMAZONAS","9102","CZ LETICIA","91669","PUERTO SANTANDER","91","AMAZONAS","91669","PUERTO SANTANDER","Área no municipalizada"]
[null,null,null,null,null,null,null,null,"CENTROS","91","AMAZONAS","9102","CZ LETICIA","91798","TARAPACA","91","AMAZONAS","91798","TARAPACÁ","Área no municipalizada"]
[null,null,null,null,null,null,null,null,"CENTROS","94","GUAINÍA","9403","CZ INIRIDA","94001","INÍRIDA","94","GUAINÍA","94001","INÍRIDA","Municipio"]
[null,null,null,null,null,null,null,null,"CENTROS","94","GUAINÍA","9403","CZ INIRIDA","94343","BARRANCOMINAS","94","GUAINÍA","94343","BARRANCOMINAS","Municipio"]
[null,null,null,null,null,null,null,null,"CENTROS","94","GUAINÍA","9403","CZ INIRIDA","94883","SAN FELIPE","94","GUAINÍA","94883","SAN FELIPE","Área no municipalizada"]
[null,null,null,null,null,null,null,null,"CENTROS","94","GUAINÍA","9403","CZ INIRIDA","94884","PUERTO COLOMBIA","94","GUAINÍA","94884","PUERTO COLOMBIA","Área no municipalizada"]
[null,null,null,null,null,null,null,null,"CENTROS","94","GUAINÍA","9403","CZ INIRIDA","94885","LA GUADALUPE","94","GUAINÍA","94885","LA GUADALUPE","Área no municipalizada"]
[null,null,null,null,null,null,null,null,"CENTROS","94","GUAINÍA","9403","CZ INIRIDA","94886","CACAHUAL","94","GUAINÍA","94886","CACAHUAL","Área no municipalizada"]
[null,null,null,null,null,null,null,null,"CENTROS","94","GUAINÍA","9403","CZ INIRIDA","94887","PANA PANA","94","GUAINÍA","94887","PANA PANA","Área no municipalizada"]
[null,null,null,null,null,null,null,null,"CENTROS","94","GUAINÍA","9403","CZ INIRIDA","94888","MORICHAL","94","GUAINÍA","94888","MORICHAL","Área no municipalizada"]
[null,null,null,null,null,null,null,null,"CENTROS","94","GUAINÍA","9403","CZ INIRIDA","99773","CUMARIBO","99","VICHADA","99773","CUMARIBO","Municipio"]
[null,null,null,null,null,null,null,null,"CENTROS","94","GUAINÍA","9403","CZ INIRIDA","94663","MAPIRIPANA","94","GUAINÍA",94343001,"MAPIRIPANA","Centro poblado"]
[null,null,null,null,null,null,null,null,"CENTROS","95","GUAVIARE","9505","CZ SAN JOSE DE GUAVIARE","95001","SAN JOSÉ DEL GUAVIARE","95","GUAVIARE","95001","SAN JOSÉ DEL GUAVIARE","Municipio"]
[null,null,null,null,null,null,null,null,"CENTROS","95","GUAVIARE","9505","CZ SAN JOSE DE GUAVIARE","95015","CALAMAR","95","GUAVIARE","95015","CALAMAR","Municipio"]
[null,null,null,null,null,null,null,null,"CENTROS","95","GUAVIARE","9505","CZ SAN JOSE DE GUAVIARE","95025","EL RETORNO","95","GUAVIARE","95025","EL RETORNO","Municipio"]
[null,null,null,null,null,null,null,null,"CENTROS","95","GUAVIARE","9505","CZ SAN JOSE DE GUAVIARE","95200","MIRAFLORES","95","GUAVIARE","95200","MIRAFLORES","Municipio"]
[null,null,null,null,null,null,null,null,"CENTROS","97","VAUPÉS","9704","CZ MITU","97001","MITÚ","97","VAUPÉS","97001","MITÚ","Municipio"]
[null,null,null,null,null,null,null,null,"CENTROS","97","VAUPÉS","9704","CZ MITU","97161","CARURU","97","VAUPÉS","97161","CARURÚ","Municipio"]
[null,null,null,null,null,null,null,null,"CENTROS","97","VAUPÉS","9704","CZ MITU","97511","PACOA","97","VAUPÉS","97511","PACOA","Área no municipalizada"]
[null,null,null,null,null,null,null,null,"CENTROS","97","VAUPÉS","9704","CZ MITU","97666","TARAIRA","97","VAUPÉS","97666","TARAIRA","Municipio"]
[null,null,null,null,null,null,null,null,"CENTROS","97","VAUPÉS","9704","CZ MITU","97777","PAPUNAHUA","97","VAUPÉS","97777","PAPUNAHUA","Área no municipalizada"]
[null,null,null,null,null,null,null,null,"CENTROS","97","VAUPÉS","9704","CZ MITU","97889","YAVARATE","97","VAUPÉS","97889","YAVARATÉ","Área no municipalizada"]
[null,null,null,null,null,null,null,null,"CENTROS","99","VICHADA","9902","CZ PUERTO CARREÑO","99001","PUERTO CARREÑO","99","VICHADA","99001","PUERTO CARREÑO","Municipio"]
[null,null,null,null,null,null,null,null,"CENTROS","99","VICHADA","9902","CZ PUERTO CARREÑO","99524","LA PRIMAVERA","99","VICHADA","99524","LA PRIMAVERA","Municipio"]
[null,null,null,null,null,null,null,null,"CENTROS","99","VICHADA","9902","CZ PUERTO CARREÑO","99624","SANTA ROSALÍA","99","VICHADA","99624","SANTA ROSALÍA","Municipio"]
[null,null,null,null,null,null,null,null,"CENTROS","99","VICHADA","9902","CZ PUERTO CARREÑO","99773","CUMARIBO","99","VICHADA","99773","CUMARIBO","Municipio"]

{"sheet":"TR","index":4,"n_rows":82,"n_cols":13,"rows_kept":82,"cut":false,"hidden":true,"merged":[[7,7,7,11],[7,1,7,5]]}
[]
[]
[]
[null,null,"ALISTAMIENTO","ATENCIÓN","CIERRE","CCM (Promedio)",null,null,"ALISTAMIENTO","ATENCIÓN","CIERRE","CCM (Promedio)"]
[null,null,{"$f":"+C10+C25+C43+C51+C53+C69+C82+C31+C41+C39+C60+C63","v":1.000000413487945},{"$f":"+D10+D25+D43+D51+D53+D69+D82+D31+D41+D39+D60+D63","v":0.99999999625498015},{"$f":"+E10+E25+E43+E51+E53+E69+E82+E31+E41+E39+E60+E63","v":0.99999999625497982},{"$f":"+F10+F25+F43+F51+F53+F69+F82+F31+F41+F39+F60+F63","v":0.99999999999999989},null,null,{"$f":"+I10+I39+I31+I41+I53+I60+I43+I63+I80+I69+I82+I25","v":1.0000006441004354},{"$f":"+J10+J39+J31+J41+J53+J60+J43+J63+J80+J69+J82+J25","v":0.99999950941739491},{"$f":"+K10+K39+K31+K41+K53+K60+K43+K63+K80+K69+K82+K25","v":1.0000001843553821},{"$f":"+L10+L39+L31+L41+L53+L60+L43+L63+L80+L69+L82+L25","v":1.0000306875637728}]
[]
[]
[null,"ITINERANTE 2025",null,null,null,null,null,"CENTROS 2025"]
["COD",null,"ALISTAMIENTO","ATENCIÓN","CIERRE","CCM (Regional/etapa)","COD",null,"ALISTAMIENTO","ATENCIÓN","CIERRE","CCM (Promedio)","COD"]
[2100,"TALENTO HUMANO",{"$f":"+SUM(C11:C19)","v":0.78842127424977404},{"$f":"SUM(D11:D19)","v":0.68404528394900577},{"$f":"SUM(E11:E19)","v":0.84694480515607939},0.70028816228889712,2100,"TALENTO HUMANO",{"$f":"+ROUND(SUM(I11:I23),6)","v":0.70793499999999998},{"$f":"+ROUND(SUM(J11:J23),6)","v":0.57503300000000002},{"$f":"+ROUND(SUM(K11:K23),6)","v":0.58360199999999995},0.58350000000000002,2100]
[2101,"Orientador de atención itinerante para la adaptación de entornos familiares. ",0.23513869956625211,0.20400961232971573,0.2525927528760496,null,2101,"Coordinador",5.5631170192726842E-2,4.5187466318453988E-2,4.5860813537803045E-2,null,2101]
[2102,"Orientador de atención itinerante para la adaptación de entornos institucionales. ",0.23513869956625211,0.20400961232971573,0.2525927528760496,null,2102,"Orientador Pedagógico para la Inclusión  ",5.7770830584754795E-2,4.6925445792240679E-2,4.7624690981564702E-2,null,2102]
[2103,"Orientador de atención itinerante para la movilización de redes familiares y comunitarias ",0.23513869956625211,0.20400961232971573,0.2525927528760496,null,2103,"Auxiliares Pedagógicos para la inclusión ",5.1351838443141298E-2,4.1711498463922525E-2,4.2333049610597341E-2,null,2103]
[2104,"Líder comunitario, sabedor, modelo lingüista, tiflólogo, docente bilingüe, educador especial con competencia en Lengua de Señas Colombiana -LSC o intérprete para el trabajo con comunidades específicas.",8.3005175551017663E-2,7.2016446959858552E-2,8.9166546527930629E-2,null,2104,"Orientador para la eliminación de barreras para la comunicación. ",4.9103870601135982E-2,3.9885544222915681E-2,4.0479886470508264E-2,null,2104]
[null,null,null,null,null,null,2105,"Orientador para la eliminación de barreras para la movilidad y la vida independiente ",4.9103870601135982E-2,3.9885544222915681E-2,4.0479886470508264E-2,null,2105]
[null,null,null,null,null,null,2106,"Orientador para la gestión de servicios y apoyos para la gestión emocional, proyectos de vida y sistemas de apoyo para la toma de decisiones. ",4.9103870601135982E-2,3.9885544222915681E-2,4.0479886470508264E-2,null,2106]
[null,null,null,null,null,null,2107,"Asistentes de vida independiente ",8.3093603553809722E-2,6.749434532580878E-2,6.8500091685355355E-2,null,2107]
[null,null,null,null,null,null,2108,"Orientador de seguimiento a la salud y la nutrición ",6.0925173011339477E-2,4.9487619683987981E-2,5.0225044512846234E-2,null,2108]
[null,null,null,null,null,null,2109,"Orientador para el desarrollo integral desde componentes de atención  ",4.9103870601135982E-2,3.9885544222915681E-2,4.0479886470508264E-2,null,2109]
[null,null,null,null,null,null,2110,"Orientador para el desarrollo a acceso a herramientas de tecnología e informática ",4.9103870601135982E-2,3.9885544222915681E-2,4.0479886470508264E-2]
[null,null,null,null,null,null,2111,"Auxiliar Administrativo",4.7285208727019835E-2,3.8408301844289179E-2,3.8980631416044999E-2]
[null,null,null,null,null,null,2112,"Manipulador de alimentos para la atención en punto fijo",7.3187662083892213E-2,5.9448057696522207E-2,6.0333904760032114E-2]
[null,null,null,null,null,null,2113,"Servicios Generales para la atención en punto fijo",3.3170041793635849E-2,2.6942991512473913E-2,2.7344474266298078E-2,null,2110]
[]
[2110,"TRANSPORTE Y VIAJES DEL TH",{"$f":"SUM(C26:C29)","v":0},{"$f":"SUM(D26:D29)","v":9.9004983629223622E-2},{"$f":"SUM(E26:E29)","v":0},8.6876476494389593E-2,2110,"N/A",null,null,null,null,2110]
[2111,"Orientador de atención itinerante para la adaptación de entornos familiares. ",0,2.8686129733183231E-2,0,null,2111,"N/A",null,null,null,null,2111]
[2112,"Orientador de atención itinerante para la adaptación de entornos institucionales. ",0,2.8686129733183231E-2,0,null,2112,"N/A",null,null,null,null,2112]
[2113,"Orientador de atención itinerante para la movilización de redes familiares y comunitarias ",0,2.8686129733183231E-2,0,null,2113,"N/A",null,null,null,null,2113]
[2114,"Líder comunitario, sabedor, modelo lingüista, tiflólogo, docente bilingüe, educador especial con competencia en Lengua de Señas Colombiana -LSC o intérprete para el trabajo con comunidades específicas.",0,1.2946594429673931E-2,0,null,2114,"N/A",null,null,null,null,2114]
[]
[2200,"APOYOS NUTRICIONALES",0,{"$f":"SUM(D32:D35)","v":8.3769199623100449E-2},{"$f":"SUM(E32:E35)","v":0},7.3507137067612929E-2,2200,"COMPLEMENTACIÓN ALIMENTARIA Y NUTRICIONAL",{"$f":"+ROUND(SUM(I32:I35),4)","v":0},{"$f":"ROUND(+J32+J33+J34,6)","v":0.16214799999999999},{"$f":"ROUND(+K32+K33+K34,6)","v":0.15085399999999999},0.15179610967418505,2200]
[2201,"Ración Familiar Para Preparar (RFPP) Sin AAVN",0,8.3769199623100449E-2,0,null,2201,"Atención Punto Fijo (RP/RFPP)",0,0.15536808778621583,0.15085391472715579,null,2201]
[2202,null,null,null,null,null,2202,"Encuentros Familiares, Movilización Social y Comunitaria (RCL)",0,6.7803228735464471E-3,0,null,2202]
[2203,null,null,null,null,null,2203,null,0,0,0,null,2203]
[]
[]
[]
[]
[2202,"N/A",0,0,0,0,2202,"TRANSPORTE NNA",0,0.11489975925483203,0.11661190290220713,0.10825783750761166,2202]
[]
[2203,"MATERIAL DE CONSUMO",0,8.3457389815479399E-2,0.10333205186072962,7.9336318978169881E-2,2203,"MATERIALES E INSUMOS",0,8.0174498680038349E-3,8.1369194469540097E-3,7.5539913283089021E-3,2203]
[]
[2204,"DOTACIÓN",{"$f":"+C44+C45","v":0},{"$f":"+D44+D45","v":0},{"$f":"+E44+E45","v":0},{"$f":"+F44+F45","v":0},2204,"DOTACIÓN",{"$f":"ROUND(+I44+I46+I47+I45,6)","v":3.1357999999999997E-2},{"$f":"ROUND(+J44+J46+J47+J45,6)","v":2.6727000000000001E-2},{"$f":"ROUND(+K44+K46+K47+K45,6)","v":2.7125E-2},{"$f":"+L44+L46+L47+L45","v":2.7027741873219529E-2},2204]
[220401,null,0,0,0,0,220401,"Reposición dotación lúdico - pedagógica - deportiva",2.5631591524927097E-2,2.0819743163185085E-2,2.1129982265868211E-2,2.3652900190253869E-2,220401]
[220402,null,0,0,0,0,220402,"Reposición Menaje de alimentación",3.0669412157493304E-3,2.4911807349410472E-3,2.5283023660946065E-3,0,220402]
[null,null,null,null,null,null,220403,"Dotación de aseo e higiene personal",0,3.4157145098478127E-3,3.4666142423343455E-3,3.2182650437198299E-3,220403]
[null,null,null,null,null,null,220404,"Botiquín",2.6596855572605309E-3,0,0,1.5657663924582808E-4,220404]
[null,null,null,null,null,null,null,null,null,null,null,null,220405]
[]
[]
[2205,"SERVICIO DE COMUNICACIÓN MÓBIL E NTERNET",0,0,0,0,2205,"N/A",0,0,0,0,2205]
[]
[2206,"MATERIAL IDENTIFICACIÓN",{"$f":"ROUND(SUM(C54:C59),6)","v":0.161856},{"$f":"SUM(D54:D59)","v":0},0,1.0268762187739651E-2,2206,"MATERIAL IDENTIFICACIÓN",{"$f":"+ROUND(SUM(I54:I59),6)","v":0.14063000000000001},{"$f":"+ROUND(SUM(J54:J59),6)","v":0},{"$f":"+ROUND(SUM(K54:K59),6)","v":0},8.2789165039078936E-3,2206]
[220601,"Chalecos",7.1527252172324585E-2,0,0,null,220601,"Chaleco",6.2444925970092033E-2,0,0,null,220601]
[220602,"Gorras",1.9132629047303725E-2,0,0,null,220602,"Gorra",1.6703222452803552E-2,0,0,null,220602]
[220603,"Camisetas",5.7762250659151422E-2,0,0,null,220603,"Camisetas",5.0427765036837519E-2,0,0,null,220603]
[220604,"Carné",8.7778054075489543E-3,0,0,null,220604,"Carné",7.6632247459151089E-3,0,0,null,220604]
[220605,"Valla",0,0,0,null,220605,"Valla",2.2710891181331547E-3,0,0,null,220605]
[220606,"Pendón",4.6556445718880157E-3,0,0,null,220606,"Pendón",1.1194014718588149E-3,0,0,null,220606]
[2207,"SEGURO",0,0,0,0,2207,"PÓLIZA",0,6.408853238436187E-4,6.5043528063231089E-4,6.0383816032023386E-4,2207]
[]
[2208,"APOYO A INICIATIVAS",0,0,0,0,2208,"APOYO A INICIATIVAS",0,0,0,0,2208]
[220801,"Apoyo Iniciativas",0,0,0,0,220801,"Apoyo Iniciativas",0,0,0,0,220801]
[220802,null,null,null,null,null,220802,"-",null,null,null,null,220802]
[220803,null,null,null,null,null,220803,"-",null,null,null,null,220803]
[220804,null,null,null,null,null,220804,"-",null,null,null,null,220804]
[220805,null,null,null,null,null,220805,"-",null,null,null,null,220805]
[]
[2300,"GASTOS OPERATIVOS",4.5739079238170929E-2,4.5739079238170929E-2,4.5739079238170929E-2,4.5739079238170922E-2,2300,"GASTOS OPERATIVOS",{"$f":"+ROUND(7.2593625076403%,6)","v":7.2594000000000006E-2},{"$f":"+ROUND(7.32159937801207%,6)","v":7.3216000000000003E-2},{"$f":"+ROUND(7.31758670277846%,6)","v":7.3176000000000005E-2},7.31764892485261E-2,2300]
[230001,"Aseo",null,null,null,null,230001,"Aseo",null,null,null,null,230001]
[230002,"Servicios públicos",null,null,null,null,230002,"Reparación y mantenimiento de dotación instituciona",null,null,null,null,230002]
[230003,"Papelería asociada con el manejo administrativo del contrato",null,null,null,null,230003,"Servicios públicos",null,null,null,null,230003]
[230004,"Acciones de movilización social",null,null,null,null,230004,"Papelería",null,null,null,null,230004]
[230005,"Gastos bancarios (comisiones, transferencias y chequeras)",null,null,null,null,230005,"Mantenimiento de instalaciones locativas",null,null,null,null,230005]
[230006,"Materiales o dispositivos de apoyo de baja complejidad para los participantes",null,null,null,null,230006,"Acciones de movilización social",null,null,null,null,230006]
[230007,"Otros (lo que se requiera para el adecuado desarrollo de la Modalidad)",null,null,null,null,230007,"Gastos bancarios (comisiones, transferencias y chequeras)",null,null,null,null,230007]
[null,null,null,null,null,null,230008,"Materiales o dispositivos de apoyo de baja complejidad para los participantes",null,null,null,null,230008]
[null,null,null,null,null,null,230009,"Otros (lo que se requiera para el adecuado desarrollo de la Modalidad)",null,null,null,null,230009]
[]
[2302,"N/A",null,null,null,null,2302,"UTILIZACIÓN DE INSTALACIONES EN AMBIENTES SANOS",4.3499580302577452E-2,3.533335122122673E-2,3.5859862992599953E-2,3.5851699470160973E-2,2302]
[]
[2303,"GRAVAMEN MOVIMIENTOS FINANCIEROS GMF",{"$f":"+ROUND(0.398406374501992%,8)","v":3.9840600000000002E-3},{"$f":"+ROUND(0.398406374501992%,8)","v":3.9840600000000002E-3},{"$f":"+ROUND(0.398406374501992%,8)","v":3.9840600000000002E-3},3.9840637450199202E-3,2303,"GRAVAMEN MOVIMIENTOS FINANCIEROS GMF",3.9840637978577681E-3,3.9840637494887128E-3,3.9840637329887638E-3,3.984063797532281E-3,2303]

{"sheet":"1. PRESUPUESTO INICIAL","index":5,"n_rows":125,"n_cols":7,"rows_kept":125,"cut":false,"hidden":false,"merged":[[124,0,125,6],[104,0,104,2],[99,0,99,2],[102,0,102,2],[98,1,98,2],[101,1,101,2],[106,0,106,2],[91,1,91,2],[92,1,92,2],[93,1,93,2],[94,1,94,2],[95,0,95,2],[87,1,87,2],[88,1,88,2],[89,1,89,2],[90,1,90,2],[78,1,78,2],[86,1,86,2],[79,0,79,2],[83,0,83,6],[81,0,81,2],[84,1,84,2],[96,0,96,2],[85,1,85,2],[17,1,17,3],[26,1,26,2],[33,0,33,2],[37,1,37,2],[38,1,38,2],[39,1,39,2],[40,1,40,2],[18,1,18,3],[20,1,20,3],[19,1,19,2],[21,0,21,3],[32,1,32,2],[26,3,26,6],[61,1,61,2],[76,0,76,2],[60,1,60,2],[68,1,68,2],[71,1,71,2],[72,1,72,2],[74,1,74,2],[62,1,62,2],[63,1,63,2],[64,1,64,2],[73,1,73,2],[69,1,69,2],[70,1,70,2],[66,0,66,2],[65,0,65,2],[75,0,75,2],[57,1,57,2],[49,1,49,2],[50,1,50,2],[54,1,54,2],[51,0,51,2],[52,0,52,2],[55,0,55,2],[58,0,58,2],[2,5,2,6],[48,1,48,2],[28,1,28,2],[29,1,29,2],[30,1,30,2],[31,1,31,2],[16,1,16,3],[27,1,27,2],[23,0,23,6],[47,1,47,2],[46,0,46,6],[44,0,44,2],[25,0,25,6],[41,0,41,2],[34,0,34,2],[42,0,42,2],[9,5,9,6],[10,5,11,6],[12,5,14,6],[15,0,15,6],[36,1,36,2],[0,1,2,4],[0,0,2,0],[10,4,11,4],[3,0,3,6],[4,5,6,6],[8,5,8,6],[5,0,6,0],[5,2,6,2],[5,3,6,3],[9,0,9,1],[9,3,9,4],[4,4,6,4]]}
[null,"PROCESO\nPROMOCIÓN Y PREVENCIÓN\n\nFORMATO SEGUIMIENTO FINANCIERO\nCENTROS DE APOYO A LA INCLUSIÓN\nITINERANTE",null,null,null,"F24.GO1.MT7.PP ","2025-08-22"]
[null,null,null,null,null,"Versión 1","Página 1 de 1"]
[null,null,null,null,null,"Clasificación de la Información\nPública"]
["INFORMACIÓN GENERAL DEL CONTRATO/CONVENIO/INICIATIVA"]
["Forma de Atención","ITINERANTE","Regional",null,"MUNICIPIO (S) DE ATENCIÓN"]
["Centro Zonal",null,"Zona"]
[]
[]
["Entidad contratista","Escribe la entidad Contratante","Nit Entidad Contratista","Escribe la entidad Contratante","N° del Contrato"]
["Fecha de Inicio",null,"DD/MM/AAAA","Fecha de Final",null,"DD/MM/AAAA"]
["Total Cupos Contratados",50,"Tiempo de ejecución Meses",4,"Valor contrato","Valor total aportes ICBF"]
["ETAPA CONTRACTUAL","Costo Cupo Mes (CCM)","VALOR MENSUAL","Tiempo por Etapa"]
["Alistamiento",{"$f":"IFERROR(IF($B$5=\"CENTROS\",'CCM-CENTRO-ITINERANTE'!C5,IF($B$5=\"ITINERANTE\",'CCM-CENTRO-ITINERANTE'!C4,0)),0)","v":338563},{"$f":"IFERROR(B13*B11,0)","v":16928150},{"$f":"IF(D11=\"\",\"\",IF($B$5=\"CENTROS\",0.5,0.5))","v":0.5},{"$f":"+ROUND(C13*D13,0)","v":8464075},{"$f":"+E13+E14+E15","v":74876725}]
[{"$f":"IF($B$5=\"BID\",\"Atención / Cierre\",\"Atención\")","v":"Atención"},{"$f":"IFERROR(IF($B$5=\"CENTROS\",'CCM-CENTRO-ITINERANTE'!D5,IF($B$5=\"ITINERANTE\",'CCM-CENTRO-ITINERANTE'!D4,0)),0)","v":390223},{"$f":"IFERROR(B14*B11,0)","v":19511150},{"$f":"+D11-D13-D15","v":3},{"$f":"+ROUND(C14*D14,0)","v":58533450}]
[{"$f":"IF($B$5=\"BID\",\"\",\"Cierre\")","v":"Cierre"},{"$f":"IFERROR(IF($B$5=\"CENTROS\",'CCM-CENTRO-ITINERANTE'!E5,IF($B$5=\"ITINERANTE\",'CCM-CENTRO-ITINERANTE'!E4,0)),0)","v":315168},{"$f":"IFERROR(B15*B11,0)","v":15758400},{"$f":"IF(D11=\"\",\"\",IF($B$5=\"BID\",0,0.5))","v":0.5},{"$f":"+ROUND(C15*D15,0)","v":7879200}]
["1. PRESUPUESTO DE INGRESOS"]
["CÓDIGO","OBJETO DEL INGRESO",null,null,"INGRESOS","% PART"]
[1100,"Aportes ICBF ",null,null,{"$f":"+F13","v":74876725},{"$f":"IFERROR(E18/$E$22,0)","v":1}]
[1200,"Donaciones (Cuando aplique)",null,null,0,{"$f":"IFERROR(E19/$E$22,0)","v":0}]
[1300,"Aportes contrapartida (Cuando aplique) ",null,0,{"$f":"IFERROR(E18*VLOOKUP($B$5,CONTRAPARTIDA,2,0),0)","v":0},{"$f":"IFERROR(E20/$E$22,0)","v":0}]
[1400,"Otros Ingresos (Cuando aplique)",null,null,0,{"$f":"IFERROR(E21/$E$22,0)","v":0}]
["TOTAL PRESUPUESTO DE INGRESOS",null,null,null,{"$f":"SUM(E18:E21)","v":74876725},{"$f":"SUM(F18:F21)","v":1}]
[]
["2. PRESUPUESTO DE EGRESOS"]
[]
["2.1 PRESUPUESTO DE TALENTO HUMANO Y GASTOS DE VIAJE"]
["CÓDIGO","COMPONENTE DEL COSTO O GASTO",null,"ETAPA / COSTO O GASTO"]
[2100,{"$f":"IFERROR(IF($B$5=\"ITINERANTE\",VLOOKUP(A28,TH_COMU,2,0),IF($B$5=\"BID\",VLOOKUP(A28,TH_BID,2,0),IF($B$5=\"CENTROS\",VLOOKUP(A28,TH_APOYOS,2,0),IF($B$5=\"ITINERANTE\",VLOOKUP(A28,TH_EXP,2,0))))),\"\")","v":"TALENTO HUMANO"},null,"ALISTAMIENTO",{"$f":"IF($B$5=\"BID\",\"ATENCIÓN / CIERRE\",\"ATENCIÓN\")","v":"ATENCIÓN"},{"$f":"IF($B$5=\"BID\",\"\",\"CIERRE\")","v":"CIERRE"},"TOTAL"]
[2101,{"$f":"IFERROR(IF($B$5=\"ITINERANTE\",VLOOKUP(A29,TH_COMU,2,0),IF($B$5=\"CENTROS\",VLOOKUP(A29,TH_APOYOS,2,0),)),\"\")","v":"Orientador de atención itinerante para la adaptación de entornos familiares. "},null,{"$f":"IFERROR(ROUND(IF($B$5=\"CENTROS\",VLOOKUP(A29,TH_APOYOS,3,0)*$E$13,IF($B$5=\"ITINERANTE\",VLOOKUP(A29,TH_COMU,3,0)*$E$13,0)),0),0)","v":1990232},{"$f":"IFERROR(ROUND(IF($B$5=\"CENTROS\",VLOOKUP(A29,TH_APOYOS,4,0)*$E$14,IF($B$5=\"ITINERANTE\",VLOOKUP(A29,TH_COMU,4,0)*$E$14,0)),0),0)","v":11941386},{"$f":"IFERROR(ROUND(IF($B$5=\"CENTROS\",VLOOKUP(A29,TH_APOYOS,5,0)*$E$15,IF($B$5=\"ITINERANTE\",VLOOKUP(A29,TH_COMU,5,0)*$E$15,0)),0),0)","v":1990229},{"$f":"IFERROR(IF($B$5=\"BID\",D29+E29,D29+E29+F29),0)","v":15921847}]
[2102,"Orientador de atención itinerante para la adaptación de entornos institucionales. ",null,1990232,11941386,1990229,{"$f":"IFERROR(IF($B$5=\"BID\",D30+E30,D30+E30+F30),0)","v":15921847}]
[2103,"Orientador de atención itinerante para la movilización de redes familiares y comunitarias ",null,1990232,11941386,1990229,15921847]
[2104,"Líder comunitario, sabedor, modelo lingüista, tiflólogo, docente bilingüe, educador especial con competencia en Lengua de Señas Colombiana -LSC o intérprete para el trabajo con comunidades específicas.",null,702562,4215371,702561,5620494]
[2105,"",null,0,0,0,0]
["SUBTOTAL PRESUPUESTO DE COSTOS TALENTO HUMANO",null,null,{"$f":"SUM(D29:D33)","v":6673258},{"$f":"SUM(E29:E33)","v":40039529},{"$f":"SUM(F29:F33)","v":6673248},{"$f":"SUM(G29:G33)","v":53386035}]
["TOPE DE PARTICIPACIÓN TALENTO HUMANO",null,null,{"$f":"IFERROR(IF($B$5=\"CENTROS\",TR!$I$10,IF($B$5=\"ITINERANTE\",TR!$C$10)),\"\")","v":0.78842127424977404},{"$f":"IFERROR(IF($B$5=\"CENTROS\",TR!$J$10,IF($B$5=\"ITINERANTE\",TR!$D$10)),\"\")","v":0.68404528394900577},{"$f":"IFERROR(IF($B$5=\"CENTROS\",TR!$K$10,IF($B$5=\"ITINERANTE\",TR!$E$10)),\"\")","v":0.84694480515607939},{"$f":"IFERROR(IF($B$5=\"CENTROS\",TR!$L$10,IF($B$5=\"ITINERANTE\",TR!$F$10)),\"\")","v":0.70028816228889712}]
[null,null,null,{"$f":"+ROUND($D$34/$E$13,4)","v":0.78839999999999999},{"$f":"+ROUND($E$34/$E$14,6)","v":0.68404500000000001},{"$f":"+ROUND($F$34/$E$15,4)","v":0.84689999999999999}]
[2110,{"$f":"IFERROR(IF($B$5=\"CENTROS\",VLOOKUP(A37,TRANS_APOYOS,2,0),IF($B$5=\"ITINERANTE\",VLOOKUP(A37,TRANS_EXP,2,0))),\"\")","v":"TRANSPORTE Y VIAJES DEL TH"},null,"ALISTAMIENTO",{"$f":"IF($B$5=\"BID\",\"ATENCIÓN / CIERRE\",\"ATENCIÓN\")","v":"ATENCIÓN"},{"$f":"IF($B$5=\"BID\",\"\",\"CIERRE\")","v":"CIERRE"},"TOTAL"]
[2111,{"$f":"IFERROR(IF(TRIM($B$5)=\"CENTROS\",VLOOKUP(A38,TRANS_APOYOS,2,0),IF(TRIM($B$5)=\"ITINERANTE\",VLOOKUP(A38,TRANS_EXP,2,0),\"\")),\"\")","v":"Orientador de atención itinerante para la adaptación de entornos familiares. "},null,{"$f":"ROUND(IFERROR(IF($B$5=\"CENTROS\",(VLOOKUP(A38,TRANS_APOYOS,3,0)*$E$13),IF($B$5=\"ITINERANTE\",(VLOOKUP(A38,TRANS_COMU,3,0)* $E$13))),\"\"),0)","v":0},{"$f":"ROUND(IFERROR(IF($B$5=\"CENTROS\",(VLOOKUP(A38,TRANS_APOYOS,4,0)*$E$14),IF($B$5=\"ITINERANTE\",(VLOOKUP(A38,TRANS_COMU,4,0)* $E$14))),\"\"),0)","v":1679098},{"$f":"ROUND(IFERROR(IF($B$5=\"CENTROS\",(VLOOKUP(A38,TRANS_APOYOS,5,0)*$E$15),IF($B$5=\"ITINERANTE\",(VLOOKUP(A38,TRANS_COMU,5,0)* $E$15))),\"\"),0)","v":0},{"$f":"IFERROR(IF($B$5=\"BID\",D38+E38,D38+E38+F38),0)","v":1679098}]
[2112,{"$f":"IFERROR(IF(TRIM($B$5)=\"CENTROS\",VLOOKUP(A39,TRANS_APOYOS,2,0),IF(TRIM($B$5)=\"ITINERANTE\",VLOOKUP(A39,TRANS_EXP,2,0),\"\")),\"\")","v":"Orientador de atención itinerante para la adaptación de entornos institucionales. "},null,{"$f":"ROUND(IFERROR(IF($B$5=\"CENTROS\",(VLOOKUP(A39,TRANS_APOYOS,3,0)*$E$13),IF($B$5=\"ITINERANTE\",(VLOOKUP(A39,TRANS_COMU,3,0)* $E$13))),\"\"),0)","v":0},{"$f":"ROUND(IFERROR(IF($B$5=\"CENTROS\",(VLOOKUP(A39,TRANS_APOYOS,4,0)*$E$14),IF($B$5=\"ITINERANTE\",(VLOOKUP(A39,TRANS_COMU,4,0)* $E$14))),\"\"),0)","v":1679098},{"$f":"ROUND(IFERROR(IF($B$5=\"CENTROS\",(VLOOKUP(A39,TRANS_APOYOS,5,0)*$E$15),IF($B$5=\"ITINERANTE\",(VLOOKUP(A39,TRANS_COMU,5,0)* $E$15))),\"\"),0)","v":0},{"$f":"IFERROR(IF($B$5=\"BID\",D39+E39,D39+E39+F39),0)","v":1679098}]
[2113,{"$f":"IFERROR(IF(TRIM($B$5)=\"CENTROS\",VLOOKUP(A40,TRANS_APOYOS,2,0),IF(TRIM($B$5)=\"ITINERANTE\",VLOOKUP(A40,TRANS_EXP,2,0),\"\")),\"\")","v":"Orientador de atención itinerante para la movilización de redes familiares y comunitarias "},null,{"$f":"ROUND(IFERROR(IF($B$5=\"CENTROS\",(VLOOKUP(A40,TRANS_APOYOS,3,0)*$E$13),IF($B$5=\"ITINERANTE\",(VLOOKUP(A40,TRANS_COMU,3,0)* $E$13))),\"\"),0)","v":0},{"$f":"ROUND(IFERROR(IF($B$5=\"CENTROS\",(VLOOKUP(A40,TRANS_APOYOS,4,0)*$E$14),IF($B$5=\"ITINERANTE\",(VLOOKUP(A40,TRANS_COMU,4,0)* $E$14))),\"\"),0)","v":1679098},{"$f":"ROUND(IFERROR(IF($B$5=\"CENTROS\",(VLOOKUP(A40,TRANS_APOYOS,5,0)*$E$15),IF($B$5=\"ITINERANTE\",(VLOOKUP(A40,TRANS_COMU,5,0)* $E$15))),\"\"),0)","v":0},{"$f":"IFERROR(IF($B$5=\"BID\",D40+E40,D40+E40+F40),0)","v":1679098}]
[2114,{"$f":"IFERROR(IF(TRIM($B$5)=\"CENTROS\",VLOOKUP(A41,TRANS_APOYOS,2,0),IF(TRIM($B$5)=\"ITINERANTE\",VLOOKUP(A41,TRANS_EXP,2,0),\"\")),\"\")","v":"Líder comunitario, sabedor, modelo lingüista, tiflólogo, docente bilingüe, educador especial con competencia en Lengua de Señas Colombiana -LSC o intérprete para el trabajo con comunidades específicas."},null,{"$f":"ROUND(IFERROR(IF($B$5=\"CENTROS\",(VLOOKUP(A41,TRANS_APOYOS,3,0)*$E$13),IF($B$5=\"ITINERANTE\",(VLOOKUP(A41,TRANS_COMU,3,0)* $E$13))),\"\"),0)","v":0},{"$f":"ROUND(IFERROR(IF($B$5=\"CENTROS\",(VLOOKUP(A41,TRANS_APOYOS,4,0)*$E$14),IF($B$5=\"ITINERANTE\",(VLOOKUP(A41,TRANS_COMU,4,0)* $E$14))),\"\"),0)","v":757809},{"$f":"ROUND(IFERROR(IF($B$5=\"CENTROS\",(VLOOKUP(A41,TRANS_APOYOS,5,0)*$E$15),IF($B$5=\"ITINERANTE\",(VLOOKUP(A41,TRANS_COMU,5,0)* $E$15))),\"\"),0)","v":0},{"$f":"IFERROR(IF($B$5=\"BID\",D41+E41,D41+E41+F41),0)","v":757809}]
["SUBTOTAL PRESUPUESTO DE TRANSPORTE Y GASTOS DE VIAJE",null,null,{"$f":"SUM(D38:D41)","v":0},{"$f":"SUM(E38:E41)","v":5795103},0,5795103]
[{"$f":"+CONCATENATE(\"TOPE DE PARTICIPACIÓN DE \",A42)","v":"TOPE DE PARTICIPACIÓN DE SUBTOTAL PRESUPUESTO DE TRANSPORTE Y GASTOS DE VIAJE"},null,null,{"$f":"IFERROR(IF($B$5=\"ITINERANTE\",TR!$C$25,IF($B$5=\"CENTROS\",TR!$I$25,)),\"\")","v":0},{"$f":"IFERROR(IF($B$5=\"ITINERANTE\",TR!$D$25,IF($B$5=\"CENTROS\",TR!$J$25,)),\"\")","v":9.9004983629223622E-2},{"$f":"IFERROR(IF($B$5=\"ITINERANTE\",TR!$E$25,IF($B$5=\"CENTROS\",TR!$K$25,)),\"\")","v":0},{"$f":"IFERROR(IF($B$5=\"ITINERANTE\",TR!$F$25,IF($B$5=\"CENTROS\",TR!$L$25)),\"\")","v":8.6876476494389593E-2}]
[null,null,null,{"$f":"+D42/$E$13","v":0},{"$f":"+E42/$E$14","v":9.9004979204198623E-2},{"$f":"IFERROR(F42/$E$15,0)","v":0}]
["2.1 SUBTOTAL PRESUPUESTO DE TALENTO HUMANO, TRASPORTE Y GASTOS DE VIAJE",null,null,{"$f":"+D34+D42","v":6673258},45834632,6673248,59181138]
[]
["2.2 NIÑAS, NIÑOS Y ADOLESCENTES"]
[2200,{"$f":"IFERROR(IF($B$5=\"CENTROS\",VLOOKUP(A48,NUT_APOYOS,2,0),IF($B$5=\"ITINERANTE\",VLOOKUP(A48,NUT_EXP,2,0))),\"\")","v":"APOYOS NUTRICIONALES"},null,"ALISTAMIENTO",{"$f":"IF($B$5=\"BID\",\"ATENCIÓN / CIERRE\",\"ATENCIÓN\")","v":"ATENCIÓN"},{"$f":"IF($B$5=\"BID\",\"\",\"CIERRE\")","v":"CIERRE"},"TOTAL"]
[2201,{"$f":"IFERROR(IF($B$5=\"CENTROS\",IF(VLOOKUP(A49,NUT_APOYOS,2,0)=0,\"\",VLOOKUP(A49,NUT_APOYOS,2,0)),IF($B$5=\"ITINERANTE\",IF(VLOOKUP(A49,NUT_EXP,2,0)=0,\"\",VLOOKUP(A49,NUT_EXP,2,0)),\"\")),\"\")","v":"Ración Familiar Para Preparar (RFPP) Sin AAVN"},null,{"$f":"ROUND(IFERROR(IF($B$5=\"ITINERANTE\",(VLOOKUP(A49,NUT_EXP,3,0)* $E$13),IF($B$5=\"CENTROS\",(VLOOKUP(A49,TR!$G$31:$L$34,3,0)*$E$13),)),0),0)","v":0},{"$f":"ROUND(IFERROR(IF($B$5=\"ITINERANTE\",(VLOOKUP(A49,NUT_EXP,4,0)* $E$14),IF($B$5=\"CENTROS\",(VLOOKUP(A49,TR!$G$31:$L$34,4,0)*$E$14),)),0),0)","v":4903300},{"$f":"ROUND(IFERROR(IF($B$5=\"ITINERANTE\",(VLOOKUP(A49,NUT_EXP,5,0)* $E$15),IF($B$5=\"CENTROS\",(VLOOKUP(A49,TR!$G$31:$L$34,5,0)*$E$15),)),0),0)","v":0},{"$f":"IFERROR(IF($B$5=\"BID\",D49+E49,D49+E49+F49),0)","v":4903300}]
[2202,{"$f":"IFERROR(IF($B$5=\"CENTROS\",IF(VLOOKUP(A50,NUT_APOYOS,2,0)=0,\"_\",VLOOKUP(A50,NUT_APOYOS,2,0)),IF($B$5=\"ITINERANTE\",IF(VLOOKUP(A50,NUT_EXP,2,0)=0,\"_\",VLOOKUP(A50,NUT_EXP,2,0)),\"\")),\"\")","v":"_"},null,{"$f":"ROUND(IFERROR(IF($B$5=\"ITINERANTE\",(VLOOKUP(A50,NUT_EXP,3,0)* $E$13),IF($B$5=\"CENTROS\",(VLOOKUP(A50,TR!$G$31:$L$34,3,0)*$E$13),)),0),0)","v":0},{"$f":"ROUND(IFERROR(IF($B$5=\"ITINERANTE\",(VLOOKUP(A50,NUT_EXP,4,0)* $E$14),IF($B$5=\"CENTROS\",(VLOOKUP(A50,TR!$G$31:$L$34,4,0)*$E$14),)),0),0)","v":0},{"$f":"ROUND(IFERROR(IF($B$5=\"ITINERANTE\",(VLOOKUP(A50,NUT_EXP,3,0)* $E$15),IF($B$5=\"CENTROS\",(VLOOKUP(A50,TR!$G$31:$L$34,5,0)*$E$15),)),0),0)","v":0},{"$f":"IFERROR(IF($B$5=\"BID\",D50+E50,D50+E50+F50),0)","v":0}]
[2203,{"$f":"IFERROR(IF($B$5=\"CENTROS\",IF(VLOOKUP(A51,NUT_APOYOS,2,0)=0,\"\",VLOOKUP(A51,NUT_APOYOS,2,0)),IF($B$5=\"ITINERANTE\",IF(VLOOKUP(A51,NUT_EXP,2,0)=0,\"_\",VLOOKUP(A51,NUT_EXP,2,0)),\"\")),\"\")","v":"_"},null,{"$f":"ROUND(IFERROR(IF($B$5=\"ITINERANTE\",(VLOOKUP(A51,NUT_EXP,3,0)* $E$13),IF($B$5=\"CENTROS\",(VLOOKUP(A51,TR!$G$31:$L$34,3,0)*$E$13),)),0),0)","v":0},{"$f":"ROUND(IFERROR(IF($B$5=\"ITINERANTE\",(VLOOKUP(A51,NUT_EXP,4,0)* $E$14),IF($B$5=\"CENTROS\",(VLOOKUP(A51,TR!$G$31:$L$34,4,0)*$E$14),)),0),0)","v":0},{"$f":"ROUND(IFERROR(IF($B$5=\"ITINERANTE\",(VLOOKUP(A51,NUT_EXP,3,0)* $E$15),IF($B$5=\"CENTROS\",(VLOOKUP(A51,TR!$G$31:$L$34,5,0)*$E$15),)),0),0)","v":0},0]
["SUBTOTAL PRESUPUESTO DE COMPLEMENTACIÓN ALIMENTARIA Y NUTRICIONAL / APOYOS NUTRICIONALES",null,null,{"$f":"SUM(D49:D51)","v":0},{"$f":"SUM(E49:E51)","v":4903300},{"$f":"SUM(F49:F51)","v":0},{"$f":"SUM(G49:G51)","v":4903300}]
[{"$f":"+CONCATENATE(\"TOPE DE PARTICIPACIÓN DE \",A52)","v":"TOPE DE PARTICIPACIÓN DE SUBTOTAL PRESUPUESTO DE COMPLEMENTACIÓN ALIMENTARIA Y NUTRICIONAL / APOYOS NUTRICIONALES"},null,null,{"$f":"IFERROR(IF($B$5=\"ITINERANTE\",TR!$C$31,IF($B$5=\"CENTROS\",TR!$I$31,)),\"\")","v":0},{"$f":"IFERROR(IF($B$5=\"ITINERANTE\",TR!$D$31,IF($B$5=\"CENTROS\",TR!$J$31,)),\"\")","v":8.3769199623100449E-2},{"$f":"IFERROR(IF($B$5=\"ITINERANTE\",TR!$E$31,IF($B$5=\"CENTROS\",TR!$K$31,)),\"\")","v":0},{"$f":"IFERROR(IF($B$5=\"ITINERANTE\",TR!$F$31,IF($B$5=\"CENTROS\",TR!$L$31,)),\"\")","v":7.3507137067612929E-2}]
[null,null,null,{"$f":"+$D$52/$E$13","v":0},{"$f":"ROUND($E$52/$E$14,6)","v":8.3768999999999996E-2},{"$f":"ROUND($F$52/$E$15,6)","v":0}]
[2202,{"$f":"IFERROR(IF($B$5=\"ITINERANTE\",VLOOKUP(A55,TRANS_NNA_COMU,2,0),IF($B$5=\"BID\",VLOOKUP(A55,TRANS_NNA_BID,2,0),\nIF($B$5=\"CENTROS\",VLOOKUP(A55,TRANS_NNA_APOYOS,2,0),IF($B$5=\"EXPERIENCIAS\",VLOOKUP(A55,TRANS_NNA_EXP,2,0))))),\"\")","v":"N/A"},null,{"$f":"ROUND(IFERROR(IF($B$5=\"ITINERANTE\",(VLOOKUP(A55,TRANS_NNA_COMU,3,0)* $E$13),IF($B$5=\"CENTROS\",(VLOOKUP(A55,TRANS_NNA_APOYOS,3,0) *$E$13),)),\"\"),0)","v":0},{"$f":"ROUND(IFERROR(IF($B$5=\"ITINERANTE\",(VLOOKUP(A55,TRANS_NNA_COMU,4,0)* $E$14),IF($B$5=\"CENTROS\",(VLOOKUP(A55,TRANS_NNA_APOYOS,4,0)* $E$14),)),\"\"),0)","v":0},{"$f":"ROUND(IFERROR(IF($B$5=\"ITINERANTE\",(VLOOKUP(A55,TRANS_NNA_COMU,5,0)* $E$15),IF($B$5=\"CENTROS\",(VLOOKUP(A55,TRANS_NNA_APOYOS,5,0)* $E$15),)),\"\"),0)","v":0},{"$f":"IFERROR(IF($B$5=\"BID\",D55+E55,D55+E55+F55),0)","v":0}]
[{"$f":"+CONCATENATE(\"TOPE DE PARTICIPACIÓN DE \",B55)","v":"TOPE DE PARTICIPACIÓN DE N/A"},null,null,{"$f":"IFERROR(IF($B$5=\"ITINERANTE\",TR!$C$39,IF($B$5=\"CENTROS\",TR!$I$39,)),\"\")","v":0},{"$f":"IFERROR(IF($B$5=\"ITINERANTE\",TR!$D$39,IF($B$5=\"CENTROS\",TR!$J$39)),\"\")","v":0},{"$f":"IFERROR(IF($B$5=\"ITINERANTE\",TR!$E$39,IF($B$5=\"CENTROS\",TR!$K$39,)),\"\")","v":0},{"$f":"IFERROR(IF($B$5=\"ITINERANTE\",TR!$F$39,IF($B$5=\"CENTROS\",TR!$L$39,)),\"\")","v":0}]
[null,null,null,{"$f":"+$D$55/$E$13","v":0},{"$f":"+$E$55/$E$14","v":0},{"$f":"IFERROR($F$55/$E$15,0)","v":0}]
[2203,{"$f":"IFERROR(IF($B$5=\"ITINERANTE\",VLOOKUP(A58,MATER_COMU,2,0),IF($B$5=\"BID\",VLOOKUP(A58,MATER_BID,2,0),IF($B$5=\"CENTROS\",VLOOKUP(A58,MATER_APOYOS,2,0),IF($B$5=\"EXPERIENCIAS\",VLOOKUP(A58,MATER_EXP,2,0))))),\"\")","v":"MATERIAL DE CONSUMO"},null,{"$f":"IFERROR(IF(ROUND(IF($B$5=\"ITINERANTE\",VLOOKUP(A58,MATER_COMU,3,0)*$E$14,IF($B$5=\"CENTROS\",VLOOKUP(A58,MATER_APOYOS,3,0)*$E$13,IF($B$5=\"EXPERIENCIAS\",VLOOKUP(A58,MATER_EXP,3,0)*$E$14,0))),0)=0,\"0\",ROUND(IF($B$5=\"ITINERANTE\",VLOOKUP(A58,MATER_COMU,3,0)*$E$14,IF($B$5=\"CENTROS\",VLOOKUP(A58,MATER_APOYOS,3,0)*$E$13,IF($B$5=\"EXPERIENCIAS\",VLOOKUP(A58,MATER_EXP,3,0)*$E$14,0))),0)),\"0\")","v":"0"},{"$f":"ROUND(IFERROR(IF($B$5=\"ITINERANTE\",(VLOOKUP(A58,MATER_COMU,4,0)* $E$14),IF($B$5=\"BID\",(VLOOKUP(A58,MATER_BID,4,0)* $E$14),IF($B$5=\"CENTROS\",(VLOOKUP(A58,MATER_APOYOS,4,0)* $E$14),IF($B$5=\"EXPERIENCIAS\",(VLOOKUP(A58,MATER_EXP,4,0)* $E$14))))),\"\"),0)","v":4885049},{"$f":"ROUND(IFERROR(IF($B$5=\"ITINERANTE\",(VLOOKUP(A58,MATER_COMU,5,0)* $E$15),IF($B$5=\"BID\",0,IF($B$5=\"CENTROS\",(VLOOKUP(A58,MATER_APOYOS,5,0)* $E$15),IF($B$5=\"EXPERIENCIAS\",(VLOOKUP(A58,MATER_EXP,5,0)* $E$15))))),\"\"),0)","v":814174},{"$f":"+D58+E58+F58","v":5699223}]
[{"$f":"+CONCATENATE(\"TOPE DE PARTICIPACIÓN DE \",B58)","v":"TOPE DE PARTICIPACIÓN DE MATERIAL DE CONSUMO"},null,null,{"$f":"IFERROR(IF($B$5=\"ITINERANTE\",TR!$C$41,IF($B$5=\"CENTROS\",TR!$I$41)),\"\")","v":0},{"$f":"IFERROR(IF($B$5=\"ITINERANTE\",TR!$D$41,IF($B$5=\"CENTROS\",TR!$J$41)),\"\")","v":8.3457389815479399E-2},{"$f":"IFERROR(IF($B$5=\"ITINERANTE\",TR!$E$41,IF($B$5=\"CENTROS\",TR!$K$41)),\"\")","v":0.10333205186072962},{"$f":"IFERROR(IF($B$5=\"ITINERANTE\",TR!$F$41,IF($B$5=\"CENTROS\",TR!$L$41)),\"\")","v":7.9336318978169881E-2}]
[null,null,null,{"$f":"+$D$58/$E$13","v":0},{"$f":"+ROUND($E$58/$E$14,3)","v":8.3000000000000004E-2},{"$f":"ROUND($F$58/$E$15,3)","v":0.10299999999999999}]
[2204,{"$f":"IFERROR(IF($B$5=\"ITINERANTE\",VLOOKUP(A61,DOT_COMU,2,0),IF($B$5=\"BID\",VLOOKUP(A61,DOT_BID,2,0),IF($B$5=\"CENTROS\",VLOOKUP(A61,DOT_APOYOS,2,0),IF($B$5=\"EXPERIENCIAS\",VLOOKUP(A61,DOT_EXP,2,0))))),\"\")","v":"DOTACIÓN"},null,"ALISTAMIENTO",{"$f":"IF($B$5=\"BID\",\"ATENCIÓN / CIERRE\",\"ATENCIÓN\")","v":"ATENCIÓN"},{"$f":"IF($B$5=\"BID\",\"\",\"CIERRE\")","v":"CIERRE"},"TOTAL"]
[220401,{"$f":"IFERROR(IF($B$5=\"ITINERANTE\",VLOOKUP(A62,DOT_COMU,2,0),IF($B$5=\"BID\",VLOOKUP(A62,DOT_BID,2,0),IF($B$5=\"CENTROS\",VLOOKUP(A62,DOT_APOYOS,2,0),IF($B$5=\"EXPERIENCIAS\",VLOOKUP(A62,DOT_EXP,2,0),\"\")))),\"\")","v":0},null,{"$f":"IF($B$5=\"ITINERANTE\",IFERROR(ROUND(VLOOKUP(A62,DOT_COMU,3,0)*$E$13,0),\"-\"),IF($B$5=\"CENTROS\",IFERROR(ROUND(VLOOKUP(A62,DOT_APOYOS,3,0)*$E$13,0),\"-\"),\"-\"))","v":0},{"$f":"IF($B$5=\"ITINERANTE\",IFERROR(ROUND(VLOOKUP(A62,DOT_COMU,4,0)*$E$14,0),\"-\"),\nIF($B$5=\"BID\",IFERROR(ROUND(VLOOKUP(A62,DOT_BID,4,0)*$E$14,0),\"-\"),\nIF($B$5=\"CENTROS\",IFERROR(ROUND(VLOOKUP(A62,DOT_APOYOS,4,0)*$E$14,0),\"-\"),\nIF($B$5=\"EXPERIENCIAS\",IFERROR(ROUND(VLOOKUP(A62,DOT_EXP,4,0)*$E$14,0),\"-\"),\n\"-\"))))","v":0},{"$f":"IF($B$5=\"ITINERANTE\",IFERROR(ROUND(VLOOKUP(A62,DOT_COMU,5,0)*$E$15,0),\"-\"),IF($B$5=\"BID\",\"-\",IF($B$5=\"CENTROS\",IFERROR(ROUND(VLOOKUP(A62,DOT_APOYOS,5,0)*$E$15,0),\"-\"),IF($B$5=\"EXPERIENCIAS\",IFERROR(ROUND(VLOOKUP(A62,DOT_EXP,5,0)*$E$15,0),\"-\"),\"-\"))))","v":0},{"$f":"IFERROR(IF($B$5=\"BID\",D62+E62,D62+E62+F62),0)","v":0}]
[220402,{"$f":"IFERROR(IF($B$5=\"ITINERANTE\",VLOOKUP(A63,DOT_COMU,2,0),IF($B$5=\"BID\",VLOOKUP(A63,DOT_BID,2,0),IF($B$5=\"CENTROS\",VLOOKUP(A63,DOT_APOYOS,2,0),IF($B$5=\"EXPERIENCIAS\",VLOOKUP(A63,DOT_EXP,2,0),\"\")))),\"\")","v":0},null,{"$f":"IF($B$5=\"ITINERANTE\",IFERROR(ROUND(VLOOKUP(A63,DOT_COMU,3,0)*$E$13,0),\"-\"),IF($B$5=\"CENTROS\",IFERROR(ROUND(VLOOKUP(A63,DOT_APOYOS,3,0)*$E$13,0),\"-\"),\"-\"))","v":0},{"$f":"IF($B$5=\"ITINERANTE\",IFERROR(ROUND(VLOOKUP(A63,DOT_COMU,4,0)*$E$14,0),\"-\"),\nIF($B$5=\"BID\",IFERROR(ROUND(VLOOKUP(A63,DOT_BID,4,0)*$E$14,0),\"-\"),\nIF($B$5=\"CENTROS\",IFERROR(ROUND(VLOOKUP(A63,DOT_APOYOS,4,0)*$E$14,0),\"-\"),\nIF($B$5=\"EXPERIENCIAS\",IFERROR(ROUND(VLOOKUP(A63,DOT_EXP,4,0)*$E$14,0),\"-\"),\n\"-\"))))","v":0},{"$f":"IF($B$5=\"ITINERANTE\",IFERROR(ROUND(VLOOKUP(A63,DOT_COMU,5,0)*$E$15,0),\"-\"),IF($B$5=\"BID\",\"-\",IF($B$5=\"CENTROS\",IFERROR(ROUND(VLOOKUP(A63,DOT_APOYOS,5,0)*$E$15,0),\"-\"),IF($B$5=\"EXPERIENCIAS\",IFERROR(ROUND(VLOOKUP(A63,DOT_EXP,5,0)*$E$15,0),\"-\"),\"-\"))))","v":0},{"$f":"IFERROR(IF($B$5=\"BID\",D63+E63,D63+E63+F63),0)","v":0}]
[220403,{"$f":"IFERROR(IF($B$5=\"ITINERANTE\",VLOOKUP(A64,DOT_COMU,2,0),IF($B$5=\"BID\",VLOOKUP(A64,DOT_BID,2,0),IF($B$5=\"CENTROS\",VLOOKUP(A64,DOT_APOYOS,2,0),IF($B$5=\"EXPERIENCIAS\",VLOOKUP(A64,DOT_EXP,2,0),\"\")))),\"\")","v":""},null,{"$f":"IF($B$5=\"ITINERANTE\",IFERROR(ROUND(VLOOKUP(A64,DOT_COMU,3,0)*$E$13,0),\"-\"),IF($B$5=\"CENTROS\",IFERROR(ROUND(VLOOKUP(A64,DOT_APOYOS,3,0)*$E$13,0),\"-\"),\"-\"))","v":"-"},{"$f":"IF($B$5=\"ITINERANTE\",IFERROR(ROUND(VLOOKUP(A64,DOT_COMU,4,0)*$E$14,0),\"-\"),\nIF($B$5=\"BID\",IFERROR(ROUND(VLOOKUP(A64,DOT_BID,4,0)*$E$14,0),\"-\"),\nIF($B$5=\"CENTROS\",IFERROR(ROUND(VLOOKUP(A64,DOT_APOYOS,4,0)*$E$14,0),\"-\"),\nIF($B$5=\"EXPERIENCIAS\",IFERROR(ROUND(VLOOKUP(A64,DOT_EXP,4,0)*$E$14,0),\"-\"),\n\"-\"))))","v":"-"},{"$f":"IF($B$5=\"ITINERANTE\",IFERROR(ROUND(VLOOKUP(A64,DOT_COMU,5,0)*$E$15,0),\"-\"),IF($B$5=\"BID\",\"-\",IF($B$5=\"CENTROS\",IFERROR(ROUND(VLOOKUP(A64,DOT_APOYOS,5,0)*$E$15,0),\"-\"),IF($B$5=\"EXPERIENCIAS\",IFERROR(ROUND(VLOOKUP(A64,DOT_EXP,5,0)*$E$15,0),\"-\"),\"-\"))))","v":"-"},{"$f":"IFERROR(IF($B$5=\"BID\",D64+E64,D64+E64+F64),0)","v":0}]
[220404,{"$f":"IFERROR(IF($B$5=\"ITINERANTE\",VLOOKUP(A65,DOT_COMU,2,0),IF($B$5=\"BID\",VLOOKUP(A65,DOT_BID,2,0),IF($B$5=\"CENTROS\",VLOOKUP(A65,DOT_APOYOS,2,0),IF($B$5=\"EXPERIENCIAS\",VLOOKUP(A65,DOT_EXP,2,0),\"\")))),\"\")","v":""},null,{"$f":"IF($B$5=\"ITINERANTE\",IFERROR(ROUND(VLOOKUP(A65,DOT_COMU,3,0)*$E$13,0),\"-\"),IF($B$5=\"CENTROS\",IFERROR(ROUND(VLOOKUP(A65,DOT_APOYOS,3,0)*$E$13,0),\"-\"),\"-\"))","v":"-"},{"$f":"IF($B$5=\"ITINERANTE\",IFERROR(ROUND(VLOOKUP(A65,DOT_COMU,4,0)*$E$14,0),\"-\"),\nIF($B$5=\"BID\",IFERROR(ROUND(VLOOKUP(A65,DOT_BID,4,0)*$E$14,0),\"-\"),\nIF($B$5=\"CENTROS\",IFERROR(ROUND(VLOOKUP(A65,DOT_APOYOS,4,0)*$E$14,0),\"-\"),\nIF($B$5=\"EXPERIENCIAS\",IFERROR(ROUND(VLOOKUP(A65,DOT_EXP,4,0)*$E$14,0),\"-\"),\n\"-\"))))","v":"-"},{"$f":"IF($B$5=\"ITINERANTE\",IFERROR(ROUND(VLOOKUP(A65,DOT_COMU,5,0)*$E$15,0),\"-\"),IF($B$5=\"BID\",\"-\",IF($B$5=\"CENTROS\",IFERROR(ROUND(VLOOKUP(A65,DOT_APOYOS,5,0)*$E$15,0),\"-\"),IF($B$5=\"EXPERIENCIAS\",IFERROR(ROUND(VLOOKUP(A65,DOT_EXP,5,0)*$E$15,0),\"-\"),\"-\"))))","v":"-"},{"$f":"IFERROR(IF($B$5=\"BID\",D65+E65,D65+E65+F65),0)","v":0}]
["SUBTOTAL PRESUPUESTO DE DOTACIÓN",null,null,{"$f":"SUM(D62:D65)","v":0},{"$f":"SUM(E62:E65)","v":0},{"$f":"SUM(F62:F65)","v":0},{"$f":"SUM(G62:G65)","v":0}]
[{"$f":"+CONCATENATE(\"TOPE DE PARTICIPACIÓN DE \",A66)","v":"TOPE DE PARTICIPACIÓN DE SUBTOTAL PRESUPUESTO DE DOTACIÓN"},null,null,{"$f":"IFERROR(IF($B$5=\"ITINERANTE\",TR!$C$43,IF($B$5=\"CENTROS\",TR!$I$43)),\"\")","v":0},{"$f":"IFERROR(IF($B$5=\"ITINERANTE\",TR!$D$43,IF($B$5=\"CENTROS\",TR!$J$43)),\"\")","v":0},{"$f":"IFERROR(IF($B$5=\"ITINERANTE\",TR!$E$43,IF($B$5=\"CENTROS\",TR!$K$43)),\"\")","v":0},{"$f":"IFERROR(IF($B$5=\"ITINERANTE\",TR!$F$43,IF($B$5=\"CENTROS\",TR!$L$43)),\"\")","v":0}]
[null,null,null,{"$f":"ROUND($D$66/$E$13,6)","v":0},{"$f":"ROUND($E$66/$E$14,6)","v":0},{"$f":"ROUND(IFERROR($F$66/$E$15,0),6)","v":0}]
[2206,{"$f":"IFERROR(IF($B$5=\"ITINERANTE\",VLOOKUP(A69,MAT_COMU,2,0),IF($B$5=\"CENTROS\",VLOOKUP(A69,MAT_APOYOS,2,0),)),\"\")","v":"MATERIAL IDENTIFICACIÓN"},null,"ALISTAMIENTO",{"$f":"IF($B$5=\"BID\",\"ATENCIÓN / CIERRE\",\"ATENCIÓN\")","v":"ATENCIÓN"},{"$f":"IF($B$5=\"BID\",\"\",\"CIERRE\")","v":"CIERRE"},"TOTAL"]
[220601,"Chalecos",null,{"$f":"ROUND(IFERROR(IF($B$5=\"CENTROS\",(VLOOKUP(A70,MAT_APOYOS,3,0)*$E$13),IF($B$5=\"ITINERANTE\",(VLOOKUP(A70,MAT_COMU,3,0)* $E$13))),\"\"),0)","v":605412},{"$f":"ROUND(IFERROR(IF($B$5=\"CENTROS\",(VLOOKUP(A70,MAT_APOYOS,4,0)*$E$14),IF($B$5=\"ITINERANTE\",(VLOOKUP(A70,MAT_COMU,4,0)* $E$14))),\"\"),0)","v":0},{"$f":"ROUND(IFERROR(IF($B$5=\"CENTROS\",(VLOOKUP(A70,MAT_APOYOS,5,0)*$E$15),IF($B$5=\"ITINERANTE\",(VLOOKUP(A70,MAT_COMU,5,0)* $E$15))),\"\"),0)","v":0},{"$f":"IFERROR(IF($B$5=\"BID\",D70+E70,D70+E70+F70),0)","v":605412}]
[220602,"Gorras",null,161940,0,0,{"$f":"IFERROR(IF($B$5=\"BID\",D71+E71,D71+E71+F71),0)","v":161940}]
[220603,"Camisetas",null,488904,0,0,488904]
[220604,"Carné",null,74296,0,0,74296]
[220605,"Valla",null,0,0,0,0]
[220606,"Pendón",null,39406,0,0,{"$f":"IFERROR(IF($B$5=\"BID\",D75+E75,D75+E75+F75),0)","v":39406}]
["SUBTOTAL PRESUPUESTO DE MATERIAL IDENTIFICACIÓN",null,null,{"$f":"SUM(D70:D75)","v":1369958},{"$f":"SUM(E70:E75)","v":0},{"$f":"SUM(F70:F75)","v":0},1369958]
[{"$f":"+CONCATENATE(\"TOPE DE PARTICIPACIÓN DE \",A76)","v":"TOPE DE PARTICIPACIÓN DE SUBTOTAL PRESUPUESTO DE MATERIAL IDENTIFICACIÓN"},null,null,{"$f":"IFERROR(IF($B$5=\"ITINERANTE\",TR!$C$53,IF($B$5=\"CENTROS\",TR!$I$53)),\"\")","v":0.161856},{"$f":"IFERROR(IF($B$5=\"ITINERANTE\",TR!$D$53,IF($B$5=\"CENTROS\",TR!$J$53)),\"\")","v":0},{"$f":"IFERROR(IF($B$5=\"ITINERANTE\",TR!$E$53,IF($B$5=\"CENTROS\",TR!$K$53)),\"\")","v":0},{"$f":"IFERROR(IF($B$5=\"ITINERANTE\",TR!$F$53,IF($B$5=\"BID\",TR!#REF!,IF($B$5=\"CENTROS\",TR!$L$53,IF($B$5=\"EXPERIENCIAS\",TR!#REF!)))),\"\")","v":1.0268762187739651E-2}]
[null,null,null,{"$f":"+ROUND($D$76/$E$13,6)","v":0.161856},{"$f":"+ROUND($E$76/$E$14,3)","v":0},{"$f":"+ROUND($F$76/$E$15,3)","v":0}]
[2207,{"$f":"IFERROR(IF($B$5=\"ITINERANTE\",VLOOKUP(A79,SEG_COMU,2,0),IF($B$5=\"BID\",VLOOKUP(A79,SEG_BID,2,0),IF($B$5=\"CENTROS\",VLOOKUP(A79,SEG_APOYOS,2,0),IF($B$5=\"EXPERIENCIAS\",VLOOKUP(A79,SEG_EXP,2,0))))),\"\")","v":"SEGURO"},null,{"$f":"ROUND(IFERROR(IF($B$5=\"CENTROS\",(VLOOKUP(A79,SEG_APOYOS,3,0)*$E$13),IF($B$5=\"ITINERANTE\",(VLOOKUP(A79,SEG_COMU,3,0)* $E$13))),\"\"),0)","v":0},{"$f":"ROUND(IFERROR(IF($B$5=\"CENTROS\",(VLOOKUP(A79,SEG_APOYOS,4,0)*$E$14),IF($B$5=\"ITINERANTE\",(VLOOKUP(A79,SEG_COMU,4,0)* $E$14))),\"\"),0)","v":0},{"$f":"ROUND(IFERROR(IF($B$5=\"CENTROS\",(VLOOKUP(A79,SEG_APOYOS,5,0)*$E$15),IF($B$5=\"ITINERANTE\",(VLOOKUP(A79,SEG_COMU,5,0)* $E$15))),\"\"),0)","v":0},{"$f":"IFERROR(IF($B$5=\"BID\",D79+E79,D79+E79+F79),0)","v":0}]
[{"$f":"+CONCATENATE(\"TOPE DE PARTICIPACIÓN DE \",B79)","v":"TOPE DE PARTICIPACIÓN DE SEGURO"},null,null,{"$f":"IFERROR(IF($B$5=\"ITINERANTE\",TR!$C$60,IF($B$5=\"CENTROS\",TR!$I$60)),\"\")","v":0},{"$f":"IFERROR(IF($B$5=\"ITINERANTE\",TR!$D$60,IF($B$5=\"CENTROS\",TR!$J$60,)),\"\")","v":0},{"$f":"IFERROR(IF($B$5=\"ITINERANTE\",TR!$E$60,IF($B$5=\"BID\",\"\",IF($B$5=\"CENTROS\",TR!$K$60,IF($B$5=\"EXPERIENCIAS\",TR!#REF!)))),\"\")","v":0},{"$f":"IFERROR(IF($B$5=\"ITINERANTE\",TR!$F$60,IF($B$5=\"CENTROS\",TR!$L$60)),\"\")","v":0}]
[null,null,null,{"$f":"+$D$79/$E$13","v":0},{"$f":"+$E$79/$E$14","v":0},{"$f":"IFERROR($F$79/$E$15,0)","v":0}]
["2.2 SUBTOTAL PRESUPUESTO DE GASTOS NIÑAS, NIÑOS Y ADOLESCENTES",null,null,{"$f":"SUM(D52,D55,D58,D66,D76,D79)","v":1369958},{"$f":"SUM(E52,E55,E58,E66,E76,E79)","v":9788349},{"$f":"SUM(F52,F55,F58,F66,F76,F79)","v":814174},{"$f":"SUM(G52,G55,G58,G66,G76,G79)","v":11972481}]
[]
["2.3. OTROS GASTOS ADMINISTRATIVOS, OPERATIVOS Y FINANCIEROS"]
[2300,{"$f":"IFERROR(IF($B$5=\"ITINERANTE\",VLOOKUP(A85,GAST_OPE_COMU,2,0),IF($B$5=\"BID\",VLOOKUP(A85,GAST_OPE_BID,2,0),IF($B$5=\"CENTROS\",VLOOKUP(A85,GAST_OPE_APOYOS,2,0),IF($B$5=\"EXPERIENCIAS\",VLOOKUP(A85,GAST_OPE_EXP,2,0))))),\"\")","v":"GASTOS OPERATIVOS"},null,"ALISTAMIENTO",{"$f":"IF($B$5=\"BID\",\"ATENCIÓN / CIERRE\",\"ATENCIÓN\")","v":"ATENCIÓN"},{"$f":"IF($B$5=\"BID\",\"\",\"CIERRE\")","v":"CIERRE"},"TOTAL"]
[2300,"GASTOS OPERATIVOS",null,{"$f":"ROUND(IFERROR(IF($B$5=\"CENTROS\",(VLOOKUP(A86,GAST_OPE_APOYOS,3,0)*$E$13),IF($B$5=\"ITINERANTE\",(VLOOKUP(A86,GAST_OPE_COMU,3,0)* $E$13))),\"\"),0)","v":387139},{"$f":"ROUND(IFERROR(IF($B$5=\"CENTROS\",(VLOOKUP(A86,GAST_OPE_APOYOS,4,0)*$E$14),IF($B$5=\"ITINERANTE\",(VLOOKUP(A86,GAST_OPE_COMU,4,0)* $E$14))),\"\"),0)","v":2677266},{"$f":"ROUND(IFERROR(IF($B$5=\"CENTROS\",(VLOOKUP(A86,GAST_OPE_APOYOS,5,0)*$E$15),IF($B$5=\"ITINERANTE\",(VLOOKUP(A86,GAST_OPE_COMU,5,0)* $E$15))),\"\"),0)","v":360387},{"$f":"IFERROR(IF($B$5=\"BID\",D86+E86,D86+E86+F86),0)","v":3424792}]
[230001,{"$f":"IFERROR(IF($B$5=\"ITINERANTE\",VLOOKUP(A87,TR!A69:E76,2,0),IF($B$5=\"BID\",VLOOKUP(A87,GAST_OPE_BID,2,0),IF($B$5=\"CENTROS\",VLOOKUP(A87,GAST_OPE_APOYOS,2,0),IF($B$5=\"EXPERIENCIAS\",VLOOKUP(A87,GAST_OPE_EXP,2,0))))),\"\")","v":"Aseo"},null,{"$f":"IFERROR(ROUND(IF($B$5=\"CENTROS\",VLOOKUP(A87,GAST_OPE_APOYOS,3,0)*$E$13,IF($B$5=\"ITINERANTE\",VLOOKUP(A87,GAST_OPE_COMU,3,0)*$E$13,0)),0),\"-\")","v":0},{"$f":"IFERROR(ROUND(IF($B$5=\"CENTROS\",VLOOKUP(A87,GAST_OPE_APOYOS,4,0)*$E$14,IF($B$5=\"ITINERANTE\",VLOOKUP(A87,GAST_OPE_COMU,4,0)*$E$14,0)),0),\"-\")","v":0},{"$f":"IFERROR(ROUND(IF($B$5=\"CENTROS\",VLOOKUP(A87,GAST_OPE_APOYOS,5,0)*$E$15,IF($B$5=\"ITINERANTE\",VLOOKUP(A87,GAST_OPE_COMU,5,0)*$E$15,0)),0),\"-\")","v":0},0]
[230002,{"$f":"IFERROR(IF($B$5=\"ITINERANTE\",VLOOKUP(A88,TR!A70:E77,2,0),IF($B$5=\"BID\",VLOOKUP(A88,GAST_OPE_BID,2,0),IF($B$5=\"CENTROS\",VLOOKUP(A88,GAST_OPE_APOYOS,2,0),IF($B$5=\"EXPERIENCIAS\",VLOOKUP(A88,GAST_OPE_EXP,2,0))))),\"\")","v":"Servicios públicos"},null,0,0,0,0]
[230003,{"$f":"IFERROR(IF($B$5=\"ITINERANTE\",VLOOKUP(A89,TR!A71:E78,2,0),IF($B$5=\"BID\",VLOOKUP(A89,GAST_OPE_BID,2,0),IF($B$5=\"CENTROS\",VLOOKUP(A89,GAST_OPE_APOYOS,2,0),IF($B$5=\"EXPERIENCIAS\",VLOOKUP(A89,GAST_OPE_EXP,2,0))))),\"\")","v":"Papelería asociada con el manejo administrativo del contrato"},null,"-","-","-",0]
[230004,{"$f":"IFERROR(IF($B$5=\"ITINERANTE\",VLOOKUP(A90,TR!A72:E79,2,0),IF($B$5=\"BID\",VLOOKUP(A90,GAST_OPE_BID,2,0),IF($B$5=\"CENTROS\",VLOOKUP(A90,GAST_OPE_APOYOS,2,0),IF($B$5=\"EXPERIENCIAS\",VLOOKUP(A90,GAST_OPE_EXP,2,0))))),\"\")","v":"Acciones de movilización social"},null,"-","-","-",0]
[230005,{"$f":"IFERROR(IF($B$5=\"ITINERANTE\",VLOOKUP(A91,TR!A73:E80,2,0),IF($B$5=\"BID\",VLOOKUP(A91,GAST_OPE_BID,2,0),IF($B$5=\"CENTROS\",VLOOKUP(A91,GAST_OPE_APOYOS,2,0),IF($B$5=\"EXPERIENCIAS\",VLOOKUP(A91,GAST_OPE_EXP,2,0))))),\"\")","v":"Gastos bancarios (comisiones, transferencias y chequeras)"},null,"-","-","-",0]
[230006,{"$f":"IFERROR(IF($B$5=\"ITINERANTE\",VLOOKUP(A92,TR!A74:E81,2,0),IF($B$5=\"BID\",VLOOKUP(A92,GAST_OPE_BID,2,0),IF($B$5=\"CENTROS\",VLOOKUP(A92,GAST_OPE_APOYOS,2,0),IF($B$5=\"EXPERIENCIAS\",VLOOKUP(A92,GAST_OPE_EXP,2,0))))),\"\")","v":"Materiales o dispositivos de apoyo de baja complejidad para los participantes"},null,"-","-","-",0]
[230007,{"$f":"IFERROR(IF($B$5=\"ITINERANTE\",VLOOKUP(A93,TR!A75:E82,2,0),IF($B$5=\"BID\",VLOOKUP(A93,GAST_OPE_BID,2,0),IF($B$5=\"CENTROS\",VLOOKUP(A93,GAST_OPE_APOYOS,2,0),IF($B$5=\"EXPERIENCIAS\",VLOOKUP(A93,GAST_OPE_EXP,2,0))))),\"\")","v":"Otros (lo que se requiera para el adecuado desarrollo de la Modalidad)"},null,"-","-","-",{"$f":"IFERROR(IF($B$5=\"BID\",D93+E93,D93+E93+F93),0)","v":0}]
[null,null,null,"-","-","-",0]
[null,null,null,"-","-","-",0]
["SUBTOTAL OTROS GASTOS ADMINISTRATIVOS Y OPERATIVOS",null,null,{"$f":"SUM(D86:D95)","v":387139},{"$f":"SUM(E86:E95)","v":2677266},360387,3424792]
[{"$f":"+CONCATENATE(\"TOPE DE PARTICIPACIÓN DE \",B96)","v":"TOPE DE PARTICIPACIÓN DE "},null,null,{"$f":"IFERROR(IF($B$5=\"ITINERANTE\",TR!$C$69,IF($B$5=\"CENTROS\",TR!$I$69)),\"\")","v":4.5739079238170929E-2},{"$f":"IFERROR(IF($B$5=\"ITINERANTE\",TR!$D$69,IF($B$5=\"CENTROS\",TR!$J$69)),\"\")","v":4.5739079238170929E-2},{"$f":"IFERROR(IF($B$5=\"ITINERANTE\",TR!$E$69,IF($B$5=\"BID\",\"\",IF($B$5=\"CENTROS\",TR!$K$69,IF($B$5=\"EXPERIENCIAS\",TR!#REF!)))),\"\")","v":4.5739079238170929E-2},{"$f":"IFERROR(IF($B$5=\"ITINERANTE\",TR!$F$69,IF($B$5=\"BID\",TR!#REF!,IF($B$5=\"CENTROS\",TR!$L$69,IF($B$5=\"EXPERIENCIAS\",TR!#REF!)))),\"\")","v":4.5739079238170922E-2}]
[null,null,null,{"$f":"ROUND($D$96/$E$13,6)","v":4.5739000000000002E-2},{"$f":"ROUND($E$96/$E$14,6)","v":4.5739000000000002E-2},{"$f":"ROUND($F$96/$E$15,6)","v":4.5739000000000002E-2}]
[2302,{"$f":"IFERROR(IF($B$5=\"ITINERANTE\",VLOOKUP(A99,UT_COMU,2,0),IF($B$5=\"BID\",VLOOKUP(A99,UT_BID,2,0),IF($B$5=\"CENTROS\",VLOOKUP(A99,UT_APOYOS,2,0),IF($B$5=\"EXPERIENCIAS\",VLOOKUP(A99,UT_EXP,2,0))))),\"\")","v":"N/A"},null,{"$f":"ROUND(IFERROR(IF($B$5=\"CENTROS\",(VLOOKUP(A99,UT_APOYOS,3,0)*$E$13),IF($B$5=\"ITINERANTE\",(VLOOKUP(A99,UT_COMU,3,0)* $E$13))),\"\"),0)","v":0},{"$f":"ROUND(IFERROR(IF($B$5=\"CENTROS\",(VLOOKUP(A99,UT_APOYOS,4,0)*$E$14),IF($B$5=\"ITINERANTE\",(VLOOKUP(A99,UT_COMU,4,0)* $E$14))),\"\"),0)","v":0},{"$f":"ROUND(IFERROR(IF($B$5=\"CENTROS\",(VLOOKUP(A99,UT_APOYOS,5,0)*$E$15),IF($B$5=\"ITINERANTE\",(VLOOKUP(A99,UT_COMU,5,0)* $E$15))),\"\"),0)","v":0},{"$f":"IFERROR(D99+E99+F99,0)","v":0}]
[{"$f":"+CONCATENATE(\"TOPE DE PARTICIPACIÓN DE \",B99)","v":"TOPE DE PARTICIPACIÓN DE N/A"},null,null,{"$f":"IFERROR(IF($B$5=\"ITINERANTE\",TR!$C$80,IF($B$5=\"CENTROS\",TR!$I$80,)),\"\")","v":0},{"$f":"IFERROR(IF($B$5=\"ITINERANTE\",TR!$D$80,IF($B$5=\"CENTROS\",TR!$J$80,)),\"\")","v":0},{"$f":"IFERROR(IF($B$5=\"ITINERANTE\",TR!$E$80,IF($B$5=\"CENTROS\",TR!$K$80,)),\"\")","v":0},{"$f":"IFERROR(IF($B$5=\"ITINERANTE\",TR!$F$80,IF($B$5=\"BID\",TR!#REF!,IF($B$5=\"CENTROS\",TR!$L$80,IF($B$5=\"EXPERIENCIAS\",TR!#REF!)))),\"\")","v":0}]
[null,null,null,{"$f":"+$D$99/$E$13","v":0},{"$f":"+$E$99/$E$14","v":0},{"$f":"IFERROR($F$99/$E$15,0)","v":0}]
[2303,{"$f":"IFERROR(IF($B$5=\"ITINERANTE\",VLOOKUP(A102,GRAV_COMU,2,0),IF($B$5=\"BID\",VLOOKUP(A102,GRAV_BID,2,0),IF($B$5=\"CENTROS\",VLOOKUP(A102,GRAV_APOYOS,2,0),IF($B$5=\"EXPERIENCIAS\",VLOOKUP(A102,GRAV_EXP,2,0))))),\"\")","v":"GRAVAMEN MOVIMIENTOS FINANCIEROS GMF"},null,{"$f":"ROUND(IFERROR(IF($B$5=\"CENTROS\",(VLOOKUP(A102,GRAV_APOYOS,3,0)*$E$13),IF($B$5=\"ITINERANTE\",(VLOOKUP(A102,GRAV_COMU,3,0)* $E$13))),\"\"),0)-1","v":33720},{"$f":"ROUND(IFERROR(IF($B$5=\"CENTROS\",(VLOOKUP(A102,GRAV_APOYOS,4,0)*$E$14),IF($B$5=\"ITINERANTE\",(VLOOKUP(A102,GRAV_COMU,4,0)* $E$14))),\"\"),0)+2","v":233203},{"$f":"ROUND(IFERROR(IF($B$5=\"CENTROS\",(VLOOKUP(A102,GRAV_APOYOS,5,0)*$E$15),IF($B$5=\"ITINERANTE\",(VLOOKUP(A102,GRAV_COMU,5,0)* $E$15))),\"\"),0)","v":31391},{"$f":"IFERROR(D102+E102+F102,0)","v":298314}]
[{"$f":"+CONCATENATE(\"TOPE DE PARTICIPACIÓN DE \",B102)","v":"TOPE DE PARTICIPACIÓN DE GRAVAMEN MOVIMIENTOS FINANCIEROS GMF"},null,null,{"$f":"IFERROR(IF($B$5=\"ITINERANTE\",TR!$C$82,IF($B$5=\"BID\",TR!#REF!,IF($B$5=\"CENTROS\",TR!$I$82,IF($B$5=\"EXPERIENCIAS\",TR!#REF!)))),\"\")","v":3.9840600000000002E-3},{"$f":"IFERROR(IF($B$5=\"ITINERANTE\",TR!$D$82,IF($B$5=\"BID\",TR!#REF!,IF($B$5=\"CENTROS\",TR!$J$82,IF($B$5=\"EXPERIENCIAS\",TR!#REF!)))),\"\")","v":3.9840600000000002E-3},{"$f":"IFERROR(IF($B$5=\"ITINERANTE\",TR!$E$82,IF($B$5=\"BID\",\"\",IF($B$5=\"CENTROS\",TR!$K$82,IF($B$5=\"EXPERIENCIAS\",TR!#REF!)))),\"\")","v":3.9840600000000002E-3},{"$f":"IFERROR(IF($B$5=\"ITINERANTE\",TR!$F$82,IF($B$5=\"BID\",TR!#REF!,IF($B$5=\"CENTROS\",TR!$L$82,IF($B$5=\"EXPERIENCIAS\",TR!#REF!)))),\"\")","v":3.9840637450199202E-3}]
[null,null,null,{"$f":"+ROUND($D$102/$E$13,5)","v":3.98E-3},{"$f":"ROUND(+$E$102/$E$14,5)","v":3.98E-3},{"$f":"ROUND(IFERROR($F$102/$E$15,0),6)","v":3.9839999999999997E-3}]
["2.2 SUBTOTAL PRESUPUESTO DE GASTOS NIÑAS, NIÑOS Y ADOLESCENTES",null,null,{"$f":"+D96+D99+D102","v":420859},{"$f":"+E96+E99+E102","v":2910469},{"$f":"IF($B$5=\"BID\",0,F96+F99+F102)","v":391778},{"$f":"IFERROR(D105+E105+F105,0)","v":3723106}]
[]
["TOTAL PRESUPUESTO DE GASTOS",null,null,{"$f":"+D45+D82+D105","v":8464075},{"$f":"+E45+E82+E105","v":58533450},{"$f":"+F45+F82+F105","v":7879200},{"$f":"+G45+G82+G105","v":74876725}]
[null,null,null,{"$f":"+E13","v":8464075},{"$f":"+E14","v":58533450},{"$f":"+E15","v":7879200},{"$f":"+F13","v":74876725}]
[null,null,"Diferencia",{"$f":"+D107-D108","v":0},{"$f":"+E107-E108","v":0},{"$f":"+F107-F108","v":0},{"$f":"+G107-G108","v":0}]
[null,null,"Control de Valores",{"$f":"D107=D108","v":true},{"$f":"E107=E108","v":true},true,true]
[]
[null,null,"% Total",{"$f":"IFERROR(+D36+D44+D54+D57+D60+D68+D78+D81+D98+D101+D104,\"\")","v":0.99997499999999995},{"$f":"IFERROR(+E36+E44+E54+E57+E60+E68+E78+E81+E98+E101+E104,\"\")","v":0.99953797920419851},{"$f":"IFERROR(+F36+F44+F54+F57+F60+F68+F78+F81+F98+F101+F104,\"\")","v":0.99962299999999993}]
[]
[]
[]
[]
[]
[]
[]
["Contador/Revisor Fiscal (cuando aplique)",null,null,"Representante Legal"]
["Nombre:",null,null,"Nombre:"]
["C.C.:",null,null,"C.C.:"]
["Tarjeta profesional:"]
[]
["¡Antes de imprimir este documento… piense en el medio ambiente!\nCualquier copia impresa de este documento se considera como COPIA NO CONTROLADA\nLOS DATOS PROPORCIONADOS SERÁN TRATADOS DE ACUERDO A LA POLÍTICA DE TRATAMIENTO DE DATOS PERSONALES DEL ICBF Y A LA LEY 1581 DE 2012\n"]

{"sheet":"2. INFORMACION GENERAL","index":6,"n_rows":104,"n_cols":41,"rows_kept":104,"cut":false,"hidden":false,"merged":[[103,0,103,22],[79,2,80,4],[78,2,78,4],[77,39,77,40],[78,39,78,40],[78,5,78,7],[78,8,78,10],[78,11,78,13],[78,14,78,16],[78,17,78,19],[78,20,78,22],[78,23,78,25],[78,26,78,28],[78,29,78,31],[78,32,78,34],[78,35,78,37],[77,2,77,4],[77,5,77,7],[77,8,77,10],[77,11,77,13],[77,14,77,16],[77,17,77,19],[77,20,77,22],[77,23,77,25],[77,26,77,28],[77,29,77,31],[77,32,77,34],[77,35,77,37],[76,38,76,40],[75,30,75,31],[76,29,76,30],[75,33,75,34],[76,32,76,33],[76,35,76,36],[75,36,75,37],[75,12,75,13],[76,11,76,12],[63,0,63,1],[64,0,64,1],[65,0,65,1],[60,0,60,1],[25,0,25,1],[36,0,36,1],[37,0,37,1],[26,0,26,1],[27,0,27,1],[28,0,28,1],[74,0,74,1],[68,0,68,1],[69,0,69,1],[70,0,70,1],[71,0,71,1],[72,0,72,1],[62,0,62,1],[75,15,75,16],[76,14,76,15],[75,18,75,19],[76,17,76,18],[75,21,75,22],[76,20,76,21],[75,24,75,25],[76,23,76,24],[75,27,75,28],[76,26,76,27],[18,25,18,26],[18,27,18,28],[23,0,23,40],[22,0,22,4],[21,31,21,32],[20,31,20,32],[21,9,21,10],[20,9,20,10],[21,6,21,7],[18,0,18,1],[18,2,18,4],[20,6,20,7],[18,5,18,7],[18,11,18,12],[18,13,18,14],[18,15,18,16],[20,0,21,1],[24,35,24,37],[24,38,24,40],[67,0,67,1],[56,0,56,1],[57,0,57,1],[58,0,58,1],[59,0,59,1],[50,0,50,1],[51,0,51,1],[52,0,52,1],[53,0,53,1],[54,0,54,1],[24,5,24,7],[24,8,24,10],[24,11,24,13],[24,14,24,16],[24,17,24,19],[46,0,46,1],[61,0,61,1],[55,0,55,1],[44,0,44,1],[45,0,45,1],[47,0,47,1],[48,0,48,1],[9,2,9,4],[9,5,10,8],[9,9,10,12],[9,13,10,15],[9,16,10,18],[9,19,10,21],[9,22,10,24],[18,8,18,10],[17,19,17,20],[17,21,17,22],[17,23,17,24],[17,2,17,4],[18,17,18,18],[18,19,18,20],[18,21,18,22],[18,23,18,24],[17,11,17,12],[17,13,17,14],[17,15,17,16],[16,13,16,14],[16,15,16,16],[15,13,15,14],[15,15,15,16],[15,17,15,18],[84,3,84,4],[84,5,84,7],[84,9,84,10],[83,3,83,4],[83,5,83,7],[83,9,83,10],[97,5,97,9],[97,16,97,19],[86,3,86,4],[86,5,86,7],[86,9,86,10],[85,3,85,4],[85,5,85,7],[85,9,85,10],[89,6,89,9],[82,3,82,4],[82,5,82,7],[82,9,82,10],[75,0,75,1],[76,0,76,1],[77,0,77,1],[79,5,80,5],[79,6,80,6],[79,7,80,9],[79,10,80,10],[78,0,78,1],[75,3,75,4],[76,2,76,3],[75,6,75,7],[76,5,76,6],[75,9,75,10],[76,8,76,9],[79,11,80,11],[24,20,24,22],[24,23,24,25],[24,26,24,28],[24,29,24,31],[24,32,24,34],[32,0,32,1],[33,0,33,1],[34,0,34,1],[66,0,66,1],[24,2,24,4],[24,0,24,1],[49,0,49,1],[38,0,38,1],[39,0,39,1],[40,0,40,1],[41,0,41,1],[42,0,42,1],[43,0,43,1],[29,0,29,1],[30,0,30,1],[31,0,31,1],[35,0,35,1],[73,0,73,1],[16,17,16,18],[16,19,16,20],[16,21,16,22],[16,23,16,24],[17,17,17,18],[16,27,16,28],[17,25,17,26],[17,27,17,28],[16,25,16,26],[16,0,16,1],[16,2,16,4],[16,11,16,12],[16,5,16,7],[16,8,16,10],[17,5,17,7],[17,8,17,10],[17,0,17,1],[14,0,14,1],[14,2,14,4],[14,11,14,12],[15,11,15,12],[15,0,15,1],[15,2,15,4],[14,5,14,7],[15,5,15,7],[14,8,14,10],[15,8,15,10],[13,0,13,1],[13,2,13,4],[13,11,13,12],[13,5,13,7],[13,21,13,22],[13,23,13,24],[8,5,8,8],[8,9,8,12],[8,13,8,15],[8,16,8,18],[8,19,8,21],[8,22,8,24],[8,2,8,3],[13,8,13,10],[12,0,12,30],[9,25,10,27],[9,28,10,30],[10,0,10,1],[10,2,10,4],[11,0,11,1],[11,2,11,4],[11,5,11,24],[11,25,11,27],[9,0,9,1],[11,28,11,30],[8,25,8,27],[8,28,8,30],[13,25,13,26],[13,13,13,14],[13,15,13,16],[13,17,13,18],[13,19,13,20],[14,25,14,26],[14,23,14,24],[13,27,15,28],[15,19,15,20],[15,21,15,22],[14,13,14,14],[14,15,14,16],[14,17,14,18],[14,19,14,20],[14,21,14,22],[15,25,15,26],[15,23,15,24],[6,0,6,30],[5,0,5,1],[5,2,5,4],[5,6,5,8],[5,11,5,16],[5,17,5,18],[5,19,5,20],[5,9,5,10],[7,5,7,12],[7,13,7,18],[7,19,7,24],[7,25,7,30],[5,21,5,22],[5,23,5,24],[5,25,5,26],[5,27,5,28],[5,29,5,30],[7,2,7,3],[0,0,2,1],[0,2,2,24],[0,25,0,27],[0,28,0,30],[1,25,1,27],[1,28,1,30],[2,25,2,30],[3,0,3,30],[4,0,4,1],[4,3,4,4],[4,9,4,12],[4,17,4,18],[4,19,4,20],[4,22,4,23],[4,25,4,26],[4,27,4,28],[4,29,4,30],[4,5,4,7]]}
[null,null,"PROCESO\nPROMOCIÓN Y PREVENCIÓN\n\nFORMATO SEGUIMIENTO FINANCIERO \nCENTROS DE APOYO A LA INCLUSIÓN\nITINERANTE",null,null,null,null,null,null,null,null,null,null,null,null,null,null,null,null,null,null,null,null,null,null,{"$f":"+'1. PRESUPUESTO INICIAL'!F1","v":"F24.GO1.MT7.PP "},null,null,{"$f":"+'1. PRESUPUESTO INICIAL'!G1","v":"2025-08-22"}]
[null,null,null,null,null,null,null,null,null,null,null,null,null,null,null,null,null,null,null,null,null,null,null,null,null,{"$f":"+'1. PRESUPUESTO INICIAL'!F2","v":"Versión 1"},null,null,"Página 1 de 1"]
[null,null,null,null,null,null,null,null,null,null,null,null,null,null,null,null,null,null,null,null,null,null,null,null,null,"Clasificación de la Información\nPública"]
["1. INFORMACIÓN GENERAL DEL CONTRATO"]
["Forma de Atención",null,{"$f":"+'1. PRESUPUESTO INICIAL'!B5","v":"ITINERANTE"},"ENTIDAD \nCONTRATISTA",null,{"$f":"+'1. PRESUPUESTO INICIAL'!B9","v":"Escribe la entidad Contratante"},null,null,"NIT ENTIDAD CONTRATISTA",{"$f":"+'1. PRESUPUESTO INICIAL'!D9","v":"Escribe la entidad Contratante"},null,null,null,"CONTRATO N°",{"$f":"+'1. PRESUPUESTO INICIAL'!F9","v":0},"DE","AÑO","FECHA LEGALIZACIÓN DEL CONTRATO",null,"DD/MM/AA",null,"FECHA INICIO","DD/MM/AA",null,"FECHA FIN","DD/MM/AA",null,"TIEMPO DE ATENCIÓN",null,{"$f":"+'1. PRESUPUESTO INICIAL'!D11","v":4}]
["REGIONAL",null,{"$f":"+'1. PRESUPUESTO INICIAL'!D5","v":0},null,null,"CENTRO ZONAL",{"$f":"+'1. PRESUPUESTO INICIAL'!B7","v":0},null,null,"MUNICIPIO (S) DE ATENCIÓN",null,{"$f":"+'1. PRESUPUESTO INICIAL'!F5","v":0},null,null,null,null,null,"PERIODO DEL INFORME",null,"DESDE - DD/MM/AA",null,"HASTA - DD/MM/AA",null,"FECHA DE ELABORACIÓN INFORME FINANCIERO",null,"DD/MM/AA",null,"RESPONSABLE DE LA ELABORACIÓN"]
["2. VALOR DEL CONTRATO "]
["# CUPOS CONTRATADOS ",{"$f":"+'1. PRESUPUESTO INICIAL'!B11","v":50},"VALOR COSTO CUPO MES\nALISTAMIENTO",null,{"$f":"+'1. PRESUPUESTO INICIAL'!B13","v":338563},"VALOR APORTES",null,null,null,null,null,null,null,"VALOR ADICIONES",null,null,null,null,null,"VALOR DISMINUCIONES",null,null,null,null,null,"VALOR TOTAL "]
["VALOR COSTO CUPO MES\nATENCIÓN",{"$f":"+'1. PRESUPUESTO INICIAL'!B14","v":390223},"VALOR COSTO CUPO MES\nCIERRE",null,{"$f":"+'1. PRESUPUESTO INICIAL'!B15","v":315168},"APORTES ICBF",null,null,null,"OTROS APORTES",null,null,null,"APORTES ICBF",null,null,"OTRAS ADICIONES",null,null,"APORTES ICBF",null,null,"OTROS APORTES",null,null,"APORTES ICBF",null,null,"OTROS APORTES"]
[{"$f":"UPPER('1. PRESUPUESTO INICIAL'!B18)","v":"APORTES ICBF "},null,{"$f":"+'1. PRESUPUESTO INICIAL'!E18","v":74876725},null,null,{"$f":"C10","v":74876725},null,null,null,{"$f":"+C11","v":0},null,null,null,0,null,null,0,null,null,0,null,null,0,null,null,{"$f":"+F10+N10+T10","v":74876725},null,null,{"$f":"+J10+Q10+W10","v":0}]
[{"$f":"+UPPER('1. PRESUPUESTO INICIAL'!B20)","v":"APORTES CONTRAPARTIDA (CUANDO APLIQUE) "},null,{"$f":"+'1. PRESUPUESTO INICIAL'!E20","v":0}]
["VALOR FINAL DEL CONTRATO",null,{"$f":"+C10+C11","v":74876725},null,null,null,null,null,null,null,null,null,null,null,null,null,null,null,null,null,null,null,null,null,null,{"$f":"+Z10","v":74876725},null,null,{"$f":"+AC10","v":0}]
["3. PRESUPUESTO DE INGRESOS APORTES ICBF "]
["Mes",null,"ALISTAMIENTO ",null,null,"Mes 1",null,null,"Mes 2",null,null,"Mes 3",null,"Mes 4",null,"Mes 5",null,"Mes 6",null,"Mes 7",null,"Mes 8",null,"Mes 9",null,"Mes 10",null," ",null," "]
["CUPOS \nCONTRATADOS",null,{"$f":"+B8","v":50},null,null,{"$f":"+C15","v":50},null,null,{"$f":"+F15","v":50},null,null,{"$f":"+I15","v":50},null,{"$f":"+L15","v":50},null,{"$f":"+N15","v":50},null,{"$f":"+P15","v":50},null,{"$f":"+R15","v":50},null,{"$f":"+T15","v":50},null,{"$f":"+V15","v":50},null,{"$f":"+X15","v":50}]
["CUPOS ATENDIDOS"]
["CUPOS NO ATENDIDOS",null,{"$f":"+C15-C16","v":50},null,null,{"$f":"+F15-F16","v":50},null,null,{"$f":"+I15-I16","v":50},null,null,{"$f":"+L15-L16","v":50},null,{"$f":"+N15-N16","v":50},null,{"$f":"+P15-P16","v":50},null,{"$f":"+R15-R16","v":50},null,{"$f":"+T15-T16","v":50},null,{"$f":"+V15-V16","v":50},null,{"$f":"+X15-X16","v":50},null,{"$f":"+Z15-Z16","v":50},null,"TOTAL",null," "]
["VALOR MENSUAL PROGRAMADO",null,{"$f":"+C75","v":0},null,null,{"$f":"+F75","v":0},null,null,{"$f":"+I75","v":0},null,null,{"$f":"+L75","v":0},null,{"$f":"+O75","v":0},null,{"$f":"+R75","v":0},null,{"$f":"+U75","v":0},null,{"$f":"+X75","v":0},null,{"$f":"+AA75","v":0},null,{"$f":"+AD75","v":0},null,{"$f":"+AG75","v":0},null,{"$f":"SUM(A18:AA18)","v":0}]
["VALOR INEJECUCIONES MENSUALES (Inasistencias)",null,0,null,null,null,null,null,null,null,null,null,null,null,null,null,null,null,null,null,null,null,null,null,null,null,null,{"$f":"SUM(A19:AA19)","v":0}]
[]
["VALOR REINVERSIONES MENSUALES",null,null,null,null,"ALISTAMIENTO (Valor Aprobado)","Acta y Fecha (Aprobación)",null,{"$f":"+F25","v":"ATENCIÓN Mes 1"},"Acta y Fecha (Aprobación)",null,{"$f":"+I25","v":"ATENCIÓN Mes 2"},"Acta y Fecha (Aprobación)",{"$f":"+L25","v":"ATENCIÓN Mes 3"},"Acta y Fecha (Aprobación)",{"$f":"+O25","v":"ATENCIÓN Mes 4"},"Acta y Fecha (Aprobación)",{"$f":"+R25","v":"ATENCIÓN Mes 5"},"Acta y Fecha (Aprobación)",{"$f":"+U25","v":"ATENCIÓN Mes 6"},"Acta y Fecha (Aprobación)",{"$f":"+X25","v":"ATENCIÓN Mes 7"},"Acta y Fecha (Aprobación)",{"$f":"+X25","v":"ATENCIÓN Mes 7"},"Acta y Fecha (Aprobación)",{"$f":"+AA25","v":"ATENCIÓN Mes 8"},"Acta y Fecha (Aprobación)",{"$f":"+AD25","v":"ATENCIÓN Mes 9"},"Acta y Fecha (Aprobación)",{"$f":"+AG25","v":"ATENCIÓN Mes 10"},"Acta y Fecha (Aprobación)","TOTAL REINVERSIONES APROBADAS Y EJECUTADAS"]
[null,null,null,null,null,0,null,null,0,null,null,0,null,0,null,0,null,0,null,0,null,0,null,0,null,0,null,0,null,0,null,{"$f":"+F22+I22+L22+N22+P22+R22+T22+V22+X22+Z22+AB22+AD22","v":0}]
["4. PRESUPUESTO DE GASTOS APORTES ICBF"]
["4. PRESUPUESTO DE GASTOS APORTES ICBF"]
["ETAPA ",null,"ALISTAMIENTO",null,null,"ATENCIÓN Mes 1",null,null,"ATENCIÓN Mes 2",null,null,"ATENCIÓN Mes 3",null,null,"ATENCIÓN Mes 4",null,null,"ATENCIÓN Mes 5",null,null,"ATENCIÓN Mes 6",null,null,"ATENCIÓN Mes 7",null,null,"ATENCIÓN Mes 8",null,null,"ATENCIÓN Mes 9",null,null,"ATENCIÓN Mes 10",null,null,"CIERRE",null,null,"TOTAL"]
[null,null,"PROGRAMADO","EJECUTADO","NO EJECUTADO","PROGRAMADO","EJECUTADO","NO EJECUTADO","PROGRAMADO","EJECUTADO","NO EJECUTADO","PROGRAMADO","EJECUTADO","NO EJECUTADO","PROGRAMADO","EJECUTADO","NO EJECUTADO","PROGRAMADO","EJECUTADO","NO EJECUTADO","PROGRAMADO","EJECUTADO","NO EJECUTADO","PROGRAMADO","EJECUTADO","NO EJECUTADO","PROGRAMADO","EJECUTADO","NO EJECUTADO","PROGRAMADO","EJECUTADO","NO EJECUTADO","PROGRAMADO","EJECUTADO","NO EJECUTADO","PROGRAMADO","EJECUTADO","NO EJECUTADO","PROGRAMADO","EJECUTADO","NO EJECUTADO"]
[{"$f":"IF('1. PRESUPUESTO INICIAL'!B28=\"\",\"\",'1. PRESUPUESTO INICIAL'!B28)","v":"TALENTO HUMANO"},null,{"$f":"+SUM(C28:C37)","v":0},{"$f":"+SUM(D28:D37)","v":0},{"$f":"+SUM(E28:E37)","v":0},{"$f":"+SUM(F28:F37)","v":0},{"$f":"+SUM(G28:G37)","v":0},{"$f":"+SUM(H28:H37)","v":0},{"$f":"+SUM(I28:I37)","v":0},{"$f":"+SUM(J28:J37)","v":0},{"$f":"+SUM(K28:K37)","v":0},{"$f":"+SUM(L28:L37)","v":0},{"$f":"+SUM(M28:M37)","v":0},{"$f":"+SUM(N28:N37)","v":0},{"$f":"+SUM(O28:O37)","v":0},{"$f":"+SUM(P28:P37)","v":0},{"$f":"+SUM(Q28:Q37)","v":0},{"$f":"+SUM(R28:R37)","v":0},{"$f":"+SUM(S28:S37)","v":0},{"$f":"+SUM(T28:T37)","v":0},{"$f":"+SUM(U28:U37)","v":0},{"$f":"+SUM(V28:V37)","v":0},{"$f":"+SUM(W28:W37)","v":0},{"$f":"+SUM(X28:X37)","v":0},{"$f":"+SUM(Y28:Y37)","v":0},{"$f":"+SUM(Z28:Z37)","v":0},{"$f":"+SUM(AA28:AA37)","v":0},{"$f":"+SUM(AB28:AB37)","v":0},{"$f":"+SUM(AC28:AC37)","v":0},{"$f":"+SUM(AD28:AD37)","v":0},{"$f":"+SUM(AE28:AE37)","v":0},{"$f":"+SUM(AF28:AF37)","v":0},{"$f":"+SUM(AG28:AG37)","v":0},{"$f":"+SUM(AH28:AH37)","v":0},{"$f":"+SUM(AI28:AI37)","v":0},{"$f":"+SUM(AJ28:AJ37)","v":0},{"$f":"+SUM(AK28:AK37)","v":0},{"$f":"+SUM(AL28:AL37)","v":0},0,0,0]
[{"$f":"IF('1. PRESUPUESTO INICIAL'!B29=\"\",\"\",'1. PRESUPUESTO INICIAL'!B29)","v":"Orientador de atención itinerante para la adaptación de entornos familiares. "},null,0,0,{"$f":"IFERROR(C28-D28,0)","v":0},0,0,{"$f":"IFERROR(F28-G28,0)","v":0},0,0,{"$f":"IFERROR(I28-J28,0)","v":0},0,0,{"$f":"IFERROR(L28-M28,0)","v":0},0,0,{"$f":"IFERROR(O28-P28,0)","v":0},0,0,{"$f":"IFERROR(R28-S28,0)","v":0},0,0,{"$f":"IFERROR(U28-V28,0)","v":0},0,0,{"$f":"IFERROR(X28-Y28,0)","v":0},0,0,{"$f":"IFERROR(AA28-AB28,0)","v":0},0,0,{"$f":"IFERROR(AD28-AE28,0)","v":0},0,0,{"$f":"IFERROR(AG28-AH28,0)","v":0},0,0,{"$f":"IFERROR(AJ28-AK28,0)","v":0},{"$f":"+SUMIFS(C28:AL28,$C$26:$AL$26,$AM$26)","v":0},{"$f":"+SUMIFS(C28:AL28,$C$26:$AL$26,$AN$26)","v":0},{"$f":"+SUMIFS(C28:AL28,$C$26:$AL$26,$AO$26)","v":0}]
[{"$f":"IF('1. PRESUPUESTO INICIAL'!B30=\"\",\"\",'1. PRESUPUESTO INICIAL'!B30)","v":"Orientador de atención itinerante para la adaptación de entornos institucionales. "},null,0,0,0,0,0,0,0,0,0,0,0,0,0,0,0,0,0,0,0,0,0,0,0,0,0,0,0,0,0,0,0,0,0,0,0,0,0,0,0]
[{"$f":"IF('1. PRESUPUESTO INICIAL'!B31=\"\",\"\",'1. PRESUPUESTO INICIAL'!B31)","v":"Orientador de atención itinerante para la movilización de redes familiares y comunitarias "},null,0,0,0,0,0,0,0,0,0,0,0,0,0,0,0,0,0,0,0,0,0,0,0,0,0,0,0,0,0,0,0,0,0,0,0,0,0,0,0]
[{"$f":"IF('1. PRESUPUESTO INICIAL'!B32=\"\",\"\",'1. PRESUPUESTO INICIAL'!B32)","v":"Líder comunitario, sabedor, modelo lingüista, tiflólogo, docente bilingüe, educador especial con competencia en Lengua de Señas Colombiana -LSC o intérprete para el trabajo con comunidades específicas."},null,0,0,0,0,0,0,0,0,0,0,0,0,0,0,0,0,0,0,0,0,0,0,0,0,0,0,0,0,0,0,0,0,0,0,0,0,0,0,0]
[{"$f":"IF('1. PRESUPUESTO INICIAL'!B33=\"\",\"\",'1. PRESUPUESTO INICIAL'!B33)","v":""},null,0,0,0,0,0,0,0,0,0,0,0,0,0,0,0,0,0,0,0,0,0,0,0,0,0,0,0,0,0,0,0,0,0,0,0,0,0,0,0]
[{"$f":"IF('1. PRESUPUESTO INICIAL'!#REF!=\"\",\"\",'1. PRESUPUESTO INICIAL'!#REF!)","v":{"$error":"#REF!"}},null,0,0,0,0,0,0,0,0,0,0,0,0,0,0,0,0,0,0,0,0,0,0,0,0,0,0,0,0,0,0,0,0,0,0,0,0,0,0,0]
[{"$f":"IF('1. PRESUPUESTO INICIAL'!#REF!=\"\",\"\",'1. PRESUPUESTO INICIAL'!#REF!)","v":{"$error":"#REF!"}},null,0,0,0,0,0,0,0,0,0,0,0,0,0,0,0,0,0,0,0,0,0,0,0,0,0,0,0,0,0,0,0,0,0,0,0,0,0,0,0]
[{"$f":"IF('1. PRESUPUESTO INICIAL'!#REF!=\"\",\"\",'1. PRESUPUESTO INICIAL'!#REF!)","v":{"$error":"#REF!"}},null,0,0,0,0,0,0,0,0,0,0,0,0,0,0,0,0,0,0,0,0,0,0,0,0,0,0,0,0,0,0,0,0,0,0,0,0,0,0,0]
[{"$f":"IF('1. PRESUPUESTO INICIAL'!#REF!=\"\",\"\",'1. PRESUPUESTO INICIAL'!#REF!)","v":{"$error":"#REF!"}},null,0,0,0,0,0,0,0,0,0,0,0,0,0,0,0,0,0,0,0,0,0,0,0,0,0,0,0,0,0,0,0,0,0,0,0,0,0,0,0]
[{"$f":"IF('1. PRESUPUESTO INICIAL'!#REF!=\"\",\"\",'1. PRESUPUESTO INICIAL'!#REF!)","v":{"$error":"#REF!"}},null,0,0,{"$f":"IFERROR(C37-D37,0)","v":0},0,0,{"$f":"IFERROR(F37-G37,0)","v":0},0,0,{"$f":"IFERROR(I37-J37,0)","v":0},0,0,{"$f":"IFERROR(L37-M37,0)","v":0},0,0,{"$f":"IFERROR(O37-P37,0)","v":0},0,0,{"$f":"IFERROR(R37-S37,0)","v":0},0,0,{"$f":"IFERROR(U37-V37,0)","v":0},0,0,{"$f":"IFERROR(X37-Y37,0)","v":0},0,0,{"$f":"IFERROR(AA37-AB37,0)","v":0},0,0,{"$f":"IFERROR(AD37-AE37,0)","v":0},0,0,{"$f":"IFERROR(AG37-AH37,0)","v":0},0,0,{"$f":"IFERROR(AJ37-AK37,0)","v":0},0,0,0]
[{"$f":"IF('1. PRESUPUESTO INICIAL'!B37=\"\",\"\",'1. PRESUPUESTO INICIAL'!B37)","v":"TRANSPORTE Y VIAJES DEL TH"},null,{"$f":"+SUM(C39:C42)","v":0},{"$f":"+SUM(D39:D42)","v":0},{"$f":"IFERROR(C38-D38,0)","v":0},{"$f":"+SUM(F39:F42)","v":0},{"$f":"+SUM(G39:G42)","v":0},{"$f":"IFERROR(F38-G38,0)","v":0},{"$f":"+SUM(I39:I42)","v":0},{"$f":"+SUM(J39:J42)","v":0},{"$f":"IFERROR(I38-J38,0)","v":0},{"$f":"+SUM(L39:L42)","v":0},{"$f":"+SUM(M39:M42)","v":0},{"$f":"IFERROR(L38-M38,0)","v":0},{"$f":"+SUM(O39:O42)","v":0},{"$f":"+SUM(P39:P42)","v":0},{"$f":"IFERROR(O38-P38,0)","v":0},{"$f":"+SUM(R39:R42)","v":0},{"$f":"+SUM(S39:S42)","v":0},{"$f":"IFERROR(R38-S38,0)","v":0},{"$f":"+SUM(U39:U42)","v":0},{"$f":"+SUM(V39:V42)","v":0},{"$f":"IFERROR(U38-V38,0)","v":0},{"$f":"+SUM(X39:X42)","v":0},{"$f":"+SUM(Y39:Y42)","v":0},{"$f":"IFERROR(X38-Y38,0)","v":0},{"$f":"+SUM(AA39:AA42)","v":0},{"$f":"+SUM(AB39:AB42)","v":0},{"$f":"IFERROR(AA38-AB38,0)","v":0},{"$f":"+SUM(AD39:AD42)","v":0},{"$f":"+SUM(AE39:AE42)","v":0},{"$f":"IFERROR(AD38-AE38,0)","v":0},{"$f":"+SUM(AG39:AG42)","v":0},{"$f":"+SUM(AH39:AH42)","v":0},{"$f":"IFERROR(AG38-AH38,0)","v":0},{"$f":"+SUM(AJ39:AJ42)","v":0},{"$f":"+SUM(AK39:AK42)","v":0},{"$f":"IFERROR(AJ38-AK38,0)","v":0},{"$f":"+SUM(AM39:AM42)","v":0},0,0]
[{"$f":"IF('1. PRESUPUESTO INICIAL'!B38=\"\",\"\",'1. PRESUPUESTO INICIAL'!B38)","v":"Orientador de atención itinerante para la adaptación de entornos familiares. "},null,0,0,{"$f":"IFERROR(C39-D39,0)","v":0},0,0,{"$f":"IFERROR(F39-G39,0)","v":0},0,0,{"$f":"IFERROR(I39-J39,0)","v":0},0,0,{"$f":"IFERROR(L39-M39,0)","v":0},0,0,{"$f":"IFERROR(O39-P39,0)","v":0},0,0,{"$f":"IFERROR(R39-S39,0)","v":0},0,0,{"$f":"IFERROR(U39-V39,0)","v":0},0,0,{"$f":"IFERROR(X39-Y39,0)","v":0},0,0,{"$f":"IFERROR(AA39-AB39,0)","v":0},0,0,{"$f":"IFERROR(AD39-AE39,0)","v":0},0,0,{"$f":"IFERROR(AG39-AH39,0)","v":0},0,0,{"$f":"IFERROR(AJ39-AK39,0)","v":0},{"$f":"+SUMIFS(C39:AL39,$C$26:$AL$26,$AM$26)","v":0},{"$f":"+SUMIFS(C39:AL39,$C$26:$AL$26,$AN$26)","v":0},{"$f":"+SUMIFS(C39:AL39,$C$26:$AL$26,$AO$26)","v":0}]
[{"$f":"IF('1. PRESUPUESTO INICIAL'!B39=\"\",\"\",'1. PRESUPUESTO INICIAL'!B39)","v":"Orientador de atención itinerante para la adaptación de entornos institucionales. "},null,0,0,{"$f":"IFERROR(C40-D40,0)","v":0},0,0,{"$f":"IFERROR(F40-G40,0)","v":0},0,0,{"$f":"IFERROR(I40-J40,0)","v":0},0,0,{"$f":"IFERROR(L40-M40,0)","v":0},0,0,{"$f":"IFERROR(O40-P40,0)","v":0},0,0,{"$f":"IFERROR(R40-S40,0)","v":0},0,0,{"$f":"IFERROR(U40-V40,0)","v":0},0,0,{"$f":"IFERROR(X40-Y40,0)","v":0},0,0,{"$f":"IFERROR(AA40-AB40,0)","v":0},0,0,{"$f":"IFERROR(AD40-AE40,0)","v":0},0,0,{"$f":"IFERROR(AG40-AH40,0)","v":0},0,0,{"$f":"IFERROR(AJ40-AK40,0)","v":0},{"$f":"+SUMIFS(C40:AL40,$C$26:$AL$26,$AM$26)","v":0},{"$f":"+SUMIFS(C40:AL40,$C$26:$AL$26,$AN$26)","v":0},{"$f":"+SUMIFS(C40:AL40,$C$26:$AL$26,$AO$26)","v":0}]
[{"$f":"IF('1. PRESUPUESTO INICIAL'!B40=\"\",\"\",'1. PRESUPUESTO INICIAL'!B40)","v":"Orientador de atención itinerante para la movilización de redes familiares y comunitarias "},null,0,0,0,0,0,0,0,0,0,0,0,0,0,0,0,0,0,0,0,0,0,0,0,0,0,0,0,0,0,0,0,0,0,0,0,0,{"$f":"+SUMIFS(C41:AL41,$C$26:$AL$26,$AM$26)","v":0},{"$f":"+SUMIFS(C41:AL41,$C$26:$AL$26,$AN$26)","v":0},{"$f":"+SUMIFS(C41:AL41,$C$26:$AL$26,$AO$26)","v":0}]
[{"$f":"IF('1. PRESUPUESTO INICIAL'!B41=\"\",\"\",'1. PRESUPUESTO INICIAL'!B41)","v":"Líder comunitario, sabedor, modelo lingüista, tiflólogo, docente bilingüe, educador especial con competencia en Lengua de Señas Colombiana -LSC o intérprete para el trabajo con comunidades específicas."},null,0,0,0,0,0,0,0,0,0,0,0,0,0,0,0,0,0,0,0,0,0,0,0,0,0,0,0,0,0,0,0,0,0,0,0,0,{"$f":"+SUMIFS(C42:AL42,$C$26:$AL$26,$AM$26)","v":0},{"$f":"+SUMIFS(C42:AL42,$C$26:$AL$26,$AN$26)","v":0},{"$f":"+SUMIFS(C42:AL42,$C$26:$AL$26,$AO$26)","v":0}]
[{"$f":"IF('1. PRESUPUESTO INICIAL'!B48=\"\",\"\",'1. PRESUPUESTO INICIAL'!B48)","v":"APOYOS NUTRICIONALES"},null,{"$f":"+SUM(C44:C47)","v":0},0,0,0,0,0,0,0,0,0,0,0,0,0,0,0,0,0,0,0,0,0,0,0,0,0,0,0,0,0,0,0,0,0,0,0,{"$f":"+SUM(AM44:AM47)","v":0},0,0]
[{"$f":"IF('1. PRESUPUESTO INICIAL'!B49=\"\",\"\",'1. PRESUPUESTO INICIAL'!B49)","v":"Ración Familiar Para Preparar (RFPP) Sin AAVN"},null,0,0,{"$f":"IFERROR(C44-D44,0)","v":0},0,0,{"$f":"IFERROR(F44-G44,0)","v":0},0,0,{"$f":"IFERROR(I44-J44,0)","v":0},0,0,{"$f":"IFERROR(L44-M44,0)","v":0},0,0,{"$f":"IFERROR(O44-P44,0)","v":0},0,0,{"$f":"IFERROR(R44-S44,0)","v":0},0,0,{"$f":"IFERROR(U44-V44,0)","v":0},0,0,{"$f":"IFERROR(X44-Y44,0)","v":0},0,0,{"$f":"IFERROR(AA44-AB44,0)","v":0},0,0,{"$f":"IFERROR(AD44-AE44,0)","v":0},0,0,{"$f":"IFERROR(AG44-AH44,0)","v":0},0,0,{"$f":"IFERROR(AJ44-AK44,0)","v":0},{"$f":"+SUMIFS(C44:AL44,$C$26:$AL$26,$AM$26)","v":0},{"$f":"+SUMIFS(C44:AL44,$C$26:$AL$26,$AN$26)","v":0},{"$f":"+SUMIFS(C44:AL44,$C$26:$AL$26,$AO$26)","v":0}]
[{"$f":"IF('1. PRESUPUESTO INICIAL'!B50=\"\",\"\",'1. PRESUPUESTO INICIAL'!B50)","v":"_"},null,0,0,{"$f":"IFERROR(C45-D45,0)","v":0},0,0,{"$f":"IFERROR(F45-G45,0)","v":0},0,0,{"$f":"IFERROR(I45-J45,0)","v":0},0,0,{"$f":"IFERROR(L45-M45,0)","v":0},0,0,{"$f":"IFERROR(O45-P45,0)","v":0},0,0,{"$f":"IFERROR(R45-S45,0)","v":0},0,0,{"$f":"IFERROR(U45-V45,0)","v":0},0,0,{"$f":"IFERROR(X45-Y45,0)","v":0},0,0,{"$f":"IFERROR(AA45-AB45,0)","v":0},0,0,{"$f":"IFERROR(AD45-AE45,0)","v":0},0,0,{"$f":"IFERROR(AG45-AH45,0)","v":0},0,0,{"$f":"IFERROR(AJ45-AK45,0)","v":0},0,0,0]
[{"$f":"IF('1. PRESUPUESTO INICIAL'!B51=\"\",\"\",'1. PRESUPUESTO INICIAL'!B51)","v":"_"},null,0,0,0,0,0,0,0,0,0,0,0,0,0,0,0,0,0,0,0,0,0,0,0,0,0,0,0,0,0,0,0,0,0,0,0,0,0,0,0]
[{"$f":"IF('1. PRESUPUESTO INICIAL'!B52=\"\",\"\",'1. PRESUPUESTO INICIAL'!B52)","v":""},null,0,0,{"$f":"IFERROR(C47-D47,0)","v":0},0,0,0,0,0,0,0,0,0,0,0,0,0,0,0,0,0,0,0,0,0,0,0,0,0,0,0,0,0,0,0,0,0,0,0,0]
[{"$f":"IF('1. PRESUPUESTO INICIAL'!B55=\"\",\"\",'1. PRESUPUESTO INICIAL'!B55)","v":"N/A"},null,0,0,{"$f":"IFERROR(C48-D48,0)","v":0},0,0,{"$f":"IFERROR(F48-G48,0)","v":0},0,0,{"$f":"IFERROR(I48-J48,0)","v":0},0,0,{"$f":"IFERROR(L48-M48,0)","v":0},0,0,{"$f":"IFERROR(O48-P48,0)","v":0},0,0,{"$f":"IFERROR(R48-S48,0)","v":0},0,0,{"$f":"IFERROR(U48-V48,0)","v":0},0,0,{"$f":"IFERROR(X48-Y48,0)","v":0},0,0,{"$f":"IFERROR(AA48-AB48,0)","v":0},0,0,{"$f":"IFERROR(AD48-AE48,0)","v":0},0,0,{"$f":"IFERROR(AG48-AH48,0)","v":0},0,0,{"$f":"IFERROR(AJ48-AK48,0)","v":0},0,0,0]
[{"$f":"IF('1. PRESUPUESTO INICIAL'!B58=\"\",\"\",'1. PRESUPUESTO INICIAL'!B58)","v":"MATERIAL DE CONSUMO"},null,0,0,{"$f":"IFERROR(C49-D49,0)","v":0},0,0,{"$f":"IFERROR(F49-G49,0)","v":0},0,0,{"$f":"IFERROR(I49-J49,0)","v":0},0,0,{"$f":"IFERROR(L49-M49,0)","v":0},0,0,{"$f":"IFERROR(O49-P49,0)","v":0},0,0,{"$f":"IFERROR(R49-S49,0)","v":0},0,0,{"$f":"IFERROR(U49-V49,0)","v":0},0,0,{"$f":"IFERROR(X49-Y49,0)","v":0},0,0,{"$f":"IFERROR(AA49-AB49,0)","v":0},0,0,{"$f":"IFERROR(AD49-AE49,0)","v":0},0,0,{"$f":"IFERROR(AG49-AH49,0)","v":0},0,0,{"$f":"IFERROR(AJ49-AK49,0)","v":0},0,0,0]
[{"$f":"IF('1. PRESUPUESTO INICIAL'!B61=\"\",\"\",'1. PRESUPUESTO INICIAL'!B61)","v":"DOTACIÓN"},null,0,0,{"$f":"+SUM(E51:E55)","v":0},0,0,{"$f":"+SUM(H51:H55)","v":0},0,0,{"$f":"+SUM(K51:K55)","v":0},0,0,{"$f":"+SUM(N51:N55)","v":0},0,0,{"$f":"+SUM(Q51:Q55)","v":0},0,0,{"$f":"+SUM(T51:T55)","v":0},0,0,{"$f":"+SUM(W51:W55)","v":0},0,0,{"$f":"+SUM(Z51:Z55)","v":0},0,0,{"$f":"+SUM(AC51:AC55)","v":0},0,0,{"$f":"+SUM(AF51:AF55)","v":0},0,0,{"$f":"+SUM(AI51:AI55)","v":0},0,0,{"$f":"+SUM(AL51:AL55)","v":0},{"$f":"+SUM(AM51:AM55)","v":0},0,0]
[{"$f":"IF('1. PRESUPUESTO INICIAL'!B62=\"\",\"\",'1. PRESUPUESTO INICIAL'!B62)","v":0},null,0,0,{"$f":"IFERROR(C51-D51,0)","v":0},0,0,{"$f":"IFERROR(F51-G51,0)","v":0},0,0,{"$f":"IFERROR(I51-J51,0)","v":0},0,0,{"$f":"IFERROR(L51-M51,0)","v":0},0,0,{"$f":"IFERROR(O51-P51,0)","v":0},0,0,{"$f":"IFERROR(R51-S51,0)","v":0},0,0,{"$f":"IFERROR(U51-V51,0)","v":0},0,0,{"$f":"IFERROR(X51-Y51,0)","v":0},0,0,{"$f":"IFERROR(AA51-AB51,0)","v":0},0,0,{"$f":"IFERROR(AD51-AE51,0)","v":0},0,0,{"$f":"IFERROR(AG51-AH51,0)","v":0},0,0,{"$f":"IFERROR(AJ51-AK51,0)","v":0},{"$f":"+SUMIFS(C51:AL51,$C$26:$AL$26,$AM$26)","v":0},{"$f":"+SUMIFS(C51:AL51,$C$26:$AL$26,$AN$26)","v":0},{"$f":"+SUMIFS(C51:AL51,$C$26:$AL$26,$AO$26)","v":0}]
[{"$f":"IF('1. PRESUPUESTO INICIAL'!B63=\"\",\"\",'1. PRESUPUESTO INICIAL'!B63)","v":0},null,0,0,{"$f":"IFERROR(C52-D52,0)","v":0},0,0,{"$f":"IFERROR(F52-G52,0)","v":0},0,0,{"$f":"IFERROR(I52-J52,0)","v":0},0,0,{"$f":"IFERROR(L52-M52,0)","v":0},0,0,{"$f":"IFERROR(O52-P52,0)","v":0},0,0,{"$f":"IFERROR(R52-S52,0)","v":0},0,0,{"$f":"IFERROR(U52-V52,0)","v":0},0,0,{"$f":"IFERROR(X52-Y52,0)","v":0},0,0,{"$f":"IFERROR(AA52-AB52,0)","v":0},0,0,{"$f":"IFERROR(AD52-AE52,0)","v":0},0,0,{"$f":"IFERROR(AG52-AH52,0)","v":0},0,0,{"$f":"IFERROR(AJ52-AK52,0)","v":0},{"$f":"+SUMIFS(C52:AL52,$C$26:$AL$26,$AM$26)","v":0},{"$f":"+SUMIFS(C52:AL52,$C$26:$AL$26,$AN$26)","v":0},{"$f":"+SUMIFS(C52:AL52,$C$26:$AL$26,$AO$26)","v":0}]
[{"$f":"IF('1. PRESUPUESTO INICIAL'!B64=\"\",\"\",'1. PRESUPUESTO INICIAL'!B64)","v":""},null,0,0,0,0,0,0,0,0,0,0,0,0,0,0,0,0,0,0,0,0,0,0,0,0,0,0,0,0,0,0,0,0,0,0,0,0,{"$f":"+SUMIFS(C53:AL53,$C$26:$AL$26,$AM$26)","v":0},{"$f":"+SUMIFS(C53:AL53,$C$26:$AL$26,$AN$26)","v":0},{"$f":"+SUMIFS(C53:AL53,$C$26:$AL$26,$AO$26)","v":0}]
[{"$f":"IF('1. PRESUPUESTO INICIAL'!B65=\"\",\"\",'1. PRESUPUESTO INICIAL'!B65)","v":""},null,0,0,0,0,0,0,0,0,0,0,0,0,0,0,0,0,0,0,0,0,0,0,0,0,0,0,0,0,0,0,0,0,0,0,0,0,{"$f":"+SUMIFS(C54:AL54,$C$26:$AL$26,$AM$26)","v":0},{"$f":"+SUMIFS(C54:AL54,$C$26:$AL$26,$AN$26)","v":0},{"$f":"+SUMIFS(C54:AL54,$C$26:$AL$26,$AO$26)","v":0}]
[{"$f":"IF('1. PRESUPUESTO INICIAL'!B66=\"\",\"\",'1. PRESUPUESTO INICIAL'!B66)","v":""},null,0,0,0,0,0,0,0,0,0,0,0,0,0,0,0,0,0,0,0,0,0,0,0,0,0,0,0,0,0,0,0,0,0,0,0,0,{"$f":"+SUMIFS(C55:AL55,$C$26:$AL$26,$AM$26)","v":0},{"$f":"+SUMIFS(C55:AL55,$C$26:$AL$26,$AN$26)","v":0},{"$f":"+SUMIFS(C55:AL55,$C$26:$AL$26,$AO$26)","v":0}]
[{"$f":"IF('1. PRESUPUESTO INICIAL'!B69=\"\",\"\",'1. PRESUPUESTO INICIAL'!B69)","v":"MATERIAL IDENTIFICACIÓN"},null,{"$f":"+SUM(C57:C61)","v":0},{"$f":"+SUM(D57:D61)","v":0},0,{"$f":"+SUM(F57:F61)","v":0},{"$f":"+SUM(G57:G61)","v":0},{"$f":"+SUM(H57:H61)","v":0},0,{"$f":"+SUM(J57:J61)","v":0},{"$f":"+SUM(K57:K61)","v":0},0,{"$f":"+SUM(M57:M61)","v":0},{"$f":"+SUM(N57:N61)","v":0},0,{"$f":"+SUM(P57:P61)","v":0},{"$f":"+SUM(Q57:Q61)","v":0},0,{"$f":"+SUM(S57:S61)","v":0},{"$f":"+SUM(T57:T61)","v":0},0,{"$f":"+SUM(V57:V61)","v":0},{"$f":"+SUM(W57:W61)","v":0},0,{"$f":"+SUM(Y57:Y61)","v":0},{"$f":"+SUM(Z57:Z61)","v":0},0,{"$f":"+SUM(AB57:AB61)","v":0},{"$f":"+SUM(AC57:AC61)","v":0},0,{"$f":"+SUM(AE57:AE61)","v":0},{"$f":"+SUM(AF57:AF61)","v":0},0,{"$f":"+SUM(AH57:AH61)","v":0},{"$f":"+SUM(AI57:AI61)","v":0},0,{"$f":"+SUM(AK57:AK61)","v":0},{"$f":"+SUM(AL57:AL61)","v":0},0,0,0]
[{"$f":"IF('1. PRESUPUESTO INICIAL'!B70=\"\",\"\",'1. PRESUPUESTO INICIAL'!B70)","v":"Chalecos"},null,0,0,{"$f":"IFERROR(C57-D57,0)","v":0},0,0,{"$f":"IFERROR(F57-G57,0)","v":0},0,0,{"$f":"IFERROR(I57-J57,0)","v":0},0,0,{"$f":"IFERROR(L57-M57,0)","v":0},0,0,{"$f":"IFERROR(O57-P57,0)","v":0},0,0,{"$f":"IFERROR(R57-S57,0)","v":0},0,0,{"$f":"IFERROR(U57-V57,0)","v":0},0,0,{"$f":"IFERROR(X57-Y57,0)","v":0},0,0,{"$f":"IFERROR(AA57-AB57,0)","v":0},0,0,{"$f":"IFERROR(AD57-AE57,0)","v":0},0,0,{"$f":"IFERROR(AG57-AH57,0)","v":0},0,0,{"$f":"IFERROR(AJ57-AK57,0)","v":0},{"$f":"+SUMIFS(C57:AL57,$C$26:$AL$26,$AM$26)","v":0},{"$f":"+SUMIFS(C57:AL57,$C$26:$AL$26,$AN$26)","v":0},{"$f":"+SUMIFS(C57:AL57,$C$26:$AL$26,$AO$26)","v":0}]
[{"$f":"IF('1. PRESUPUESTO INICIAL'!B71=\"\",\"\",'1. PRESUPUESTO INICIAL'!B71)","v":"Gorras"},null,0,0,{"$f":"IFERROR(C58-D58,0)","v":0},0,0,{"$f":"IFERROR(F58-G58,0)","v":0},0,0,{"$f":"IFERROR(I58-J58,0)","v":0},0,0,{"$f":"IFERROR(L58-M58,0)","v":0},0,0,{"$f":"IFERROR(O58-P58,0)","v":0},0,0,{"$f":"IFERROR(R58-S58,0)","v":0},0,0,{"$f":"IFERROR(U58-V58,0)","v":0},0,0,{"$f":"IFERROR(X58-Y58,0)","v":0},0,0,{"$f":"IFERROR(AA58-AB58,0)","v":0},0,0,{"$f":"IFERROR(AD58-AE58,0)","v":0},0,0,{"$f":"IFERROR(AG58-AH58,0)","v":0},0,0,{"$f":"IFERROR(AJ58-AK58,0)","v":0},0,0,0]
[{"$f":"IF('1. PRESUPUESTO INICIAL'!B72=\"\",\"\",'1. PRESUPUESTO INICIAL'!B72)","v":"Camisetas"},null,0,0,0,0,0,0,0,0,0,0,0,0,0,0,0,0,0,0,0,0,0,0,0,0,0,0,0,0,0,0,0,0,0,0,0,0,0,0,0]
[{"$f":"IF('1. PRESUPUESTO INICIAL'!B73=\"\",\"\",'1. PRESUPUESTO INICIAL'!B73)","v":"Carné"},null,0,0,0,0,0,0,0,0,0,0,0,0,0,0,0,0,0,0,0,0,0,0,0,0,0,0,0,0,0,0,0,0,0,0,0,0,0,0,0]
[{"$f":"IF('1. PRESUPUESTO INICIAL'!B75=\"\",\"\",'1. PRESUPUESTO INICIAL'!B75)","v":"Pendón"},null,0,0,0,0,0,0,0,0,0,0,0,0,0,0,0,0,0,0,0,0,0,0,0,0,0,0,0,0,0,0,0,0,0,0,0,0,0,0,0]
[{"$f":"IF('1. PRESUPUESTO INICIAL'!B79=\"\",\"\",'1. PRESUPUESTO INICIAL'!B79)","v":"SEGURO"},null,0,0,{"$f":"IFERROR(C62-D62,0)","v":0},0,0,{"$f":"IFERROR(F62-G62,0)","v":0},0,0,{"$f":"IFERROR(I62-J62,0)","v":0},0,0,{"$f":"IFERROR(L62-M62,0)","v":0},0,0,{"$f":"IFERROR(O62-P62,0)","v":0},0,0,{"$f":"IFERROR(R62-S62,0)","v":0},0,0,{"$f":"IFERROR(U62-V62,0)","v":0},0,0,{"$f":"IFERROR(X62-Y62,0)","v":0},0,0,{"$f":"IFERROR(AA62-AB62,0)","v":0},0,0,{"$f":"IFERROR(AD62-AE62,0)","v":0},0,0,{"$f":"IFERROR(AG62-AH62,0)","v":0},0,0,{"$f":"IFERROR(AJ62-AK62,0)","v":0},0,0,0]
[{"$f":"IF('1. PRESUPUESTO INICIAL'!B85=\"\",\"\",'1. PRESUPUESTO INICIAL'!B85)","v":"GASTOS OPERATIVOS"},null,{"$f":"+SUM(C64:C72)","v":0},0,0,{"$f":"+SUM(F64:F72)","v":0},0,0,0,0,0,0,0,0,0,0,0,0,0,0,0,0,0,0,0,0,0,0,0,0,0,0,0,0,0,0,0,0,0,0,0]
[{"$f":"IF('1. PRESUPUESTO INICIAL'!B87=\"\",\"\",'1. PRESUPUESTO INICIAL'!B87)","v":"Aseo"},null,0,0,{"$f":"IFERROR(C64-D64,0)","v":0},0,0,{"$f":"IFERROR(F64-G64,0)","v":0},0,0,{"$f":"IFERROR(I64-J64,0)","v":0},0,0,{"$f":"IFERROR(L64-M64,0)","v":0},0,0,{"$f":"IFERROR(O64-P64,0)","v":0},0,0,{"$f":"IFERROR(R64-S64,0)","v":0},0,0,{"$f":"IFERROR(U64-V64,0)","v":0},0,0,{"$f":"IFERROR(X64-Y64,0)","v":0},0,0,{"$f":"IFERROR(AA64-AB64,0)","v":0},0,0,{"$f":"IFERROR(AD64-AE64,0)","v":0},0,0,{"$f":"IFERROR(AG64-AH64,0)","v":0},0,0,{"$f":"IFERROR(AJ64-AK64,0)","v":0},{"$f":"+SUMIFS(C64:AL64,$C$26:$AL$26,$AM$26)","v":0},{"$f":"+SUMIFS(C64:AL64,$C$26:$AL$26,$AN$26)","v":0},{"$f":"+SUMIFS(C64:AL64,$C$26:$AL$26,$AO$26)","v":0}]
[{"$f":"IF('1. PRESUPUESTO INICIAL'!B88=\"\",\"\",'1. PRESUPUESTO INICIAL'!B88)","v":"Servicios públicos"},null,0,0,0,0,0,0,0,0,0,0,0,0,0,0,0,0,0,0,0,0,0,0,0,0,0,0,0,0,0,0,0,0,0,0,0,0,0,0,0]
[{"$f":"IF('1. PRESUPUESTO INICIAL'!B89=\"\",\"\",'1. PRESUPUESTO INICIAL'!B89)","v":"Papelería asociada con el manejo administrativo del contrato"},null,0,0,0,0,0,0,0,0,0,0,0,0,0,0,0,0,0,0,0,0,0,0,0,0,0,0,0,0,0,0,0,0,0,0,0,0,0,0,0]
[{"$f":"IF('1. PRESUPUESTO INICIAL'!B90=\"\",\"\",'1. PRESUPUESTO INICIAL'!B90)","v":"Acciones de movilización social"},null,0,0,0,0,0,0,0,0,0,0,0,0,0,0,0,0,0,0,0,0,0,0,0,0,0,0,0,0,0,0,0,0,0,0,0,0,0,0,0]
[{"$f":"IF('1. PRESUPUESTO INICIAL'!B91=\"\",\"\",'1. PRESUPUESTO INICIAL'!B91)","v":"Gastos bancarios (comisiones, transferencias y chequeras)"},null,0,0,0,0,0,0,0,0,0,0,0,0,0,0,0,0,0,0,0,0,0,0,0,0,0,0,0,0,0,0,0,0,0,0,0,0,0,0,0]
[{"$f":"IF('1. PRESUPUESTO INICIAL'!B92=\"\",\"\",'1. PRESUPUESTO INICIAL'!B92)","v":"Materiales o dispositivos de apoyo de baja complejidad para los participantes"},null,0,0,0,0,0,0,0,0,0,0,0,0,0,0,0,0,0,0,0,0,0,0,0,0,0,0,0,0,0,0,0,0,0,0,0,0,0,0,0]
[{"$f":"IF('1. PRESUPUESTO INICIAL'!B93=\"\",\"\",'1. PRESUPUESTO INICIAL'!B93)","v":"Otros (lo que se requiera para el adecuado desarrollo de la Modalidad)"},null,0,0,0,0,0,0,0,0,0,0,0,0,0,0,0,0,0,0,0,0,0,0,0,0,0,0,0,0,0,0,0,0,0,0,0,0,0,0,0]
[{"$f":"IF('1. PRESUPUESTO INICIAL'!B94=\"\",\"\",'1. PRESUPUESTO INICIAL'!B94)","v":""},null,0,0,0,0,0,0,0,0,0,0,0,0,0,0,0,0,0,0,0,0,0,0,0,0,0,0,0,0,0,0,0,0,0,0,0,0,0,0,0]
[{"$f":"IF('1. PRESUPUESTO INICIAL'!B95=\"\",\"\",'1. PRESUPUESTO INICIAL'!B95)","v":""},null,0,0,0,0,0,0,0,0,0,0,0,0,0,0,0,0,0,0,0,0,0,0,0,0,0,0,0,0,0,0,0,0,0,0,0,0,0,0,0]
[{"$f":"IF('1. PRESUPUESTO INICIAL'!B99=\"\",\"\",'1. PRESUPUESTO INICIAL'!B99)","v":"N/A"},null,0,0,{"$f":"IFERROR(C73-D73,0)","v":0},0,0,{"$f":"IFERROR(F73-G73,0)","v":0},0,0,{"$f":"IFERROR(I73-J73,0)","v":0},0,0,{"$f":"IFERROR(L73-M73,0)","v":0},0,0,{"$f":"IFERROR(O73-P73,0)","v":0},0,0,{"$f":"IFERROR(R73-S73,0)","v":0},0,0,{"$f":"IFERROR(U73-V73,0)","v":0},0,0,{"$f":"IFERROR(X73-Y73,0)","v":0},0,0,{"$f":"IFERROR(AA73-AB73,0)","v":0},0,0,{"$f":"IFERROR(AD73-AE73,0)","v":0},0,0,{"$f":"IFERROR(AG73-AH73,0)","v":0},0,0,{"$f":"IFERROR(AJ73-AK73,0)","v":0},0,0,0]
[{"$f":"IF('1. PRESUPUESTO INICIAL'!B102=\"\",\"\",'1. PRESUPUESTO INICIAL'!B102)","v":"GRAVAMEN MOVIMIENTOS FINANCIEROS GMF"},null,0,0,{"$f":"IFERROR(C74-D74,0)","v":0},0,0,{"$f":"IFERROR(F74-G74,0)","v":0},0,0,{"$f":"IFERROR(I74-J74,0)","v":0},0,0,{"$f":"IFERROR(L74-M74,0)","v":0},0,0,{"$f":"IFERROR(O74-P74,0)","v":0},0,0,{"$f":"IFERROR(R74-S74,0)","v":0},0,0,{"$f":"IFERROR(U74-V74,0)","v":0},0,0,{"$f":"IFERROR(X74-Y74,0)","v":0},0,0,{"$f":"IFERROR(AA74-AB74,0)","v":0},0,0,{"$f":"IFERROR(AD74-AE74,0)","v":0},0,0,{"$f":"IFERROR(AG74-AH74,0)","v":0},0,0,{"$f":"IFERROR(AJ74-AK74,0)","v":0},0,0,0]
["TOTAL ",null,{"$f":"+C27+C38+C43+C48+C49+C50+C56+C62+C63+C73+C74","v":0},{"$f":"+D27+D38+D43+D48+D49+D50+D56+D62+D63+D73+D74","v":0},0,0,0,0,0,0,0,0,0,0,0,0,0,0,0,0,0,0,0,0,0,0,0,0,0,0,0,0,0,0,0,0,0,0,0,0,0]
["DIFERENCIA SOPORTES"]
["TOTAL INEJECUCIONES MES (Inasistencias+No ejeutado+Diferencia Soportes)",null,"Inasistencias  no se ejecuto en el mes  y diferencias en soportes  ",null,{"$f":"+C19+E75+D76","v":0},"Inasistencias  no se ejecuto en el mes  y diferencias en soportes  ",null,{"$f":"+F19+H75+G76","v":0},"Inasistencias  no se ejecuto en el mes  y diferencias en soportes  ",null,{"$f":"+I19+K75+J76","v":0},"Inasistencias  no se ejecuto en el mes  y diferencias en soportes  ",null,{"$f":"+L19+N75+M76","v":0},"Inasistencias  no se ejecuto en el mes  y diferencias en soportes  ",null,{"$f":"+O19+Q75+P76","v":0},"Inasistencias  no se ejecuto en el mes  y diferencias en soportes  ",null,{"$f":"+R19+T75+S76","v":0},"Inasistencias  no se ejecuto en el mes  y diferencias en soportes  ",null,{"$f":"+U19+W75+V76","v":0},"Inasistencias  no se ejecuto en el mes  y diferencias en soportes  ",null,{"$f":"+X19+Z75+Y76","v":0},"Inasistencias  no se ejecuto en el mes  y diferencias en soportes  ",null,{"$f":"+AA19+AC75+AB76","v":0},"Inasistencias  no se ejecuto en el mes  y diferencias en soportes  ",null,{"$f":"+AD19+AF75+AE76","v":0},"Inasistencias  no se ejecuto en el mes  y diferencias en soportes  ",null,{"$f":"+AG19+AI75+AH76","v":0},"Inasistencias  no se ejecuto en el mes  y diferencias en soportes  ",null,{"$f":"+AJ19+AL75+AK76","v":0},"TOTAL"]
["VALOR A DESEMBOLSAR",null,{"$f":"+C75-E77","v":0},null,null,{"$f":"+F75-H77","v":0},null,null,{"$f":"+I75-K77","v":0},null,null,{"$f":"+L75-N77","v":0},null,null,{"$f":"+O75-Q77","v":0},null,null,{"$f":"+R75-T77","v":0},null,null,{"$f":"+U75-W77","v":0},null,null,{"$f":"+X75-Z77","v":0},null,null,{"$f":"+AA75-AC77","v":0},null,null,{"$f":"+AD75-AF77","v":0},null,null,{"$f":"+AG75-AI77","v":0},null,null,{"$f":"+AJ75-AL77","v":0},null,null,"TOTAL VALOR A DESEMBOLSAR",{"$f":"+SUM(C78:AL78)","v":0}]
["5. RENDIMIENTOS FINANCIEROS/REINTEGROS",null,null,null,null,null,null,null,null,null,null,null,null,null,null,null,null,null,null,null,null,null,null,null,null,null,null,null,null,null,null,null,null,null,null,null,null,null,"TOTAL  RENDIMIENTOS FINANCIEROS/REINTEGROS"]
[null,null,"El Convenio/Contrato generó rendimientos financieros:   ",null,null,"SÍ","NO","La entidad generó reintegros:                                 ",null,null,"SÍ","NO"]
[]
[]
[null,"FECHA DE INICIO\n(Extracto Bancario)","FECHA DE CORTE\n(Extracto Bancario)","VALOR RENDIMIENTOS FINANCIEROS",null,"FECHA CONSIGNACIÓN",null,null,"ANEXA RECIBO\n(SÍ/NO)","VALOR REINTEGROS"]
[null,"DD/MM/AAAA","DD/MM/AAAA",0,null,"DD/MM/AAAA",null,null,null,0]
[null,"DD/MM/AAAA","DD/MM/AAAA",0,null,"DD/MM/AAAA",null,null,null,0]
[null,"DD/MM/AAAA","DD/MM/AAAA",0,null,"DD/MM/AAAA",null,null,null,0]
[null,"DD/MM/AAAA","DD/MM/AAAA",0,null,"DD/MM/AAAA",null,null,null,0]
[]
[]
[null,null,null,null,null,"Para  constancia  de  lo  anterior,  se  firma el presente informe a los  ","DD/MM/AAAA"]
[]
[]
[]
[]
[]
[]
[]
[null,null,null,null,null,"Contador/Revisor Fiscal (según aplique)",null,null,null,null,null,null,null,null,null,null,"Representante Legal "]
[null,null,null,null,null,"Nombre:",null,null,null,null,null,null,null,null,null,null,"Nombre:"]
[null,null,null,null,null,"C.C.:",null,null,null,null,null,null,null,null,null,null,"C.C.:"]
[null,null,null,null,null,"Tarjeta Profesional:"]
[]
[]
["¡Antes de imprimir este documento… piense en el medio ambiente!\nCualquier copia impresa de este documento se considera como COPIA NO CONTROLADA.\nLOS DATOS PROPORCIONADOS SERÁN TRATADOS DE ACUERDO A LA POLÍTICA DE TRATAMIENTO DE DATOS PERSONALES DEL ICBF Y A LA LEY 1581 DE 2012"]

{"sheet":"3. CONTRAPARTIDA","index":7,"n_rows":20,"n_cols":18,"rows_kept":20,"cut":false,"hidden":false,"merged":[[15,6,15,8],[17,0,17,17],[18,0,18,17],[19,0,19,17],[11,0,11,2],[3,0,3,17],[0,0,2,1],[2,16,2,17],[0,2,2,15],[4,0,4,17]]}
[null,null,"PROCESO\nPROMOCIÓN Y PREVENCIÓN\n\nFORMATO SEGUIMIENTO FINANCIERO\nCENTROS DE APOYO A LA INCLUSIÓN\nITINERANTE",null,null,null,null,null,null,null,null,null,null,null,null,null,{"$f":"+'2. INFORMACION GENERAL'!Z1","v":"F24.GO1.MT7.PP "},{"$f":"+'1. PRESUPUESTO INICIAL'!G1","v":"2025-08-22"}]
[null,null,null,null,null,null,null,null,null,null,null,null,null,null,null,null,{"$f":"+'2. INFORMACION GENERAL'!Z2","v":"Versión 1"},"Página 1 de 1"]
[null,null,null,null,null,null,null,null,null,null,null,null,null,null,null,null,"Clasificación de la Información:\nPública"]
["3. CONTRAPARTIDA"]
["DETALLES DE LA EJECUCIÓN DE LA CONTRAPARTIDA "]
["CODIGO","LINEAS DE INVERSION ","DESCRIPCIÓN","VALOR PRESUPUESTADO","ENERO","FEBRERO","MARZO","ABRIL","MAYO","JUNIO","JULIO","AGOSTO","SEPTIEMBRE","OCTUBRE","NOVIEMBRE","DICIEMBRE","VALOR EJECUTADO A LA FECHA","SALDO POR EJECUTAR"]
[1301,"MATERIALES O IMPLEMENTOS ","PERMITAN CUALIFICAR EL DESARROLLO DE LAS ACTIVIDADES PROPUESTAS, DE ACUERDO CON LA METODOLOGÍA IMPLEMENTADA EN EL MANUAL OPERATIVO DE LA MODALIDAD PARA EL RECONOCIMIENTO, LA GARANTÍA Y LA PROTECCIÓN INTEGRAL DE DERECHOS, EL BUEN VIVIR Y LA PARTICIPACIÓN DE NIÑAS, NIÑOS Y ADOLESCENTES",null,null,null,null,null,null,null,null,null,null,null,null,null,{"$f":"+SUM(E7:P7)","v":0},{"$f":"+D7-Q7","v":0}]
[1302,"ACTIVIDADES DE MOVILIZACIÓN SOCIAL","PARA EL RECONOCIMIENTO Y GARANTÍA DE LOS DERECHOS DE NIÑAS, NIÑOS Y ADOLESCENTES.",null,null,null,null,null,null,null,null,null,null,null,null,null,{"$f":"+SUM(E8:P8)","v":0},{"$f":"+D8-Q8","v":0}]
[null,null,null,null,null,null,null,null,null,null,null,null,null,null,null,null,{"$f":"+SUM(E9:P9)","v":0},{"$f":"+D9-Q9","v":0}]
[null,null,null,null,null,null,null,null,null,null,null,null,null,null,null,null,{"$f":"+SUM(E10:P10)","v":0},{"$f":"+D10-Q10","v":0}]
[null,null,null,null,null,null,null,null,null,null,null,null,null,null,null,null,{"$f":"+SUM(E11:P11)","v":0},{"$f":"+D11-Q11","v":0}]
["TOTAL APORTE ",null,null,{"$f":"+SUM(D7:D11)","v":0},{"$f":"+SUM(E7:E11)","v":0},0,0,0,0,0,0,0,0,0,0,0,0,0]
[]
[]
[]
[null,null,null,null,null,null,"Firma del Representante Legal"]
[]
["¡Antes de imprimir este documento… piense en el medio ambiente!"]
["Cualquier copia impresa de este documento se considera como COPIA NO CONTROLADA"]
["LOS DATOS PROPORCIONADOS SERÁN TRATADOS DE ACUERDO A LA POLÌTICA DE TRATAMIENTO DE DATOS PERSONALES DEL ICBF Y A LA LEY 1581 DE 2012"]

{"sheet":"4. DETALLADA-RECURSOS ICBF","index":8,"n_rows":1307,"n_cols":13,"rows_kept":1307,"cut":false,"hidden":false,"merged":[[1302,1,1302,5],[1303,3,1303,5],[1306,0,1306,12],[2,11,2,12],[6,0,6,9],[1300,0,1300,8],[5,0,5,12],[0,2,2,10],[0,0,2,1]]}
[null,null,"PROCESO\nPROMOCIÓN Y PREVENCIÓN\n\nFORMATO SEGUIMIENTO FINANCIERO\nCENTROS DE APOYO A LA INCLUSIÓN\nITINERANTE",null,null,null,null,null,null,null,null,{"$f":"+'3. CONTRAPARTIDA'!Q1","v":"F24.GO1.MT7.PP "},{"$f":"+'3. CONTRAPARTIDA'!R1","v":"2025-08-22"}]
[null,null,null,null,null,null,null,null,null,null,null,{"$f":"+'3. CONTRAPARTIDA'!Q2","v":"Versión 1"},"Página 1 de 1"]
[null,null,null,null,null,null,null,null,null,null,null,"Clasificación de la Información\nPública"]
[]
[]
["4. RELACIÓN DE EGRESOS (COSTOS-GASTOS) EJECUTADOS "]
["REGISTRAR ÚNICAMENTE LOS EGRESOS EJECUTADOS                                                                                            *Para insertar filas: Primero copie la fila y continúe con el comando \"Insertar celdas copiadas\"",null,null,null,null,null,null,null,null,null,"Total ejecución del periodo",{"$f":"SUM(L9:L1298)","v":0}]
["Etapa","Fecha del soporte","Proveedor","Tipo de identificación","Número de identificación proveedor","Soporte ","N° de registro contable","N° de registro Egreso (Tesorería)","Descripción soporte ","Componente de Egreso (Costo-Gasto)","Subcomponente de Egreso (Costo-Gasto)","Valor total pagado ","Pago SÍ / NO"]
[]
[]
[]
[]
[]
[]
[]
[]
[]
[]
[]
[]
[]
[]
[]
[]
[]
[]
[]
[]
[]
[]
[]
[]
[]
[]
[]
[]
[]
[]
[]
[]
[]
[]
[]
[]
[]
[]
[]
[]
[]
[]
[]
[]
[]
[]
[]
[]
[]
[]
[]
[]
[]
[]
[]
[]
[]
[]
[]
[]
[]
[]
[]
[]
[]
[]
[]
[]
[]
[]
[]
[]
[]
[]
[]
[]
[]
[]
[]
[]
[]
[]
[]
[]
[]
[]
[]
[]
[]
[]
[]
[]
[]
[]
[]
[]
[]
[]
[]
[]
[]
[]
[]
[]
[]
[]
[]
[]
[]
[]
[]
[]
[]
[]
[]
[]
[]
[]
[]
[]
[]
[]
[]
[]
[]
[]
[]
[]
[]
[]
[]
[]
[]
[]
[]
[]
[]
[]
[]
[]
[]
[]
[]
[]
[]
[]
[]
[]
[]
[]
[]
[]
[]
[]
[]
[]
[]
[]
[]
[]
[]
[]
[]
[]
[]
[]
[]
[]
[]
[]
[]
[]
[]
[]
[]
[]
[]
[]
[]
[]
[]
[]
[]
[]
[]
[]
[]
[]
[]
[]
[]
[]
[]
[]
[]
[]
[]
[]
[]
[]
[]
[]
[]
[]
[]
[]
[]
[]
[]
[]
[]
[]
[]
[]
[]
[]
[]
[]
[]
[]
[]
[]
[]
[]
[]
[]
[]
[]
[]
[]
[]
[]
[]
[]
[]
[]
[]
[]
[]
[]
[]
[]
[]
[]
[]
[]
[]
[]
[]
[]
[]
[]
[]
[]
[]
[]
[]
[]
[]
[]
[]
[]
[]
[]
[]
[]
[]
[]
[]
[]
[]
[]
[]
[]
[]
[]
[]
[]
[]
[]
[]
[]
[]
[]
[]
[]
[]
[]
[]
[]
[]
[]
[]
[]
[]
[]
[]
[]
[]
[]
[]
[]
[]
[]
[]
[]
[]
[]
[]
[]
[]
[]
[]
[]
[]
[]
[]
[]
[]
[]
[]
[]
[]
[]
[]
[]
[]
[]
[]
[]
[]
[]
[]
[]
[]
[]
[]
[]
[]
[]
[]
[]
[]
[]
[]
[]
[]
[]
[]
[]
[]
[]
[]
[]
[]
[]
[]
[]
[]
[]
[]
[]
[]
[]
[]
[]
[]
[]
[]
[]
[]
[]
[]
[]
[]
[]
[]
[]
[]
[]
[]
[]
[]
[]
[]
[]
[]
[]
[]
[]
[]
[]
[]
[]
[]
[]
[]
[]
[]
[]
[]
[]
[]
[]
[]
[]
[]
[]
[]
[]
[]
[]
[]
[]
[]
[]
[]
[]
[]
[]
[]
[]
[]
[]
[]
[]
[]
[]
[]
[]
[]
[]
[]
[]
[]
[]
[]
[]
[]
[]
[]
[]
[]
[]
[]
[]
[]
[]
[]
[]
[]
[]
[]
[]
[]
[]
[]
[]
[]
[]
[]
[]
[]
[]
[]
[]
[]
[]
[]
[]
[]
[]
[]
[]
[]
[]
[]
[]
[]
[]
[]
[]
[]
[]
[]
[]
[]
[]
[]
[]
[]
[]
[]
[]
[]
[]
[]
[]
[]
[]
[]
[]
[]
[]
[]
[]
[]
[]
[]
[]
[]
[]
[]
[]
[]
[]
[]
[]
[]
[]
[]
[]
[]
[]
[]
[]
[]
[]
[]
[]
[]
[]
[]
[]
[]
[]
[]
[]
[]
[]
[]
[]
[]
[]
[]
[]
[]
[]
[]
[]
[]
[]
[]
[]
[]
[]
[]
[]
[]
[]
[]
[]
[]
[]
[]
[]
[]
[]
[]
[]
[]
[]
[]
[]
[]
[]
[]
[]
[]
[]
[]
[]
[]
[]
[]
[]
[]
[]
[]
[]
[]
[]
[]
[]
[]
[]
[]
[]
[]
[]
[]
[]
[]
[]
[]
[]
[]
[]
[]
[]
[]
[]
[]
[]
[]
[]
[]
[]
[]
[]
[]
[]
[]
[]
[]
[]
[]
[]
[]
[]
[]
[]
[]
[]
[]
[]
[]
[]
[]
[]
[]
[]
[]
[]
[]
[]
[]
[]
[]
[]
[]
[]
[]
[]
[]
[]
[]
[]
[]
[]
[]
[]
[]
[]
[]
[]
[]
[]
[]
[]
[]
[]
[]
[]
[]
[]
[]
[]
[]
[]
[]
[]
[]
[]
[]
[]
[]
[]
[]
[]
[]
[]
[]
[]
[]
[]
[]
[]
[]
[]
[]
[]
[]
[]
[]
[]
[]
[]
[]
[]
[]
[]
[]
[]
[]
[]
[]
[]
[]
[]
[]
[]
[]
[]
[]
[]
[]
[]
[]
[]
[]
[]
[]
[]
[]
[]
[]
[]
[]
[]
[]
[]
[]
[]
[]
[]
[]
[]
[]
[]
[]
[]
[]
[]
[]
[]
[]
[]
[]
[]
[]
[]
[]
[]
[]
[]
[]
[]
[]
[]
[]
[]
[]
[]
[]
[]
[]
[]
[]
[]
[]
[]
[]
[]
[]
[]
[]
[]
[]
[]
[]
[]
[]
[]
[]
[]
[]
[]
[]
[]
[]
[]
[]
[]
[]
[]
[]
[]
[]
[]
[]
[]
[]
[]
[]
[]
[]
[]
[]
[]
[]
[]
[]
[]
[]
[]
[]
[]
[]
[]
[]
[]
[]
[]
[]
[]
[]
[]
[]
[]
[]
[]
[]
[]
[]
[]
[]
[]
[]
[]
[]
[]
[]
[]
[]
[]
[]
[]
[]
[]
[]
[]
[]
[]
[]
[]
[]
[]
[]
[]
[]
[]
[]
[]
[]
[]
[]
[]
[]
[]
[]
[]
[]
[]
[]
[]
[]
[]
[]
[]
[]
[]
[]
[]
[]
[]
[]
[]
[]
[]
[]
[]
[]
[]
[]
[]
[]
[]
[]
[]
[]
[]
[]
[]
[]
[]
[]
[]
[]
[]
[]
[]
[]
[]
[]
[]
[]
[]
[]
[]
[]
[]
[]
[]
[]
[]
[]
[]
[]
[]
[]
[]
[]
[]
[]
[]
[]
[]
[]
[]
[]
[]
[]
[]
[]
[]
[]
[]
[]
[]
[]
[]
[]
[]
[]
[]
[]
[]
[]
[]
[]
[]
[]
[]
[]
[]
[]
[]
[]
[]
[]
[]
[]
[]
[]
[]
[]
[]
[]
[]
[]
[]
[]
[]
[]
[]
[]
[]
[]
[]
[]
[]
[]
[]
[]
[]
[]
[]
[]
[]
[]
[]
[]
[]
[]
[]
[]
[]
[]
[]
[]
[]
[]
[]
[]
[]
[]
[]
[]
[]
[]
[]
[]
[]
[]
[]
[]
[]
[]
[]
[]
[]
[]
[]
[]
[]
[]
[]
[]
[]
[]
[]
[]
[]
[]
[]
[]
[]
[]
[]
[]
[]
[]
[]
[]
[]
[]
[]
[]
[]
[]
[]
[]
[]
[]
[]
[]
[]
[]
[]
[]
[]
[]
[]
[]
[]
[]
[]
[]
[]
[]
[]
[]
[]
[]
[]
[]
[]
[]
[]
[]
[]
[]
[]
[]
[]
[]
[]
[]
[]
[]
[]
[]
[]
[]
[]
[]
[]
[]
[]
[]
[]
[]
[]
[]
[]
[]
[]
[]
[]
[]
[]
[]
[]
[]
[]
[]
[]
[]
[]
[]
[]
[]
[]
[]
[]
[]
[]
[]
[]
[]
[]
[]
[]
[]
[]
[]
[]
[]
[]
[]
[]
[]
[]
[]
[]
[]
[]
[]
[]
[]
[]
[]
[]
[]
[]
[]
[]
[]
[]
[]
[]
[]
[]
[]
[]
[]
[]
[]
[]
[]
[]
[]
[]
[]
[]
[]
[]
[]
[]
[]
[]
[]
[]
[]
[]
[]
[]
[]
[]
[]
[]
[]
[]
[]
[]
[]
[]
[]
[]
[]
[]
[]
[]
[]
[]
[]
[]
[]
[]
[]
[]
[]
[]
[]
[]
[]
[]
[]
[]
[]
[]
[]
[]
[]
[]
[]
[]
[]
[]
[]
[]
[]
[]
[]
[]
[]
[]
[]
[]
[]
[]
[]
[]
[]
[]
[]
[]
[]
[]
[]
[]
[]
[]
[]
[]
[]
[]
[]
[]
[]
[]
[]
[]
[]
[]
[]
[]
[]
[]
["-","-","-","-","-","-","-","-","-","-","-","-","-"]
[]
["Para  constancia  de  lo  anterior,  se  firma  el presente documento a los  "]
[]
[null,"Contador/Revisor Fiscal (según aplique)"]
[null,"Nombre:"]
[null,"C.C.:"]
[null,"Tarjeta profesional:"]
["¡Antes de imprimir este documento… piense en el medio ambiente!\nCualquier copia impresa de este documento se considera como COPIA NO CONTROLADA\nLOS DATOS PROPORCIONADOS SERÁN TRATADOS DE ACUERDO A LA POLÌTICA DE TRATAMIENTO DE DATOS PERSONALES DEL ICBF Y A LA LEY 1581 DE 2012"]

{"sheet":"5. TABLA TOTALES EJECUTADOS","index":9,"n_rows":52,"n_cols":13,"rows_kept":52,"cut":false,"hidden":false,"merged":[[5,0,5,12],[2,11,2,12],[51,0,52,12],[0,1,2,10],[0,0,2,0]]}
[null,"PROCESO\nPROMOCIÓN Y PREVENCIÓN\n\nFORMATO SEGUIMIENTO FINANCIERO\nCENTROS DE APOYO A LA INCLUSIÓN\nITINERANTE",null,null,null,null,null,null,null,null,null,{"$f":"+'4. DETALLADA-RECURSOS ICBF'!L1","v":"F24.GO1.MT7.PP "},{"$f":"+'1. PRESUPUESTO INICIAL'!G1","v":"2025-08-22"}]
[null,null,null,null,null,null,null,null,null,null,null,{"$f":"+'3. CONTRAPARTIDA'!Q2","v":"Versión 1"},"Página 1 de 1"]
[null,null,null,null,null,null,null,null,null,null,null,"Clasificación de la Información\nPública"]
[]
[]
["TABLA VALORES TOTALES EJECUTADOS DEL PERIODO "]
[]
["Pago SÍ / NO","(Todas)"]
[]
["Suma de Valor total pagado ","Etiquetas de columna"]
["Etiquetas de fila","Alistamiento","(en blanco)","Total general"]
["(en blanco)"]
["Total general"]
[]
[]
[]
[]
[]
[]
[]
[]
[]
[]
[]
[]
[]
[]
[]
[]
[]
[]
[]
[]
[]
[]
[]
[]
[]
[]
[]
[]
[]
[]
[]
[]
[]
[]
[]
[]
[]
[]
["¡Antes de imprimir este documento… piense en el medio ambiente!\nCualquier copia impresa de este documento se considera como COPIA NO CONTROLADA\nLOS DATOS PROPORCIONADOS SERÁN TRATADOS DE ACUERDO A LA POLÍTICA DE TRATAMIENTO DE DATOS PERSONALES DEL ICBF Y A LA LEY 1581 DE 2012"]

{"sheet":"Hoja3","index":10,"n_rows":1,"n_cols":1,"rows_kept":1,"cut":false,"hidden":true,"merged":[[0,0,0,3]]}
["INFORMACION POR COLUMNAS\nPresupuesto aprobado para el periodo: Registre en esta columna el valor total del presupuesto por ITEMS para el periodo que está informando. Debe ser igual al valor del periodo del presupuesto aprobado.\nMás ejecución programada periodo anterior: Registre en esta columna los valores correspondientes al presupuesto del periodo anterior que no se ejecutaron y que se registraron en la columna Ejecución programada para el siguiente periodo y que se acumulan para su ejecución en este periodo.\nValor total presupuesto disponible en el periodo: Columna con las celdas formuladas que suma el presupuesto aprobado para el periodo más los valores programados en el periodo anterior que se ejecutarán en este.\nEjecución del periodo incluye valores pagados y por pagar y el valor provisionado por concepto de prestaciones sociales: Esta columna relaciona para cada uno de los ÍTEMS el valor ejecutado en el periodo incluye cuentas por pagar y provisiones de ley del talento humano. Para el talento humano se debe ingresar el valor manualmente, para los demás rubros el valor esta formulado con base en la información relacionada en el formato “3. DETALLE DE EJECUCIÓN MENSUAL” Estos valores deben estar sustentados con los respectivos soportes financieros (facturas, contratos, planillas de nómina y seguridad social, etc.).\nEjecución programada para el siguiente periodo: Registre en esta columna los valores por ITEMS, que no se ejecutaron en el periodo por alguna circunstancia especial (en el caso de los recibos de servicio que no llegaron en el mes, reparaciones locativas programadas para periodos posteriores, compras anticipadas, etc.). No se puede reprogramar valores como talento humano y alimentación.\nSaldo de ejecución en el periodo: Columna con las celdas formuladas que descuenta del presupuesto aprobado para el periodo y para cada uno de los ITEMS los valores ejecutados más los programados. Las cifras de esta columna constituyen los valores que serán reducidos del contrato. Estos valores se pueden presentar por ahorros o inejecuciones que se presentan en la ejecución el periodo.\nValor Ahorros del periodo: En esta columna se relacionar, cuando se presenten saldos de ejecución en el periodo, los valores correspondientes a ahorros de acuerdo con el concepto establecido en el manual operativo de la modalidad. \nValor inejecuciones del periodo: En esta columna se relacionar, cuando se presenten saldos de ejecución en el periodo, los valores correspondientes a inejecuciones de acuerdo con el concepto establecido en el manual operativo de la modalidad. \nValor de la carga prestacional en el periodo: Registre en esta columna para cada uno de los ITEMS del talento humano la carga prestacional del periodo.\nOBSERVACIONES: En este cuadro describa, cuando aplique, los aspectos que ameritan ser explicados respecto a los valores relacionados en el formato\nFinalmente están las firmas del contador y/o tesorero y representante legal de la EAS\nNota: Este formato se presenta por mes."]